Workbook

Sheet INDICE
F1: ÁUSTRIA
F2: Trocas comerciais com Portugal (PT) 2018-2022 Setores agrícola e agroalimentar, do mar e das florestas
C3: Fonte
D4: Estatísticas do Comércio Internacional | F4: Áustria - Síntese
D5: dados: 2021 provisórios; 2022 preliminares | F5: 1. Evolução da balança comercial
F6: 2. Ranking dos parceiros comerciais de Portugal por país
C7: Data | D7: 2023-05-23T16:31:19.070 | F7: 2A Parceiros comerciais de Portugal - UE vs. Países Terceiros
F8: 3. Principais produtos transacionados (NC a 2 e 4 dígitos)
F9: 3A Principais produtos transacionados (sem mar nem florestas)
F10: 4A Evolução da balança comercial por produto
F11: 5.2. Trocas comerciais por produto (NC 2 dígitos)

Sheet Sintese
A1: Áustria - Síntese (2018-2022)
A3: • As trocas comerciais de bens transacionáveis (excluindo serviços) entre Portugal e Áustria representam um total de 452 milhões de € (M€) em exportações e 441,1 M€ em importações, na média do período 2018-2022, correspondendo a um saldo positivo da balança comercial de cerca de 10,9 M€.
A4: • No que respeita aos produtos dos setores agrícola e agroalimentar, mar e florestas, Portugal exportou para Áustria 39,2 M€ em média anual, no mesmo período (este país ocupa assim a 30ª posição em relação ao total dos países), enquanto as importações totalizaram 64,4 M€ (26ª posição), com um saldo negativo de -25,3 M€. Estes setores representam perto de 8,7% do total de exportações de bens transacionáveis e 14,6% das correspondentes importações.
A5: • Se nos referirmos apenas ao setor agrícola e agroalimentar, as exportações representam, em média, 14,3 M€ (37ª posição) e as importações 23,8 milhões (28ª posição), ou seja, Portugal tem um saldo negativo de -9,5 M€. Estes valores representam, respetivamente, cerca de 36,5% das exportações do setor agroflorestal e mar e 36,9% das importações.
A6: • As principais exportações agrícolas e agroalimentares (NC 4 dígitos) neste período são Margarina e preparações de gorduras animais ou vegetais (17%), Vinhos de uvas frescas (17%) e Tomates preparados (15%). As importações agrícolas e agroalimentares mais relevantes referem-se a Águas com açúcar ou outros produtos; outras bebidas (18%), Chocolate e outras preparações com cacau (13%) e Agentes de apresto ou de acabamento, etc. (NC 380910) (8%). Se considerarmos também os produtos do mar e da floresta, merecem particular destaque, em termos de exportações, Preparações e conservas de peixes, etc. (15%), Cortiça aglomerada e suas obras (13%) e Papel e cartão p/ escrita, etc. (11%). Nas importações destes setores, destacam-se Obras de marcenaria ou carpintaria (10%), Papel e cartão revestidos (9%) e Papel para cigarros (8%).
A9: Saldo da Balança Comercial | B9: 2018 | C9: 2019 | D9: 2020 | E9: 2021 | F9: 2022 | G9: média 2018-2022 | J9: Posição entre os parceiros comerciais de Portugal (milhares de euros)
A10: Total de Bens Transacionáveis* | B10: 136300.776 | C10: 2184-05-23T16:46:33.600 | D10: -5167.886 | E10: -88337.205 | F10: -92071.239 | G10: 10919.829 | J10: AA + M + F | K10: Posição | L10: média 2018-2022 | M10: % do total | N10: TVMA* 2018-2022 | O10: TVT* 2018-2022
A11: Agrícola e Agroalimentar (AA) | B11: -3268.016 | C11: -6098.173 | D11: -7314.603 | E11: -14139.943 | F11: -16584.721 | G11: -9481.0912 | J11: Exportações | K11: 30ª | L11: 39163.9938 | M11: 0.003021793463 | N11: 0.1355751159 | O11: 0.6628897974
A12: Mar (M) | B12: 4570.942 | C12: 5526.865 | D12: 5366.104 | E12: 6709.274 | F12: 9928.024 | G12: 6420.2418 | J12: Importações | K12: 26ª | L12: 64420.9792 | M12: 0.004306819847 | N12: 0.1422710985 | O12: 0.7024593622
A13: Florestas (F) | B13: -21911.281 | C13: -19656.566 | D13: -18652.792 | E13: -20975.058 | F13: -29784.983 | G13: -22196.136 | J13: AA
A14: AA + M + F | B14: -20608.355 | C14: -20227.874 | D14: -20601.291 | E14: -28405.727 | F14: -36441.68 | G14: -25256.9854 | J14: Exportações | K14: 37ª | L14: 14287.109 | M14: 0.002021779749 | N14: 0.06094928699 | O14: 0.2670055028
J15: Importações | K15: 28ª | L15: 23768.2002 | M15: 0.002330070248 | N15: 0.1409926284 | O15: 0.9338117421
A16: milhares de euros *exclui serviços | K16: *TVMA - Taxa de variação média anual; TVT - Taxa de variação total
A18: Evolução das trocas comerciais Portugal-Áustria em milhares de euros (2018-2022)
E27: Exportações | G27: Importações | I27: Saldo
A28: Principais produtos agrícolas e agroalimentares, do mar e da floresta transacionados (NC 4 dígitos)
A47: Principais produtos agrícolas e agroalimentares transacionados (NC 4 dígitos)
A81: Fonte: GPP a partir de dados INE/Comércio Internacional (2021 provisórios; 2022 preliminares) | N81: 2023-05-23T16:31:19.070

Sheet 1
A1: Evolução da balança comercial Portugal-Áustria 2018-2022 em milhões de euros
A3: Total de Bens Transacionáveis (BT)(1) | B3: 2018 | C3: 2019 | D3: 2020 | E3: 2021 | F3: 2022 | G3: média quinquénio | H3: var. 18/19 | I3: var. 19/20 | J3: var. 20/21 | K3: var. 21/22 | L3: TVMA* 2018-2022 | M3: TVT* 2018-2022
A4: Exportações | B4: 530.745039 | C4: 525.060018 | D4: 395.3195 | E4: 367.285924 | F4: 441.817386 | G4: 452.0455734 | H4: -0.01071139734 | I4: -0.2470965481 | J4: -0.07091371916 | K4: 0.2029249071 | L4: -0.04481121521 | M4: -0.1675524903
A5: Importações | B5: 394.444263 | C5: 421.185319 | D5: 400.487386 | E5: 455.623129 | F5: 533.888625 | G5: 441.1257444 | H5: 0.06779425766 | I5: -0.04914210459 | J5: 0.1376716095 | K5: 0.1717768283 | L5: 0.07861450429 | M5: 0.3535210804
A6: Saldo (exp-imp) | B6: 136.300776 | C6: 103.874699 | D6: -5.167886 | E6: -88.337205 | F6: -92.071239 | G6: 10.919829
A7: Cobertura (exp/imp) | B7: 1.345551422 | C7: 1.246624691 | D7: 0.9870960081 | E7: 0.8061178211 | F7: 0.8275459811 | G7: 1.024754459
A8: Exp BT Áustria / Exp BT Mundo | B8: 0.009174505029 | C8: 0.008765198469 | D8: 0.007353769987 | E8: 0.005773254289 | F8: 0.005649747778 | G8: 0.007213570443 | L8: Exportações
A9: Imp BT Áustria / Imp BT Mundo | B9: 0.005228634727 | C9: 0.005266322106 | D9: 0.005876939586 | E9: 0.005479814925 | F9: 0.004885034057 | G9: 0.00530201349 | L9: Importações
A10: Exp BT Áustria / Exp TE Mundo | B10: 0.005953813134 | C10: 0.005629401842 | D10: 0.005321604734 | E10: 0.004108127234 | F10: 0.003689443317 | G10: 0.004851763384
A11: Imp BT Áustria / Imp TE Mundo | B11: 0.004472442257 | C11: 0.004563133719 | D11: 0.005096246648 | E11: 0.004769390269 | F11: 0.004247393998 | G11: 0.004592098546
A12: (1) Todos os produtos transacionados entre PT e Áustria (exclui serviços) | D12: TE - Total da Economia (bens e serviços) Fonte: INE/Contas Nacionais | H12: *TVMA - Taxa de variação média anual; TVT - Taxa de variação total
A24: Agro(1) + Mar + Florestas (AMF) | B24: 2018 | C24: 2019 | D24: 2020 | E24: 2021 | F24: 2022 | G24: média quinquénio | H24: var. 18/19 | I24: var. 19/20 | J24: var. 20/21 | K24: var. 21/22 | L24: TVMA* 2018-2022 | M24: TVT* 2018-2022
A25: Exportações | B25: 34.288805 | C25: 33.336949 | D25: 32.047692 | E25: 39.128019 | F25: 57.018504 | G25: 39.1639938 | H25: -0.02775996422 | I25: -0.03867351508 | J25: 0.2209309488 | K25: 0.4572295112 | L25: 0.1355751159 | M25: 0.6628897974
A26: Importações | B26: 54.89716 | C26: 53.564823 | D26: 52.648983 | E26: 67.533746 | F26: 93.460184 | G26: 64.4209792 | H26: -0.024269689 | I26: -0.01709778823 | J26: 0.282717009 | K26: 0.3839034488 | L26: 0.1422710985 | M26: 0.7024593622
A27: Saldo (exp-imp) | B27: -20.608355 | C27: -20.227874 | D27: -20.601291 | E27: -28.405727 | F27: -36.44168 | G27: -25.2569854
A28: Cobertura (exp/imp) | B28: 0.6246007079 | C28: 0.6223664549 | D28: 0.6087048633 | E28: 0.5793846975 | F28: 0.6100833698 | G28: 0.6079385052
A29: Exp AMF / Exp BT | B29: 0.06460504099 | C29: 0.06349169211 | D29: 0.08106782489 | E29: 0.1065328575 | F29: 0.1290544596 | G29: 0.08663726868 | L29: Exportações
A30: Imp AMF / Imp BT | B30: 0.1391759626 | C30: 0.1271763772 | D30: 0.1314622753 | E30: 0.1482228221 | F30: 0.1750555821 | G30: 0.1460376775 | L30: Importações
A31: Exp AMF Áustria / Exp AMF Mundo | B31: 0.002943065805 | C31: 0.002818518864 | D31: 0.002778194386 | E31: 0.00292074914 | F31: 0.003478430186 | G31: 0.003021793463
A32: Imp AMF Áustria / Imp AMF Mundo | B32: 0.004027494969 | C32: 0.00387214686 | D32: 0.004035831186 | E32: 0.004518936327 | F32: 0.004833596474 | G32: 0.004306819847
A33: (1) Produtos agrícolas e agroalimentares | B33: BT - Total de Bens Transacionáveis (exclui serviços) | H33: *TVMA - Taxa de variação média anual; TVT - Taxa de variação total
A45: Agroalimentar (AA)(1) | B45: 2018 | C45: 2019 | D45: 2020 | E45: 2021 | F45: 2022 | G45: média quinquénio | H45: var. 18/19 | I45: var. 19/20 | J45: var. 20/21 | K45: var. 21/22 | L45: TVMA* 2018-2022 | M45: TVT* 2018-2022
A46: Exportações | B46: 15.394267 | C46: 12.232816 | D46: 12.091572 | E46: 12.212269 | F46: 19.504621 | G46: 14.287109 | H46: -0.2053654779 | I46: -0.01154631934 | J46: 0.009981911368 | K46: 0.59713326 | L46: 0.06094928699 | M46: 0.2670055028
A47: Importações | B47: 18.662283 | C47: 18.330989 | D47: 19.406175 | E47: 26.352212 | F47: 36.089342 | G47: 23.7682002 | H47: -0.01775206174 | I47: 0.05865400934 | J47: 0.3579292158 | K47: 0.369499532 | L47: 0.1792436552 | M47: 0.9338117421
A48: Saldo (exp-imp) | B48: -3.268016 | C48: -6.098173 | D48: -7.314603 | E48: -14.139943 | F48: -16.584721 | G48: -9.4810912
A49: Cobertura (exp/imp) | B49: 0.8248865908 | C49: 0.6673298424 | D49: 0.6230785819 | E49: 0.4634248161 | F49: 0.5404537716 | G49: 0.6011018453
A50: Exp AA / Exp AMF | B50: 0.4489589824 | C50: 0.3669446775 | D50: 0.3772993075 | E50: 0.3121105876 | F50: 0.3420752849 | G50: 0.3648021464 | L50: Exportações
A51: Imp AA / Imp AMF | B51: 0.3399498808 | C51: 0.3422206585 | D51: 0.368595439 | E51: 0.3902080598 | F51: 0.3861467039 | G51: 0.3689512407 | L51: Importações
A52: Exp AA / Exp BT | B52: 0.02900501346 | C52: 0.02329793848 | D52: 0.03058683419 | E52: 0.03325003275 | F52: 0.04414634104 | G52: 0.03160546157
A53: Imp AA / Imp BT | B53: 0.0473128519 | C53: 0.04352238355 | D53: 0.04845639508 | E53: 0.05783773984 | F53: 0.06759713601 | G53: 0.0538807823
A54: Exp AA Áustria / Exp AA Mundo | B54: 0.002520808504 | C54: 0.00194429087 | D54: 0.00182732701 | E54: 0.001638834161 | F54: 0.002200038947 | G54: 0.002021779749
A55: Imp AA Áustria / Imp AA Mundo | B55: 0.002051730017 | C55: 0.001967462175 | D55: 0.00213619674 | E55: 0.002565730069 | F55: 0.002726823376 | G55: 0.002330070248
A56: (1) Produtos agrícolas e agroalimentares | B56: AMF - Agroalimentar, Mar e Florestas; BT - Total de Bens Transacionáveis (exclui serviços) | H56: *TVMA - Taxa de variação média anual; TVT - Taxa de variação total
A67: Mar (M) | B67: 2018 | C67: 2019 | D67: 2020 | E67: 2021 | F67: 2022 | G67: média quinquénio | H67: var. 18/19 | I67: var. 19/20 | J67: var. 20/21 | K67: var. 21/22 | L67: TVMA* 2018-2022 | M67: TVT* 2018-2022
A68: Exportações | B68: 4.585744 | C68: 5.75592 | D68: 5.552429 | E68: 6.779143 | F68: 10.062059 | G68: 6.547059 | H68: 0.2551769135 | I68: -0.03535334056 | J68: 0.2209328566 | K68: 0.4842671116 | L68: 0.2170803852 | M68: 1.194204256
A69: Importações | B69: 0.014802 | C69: 0.229055 | D69: 0.186325 | E69: 0.069869 | F69: 0.134035 | G69: 0.1268172 | H69: 14.47459803 | I69: -0.1865490821 | J69: -0.62501543 | K69: 0.9183758176 | L69: 0.7347003044
A70: Saldo (exp-imp) | B70: 4.570942 | C70: 5.526865 | D70: 5.366104 | E70: 6.709274 | F70: 9.928024 | G70: 6.4202418
A71: Cobertura (exp/imp) | B71: 309.8057019 | C71: 25.12898649 | D71: 29.79969945 | E71: 97.02647812 | F71: 75.0703846 | G71: 51.62595452
A72: Exp M / Exp AMF | B72: 0.1337388107 | C72: 0.1726588717 | D72: 0.173255191 | E72: 0.1732554618 | F72: 0.1764700631 | G72: 0.1671703615 | L72: Exportações
A73: Imp M / Imp AMF | B73: 0.0002696314345 | C73: 0.004276220608 | D73: 0.003539004733 | E73: 0.001034579068 | F73: 0.001434140125 | G73: 0.001968569891 | L73: Importações
A74: Exp M / Exp BT | B74: 0.008640201345 | C74: 0.01096240392 | D74: 0.01404542149 | E74: 0.01845739942 | F74: 0.02277424863 | G74: 0.01448318352
A75: Imp M / Imp BT | B75: 3.752621445e-05 | C75: 0.0005438342451 | D75: 0.0004652456145 | E75: 0.0001533482292 | F75: 0.0002510542344 | G75: 0.0002874853749
A76: Exp M Áustria / Exp M Mundo | B76: 0.004203991755 | C76: 0.005387486318 | D76: 0.006171630606 | E76: 0.006188590179 | F76: 0.007828634289 | G76: 0.006017983229
A77: Imp M Áustria / Imp M Mundo | B77: 6.715255376e-06 | C77: 0.0001051028129 | D77: 9.679890054e-05 | E77: 3.339731199e-05 | F77: 5.139648469e-05 | G77: 5.760039619e-05
A78: AMF - Agroalimentar, Mar e Florestas; BT - Total de Bens Transacionáveis (exclui serviços) | H78: *TVMA - Taxa de variação média anual; TVT - Taxa de variação total
A90: Florestas (F) | B90: 2018 | C90: 2019 | D90: 2020 | E90: 2021 | F90: 2022 | G90: média quinquénio | H90: var. 18/19 | I90: var. 19/20 | J90: var. 20/21 | K90: var. 21/22 | L90: TVMA* 2018-2022 | M90: TVT* 2018-2022
A91: Exportações | B91: 14.308794 | C91: 15.348213 | D91: 14.403691 | E91: 20.136607 | F91: 27.451824 | G91: 18.3298258 | H91: 0.07264197108 | I91: -0.0615395421 | J91: 0.3980171471 | K91: 0.3632795237 | L91: 0.1769067227 | M91: 0.9185281443
A92: Importações | B92: 36.220075 | C92: 35.004779 | D92: 33.056483 | E92: 41.111665 | F92: 57.236807 | G92: 40.5259618 | H92: -0.03355310556 | I92: -0.0556580003 | J92: 0.2436793412 | K92: 0.3922278993 | L92: 0.1211959318 | M92: 0.5802509244
A93: Saldo (exp-imp) | B93: -21.911281 | C93: -19.656566 | D93: -18.652792 | E93: -20.975058 | F93: -29.784983 | G93: -22.196136
A94: Cobertura (exp/imp) | B94: 0.3950514735 | C94: 0.4384605028 | D94: 0.4357296873 | E94: 0.4898027604 | F94: 0.4796183686 | G94: 0.4522983536
A95: Exp F / Exp AMF | B95: 0.4173022069 | C95: 0.4603964508 | D95: 0.4494455014 | E95: 0.5146339507 | F95: 0.481454652 | G95: 0.4680274921 | L95: Exportações
A96: Imp F / Imp AMF | B96: 0.6597804877 | C96: 0.6535031209 | D96: 0.6278655563 | E96: 0.6087573611 | F96: 0.6124191559 | G96: 0.6290801895 | L96: Importações
A97: Exp F / Exp BT | B97: 0.02695982619 | C97: 0.0292313497 | D97: 0.0364355692 | E97: 0.05482542533 | F97: 0.06213386994 | G97: 0.04054862359
A98: Imp F / Imp BT | B98: 0.09182558449 | C98: 0.0831101594 | D98: 0.08254063463 | E98: 0.09023173404 | F98: 0.1072073918 | G98: 0.09186940983
A99: Exp F Áustria / Exp F Mundo | B99: 0.003213274521 | C99: 0.003435311575 | D99: 0.003584177721 | E99: 0.004152442224 | F99: 0.004398518097 | G99: 0.003813948493
A100: Imp F Áustria / Imp F Mundo | B100: 0.01554185907 | C100: 0.01497882988 | D100: 0.01623543754 | E100: 0.01592418091 | F100: 0.01638739093 | G100: 0.01585776778
A101: AMF - Agroalimentar, Mar e Florestas; BT - Total de Bens Transacionáveis (exclui serviços) | H101: *TVMA - Taxa de variação média anual; TVT - Taxa de variação total
A111: Fonte: GPP a partir de dados INE/Comércio Internacional (2021 provisórios; 2022 preliminares) | H111: 2023-05-23T16:31:19.070

Sheet 2
A1: Ranking dos parceiros comerciais de Portugal por país (média 2018-2022 em milhares de euros) produtos agrícolas e agroalimentares, do mar e da floresta
A2: Exportações | F2: Importações | K2: Trocas comerciais (total e saldo)
A3: P | B3: País | C3: média quinquénio | D3: % do Total | F3: P | G3: País | H3: média quinquénio | I3: % do Total | K3: P | L3: País | M3: Total (exp+imp) | N3: % do Total | O3: Saldo (exp-imp)
A4: 1 | B4: Espanha | C4: 4147137.938 | D4: 0.3199825426 | F4: 1 | G4: Espanha | H4: 6901979.232 | I4: 0.4614270306 | K4: 1 | L4: Espanha | M4: 11049117.17 | N4: 0.3957645176 | O4: -2754841.293
A5: 2 | B5: França | C5: 1359640.969 | D5: 0.1049064152 | F5: 2 | G5: França | H5: 986185.2734 | I5: 0.0659307319 | K5: 2 | L5: França | M5: 2345826.243 | N5: 0.08402434124 | O5: 373455.696
A6: 3 | B6: Itália | C6: 876774.7284 | D6: 0.06764969264 | F6: 3 | G6: Alemanha | H6: 880951.0908 | I6: 0.05889537367 | K6: 3 | L6: Alemanha | M6: 1516599.607 | N6: 0.05432255832 | O6: -245302.5748
A7: 4 | B7: Alemanha | C7: 635648.516 | D7: 0.04904501161 | F7: 4 | G7: Países Baixos | H7: 833152.697 | I7: 0.05569984523 | K7: 4 | L7: Países Baixos | M7: 1421542.299 | N7: 0.0509177334 | O7: -244763.0948
A8: 5 | B8: Países Baixos | C8: 588389.6022 | D8: 0.04539863485 | F8: 5 | G8: Brasil | H8: 705274.2876 | I8: 0.04715062294 | K8: 5 | L8: Itália | M8: 1323334.658 | N8: 0.04740006776 | O8: 430214.799
A9: 6 | B9: Estados Unidos | C9: 554106.8534 | D9: 0.04275346575 | F9: 6 | G9: Itália | H9: 446559.9294 | I9: 0.02985445411 | K9: 6 | L9: Brasil | M9: 1157990.816 | N9: 0.04147767371 | O9: -252557.7592 | P9: Nota: Nesta listagem, o Reino Unido passa a ser constituído por três componentes: Reino Unido [até 2020] ; Reino Unido (sem Irlanda do Norte) pós-2020 e Reino Unido (Irlanda do Norte) pós-2020. Estas componentes são calculadas igualmente como média do quinquénio, embora a primeira corresponda apenas a 2018-2020 e as duas últimas a 2021-2022.
A10: 7 | B10: Brasil | C10: 452716.5284 | D10: 0.03493044793 | F10: 7 | G10: Suécia | H10: 342692.7562 | I10: 0.02291048634 | K10: 7 | L10: Estados Unidos | M10: 835578.634 | N10: 0.02992930294 | O10: 272635.0728
A11: 8 | B11: Reino Unido | C11: 382822.421 | D11: 0.0295375976 | F11: 8 | G11: Bélgica | H11: 284922.9008 | I11: 0.01904832276 | K11: 8 | L11: Reino Unido | M11: 527725.3878 | N11: 0.01890241368 | O11: 237919.4542
A12: 9 | B12: Angola | C12: 331120.0664 | D12: 0.02554837633 | F12: 9 | G12: Estados Unidos | H12: 281471.7806 | I12: 0.01881760051 | K12: 9 | L12: Bélgica | M12: 524078.8948 | N12: 0.01877180121 | O12: -45766.9068
A13: 10 | B13: Reino Unido (sem Irlanda do Norte) pós 2020 | C13: 297928.3204 | D13: 0.02298738621 | F13: 10 | G13: Polónia | H13: 207249.91 | I13: 0.01385554887 | K13: 10 | L13: Polónia | M13: 458630.3884 | N13: 0.01642752372 | O13: 44130.5684
A14: 11 | B14: Polónia | C14: 251380.4784 | D14: 0.01939587393 | F14: 11 | G14: Ucrânia | H14: 195332.8996 | I14: 0.01305884541 | K14: 11 | L14: Suécia | M14: 436691.4122 | N14: 0.0156416991 | O14: -248694.1002
A15: 12 | B15: Bélgica | C15: 239155.994 | D15: 0.01845266402 | F15: 12 | G15: China | H15: 173709.004 | I15: 0.01161319488 | K15: 12 | L15: China | M15: 367378.4436 | N15: 0.01315900178 | O15: 19960.4356
A16: 13 | B16: Israel | C16: 214334.0624 | D16: 0.01653746735 | F16: 13 | G16: África do Sul | H16: 145344.5192 | I16: 0.009716906942 | K16: 13 | L16: Reino Unido (sem Irlanda do Norte) pós 2020 | M16: 358990.3996 | N16: 0.01285855333 | O16: 236866.2412
A17: 14 | B17: China | C17: 193669.4396 | D17: 0.01494303798 | F17: 14 | G17: Reino Unido | H17: 144902.9668 | I17: 0.009687387263 | K17: 14 | L17: Angola | M17: 346543.215 | N17: 0.01241271191 | O17: 315696.9178
A18: 15 | B18: Turquia | C18: 167228.7496 | D18: 0.01290294205 | F18: 15 | G18: Dinamarca | H18: 144434.8984 | I18: 0.009656094875 | K18: 15 | L18: Dinamarca | M18: 229206.2586 | N18: 0.008209859936 | O18: -59663.5382
A19: 16 | B19: Suíça | C19: 143381.926 | D19: 0.01106298221 | F19: 16 | G19: Roménia | H19: 138756.2138 | I19: 0.009276450357 | K19: 16 | L19: Turquia | M19: 223208.1582 | N19: 0.007995016046 | O19: 111249.341
A20: 17 | B20: Marrocos | C20: 109032.6026 | D20: 0.008412676387 | F20: 17 | G20: Irlanda | H20: 118290.7746 | I20: 0.007908247626 | K20: 17 | L20: Israel | M20: 222677.5138 | N20: 0.007976009077 | O20: 205990.611
A21: 18 | B21: Cabo Verde | C21: 100901.0544 | D21: 0.007785266952 | F21: 18 | G21: Canadá | H21: 108500.262 | I21: 0.007253709702 | K21: 18 | L21: Ucrânia | M21: 209672.7922 | N21: 0.007510197439 | O21: -180993.007
A22: 19 | B22: Canadá | C22: 96471.0096 | D22: 0.007443456041 | F22: 19 | G22: Rússia | H22: 105947.3528 | I22: 0.007083036729 | K22: 19 | L22: Canadá | M22: 204971.2716 | N22: 0.007341795294 | O22: -12029.2524
A23: 20 | B23: Suécia | C23: 93998.656 | D23: 0.007252695569 | F23: 20 | G23: Uruguai | H23: 102111.7952 | I23: 0.006826613188 | K23: 20 | L23: Rússia | M23: 185992.9178 | N23: 0.006662016183 | O23: -25901.7878
A24: 21 | B24: Dinamarca | C24: 84771.3602 | D24: 0.006540741055 | F24: 21 | G24: Argentina | H24: 97726.5184 | I24: 0.006533438552 | K24: 21 | L24: África do Sul | M24: 182500.0166 | N24: 0.00653690516 | O24: -108189.0218
A25: 22 | B25: Egito | C25: 83378.3752 | D25: 0.0064332619 | F25: 22 | G25: Índia | H25: 75540.6788 | I25: 0.005050219645 | K25: 22 | L25: Irlanda | M25: 182267.8406 | N25: 0.006528588928 | O25: -54313.7086
A26: 23 | B26: Rússia | C26: 80045.565 | D26: 0.006176110801 | F26: 23 | G26: Finlândia | H26: 74110.91 | I26: 0.004954633445 | K26: 23 | L26: Roménia | M26: 164596.3888 | N26: 0.00589562129 | O26: -112916.0388
A27: 24 | B27: Argélia | C27: 78380.8918 | D27: 0.00604766888 | F27: 24 | G27: Vietname | H27: 70006.3292 | I27: 0.004680224545 | K27: 24 | L27: Marrocos | M27: 151640.996 | N27: 0.005431576543 | O27: 66424.2092
A28: 25 | B28: México | C28: 73464.5916 | D28: 0.005668339747 | F28: 25 | G28: Costa Rica | H28: 69968.8442 | I28: 0.004677718511 | K28: 25 | L28: Suíça | M28: 147879.1934 | N28: 0.005296833833 | O28: 138884.6586
A29: 26 | B29: Japão | C29: 66614.1746 | D29: 0.005139779115 | F29: 26 | G29: Áustria | H29: 64420.9792 | I29: 0.004306819847 | K29: 26 | L29: Grécia | M29: 116206.8788 | N29: 0.004162374118 | O29: -11091.8156
A30: 27 | B30: Irlanda | C30: 63977.066 | D30: 0.004936306569 | F30: 27 | G30: Grécia | H30: 63649.3472 | I30: 0.004255232926 | K30: 27 | L30: Argentina | M30: 113791.3158 | N30: 0.0040758519 | O30: -81661.721
A31: 28 | B31: Luxemburgo | C31: 55247.7972 | D31: 0.004262778544 | F31: 28 | G31: Reino Unido (sem Irlanda do Norte) pós 2020 | H31: 61062.0792 | I31: 0.004082262919 | K31: 28 | L31: Uruguai | M31: 105100.8748 | N31: 0.003764571991 | O31: -99122.7156
A32: 29 | B32: Grécia | C32: 52557.5316 | D32: 0.00405520454 | F32: 29 | G32: Turquia | H32: 55979.4086 | I32: 0.003742464504 | K32: 29 | L32: Áustria | M32: 103584.973 | N32: 0.003710274427 | O32: -25256.9854
A33: 30 | B33: Áustria | C33: 39163.9938 | D33: 0.003021793463 | F33: 30 | G33: Equador | H33: 48766.9652 | I33: 0.003260281607 | K33: 30 | L33: Finlândia | M33: 103332.8204 | N33: 0.00370124266 | O33: -44888.9996
A34: 31 | B34: Moçambique | C34: 37451.371 | D34: 0.002889651874 | F34: 31 | G34: Chile | H34: 47783.2146 | I34: 0.003194513644 | K34: 31 | L34: Cabo Verde | M34: 101737.191 | N34: 0.003644089361 | O34: 100064.9178
A35: 32 | B35: África do Sul | C35: 37155.4974 | D35: 0.002866823025 | F35: 32 | G35: Bulgária | H35: 47615.198 | I35: 0.003183281011 | K35: 32 | L35: Índia | M35: 100003.3314 | N35: 0.003581984841 | O35: -51078.0262
A36: 33 | B36: Chile | C36: 36026.5554 | D36: 0.002779716751 | F36: 33 | G36: Cuba | H36: 43073.8564 | I36: 0.00287967277 | K36: 33 | L36: Egito | M36: 93743.8836 | N36: 0.003357779839 | O36: 73012.8668
A37: 34 | B37: Austrália | C37: 34889.2258 | D37: 0.002691963312 | F37: 34 | G37: Marrocos | H37: 42608.3934 | I37: 0.002848554565 | K37: 34 | L37: México | M37: 93550.6764 | N37: 0.003350859417 | O37: 53378.5068
A38: 35 | B38: Arábia Saudita | C38: 32824.7102 | D38: 0.002532670576 | F38: 35 | G38: Moçambique | H38: 40008.1492 | I38: 0.002674717044 | K38: 35 | L38: Chile | M38: 83809.77 | N38: 0.00300195325 | O38: -11756.6592
A39: 36 | B39: Guiné-Bissau | C39: 32182.3282 | D39: 0.002483106026 | F39: 36 | G39: Checa, República | H39: 35954.3558 | I39: 0.0024037035 | K39: 36 | L39: Argélia | M39: 83292.5462 | N39: 0.002983426989 | O39: 73469.2374
A40: 37 | B40: Finlândia | C40: 29221.9104 | D40: 0.00225468777 | F40: 37 | G40: Colômbia | H40: 29155.8878 | I40: 0.001949196641 | K40: 37 | L40: Japão | M40: 83024.7762 | N40: 0.002973835828 | O40: 50203.573
A41: 38 | B41: Checa, República | C41: 29121.3328 | D41: 0.00224692746 | F41: 38 | G41: Indonésia | H41: 28536.2748 | I41: 0.001907772844 | K41: 38 | L41: Moçambique | M41: 77459.5202 | N41: 0.002774495842 | O41: -2556.7782
A42: 39 | B42: Emirados Árabes Unidos | C42: 29075.6888 | D42: 0.002243405686 | F42: 39 | G42: Guiana | H42: 28025.2642 | I42: 0.001873609585 | K42: 39 | L42: Vietname | M42: 75952.8202 | N42: 0.002720527875 | O42: -64059.8382
A43: 40 | B43: São Tomé e Príncipe | C43: 26794.1658 | D43: 0.002067369214 | F43: 40 | G43: Hungria | H43: 24241.9694 | I43: 0.001620680037 | K43: 40 | L43: Costa Rica | M43: 73986.1334 | N43: 0.002650083798 | O43: -65951.555
A44: 41 | B44: Jordânia | C44: 26642.1032 | D44: 0.002055636453 | F44: 41 | G44: Namíbia | H44: 22812.3548 | I44: 0.001525104145 | K44: 41 | L44: Checa, República | M44: 65075.6886 | N44: 0.002330923649 | O44: -6833.023
A45: 42 | B45: Roménia | C45: 25840.175 | D45: 0.001993761727 | F45: 42 | G45: Costa do Marfim | H45: 22796.1714 | I45: 0.001524022215 | K45: 42 | L45: Luxemburgo | M45: 63935.742 | N45: 0.002290092295 | O45: 46559.8524
A46: 43 | B46: Tunísia | C46: 24967.3514 | D46: 0.001926416893 | F46: 43 | G46: Uganda | H46: 22685.1304 | I46: 0.001516598646 | K46: 43 | L46: Bulgária | M46: 60599.4354 | N46: 0.002170590279 | O46: -34630.9606
A47: 44 | B47: Índia | C47: 24462.6526 | D47: 0.001887475626 | F47: 44 | G47: México | H47: 20086.0848 | I47: 0.001342841257 | K47: 44 | L47: Equador | M47: 51816.5236 | N47: 0.00185599819 | O47: -45717.4068
A48: 45 | B48: Noruega | C48: 22053.074 | D48: 0.001701558712 | F48: 45 | G48: Peru | H48: 19492.7516 | I48: 0.001303174378 | K48: 45 | L48: Austrália | M48: 48706.4602 | N48: 0.001744599902 | O48: 21071.9914
A49: 46 | B49: Coreia, República da | C49: 18918.1652 | D49: 0.001459677178 | F49: 46 | G49: Paraguai | H49: 18841.0926 | I49: 0.001259608167 | K49: 46 | L49: Cuba | M49: 48370.083 | N49: 0.001732551323 | O49: -37777.6298
A50: 47 | B50: Hungria | C50: 18307.2964 | D50: 0.001412544106 | F50: 47 | G50: Senegal | H50: 17576.369 | I50: 0.001175055949 | K50: 47 | L50: Hungria | M50: 42549.2658 | N50: 0.001524057479 | O50: -5934.673
A51: 48 | B51: Nigéria | C51: 16230.2952 | D51: 0.001252288012 | F51: 48 | G51: Nova Zelânda | H51: 17376.4264 | I51: 0.001161688925 | K51: 48 | L51: Colômbia | M51: 37488.773 | N51: 0.001342797432 | O51: -20823.0026
A52: 49 | B52: Argentina | C52: 16064.7974 | D52: 0.001239518626 | F52: 49 | G52: Japão | H52: 16410.6016 | I52: 0.001097119379 | K52: 49 | L52: Tunísia | M52: 35512.9364 | N52: 0.001272025622 | O52: 14421.7664
A53: 50 | B53: Lituânia | C53: 14413.7628 | D53: 0.001112129024 | F53: 50 | G53: Angola | H53: 15423.1486 | I53: 0.001031103894 | K53: 50 | L53: Noruega | M53: 34929.1028 | N53: 0.001251113488 | O53: 9177.0452
A54: 51 | B54: Ucrânia | C54: 14339.8926 | D54: 0.001106429389 | F54: 51 | G54: Lituânia | H54: 14634.3552 | I54: 0.0009783696586 | K54: 51 | L54: Costa do Marfim | M54: 32980.227 | N54: 0.001181307378 | O54: -12612.1158
A55: 52 | B55: Macau | C55: 14162.3014 | D55: 0.001092726907 | F55: 52 | G55: Mauritânia | H55: 14124.4552 | I55: 0.0009442806481 | K55: 52 | L55: Arábia Saudita | M55: 32858.648 | N55: 0.001176952581 | O55: 32790.7724
A56: 53 | B56: Síria, República Árabe da | C56: 13309.7072 | D56: 0.001026942922 | F56: 53 | G56: Austrália | H56: 13817.2344 | I56: 0.0009237416147 | K56: 53 | L56: Guiné-Bissau | M56: 32561.5328 | N56: 0.001166310315 | O56: 31803.1236
A57: 54 | B57: Iraque | C57: 13221.9204 | D57: 0.001020169517 | F57: 54 | G57: Tanzânia, República Unida da | H57: 13710.948 | I57: 0.0009166359112 | K57: 54 | L57: Indonésia | M57: 32138.0738 | N57: 0.001151142583 | O57: -24934.4758
A58: 55 | B58: Bulgária | C58: 12984.2374 | D58: 0.001001830505 | F58: 55 | G58: Eslovénia | H58: 13650.401 | I58: 0.0009125880836 | K58: 55 | L58: Coreia, República da | M58: 31290.6162 | N58: 0.001120787791 | O58: 6545.7142
A59: 56 | B59: HongKong | C59: 12801.5844 | D59: 0.0009877374677 | F59: 56 | G59: Suazilândia | H59: 13238.574 | I59: 0.0008850556754 | K59: 56 | L59: Emirados Árabes Unidos | M59: 29704.3194 | N59: 0.001063968773 | O59: 28447.0582
A60: 57 | B60: Eslováquia | C60: 12721.3848 | D60: 0.000981549472 | F60: 57 | G60: Noruega | H60: 12876.0288 | I60: 0.0008608179677 | K60: 57 | L60: Lituânia | M60: 29048.118 | N60: 0.001040464521 | O60: -220.5924
A61: 58 | B61: Letónia | C61: 11855.2754 | D61: 0.0009147226888 | F61: 58 | G61: Tailândia | H61: 12763.9036 | I61: 0.0008533219153 | K61: 58 | L61: Senegal | M61: 28854.7126 | N61: 0.001033537 | O61: -6298.0254
A62: 59 | B62: Croácia | C62: 11368.3906 | D62: 0.0008771559045 | F62: 59 | G62: Camarões | H62: 12420.1756 | I62: 0.0008303422184 | K62: 59 | L62: Guiana | M62: 28164.8444 | N62: 0.001008826849 | O62: -27885.684
A63: 60 | B63: Senegal | C63: 11278.3436 | D63: 0.0008702081086 | F63: 60 | G63: Coreia, República da | H63: 12372.451 | I63: 0.0008271516234 | K63: 60 | L63: São Tomé e Príncipe | M63: 27847.8924 | N63: 0.0009974740546 | O63: 25740.4392
A64: 61 | B64: Dominicana, República | C64: 11207.4662 | D64: 0.0008647393899 | F64: 61 | G64: Estónia | H64: 12168.0976 | I64: 0.0008134897187 | K64: 61 | L64: Jordânia | M64: 26698.3012 | N64: 0.0009562972438 | O64: 26585.9052
A65: 62 | B65: Líbia, Jamahira Árabe da | C65: 11110.442 | D65: 0.0008572532511 | F65: 62 | G65: Moldava, República de | H65: 11911.7076 | I65: 0.0007963489432 | K65: 62 | L65: Peru | M65: 25630.734 | N65: 0.0009180584224 | O65: -13354.7692
A66: 63 | B66: Costa do Marfim | C66: 10184.0556 | D66: 0.000785775649 | F66: 63 | G66: Sérvia | H66: 11556.9174 | I66: 0.0007726296907 | K66: 63 | L66: Uganda | M66: 23651.9568 | N66: 0.0008471812843 | O66: -21718.304
A67: 64 | B67: Malta | C67: 9933.0434 | D67: 0.0007664081904 | F67: 64 | G67: Letónia | H67: 10708.7876 | I67: 0.0007159285616 | K67: 64 | L67: Namíbia | M67: 23552.016 | N67: 0.0008436015392 | O67: -22072.6936
A68: 65 | B68: Líbano | C68: 9909.3948 | D68: 0.000764583525 | F68: 65 | G68: Tunísia | H68: 10545.585 | I68: 0.0007050177651 | K68: 65 | L68: Letónia | M68: 22564.063 | N68: 0.0008082143914 | O68: 1146.4878
A69: 66 | B69: Território Palestiniano Ocupado | C69: 9895.7186 | D69: 0.0007635283045 | F69: 66 | G69: Paquistão | H69: 10439.2814 | I69: 0.0006979109117 | K69: 66 | L69: Tailândia | M69: 22047.6444 | N69: 0.0007897169717 | O69: -3480.1628
A70: 67 | B70: Chipre | C70: 9812.818 | D70: 0.0007571319065 | F70: 67 | G70: Egito | H70: 10365.5084 | I70: 0.000692978869 | K70: 67 | L70: Eslovénia | M70: 21976.3266 | N70: 0.000787162464 | O70: -5324.4754
A71: 68 | B71: Tailândia | C71: 9283.7408 | D71: 0.0007163096647 | F71: 68 | G71: Islândia | H71: 10004.2966 | I71: 0.0006688303048 | K71: 68 | L71: Nigéria | M71: 21616.2318 | N71: 0.0007742643525 | O71: 10844.3586
A72: 69 | B72: Kuwait | C72: 9136.5242 | D72: 0.0007049508088 | F72: 69 | G72: Maurícias | H72: 9636.258 | I72: 0.0006442253397 | K72: 69 | L72: Nova Zelânda | M72: 21601.4804 | N72: 0.0007737359772 | O72: -13151.3724
A73: 70 | B73: Camarões | C73: 9091.9556 | D73: 0.0007015120098 | F73: 70 | G73: Luxemburgo | H73: 8687.9448 | I73: 0.000580826519 | K73: 70 | L73: Camarões | M73: 21512.1312 | N73: 0.000770535609 | O73: -3328.22
A74: 71 | B74: Colômbia | C74: 8332.8852 | D74: 0.0006429440817 | F74: 71 | G74: Israel | H74: 8343.4514 | I74: 0.0005577956518 | K74: 71 | L74: Estónia | M74: 20482.628 | N74: 0.0007336601889 | O74: -3853.5672
A75: 72 | B75: Eslovénia | C75: 8325.9256 | D75: 0.0006424070968 | F75: 72 | G75: Filipinas | H75: 8336.7014 | I75: 0.0005573443853 | K75: 72 | L75: Paraguai | M75: 20050.3854 | N75: 0.0007181778403 | O75: -17631.7998
A76: 73 | B76: Estónia | C76: 8314.5304 | D76: 0.0006415278723 | F76: 73 | G76: Belize | H76: 8129.6594 | I76: 0.0005435027361 | K76: 73 | L76: Croácia | M76: 18456.18 | N76: 0.0006610755468 | O76: 4280.6012
A77: 74 | B77: Geórgia | C77: 8048.6886 | D77: 0.0006210161999 | F77: 74 | G77: Malásia | H77: 8111.8758 | I77: 0.0005423138258 | K77: 74 | L77: Eslováquia | M77: 18115.4256 | N77: 0.0006488701825 | O77: 7327.344
A78: 75 | B78: Gibraltar | C78: 7970.9208 | D78: 0.0006150158356 | F78: 75 | G78: Bangladesh | H78: 7928.3318 | I78: 0.0005300431191 | K78: 75 | L78: Sérvia | M78: 17501.5482 | N78: 0.0006268819196 | O78: -5612.2866
A79: 76 | B79: Gana | C79: 7302.601 | D79: 0.0005634499914 | F79: 76 | G79: Croácia | H79: 7087.7894 | I79: 0.0004738492404 | K79: 76 | L79: Mauritânia | M79: 16926.9998 | N79: 0.0006063023686 | O79: -11321.9106
A80: 77 | B80: Taiwan | C80: 6604.3054 | D80: 0.0005095712912 | F80: 77 | G80: Quénia | H80: 6720.3804 | I80: 0.0004492863668 | K80: 77 | L80: HongKong | M80: 15599.17 | N80: 0.0005587412909 | O80: 10003.9988
A81: 78 | B81: Belarus | C81: 6189.2796 | D81: 0.0004775489633 | F81: 78 | G81: Gana | H81: 6620.3222 | I81: 0.0004425970453 | K81: 78 | L81: Maurícias | M81: 15492.8062 | N81: 0.0005549314826 | O81: -3779.7098
A82: 79 | B82: Guatemala | C82: 6179.8032 | D82: 0.0004768177886 | F82: 79 | G82: Reino Unido (Irlanda do Norte) pós-2020 | H82: 6512.7256 | I82: 0.0004354037492 | K82: 79 | L82: Suazilândia | M82: 15229.7308 | N82: 0.0005455084756 | O82: -11247.4172
A83: 80 | B83: Peru | C83: 6137.9824 | D83: 0.0004735910027 | F83: 80 | G83: Panamá | H83: 6501.636 | I83: 0.0004346623617 | K83: 80 | L83: Moldava, República de | M83: 14880.8148 | N83: 0.0005330107737 | O83: -8942.6004
A84: 81 | B84: Vietname | C84: 5946.491 | D84: 0.0004588160167 | F84: 81 | G84: Honduras | H84: 6221.2504 | I84: 0.0004159173771 | K84: 81 | L84: Síria, República Árabe da | M84: 14259.5412 | N84: 0.0005107575889 | O84: 12359.8732
A85: 82 | B85: Sérvia | C85: 5944.6308 | D85: 0.0004586724885 | F85: 82 | G85: Suriname | H85: 5829.6302 | I85: 0.0003897358804 | K85: 82 | L85: Tanzânia, República Unida da | M85: 14227.4994 | N85: 0.0005096098947 | O85: -13194.3966
A86: 83 | B86: Maurícias | C86: 5856.5482 | D86: 0.0004518762606 | F86: 83 | G86: Eslováquia | H86: 5394.0408 | I86: 0.0003606148535 | K86: 83 | L86: Macau | M86: 14180.6616 | N86: 0.0005079322277 | O86: 14143.9412
A87: 84 | B87: Andorra | C87: 5401.2632 | D87: 0.000416747636 | F87: 84 | G87: Nigéria | H87: 5385.9366 | I87: 0.0003600730528 | K87: 84 | L87: Gana | M87: 13922.9232 | N87: 0.0004987003848 | O87: 682.2788
A88: 85 | B88: Cuba | C88: 5296.2266 | D88: 0.0004086432809 | F88: 85 | G88: Etiópia | H88: 5332.739 | I88: 0.0003565165642 | K88: 85 | L88: Paquistão | M88: 13694.5862 | N88: 0.0004905216605 | O88: -7183.9766
A89: 86 | B89: Singapura | C89: 4688.1098 | D89: 0.000361722546 | F89: 86 | G89: Congo | H89: 5207.2118 | I89: 0.0003481245304 | K89: 86 | L89: Dominicana, República | M89: 13458.9994 | N89: 0.0004820832582 | O89: 8955.933
A90: 87 | B90: Omã | C90: 4393.4536 | D90: 0.0003389876282 | F90: 87 | G90: Guatemala | H90: 5138.5064 | I90: 0.0003435312785 | K90: 87 | L90: Chipre | M90: 13259.2352 | N90: 0.0004749279732 | O90: 6366.4008
A91: 88 | B91: Nova Zelânda | C91: 4225.054 | D91: 0.0003259943464 | F91: 88 | G91: Camboja | H91: 4965.2796 | I91: 0.0003319503211 | K91: 88 | L91: Iraque | M91: 13234.1844 | N91: 0.0004740306872 | O91: 13209.6564
A92: 89 | B92: Panamá | C92: 4203.97 | D92: 0.0003243675589 | F92: 89 | G92: Argélia | H92: 4911.6544 | I92: 0.0003283652455 | K92: 89 | L92: Malta | M92: 12121.6218 | N92: 0.0004341801911 | O92: 7744.465
A93: 90 | B93: Costa Rica | C93: 4017.2892 | D93: 0.0003099637465 | F93: 90 | G93: Macedónia, Antiga República jugoslava da | H93: 4838.0028 | I93: 0.0003234413189 | K93: 90 | L93: Filipinas | M93: 11815.5126 | N93: 0.0004232157713 | O93: -4857.8902
A94: 91 | B94: Catar | C94: 3815.048 | D94: 0.0002943593334 | F94: 91 | G94: Zimbabwe | H94: 4709.1506 | I94: 0.0003148269946 | K94: 91 | L94: Islândia | M94: 11807.758 | N94: 0.0004229380119 | O94: -8200.8352
A95: 92 | B95: Burquina Faso | C95: 3646.8948 | D95: 0.0002813850632 | F95: 92 | G95: Suíça | H95: 4497.2674 | I95: 0.0003006616903 | K95: 92 | L95: Malásia | M95: 11523.7994 | N95: 0.0004127669968 | O95: -4699.9522
A96: 93 | B96: Indonésia | C96: 3601.799 | D96: 0.0002779055867 | F96: 93 | G96: Sri Lanca | H96: 4393.1556 | I96: 0.0002937013682 | K96: 93 | L96: Guatemala | M96: 11318.3096 | N96: 0.0004054066285 | O96: 1041.2968
A97: 94 | B97: Sudão | C97: 3570.9408 | D97: 0.000275524647 | F97: 94 | G97: Madagáscar | H97: 3797.768 | I97: 0.0002538971435 | K97: 94 | L97: Líbia, Jamahira Árabe da | M97: 11116.443 | N97: 0.0003981760383 | O97: 11104.441
A98: 95 | B98: Filipinas | C98: 3478.8112 | D98: 0.000268416163 | F98: 95 | G98: Mali | H98: 3762.5872 | I98: 0.0002515451555 | K98: 95 | L98: Panamá | M98: 10705.606 | N98: 0.0003834604095 | O98: -2297.666
A99: 96 | B99: Mali | C99: 3441.82 | D99: 0.0002655620168 | F99: 96 | G99: Myanmar | H99: 3487.5904 | I99: 0.0002331604353 | K99: 96 | L99: Líbano | M99: 10450.9178 | N99: 0.0003743378207 | O99: 9367.8718
A100: 97 | B100: Malásia | C100: 3411.9236 | D100: 0.0002632552871 | F100: 97 | G100: Nicarágua | H100: 3458.6086 | I100: 0.0002312228772 | K100: 97 | L100: Kuwait | M100: 10320.1982 | N100: 0.0003696556204 | O100: 7952.8502
A101: 98 | B101: Venezuela | C101: 3292.4432 | D101: 0.0002540364854 | F101: 98 | G101: Chipre | H101: 3446.4172 | I101: 0.0002304078296 | K101: 98 | L101: Taiwan | M101: 10028.0136 | N101: 0.000359189961 | O101: 3180.5972
A102: 99 | B102: Paquistão | C102: 3255.3048 | D102: 0.0002511709816 | F102: 99 | G102: Taiwan | H102: 3423.7082 | I102: 0.0002288896352 | K102: 99 | L102: Território Palestiniano Ocupado | M102: 9896.2038 | N102: 0.0003544687112 | O102: 9895.2334
A103: 100 | B103: Irão, República Islâmica do | C103: 3151.3458 | D103: 0.0002431497714 | F103: 100 | G103: Congo, República Democrática do | H103: 3287.5874 | I103: 0.0002197893736 | K103: 100 | L103: Bangladesh | M103: 9893.1502 | N103: 0.0003543593354 | O103: -5963.5134
A104: 101 | B104: Equador | C104: 3049.5584 | D104: 0.0002352961163 | F104: 101 | G104: Malavi | H104: 3258.318 | I104: 0.0002178325882 | K104: 101 | L104: Quénia | M104: 9767.4084 | N104: 0.0003498554332 | O104: -3673.3524
A105: 102 | B105: Quénia | C105: 3047.028 | D105: 0.0002351008771 | F105: 102 | G105: Papuásia-Nova Guiné | H105: 3105.1676 | I105: 0.0002075938245 | K105: 102 | L105: Reino Unido (Irlanda do Norte) pós-2020 | M105: 9039.3634 | N105: 0.0003237778404 | O105: -3986.0878
A106: 103 | B106: Uruguai | C106: 2989.0796 | D106: 0.000230629727 | F106: 103 | G106: HongKong | H106: 2797.5856 | I106: 0.0001870306434 | K106: 103 | L106: Geórgia | M106: 8359.3498 | N106: 0.0002994206678 | O106: 7738.0274
A107: 104 | B107: Moldava, República de | C107: 2969.1072 | D107: 0.0002290887077 | F107: 104 | G107: Gabão | H107: 2642.8406 | I107: 0.0001766852738 | K107: 104 | L107: Belize | M107: 8131.84 | N107: 0.0002912715727 | O107: -8127.4788
A108: 105 | B108: Mauritânia | C108: 2802.5446 | D108: 0.0002162371641 | F108: 105 | G108: Centro-Africana, República | H108: 2579.2684 | I108: 0.0001724351985 | K108: 105 | L108: Gibraltar | M108: 7990.6994 | N108: 0.0002862161062 | O108: 7951.1422
A109: 106 | B109: Timor-Leste | C109: 2726.394 | D109: 0.0002103615788 | F109: 106 | G109: Gâmbia | H109: 2389.373 | I109: 0.0001597398734 | K109: 106 | L109: Congo | M109: 7640.4052 | N109: 0.0002736690391 | O109: -2774.0184
A110: 107 | B110: Guiné | C110: 2676.647 | D110: 0.0002065232277 | F110: 107 | G110: Dominicana, República | H110: 2251.5332 | I110: 0.0001505246892 | K110: 107 | L110: Honduras | M110: 7590.891 | N110: 0.000271895507 | O110: -4851.6098
A111: 108 | B111: Arménia | C111: 2588.4812 | D111: 0.0001997205803 | F111: 108 | G111: Malta | H111: 2188.5784 | I111: 0.0001463158898 | K111: 108 | L111: Etiópia | M111: 7364.853 | N111: 0.0002637991299 | O111: -3300.625
A112: 109 | B112: Gabão | C112: 2550.5466 | D112: 0.0001967936438 | F112: 109 | G112: Serra Leoa | H112: 1997.8504 | I112: 0.0001335649017 | K112: 109 | L112: Mali | M112: 7204.4072 | N112: 0.0002580521771 | O112: -320.7672
A113: 110 | B113: Reino Unido (Irlanda do Norte) pós-2020 | C113: 2526.6378 | D113: 0.000194948902 | F113: 110 | G113: Benim | H113: 1832.152 | I113: 0.0001224872502 | K113: 110 | L113: Belarus | M113: 7048.6518 | N113: 0.0002524732281 | O113: 5329.9074
A114: 111 | B114: Congo | C114: 2433.1934 | D114: 0.0001877389714 | F114: 111 | G114: El Salvador | H114: 1779.4546 | I114: 0.0001189642021 | K114: 111 | L114: Suriname | M114: 6411.9606 | N114: 0.0002296678056 | O114: -5247.2998
A115: 112 | B115: Albânia | C115: 2230.3856 | D115: 0.0001720908409 | F115: 112 | G115: Burquina Faso | H115: 1725.7416 | I115: 0.0001153732568 | K115: 112 | L115: Singapura | M115: 5996.509 | N115: 0.000214786888 | O115: 3379.7106
A116: 113 | B116: Seychelles | C116: 2209.8298 | D116: 0.000170504808 | F116: 113 | G116: Laos, República Democrática Popular do | H116: 1570.485 | I116: 0.0001049936845 | K116: 113 | L116: Camboja | M116: 5868.657 | N116: 0.0002102074013 | O116: -4061.9022
A117: 114 | B117: Guiné Equatorial | C117: 2176.4366 | D117: 0.0001679282743 | F117: 114 | G117: Singapura | H117: 1308.3992 | I117: 8.74721203e-05 | K117: 114 | L117: Sri Lanca | M117: 5833.9434 | N117: 0.0002089640068 | O117: -2952.3678
A118: 115 | B118: Etiópia | C118: 2032.114 | D118: 0.000156792712 | F118: 115 | G118: Seychelles | H118: 1264.2444 | I118: 8.45201818e-05 | K118: 115 | L118: Macedónia, Antiga República jugoslava da | M118: 5788.8886 | N118: 0.0002073502045 | O118: -3887.117
A119: 116 | B119: Suazilândia | C119: 1991.1568 | D119: 0.0001536325594 | F119: 116 | G119: Kuwait | H119: 1183.674 | I119: 7.913370364e-05 | K119: 116 | L119: Andorra | M119: 5443.4826 | N119: 0.0001949782261 | O119: 5359.0438
A120: 117 | B120: Bangladesh | C120: 1964.8184 | D120: 0.0001516003559 | F120: 117 | G120: Bolívia | H120: 1171.2708 | I120: 7.830449631e-05 | K120: 117 | L120: Burquina Faso | M120: 5372.6364 | N120: 0.0001924406105 | O120: 1921.1532
A121: 118 | B121: Islândia | C121: 1803.4614 | D121: 0.000139150463 | F121: 118 | G121: Togo | H121: 1123.3014 | I121: 7.509753537e-05 | K121: 118 | L121: Gabão | M121: 5193.3872 | N121: 0.0001860201452 | O121: -92.294
A122: 119 | B122: Benim | C122: 1771.8166 | D122: 0.0001367088313 | F122: 119 | G122: São Tomé e Príncipe | H122: 1053.7266 | I122: 7.044616041e-05 | K122: 119 | L122: Nicarágua | M122: 5085.0522 | N122: 0.0001821397312 | O122: -1832.165
A123: 120 | B123: Congo, República Democrática do | C123: 1727.2344 | D123: 0.0001332689829 | F123: 120 | G123: Venezuela | H123: 1042.4414 | I123: 6.96916962e-05 | K123: 120 | L123: Congo, República Democrática do | M123: 5014.8218 | N123: 0.0001796241727 | O123: -1560.353
A124: 121 | B124: Jamaica | C124: 1687.498 | D124: 0.000130203024 | F124: 121 | G124: Iémen | H124: 1024.4982 | I124: 6.849211602e-05 | K124: 121 | L124: Omã | M124: 4887.3662 | N124: 0.0001750588845 | O124: 3899.541
A125: 122 | B125: Nicarágua | C125: 1626.4436 | D125: 0.0001254922229 | F125: 122 | G125: Síria, República Árabe da | H125: 949.834 | I125: 6.350049275e-05 | K125: 122 | L125: Zimbabwe | M125: 4774.1098 | N125: 0.0001710021926 | O125: -4644.1914
A126: 123 | B126: Togo | C126: 1570.864 | D126: 0.0001212038433 | F126: 123 | G126: Belarus | H126: 859.3722 | I126: 5.745273191e-05 | K126: 123 | L126: Venezuela | M126: 4334.8846 | N126: 0.0001552697366 | O126: 2250.0018
A127: 124 | B127: El Salvador | C127: 1565.6294 | D127: 0.000120799955 | F127: 124 | G127: Cabo Verde | H127: 836.1366 | I127: 5.5899332e-05 | K127: 124 | L127: Madagáscar | M127: 4107.7632 | N127: 0.0001471345535 | O127: -3487.7728
A128: 125 | B128: Cazaquistão | C128: 1539.9044 | D128: 0.0001188150798 | F128: 125 | G128: Bósnia-Herzegovina | H128: 758.1446 | I128: 5.068523098e-05 | K128: 125 | L128: Myanmar | M128: 3979.9732 | N128: 0.0001425572876 | O128: -2995.2076
A129: 126 | B129: Sri Lanca | C129: 1440.7878 | D129: 0.0001111674968 | F129: 126 | G129: Turquemenistão | H129: 720.6558 | I129: 4.817894327e-05 | K129: 126 | L129: Catar | M129: 3835.8118 | N129: 0.0001373936201 | O129: 3794.2842
A130: 127 | B130: Azerbaijão | C130: 1435.1898 | D130: 0.0001107355695 | F130: 127 | G130: Chade | H130: 675.9004 | I130: 4.518685207e-05 | K130: 127 | L130: Benim | M130: 3603.9686 | N130: 0.0001290893085 | O130: -60.3354
A131: 128 | B131: Bolívia | C131: 1412.2374 | D131: 0.0001089646211 | F131: 128 | G131: Emirados Árabes Unidos | H131: 628.6306 | I131: 4.202666241e-05 | K131: 128 | L131: Sudão | M131: 3591.4234 | N131: 0.0001286399563 | O131: 3550.4582
A132: 129 | B132: Honduras | C132: 1369.6406 | D132: 0.0001056779611 | F132: 129 | G132: Timor-Leste | H132: 614.51 | I132: 4.108263949e-05 | K132: 129 | L132: Seychelles | M132: 3474.0742 | N132: 0.0001244366657 | O132: 945.5854
A133: 130 | B133: São Bartolomeu | C133: 1280.9726 | D133: 9.883656527e-05 | F133: 130 | G133: Faroé, Ilhas | H133: 597.6172 | I133: 3.995328308e-05 | K133: 130 | L133: Irão, República Islâmica do | M133: 3375.8016 | N133: 0.0001209166734 | O133: 2926.89
A134: 131 | B134: Ruanda | C134: 1241.2404 | D134: 9.577093048e-05 | F134: 131 | G134: Líbano | H134: 541.523 | I134: 3.620314427e-05 | K134: 131 | L134: El Salvador | M134: 3345.084 | N134: 0.0001198164103 | O134: -213.8252
A135: 132 | B135: Paraguai | C135: 1209.2928 | D135: 9.330593548e-05 | F135: 132 | G135: Omã | H135: 493.9126 | I135: 3.302018403e-05 | K135: 132 | L135: Timor-Leste | M135: 3340.904 | N135: 0.0001196666883 | O135: 2111.884
A136: 133 | B136: Iémen | C136: 1145.3826 | D136: 8.837478812e-05 | F136: 133 | G136: Gronelândia | H136: 481.3548 | I136: 3.218064103e-05 | K136: 133 | L136: Malavi | M136: 3267.4472 | N136: 0.0001170355645 | O136: -3249.1888
A137: 134 | B137: Montenegro | C137: 1046.3476 | D137: 8.073350114e-05 | F137: 134 | G137: Guiné-Bissau | H137: 379.2046 | I137: 2.535146031e-05 | K137: 134 | L137: Papuásia-Nova Guiné | M137: 3108.0532 | N137: 0.0001113262858 | O137: -3102.282
A138: 135 | B138: Uganda | C138: 966.8264 | D138: 7.4597849e-05 | F138: 135 | G138: Geórgia | H138: 310.6612 | I138: 2.076903888e-05 | K138: 135 | L138: Guiné | M138: 2979.4642 | N138: 0.0001067204007 | O138: 2373.8298
A139: 136 | B139: Macedónia, Antiga República jugoslava da | C139: 950.8858 | D139: 7.336791313e-05 | F139: 136 | G139: Usbequistão | H139: 308.3052 | I139: 2.061153014e-05 | K139: 136 | L139: Gâmbia | M139: 2880.9438 | N139: 0.0001031915325 | O139: -1897.8022
A140: 137 | B140: Bermudas | C140: 907.5284 | D140: 7.002256718e-05 | F140: 137 | G140: Guiné | H140: 302.8172 | I140: 2.024463371e-05 | K140: 137 | L140: Togo | M140: 2694.1654 | N140: 9.650138139e-05 | O140: 447.5626
A141: 138 | B141: Camboja | C141: 903.3774 | D141: 6.970228665e-05 | F141: 138 | G141: Irão, República Islâmica do | H141: 224.4558 | I141: 1.500583671e-05 | K141: 138 | L141: Centro-Africana, República | M141: 2675.6308 | N141: 9.583749694e-05 | O141: -2482.906
A142: 139 | B142: Barbados | C142: 886.8842 | D142: 6.842971358e-05 | F142: 139 | G142: Zâmbia | H142: 199.4064 | I142: 1.333117646e-05 | K142: 139 | L142: Arménia | M142: 2615.4888 | N142: 9.368329138e-05 | O142: 2561.4736
A143: 140 | B143: Trindade e Tobago | C143: 878.7574 | D143: 6.780267051e-05 | F143: 140 | G143: Azerbaijão | H143: 125.9648 | I143: 8.421289267e-06 | K143: 140 | L143: Bolívia | M143: 2583.5082 | N143: 9.25377893e-05 | O143: 240.9666
A144: 141 | B144: Namíbia | C144: 739.6612 | D144: 5.707036394e-05 | F144: 141 | G144: Fiji, Ilhas | H144: 123.8224 | I144: 8.278060602e-06 | K144: 141 | L144: Serra Leoa | M144: 2504.667 | N144: 8.971380354e-05 | O144: -1491.0338
A145: 142 | B145: Turquemenistão | C145: 730.8192 | D145: 5.638813786e-05 | F145: 142 | G145: Maldivas | H145: 106.1904 | I145: 7.099285481e-06 | K145: 142 | L145: Albânia | M145: 2336.138 | N145: 8.367732141e-05 | O145: 2124.6332
A146: 143 | B146: Barém | C146: 714.5288 | D146: 5.513121232e-05 | F146: 143 | G146: Albânia | H146: 105.7524 | I146: 7.070003295e-06 | K146: 143 | L146: Guiné Equatorial | M146: 2182.423 | N146: 7.817145683e-05 | O146: 2170.4502
A147: 144 | B147: Burundi | C147: 677.1012 | D147: 5.224339455e-05 | F147: 144 | G147: Tajiquistão | H147: 59.4122 | I147: 3.971961391e-06 | K147: 144 | L147: Iémen | M147: 2169.8808 | N147: 7.77222121e-05 | O147: 120.8844
A148: 145 | B148: Aruba | C148: 656.9934 | D148: 5.06919282e-05 | F148: 145 | G148: Jordânia | H148: 56.198 | I148: 3.757078281e-06 | K148: 145 | L148: Jamaica | M148: 1698.6206 | N148: 6.084230551e-05 | O148: 1676.3754
A149: 146 | B149: Niger | C149: 652.165 | D149: 5.031938122e-05 | F149: 146 | G149: Andorra | H149: 42.2194 | I149: 2.822548681e-06 | K149: 146 | L149: Laos, República Democrática Popular do | M149: 1586.3348 | N149: 5.682037916e-05 | O149: -1554.6352
A150: 147 | B150: São Martinho (parte holandesa) | C150: 597.7744 | D150: 4.612274182e-05 | F150: 147 | G150: Libéria | H150: 38.8276 | I150: 2.595792246e-06 | K150: 147 | L150: Azerbaijão | M150: 1561.1546 | N150: 5.591845826e-05 | O150: 1309.225
A151: 148 | B151: Suriname | C151: 582.3304 | D151: 4.493112233e-05 | F151: 148 | G151: Falkland Ilhas (Malvinas) | H151: 38.0622 | I151: 2.544621961e-06 | K151: 148 | L151: Cazaquistão | M151: 1555.7084 | N151: 5.57233827e-05 | O151: 1524.1004
A152: 149 | B152: Bósnia-Herzegovina | C152: 535.6404 | D152: 4.13286415e-05 | F152: 149 | G152: Aruba | H152: 38.029 | I152: 2.542402398e-06 | K152: 149 | L152: Turquemenistão | M152: 1451.475 | N152: 5.198988249e-05 | O152: 10.1634
A153: 150 | B153: Tanzânia, República Unida da | C153: 516.5514 | D153: 3.985578315e-05 | F153: 150 | G153: Arábia Saudita | H153: 33.9378 | I153: 2.268888061e-06 | K153: 150 | L153: Bósnia-Herzegovina | M153: 1293.785 | N153: 4.634163876e-05 | O153: -222.5042
A154: 151 | B154: Ceuta e Melilha | C154: 507.8786 | D154: 3.918661211e-05 | F154: 151 | G154: São Marino | H154: 32.7702 | I154: 2.190828974e-06 | K154: 151 | L154: São Bartolomeu | M154: 1281.3862 | N154: 4.589753041e-05 | O154: 1280.559
A155: 152 | B155: Serra Leoa | C155: 506.8166 | D155: 3.910467091e-05 | F155: 152 | G155: Botswana | H155: 29.9908 | I155: 2.005014116e-06 | K155: 152 | L155: Ruanda | M155: 1241.8804 | N155: 4.448248579e-05 | O155: 1240.6004
A156: 153 | B156: Myanmar | C156: 492.3828 | D156: 3.799099587e-05 | F156: 153 | G156: São Pedro e Miquelon | H156: 28.9156 | I156: 1.933132367e-06 | K156: 153 | L156: Montenegro | M156: 1046.6634 | N156: 3.749007539e-05 | O156: 1046.0318
A157: 154 | B157: Gâmbia | C157: 491.5708 | D157: 3.792834403e-05 | F157: 154 | G157: Arménia | H157: 27.0076 | I157: 1.805574351e-06 | K157: 154 | L157: Bermudas | M157: 908.2538 | N157: 3.253242965e-05 | O157: 906.803
A158: 155 | B158: Curaçau | C158: 479.6396 | D158: 3.700776319e-05 | F158: 155 | G158: Catar | H158: 20.7638 | I158: 1.388149436e-06 | K158: 155 | L158: Barbados | M158: 897.2042 | N158: 3.213664784e-05 | O158: 876.5642
A159: 156 | B159: Kosovo | C159: 471.1818 | D159: 3.6355181e-05 | F159: 156 | G159: Sudão | H159: 20.4826 | I159: 1.369350005e-06 | K159: 156 | L159: Trindade e Tobago | M159: 878.7678 | N159: 3.147628079e-05 | O159: 878.747
A160: 157 | B160: Polinésia Francesa | C160: 366.6458 | D160: 2.828945096e-05 | F160: 157 | G160: Gibraltar | H160: 19.7786 | I160: 1.322284574e-06 | K160: 157 | L160: Barém | M160: 719.082 | N160: 2.575655018e-05 | O160: 709.9756
A161: 158 | B161: Antígua e Barbuda | C161: 363.7054 | D161: 2.806257722e-05 | F161: 158 | G161: Macau | H161: 18.3602 | I161: 1.227458426e-06 | K161: 158 | L161: Aruba | M161: 695.0224 | N161: 2.489476767e-05 | O161: 618.9644
A162: 159 | B162: Haiti | C162: 328.5232 | D162: 2.534800877e-05 | F162: 159 | G162: Quirguizistão | H162: 17.4752 | I162: 1.168292366e-06 | K162: 159 | L162: Burundi | M162: 677.2152 | N162: 2.425693771e-05 | O162: 676.9872
A163: 160 | B163: Comores | C163: 311.607 | D163: 2.40427981e-05 | F163: 160 | G163: Salomão, Ilhas | H163: 16.0532 | I163: 1.073225543e-06 | K163: 160 | L163: Chade | M163: 676.014 | N163: 2.421391234e-05 | O163: -675.7868
A164: 161 | B164: Madagáscar | C164: 309.9952 | D164: 2.391843574e-05 | F164: 161 | G164: Cazaquistão | H164: 15.804 | I164: 1.05656545e-06 | K164: 161 | L164: Niger | M164: 655.4318 | N164: 2.347668562e-05 | O164: 648.8982
A165: 162 | B165: Nova Caledónia | C165: 302.6442 | D165: 2.335125141e-05 | F165: 162 | G165: Santa Helena | H165: 15.7338 | I165: 1.051872278e-06 | K165: 162 | L165: Faroé, Ilhas | M165: 598.4668 | N165: 2.143627593e-05 | O165: -596.7676
A166: 163 | B166: Libéria | C166: 295.8354 | D166: 2.282590184e-05 | F166: 163 | G166: Marshall, Ilhas | H166: 13.4098 | I166: 8.965028707e-07 | K166: 163 | L166: São Martinho (parte holandesa) | M166: 597.7772 | N166: 2.141157538e-05 | O166: 597.7716
A167: 164 | B167: Somália | C167: 292.9902 | D167: 2.260637349e-05 | F167: 164 | G167: Curaçau | H167: 12.9632 | I167: 8.666457377e-07 | K167: 164 | L167: Usbequistão | M167: 531.3872 | N167: 1.903357487e-05 | O167: -85.2232
A168: 165 | B168: Bahamas | C168: 280.4744 | D168: 2.164068642e-05 | F168: 165 | G168: Iraque | H168: 12.264 | I168: 8.199012071e-07 | K168: 165 | L168: Ceuta e Melilha | M168: 507.8786 | N168: 1.819152843e-05 | O168: 507.8786
A169: 166 | B169: Usbequistão | C169: 223.082 | D169: 1.721243581e-05 | F169: 166 | G169: Jamaica | H169: 11.1226 | I169: 7.435937024e-07 | K169: 166 | L169: Curaçau | M169: 492.6028 | N169: 1.764436982e-05 | O169: 466.6764
A170: 167 | B170: São Marino | C170: 219.9688 | D170: 1.697222927e-05 | F170: 167 | G170: Nepal | H170: 10.3458 | I170: 6.916612776e-07 | K170: 167 | L170: Gronelândia | M170: 481.9304 | N170: 1.72620988e-05 | O170: -480.7792
A171: 168 | B171: Bonaire, Santo Eustáquio e Saba | C171: 206.5448 | D171: 1.593646781e-05 | F171: 168 | G171: Barbados | H171: 10.32 | I171: 6.899364365e-07 | K171: 168 | L171: Kosovo | M171: 479.554 | N171: 1.717697935e-05 | O171: 462.8096
A172: 169 | B172: Guiana | C172: 139.5802 | D172: 1.076965077e-05 | F172: 169 | G172: Antígua e Barbuda | H172: 9.2326 | I172: 6.172390643e-07 | K172: 169 | L172: Antígua e Barbuda | M172: 372.938 | N172: 1.335813762e-05 | O172: 354.4728
A173: 170 | B173: Zâmbia | C173: 138.1944 | D173: 1.066272599e-05 | F173: 170 | G173: Kosovo | H173: 8.3722 | I173: 5.597176195e-07 | K173: 170 | L173: Polinésia Francesa | M173: 367.1436 | N173: 1.315059e-05 | O173: 366.148
A174: 171 | B174: Maldivas | C174: 129.0678 | D174: 9.958540908e-06 | F174: 171 | G174: Jibuti | H174: 7.3022 | I174: 4.881835123e-07 | K174: 171 | L174: Zâmbia | M174: 337.6008 | N174: 1.209240663e-05 | O174: -61.212
A175: 172 | B175: Santa Lúcia | C175: 120.252 | D175: 9.278336357e-06 | F175: 172 | G175: Líbia, Jamahira Árabe da | H175: 6.001 | I175: 4.011926895e-07 | K175: 172 | L175: Libéria | M175: 334.663 | N175: 1.198717859e-05 | O175: 257.0078
A176: 173 | B176: Liechtenstein | C176: 119.4194 | D176: 9.214095074e-06 | F176: 173 | G176: Guiné Equatorial | H176: 5.9864 | I176: 4.002166166e-07 | K176: 173 | L176: Haiti | M176: 328.8008 | N176: 1.177720247e-05 | O176: 328.2456
A177: 174 | B177: Afeganistão | C177: 109.4574 | D177: 8.445452666e-06 | F177: 174 | G177: Barém | H177: 4.5532 | I177: 3.044010254e-07 | K177: 174 | L177: Comores | M177: 311.607 | N177: 1.116134368e-05 | O177: 311.607
A178: 175 | B178: Quirguizistão | C178: 109.2342 | D178: 8.428231126e-06 | F178: 175 | G178: São Cristovão e Nevis | H178: 4.4378 | I178: 2.966860385e-07 | K178: 175 | L178: Nova Caledónia | M178: 303.3498 | N178: 1.086558188e-05 | O178: 301.9386
A179: 176 | B179: Virgens Britânicas, Ilhas | C179: 102.589 | D179: 7.915504512e-06 | F179: 176 | G179: Afeganistão | H179: 4.3662 | I179: 2.918992702e-07 | K179: 176 | L179: Somália | M179: 292.9902 | N179: 1.049451494e-05 | O179: 292.9902
A180: 177 | B180: Botswana | C180: 98.1832 | D180: 7.575564267e-06 | F180: 177 | G180: Niger | H180: 3.2668 | I180: 2.183996464e-07 | K180: 177 | L180: Bahamas | M180: 280.4744 | N180: 1.004621581e-05 | O180: 280.4744
A181: 178 | B181: Jibuti | C181: 96.957 | D181: 7.480953815e-06 | F181: 178 | G181: Liechtenstein | H181: 1.7444 | I181: 1.166206511e-07 | K181: 178 | L181: São Marino | M181: 252.739 | N181: 9.052771085e-06 | O181: 187.1986
A182: 179 | B182: Centro-Africana, República | C182: 96.3624 | D182: 7.435076002e-06 | F182: 179 | G182: Lesoto | H182: 1.7136 | I182: 1.145615385e-07 | K182: 179 | L182: Maldivas | M182: 235.2582 | N182: 8.426632338e-06 | O182: 22.8774
A183: 180 | B183: Nepal | C183: 77.231 | D183: 5.958946173e-06 | F183: 180 | G183: Butão | H183: 1.2178 | I183: 8.141517368e-08 | K183: 180 | L183: Bonaire, Santo Eustáquio e Saba | M183: 206.5448 | N183: 7.398156965e-06 | O183: 206.5448
A184: 181 | B184: Zimbabwe | C184: 64.9592 | D184: 5.012085513e-06 | F184: 181 | G184: Bermudas | H184: 0.7254 | I184: 4.849611347e-08 | K184: 181 | L184: Fiji, Ilhas | M184: 135.9286 | N184: 4.868779649e-06 | O184: -111.7162
A185: 182 | B185: Caimão, Ilhas | C185: 51.6906 | D185: 3.988314318e-06 | F185: 182 | G185: Nova Caledónia | H185: 0.7056 | I185: 4.717239822e-08 | K185: 182 | L185: Botswana | M185: 128.174 | N185: 4.591020305e-06 | O185: 68.1924
A186: 183 | B186: Mongólia | C186: 37.8358 | D186: 2.919313431e-06 | F186: 183 | G186: Ruanda | H186: 0.64 | I186: 4.278675575e-08 | K186: 183 | L186: Quirguizistão | M186: 126.7094 | N186: 4.538560303e-06 | O186: 91.759
A187: 184 | B187: Turcas e Caicos, Ilhas | C187: 19.071 | D187: 1.47146952e-06 | F187: 184 | G187: Polinésia Francesa | H187: 0.4978 | I187: 3.328007346e-08 | K187: 184 | L187: Liechtenstein | M187: 121.1638 | N187: 4.339924369e-06 | O187: 117.675
A188: 185 | B188: Laos, República Democrática Popular do | C188: 15.8498 | D188: 1.222929977e-06 | F188: 185 | G188: Território Palestiniano Ocupado | H188: 0.4852 | I188: 3.24377092e-08 | K188: 185 | L188: Santa Lúcia | M188: 120.2706 | N188: 4.307931146e-06 | O188: 120.2334
A189: 186 | B189: Fiji, Ilhas | C189: 12.1062 | D189: 9.340833883e-07 | F189: 186 | G189: São Bartolomeu | H189: 0.4136 | I189: 2.76509409e-08 | K189: 186 | L189: Afeganistão | M189: 113.8236 | N189: 4.077008277e-06 | O189: 105.0912
A190: 187 | B190: Anguila | C190: 10.0614 | D190: 7.76311857e-07 | F190: 187 | G190: Micronésia, Estados Federados da | H190: 0.3438 | I190: 2.298451035e-08 | K190: 187 | L190: Jibuti | M190: 104.2592 | N190: 3.734424331e-06 | O190: 89.6548
A191: 188 | B191: Malavi | C191: 9.1292 | D191: 7.043856923e-07 | F191: 188 | G191: Montenegro | H191: 0.3158 | I191: 2.111258979e-08 | K191: 188 | L191: Virgens Britânicas, Ilhas | M191: 102.589 | N191: 3.674600013e-06 | O191: 102.589
A192: 189 | B192: Brunei Darussalam | C192: 7.7238 | D192: 5.959486275e-07 | F192: 189 | G192: Haiti | H192: 0.2776 | I192: 1.855875531e-08 | K192: 189 | L192: Nepal | M192: 87.5768 | N192: 3.136883199e-06 | O192: 66.8852
A193: 190 | B193: São Vicente e Granadinas | C193: 7.6034 | D193: 5.866588719e-07 | F193: 190 | G193: Burundi | H193: 0.114 | I193: 7.621390868e-09 | K193: 190 | L193: Tajiquistão | M193: 59.4122 | N193: 2.128065104e-06 | O193: -59.4122
A194: 191 | B194: Guam | C194: 6.6636 | D194: 5.141463107e-07 | F194: 191 | G194: Oceano Indico, Território Britânico do | H194: 0.098 | I194: 6.551721974e-09 | K194: 191 | L194: Caimão, Ilhas | M194: 51.6906 | N194: 1.851487776e-06 | O194: 51.6906
A195: 192 | B195: Territórios Franceses do Sul | C195: 6.3102 | D195: 4.868788717e-07 | F195: 192 | G195: Nauru | H195: 0.0694 | I195: 4.639688827e-09 | K195: 192 | L195: Falkland Ilhas (Malvinas) | M195: 38.0622 | N195: 1.363336816e-06 | O195: -38.0622
A196: 193 | B196: Menores distantes dos Estados Unidos, lhas | C196: 4.5544 | D196: 3.514058403e-07 | F196: 193 | G196: Vanuatu | H196: 0.065 | I196: 4.345529881e-09 | K196: 193 | L196: Mongólia | M196: 37.8488 | N196: 1.355693115e-06 | O196: 37.8228
A197: 194 | B197: Sudão do Sul | C197: 3.771 | D197: 2.909607026e-07 | F197: 194 | G197: São Vicente e Granadinas | H197: 0.0416 | I197: 2.781139124e-09 | K197: 194 | L197: São Pedro e Miquelon | M197: 29.2314 | N197: 1.047029436e-06 | O197: -28.5998
A198: 195 | B198: Melilha | C198: 3.6164 | D198: 2.790321625e-07 | F198: 195 | G198: Santa Sé (Cidade Estado do Vaticano) | H198: 0.021 | I198: 1.403940423e-09 | K198: 195 | L198: Turcas e Caicos, Ilhas | M198: 19.071 | N198: 6.830975724e-07 | O198: 19.071
A199: 196 | B199: Marianas do Norte, Ilhas | C199: 2.9244 | D199: 2.256392147e-07 | F199: 196 | G199: Santa Lúcia | H199: 0.0186 | I199: 1.243490089e-09 | K199: 196 | L199: Salomão, Ilhas | M199: 16.0532 | N199: 5.750040349e-07 | O199: -16.0532
A200: 197 | B200: Papuásia-Nova Guiné | C200: 2.8856 | D200: 2.22645506e-07 | F200: 197 | G200: Mongólia | H200: 0.013 | I200: 8.691059762e-10 | K200: 197 | L200: Santa Helena | M200: 15.7338 | N200: 5.635635564e-07 | O200: -15.7338
... 58 more rows

Sheet 2AA
A1: Ranking dos parceiros comerciais de Portugal por país (média 2018-2022 em milhares de euros) produtos agrícolas e agroalimentares
A2: Exportações | F2: Importações | K2: Trocas comerciais (total e saldo)
A3: P | B3: País | C3: média quinquénio | D3: % do Total | F3: P | G3: País | H3: média quinquénio | I3: % do Total | K3: P | L3: País | M3: Total (exp+imp) | N3: % do Total | O3: Saldo (exp-imp)
A4: 1 | B4: Espanha | C4: 2411384.356 | D4: 0.3412368491 | F4: 1 | G4: Espanha | H4: 4705156.347 | I4: 0.461261043 | K4: 1 | L4: Espanha | M4: 7116540.703 | N4: 0.4121412567 | O4: -2293771.991
A5: 2 | B5: França | C5: 676917.193 | D5: 0.095791071 | F5: 2 | G5: França | H5: 802414.1936 | I5: 0.07866314753 | K5: 2 | L5: França | M5: 1479331.387 | N5: 0.08567273374 | O5: -125497.0006
A6: 3 | B6: Itália | C6: 450062.431 | D6: 0.06368867969 | F6: 3 | G6: Alemanha | H6: 691414.1182 | I6: 0.0677814665 | K6: 3 | L6: Alemanha | M6: 951387.8206 | N6: 0.05509786122 | O6: -431440.4158
A7: 4 | B7: Brasil | C7: 371211.2184 | D7: 0.05253038414 | F7: 4 | G7: Países Baixos | H7: 595089.4646 | I7: 0.05833846251 | K7: 4 | L7: Países Baixos | M7: 927519.5784 | N7: 0.05371557624 | O7: -262659.3508
A8: 5 | B8: Países Baixos | C8: 332430.1138 | D8: 0.04704244029 | F8: 5 | G8: Brasil | H8: 551854.2014 | I8: 0.05409997581 | K8: 5 | L8: Brasil | M8: 923065.4198 | N8: 0.0534576219 | O8: -180642.983
A9: 6 | B9: Angola | C9: 270815.6406 | D9: 0.03832332895 | F9: 6 | G9: Itália | H9: 325226.391 | I9: 0.03188294995 | K9: 6 | L9: Itália | M9: 775288.822 | N9: 0.0448994143 | O9: 124836.04 | P9: Nota: Nesta listagem, o Reino Unido passa a ser constituído por três componentes: Reino Unido [até 2020] ; Reino Unido (sem Irlanda do Norte) pós-2020 e Reino Unido (Irlanda do Norte) pós-2020. Estas componentes são calculadas igualmente como média do quinquénio, embora a primeira corresponda apenas a 2018-2020 e as duas últimas a 2021-2022.
A10: 7 | B10: Alemanha | C10: 259973.7024 | D10: 0.03678907796 | F10: 7 | G10: Bélgica | H10: 255604.7054 | I10: 0.02505772058 | K10: 7 | L10: Bélgica | M10: 422129.3612 | N10: 0.02444683909 | O10: -89080.0496
A11: 8 | B11: Reino Unido | C11: 202835.6198 | D11: 0.02870342408 | F11: 8 | G11: Estados Unidos | H11: 216780.4662 | I11: 0.02125166022 | K11: 8 | L11: Estados Unidos | M11: 400397.4384 | N11: 0.02318827508 | O11: -33163.494
A12: 9 | B12: Estados Unidos | C12: 183616.9722 | D12: 0.02598377852 | F12: 9 | G12: Ucrânia | H12: 191923.2566 | I12: 0.01881483101 | K12: 9 | L12: Polónia | M12: 317728.7036 | N12: 0.01840066862 | O12: -49129.98
A13: 10 | B13: Israel | C13: 169490.6434 | D13: 0.0239847509 | F13: 10 | G13: Polónia | H13: 183429.3418 | I13: 0.01798214624 | K13: 10 | L13: Reino Unido | M13: 313115.4092 | N13: 0.01813349823 | O13: 92555.8304
A14: 11 | B14: Bélgica | C14: 166524.6558 | D14: 0.02356503172 | F14: 11 | G14: Roménia | H14: 135147.0966 | I14: 0.01324888827 | K14: 11 | L14: Angola | M14: 277936.943 | N14: 0.0160962026 | O14: 263694.3382
A15: 12 | B15: Reino Unido (sem Irlanda do Norte) pós 2020 | C15: 153212.605 | D15: 0.02168123321 | F15: 12 | G15: África do Sul | H15: 112523.4846 | I15: 0.01103102555 | K15: 12 | L15: Reino Unido (sem Irlanda do Norte) pós 2020 | M15: 202799.7018 | N15: 0.01174476862 | O15: 103625.5082
A16: 13 | B16: Polónia | C16: 134299.3618 | D16: 0.01900480566 | F16: 13 | G16: Irlanda | H16: 110291.18 | I16: 0.01081218582 | K16: 13 | L16: Ucrânia | M16: 198678.4348 | N16: 0.01150609309 | O16: -185168.0784
A17: 14 | B17: Suíça | C17: 92002.5032 | D17: 0.01301934477 | F17: 14 | G17: Reino Unido | H17: 110279.7894 | I17: 0.01081106916 | K17: 14 | L17: Canadá | M17: 175349.2144 | N17: 0.01015502456 | O17: -30879.5124
A18: 15 | B18: Cabo Verde | C18: 85448.1822 | D18: 0.01209183778 | F18: 15 | G18: Canadá | H18: 103114.3634 | I18: 0.01010862027 | K18: 15 | L18: Israel | M18: 174656.3316 | N18: 0.01011489753 | O18: 164324.9552
A19: 16 | B19: Canadá | C19: 72234.851 | D19: 0.01022200915 | F19: 16 | G19: Argentina | H19: 72786.9924 | I19: 0.007135534201 | K19: 16 | L19: Roménia | M19: 150956.573 | N19: 0.008742369966 | O19: -119337.6202
A20: 17 | B20: China | C20: 72213.8082 | D20: 0.01021903137 | F20: 17 | G20: Dinamarca | H20: 70235.3942 | I20: 0.00688539313 | K20: 17 | L20: Irlanda | M20: 137073.4678 | N20: 0.007938355676 | O20: -83508.8922
A21: 18 | B21: Japão | C21: 54930.0814 | D21: 0.007773197936 | F21: 18 | G21: Costa Rica | H21: 69966.4528 | I21: 0.006859027972 | K21: 18 | L21: África do Sul | M21: 134358.9168 | N21: 0.007781147489 | O21: -90688.0524
A22: 19 | B22: Suécia | C22: 50847.6768 | D22: 0.007195493731 | F22: 19 | G22: Reino Unido (sem Irlanda do Norte) pós 2020 | H22: 49587.0968 | I22: 0.004861176612 | K22: 19 | L22: Dinamarca | M22: 117607.5464 | N22: 0.006811022939 | O22: -22863.242
A23: 20 | B23: Rússia | C23: 48396.534 | D23: 0.006848630634 | F23: 20 | G23: Bulgária | H23: 45267.761 | I23: 0.004437738752 | K23: 20 | L23: China | M23: 117263.0136 | N23: 0.006791069961 | O23: 27164.6028
A24: 21 | B24: Dinamarca | C24: 47372.1522 | D24: 0.00670366958 | F24: 21 | G24: China | H24: 45049.2054 | I24: 0.00441631307 | K24: 21 | L24: Suíça | M24: 94989.5902 | N24: 0.005501145952 | O24: 89015.4162
A25: 22 | B25: Luxemburgo | C25: 45467.1782 | D25: 0.006434095249 | F25: 22 | G25: Cuba | H25: 35800.4636 | I25: 0.003509630279 | K25: 22 | L25: Cabo Verde | M25: 85574.9204 | N25: 0.004955912811 | O25: 85321.444
A26: 23 | B26: Marrocos | C26: 40790.7978 | D26: 0.005772337073 | F26: 23 | G26: Grécia | H26: 30695.8376 | I26: 0.003009207989 | K26: 23 | L26: Argentina | M26: 73024.3208 | N26: 0.004229068111 | O26: -72549.664
A27: 24 | B27: Guiné-Bissau | C27: 30105.257 | D27: 0.004260218001 | F27: 24 | G27: Vietname | H27: 28842.503 | I27: 0.00282751986 | K27: 24 | L27: Costa Rica | M27: 71166.176 | N27: 0.004121457101 | O27: -68766.7296
A28: 25 | B28: Irlanda | C28: 26782.2878 | D28: 0.003789982082 | F28: 25 | G28: Colômbia | H28: 28226.344 | I28: 0.002767115886 | K28: 25 | L28: Japão | M28: 68521.65 | N28: 0.003968304282 | O28: 41338.5128
A29: 26 | B29: São Tomé e Príncipe | C29: 25260.8806 | D29: 0.003574686582 | F29: 26 | G29: Guiana | H29: 28025.2642 | I29: 0.002747403411 | K29: 26 | L29: Suécia | M29: 64561.625 | N29: 0.003738966778 | O29: 37133.7286
A30: 27 | B30: Arábia Saudita | C30: 25200.9646 | D30: 0.003566207823 | F30: 27 | G30: Chile | H30: 24582.6414 | I30: 0.00240991244 | K30: 27 | L30: Rússia | M30: 60555.2322 | N30: 0.003506943969 | O30: 36237.8358
A31: 28 | B31: Moçambique | C31: 25040.048 | D31: 0.003543436392 | F31: 28 | G31: Áustria | H31: 23768.2002 | I31: 0.002330070248 | K31: 28 | L31: Luxemburgo | M31: 53710.6 | N31: 0.003110549789 | O31: 37223.7564
A32: 29 | B32: Grécia | C32: 22268.7026 | D32: 0.003151261179 | F32: 29 | G32: Uruguai | H32: 22544.114 | I32: 0.002210069288 | K32: 29 | L32: Bulgária | M32: 53424.102 | N32: 0.003093957789 | O32: -37111.42
A33: 30 | B33: África do Sul | C33: 21835.4322 | D33: 0.003089948753 | F33: 30 | G33: Checa, República | H33: 22169.9018 | I33: 0.002173384108 | K33: 30 | L33: Grécia | M33: 52964.5402 | N33: 0.003067343119 | O33: -8427.135
A34: 31 | B34: Finlândia | C34: 19885.3292 | D34: 0.002813988182 | F34: 31 | G34: Costa do Marfim | H34: 21706.6942 | I34: 0.002127974433 | K34: 31 | L34: Marrocos | M34: 50677.0038 | N34: 0.002934864691 | O34: 30904.5918
A35: 32 | B35: Checa, República | C35: 18233.8742 | D35: 0.002580289519 | F35: 32 | G35: Índia | H35: 20821.1078 | I35: 0.002041157656 | K35: 32 | L35: Checa, República | M35: 40403.776 | N35: 0.002339909756 | O35: -3936.0276
A36: 33 | B36: Jordânia | C36: 17519.4376 | D36: 0.002479189048 | F36: 33 | G36: Paraguai | H36: 18543.3936 | I36: 0.001817866282 | K36: 33 | L36: Cuba | M36: 38670.0018 | N36: 0.002239501438 | O36: -32930.9254
A37: 34 | B37: Noruega | C37: 16995.9884 | D37: 0.00240511535 | F37: 34 | G37: Turquia | H37: 17986.1158 | I37: 0.001763234614 | K37: 34 | L37: Áustria | M37: 38055.3092 | N37: 0.002203902656 | O37: -9481.0912
A38: 35 | B38: Roménia | C38: 15809.4764 | D38: 0.002237211127 | F38: 35 | G38: Hungria | H38: 16799.7058 | I38: 0.001646927169 | K38: 35 | L38: Moçambique | M38: 35153.372 | N38: 0.002035842345 | O38: 14926.724
A39: 36 | B39: Austrália | C39: 14444.1886 | D39: 0.002044008204 | F39: 36 | G39: Uganda | H39: 16711.9112 | I39: 0.001638320392 | K39: 36 | L39: Colômbia | M39: 34587.7746 | N39: 0.002003086821 | O39: -21864.9134
A40: 37 | B40: Áustria | C40: 14287.109 | D40: 0.002021779749 | F40: 37 | G40: Suécia | H40: 13713.9482 | I40: 0.001344420798 | K40: 37 | L40: Vietname | M40: 30876.7168 | N40: 0.001788167791 | O40: -26808.2892
A41: 38 | B41: Coreia, República da | C41: 13714.1396 | D41: 0.00194069841 | F41: 38 | G41: Japão | H41: 13591.5686 | I41: 0.001332423547 | K41: 38 | L41: Guiné-Bissau | M41: 30466.7032 | N41: 0.001764422613 | O41: 29743.8108
A42: 39 | B42: Iraque | C42: 12402.8826 | D42: 0.001755141426 | F42: 39 | G42: Suazilândia | H42: 13238.5734 | I42: 0.001297818335 | K42: 39 | L42: Chile | M42: 30212.416 | N42: 0.001749696042 | O42: -18952.8668
A43: 40 | B43: Emirados Árabes Unidos | C43: 11850.4352 | D43: 0.001676964171 | F43: 40 | G43: Indonésia | H43: 13223.1014 | I43: 0.001296301567 | K43: 40 | L43: Guiana | M43: 28043.5076 | N43: 0.001624087734 | O43: -28007.0208
A44: 41 | B44: Argélia | C44: 11256.5744 | D44: 0.001592926474 | F44: 41 | G44: México | H44: 13063.4442 | I44: 0.001280649877 | K44: 41 | L44: Hungria | M44: 27985.9222 | N44: 0.001620752782 | O44: -5613.4894
A45: 42 | B45: Macau | C45: 11226.3432 | D45: 0.001588648434 | F45: 42 | G45: Austrália | H45: 12929.8552 | I45: 0.001267553734 | K45: 42 | L45: Turquia | M45: 27952.4328 | N45: 0.001618813306 | O45: -8019.7988
A46: 43 | B46: Hungria | C46: 11186.2164 | D46: 0.00158297006 | F46: 43 | G46: Rússia | H46: 12158.6982 | I46: 0.001191954826 | K46: 43 | L46: Austrália | M46: 27374.0438 | N46: 0.00158531698 | O46: 1514.3334
A47: 44 | B47: Nigéria | C47: 10950.0114 | D47: 0.001549544509 | F47: 44 | G47: Moldava, República de | H47: 11903.4008 | I47: 0.001166927231 | K47: 44 | L47: Finlândia | M47: 27340.3908 | N47: 0.001583368029 | O47: 12430.2676
A48: 45 | B48: Turquia | C48: 9966.317 | D48: 0.00141034116 | F48: 45 | G48: Peru | H48: 11309.1784 | I48: 0.00110867377 | K48: 45 | L48: Costa do Marfim | M48: 27312.2444 | N48: 0.001581737982 | O48: -16101.144
A49: 46 | B49: Território Palestiniano Ocupado | C49: 9369.3582 | D49: 0.001325865063 | F49: 46 | G49: Lituânia | H49: 10559.0186 | I49: 0.001035133282 | K49: 46 | L49: São Tomé e Príncipe | M49: 26314.3518 | N49: 0.001523946883 | O49: 24207.4094
A50: 47 | B50: Eslováquia | C50: 9086.8 | D50: 0.001285880035 | F50: 47 | G50: Paquistão | H50: 10304.0036 | I50: 0.001010133372 | K50: 47 | L50: Arábia Saudita | M50: 25224.07 | N50: 0.001460805234 | O50: 25177.8592
A51: 48 | B51: Senegal | C51: 8493.732 | D51: 0.001201954528 | F51: 48 | G51: Tailândia | H51: 10199.4412 | I51: 0.0009998827965 | K51: 48 | L51: Uruguai | M51: 24295.7548 | N51: 0.001407043581 | O51: -20792.4732
A52: 49 | B52: Bulgária | C52: 8156.341 | D52: 0.001154210069 | F52: 49 | G52: Moçambique | H52: 10113.324 | I52: 0.0009914404608 | K52: 49 | L52: Índia | M52: 23835.9726 | N52: 0.001380416148 | O52: -17806.243
A53: 50 | B53: Líbia, Jamahira Árabe da | C53: 7994.648 | D53: 0.001131328768 | F53: 50 | G53: Marrocos | H53: 9886.206 | I53: 0.0009691753801 | K53: 50 | L53: Paraguai | M53: 19188.0202 | N53: 0.001111238604 | O53: -17898.767
A54: 51 | B54: Gibraltar | C54: 7555.2434 | D54: 0.001069148286 | F54: 51 | G54: Egito | H54: 9790.4264 | I54: 0.0009597858094 | K54: 51 | L54: México | M54: 18719.0294 | N54: 0.001084077872 | O54: -7407.859
A55: 52 | B55: Kuwait | C55: 7349.7522 | D55: 0.001040069069 | F55: 52 | G55: Letónia | H55: 8947.386 | I55: 0.0008771399491 | K55: 52 | L55: Noruega | M55: 18005.9244 | N55: 0.001042779718 | O55: 15986.0524
A56: 53 | B56: Ucrânia | C56: 6755.1782 | D56: 0.0009559304465 | F56: 53 | G56: Sérvia | H56: 8809.7352 | I56: 0.000863645615 | K56: 53 | L56: Jordânia | M56: 17548.9282 | N56: 0.001016313631 | O56: 17489.947
A57: 54 | B57: Colômbia | C57: 6361.4306 | D57: 0.0009002109218 | F57: 54 | G57: Luxemburgo | H57: 8243.4218 | I57: 0.0008081281592 | K57: 54 | L57: Uganda | M57: 17197.4672 | N57: 0.0009959594191 | O57: -16226.3552
A58: 55 | B58: Letónia | C58: 5852.2048 | D58: 0.0008281499884 | F58: 55 | G58: Equador | H58: 8207.9326 | I58: 0.0008046490431 | K58: 55 | L58: Lituânia | M58: 15596.0102 | N58: 0.0009032140069 | O58: -5522.027
A59: 56 | B59: HongKong | C59: 5831.0346 | D59: 0.0008251541771 | F59: 56 | G59: Nova Zelânda | H59: 7880.6232 | I59: 0.0007725618893 | K59: 56 | L59: Suazilândia | M59: 15229.1516 | N59: 0.0008819680715 | O59: -11247.9952
A60: 57 | B60: Maurícias | C60: 5663.2906 | D60: 0.0008014165951 | F60: 57 | G60: Finlândia | H60: 7455.0616 | I60: 0.0007308427682 | K60: 57 | L60: Letónia | M60: 14799.5908 | N60: 0.0008570908544 | O60: -3095.1812
A61: 58 | B61: México | C61: 5655.5852 | D61: 0.000800326198 | F61: 58 | G61: Malásia | H61: 7402.4108 | I61: 0.0007256812473 | K61: 58 | L61: Coreia, República da | M61: 14651.7386 | N61: 0.0008485282684 | O61: 12776.5406
A62: 59 | B62: Chile | C62: 5629.7746 | D62: 0.0007966737202 | F62: 59 | G62: Angola | H62: 7121.3024 | I62: 0.0006981233206 | K62: 59 | L62: Indonésia | M62: 14360.499 | N62: 0.0008316616671 | O62: -12085.7038
A63: 60 | B63: Costa do Marfim | C63: 5605.5502 | D63: 0.0007932457068 | F63: 60 | G63: Camarões | H63: 6330.7516 | I63: 0.0006206231782 | K63: 60 | L63: Tailândia | M63: 13287.7642 | N63: 0.0007695362206 | O63: -7111.1182
A64: 61 | B64: Andorra | C64: 5268.3636 | D64: 0.0007455301725 | F64: 61 | G64: Honduras | H64: 6193.611 | I64: 0.0006071788607 | K64: 61 | L64: Peru | M64: 13096.3328 | N64: 0.0007584498261 | O64: -9522.024
A65: 62 | B65: Lituânia | C65: 5036.9916 | D65: 0.0007127885434 | F65: 62 | G65: Etiópia | H65: 5332.6708 | I65: 0.0005227782275 | K65: 62 | L65: Eslováquia | M65: 12662.696 | N65: 0.000733336555 | O65: 5510.904
A66: 63 | B66: Estónia | C66: 4881.8086 | D66: 0.0006908284781 | F66: 63 | G66: Israel | H66: 5165.6882 | I66: 0.0005064084063 | K66: 63 | L66: Iraque | M66: 12415.1466 | N66: 0.0007190001906 | O66: 12390.6186
A67: 64 | B67: Malta | C67: 4732.9478 | D67: 0.0006697630721 | F67: 64 | G67: Belize | H67: 5153.7922 | I67: 0.0005052422046 | K67: 64 | L67: Emirados Árabes Unidos | M67: 12305.7766 | N67: 0.0007126662299 | O67: 11395.0938
A68: 65 | B68: Síria, República Árabe da | C68: 4399.3294 | D68: 0.0006225524765 | F68: 65 | G68: Camboja | H68: 4964.372 | I68: 0.000486672756 | K68: 65 | L68: Moldava, República de | M68: 12104.7888 | N68: 0.0007010263942 | O68: -11702.0128
A69: 66 | B69: Chipre | C69: 4087.4456 | D69: 0.0005784175609 | F69: 66 | G69: Zimbabwe | H69: 4708.9854 | I69: 0.000461636417 | K69: 66 | L69: Argélia | M69: 11803.7068 | N69: 0.0006835897886 | O69: 10709.442
A70: 67 | B70: Omã | C70: 3805.6814 | D70: 0.0005385448929 | F70: 67 | G70: Guatemala | H70: 4634.8976 | I70: 0.0004543733606 | K70: 67 | L70: Sérvia | M70: 11344.2464 | N70: 0.0006569809916 | O70: -6275.224
A71: 68 | B71: Eslovénia | C71: 3324.2138 | D71: 0.0004704120436 | F71: 68 | G71: Suriname | H71: 4613.819 | I71: 0.0004523069601 | K71: 68 | L71: Egito | M71: 11328.9988 | N71: 0.0006560979551 | O71: -8251.854
A72: 69 | B72: Mali | C72: 3288.1148 | D72: 0.0004653036465 | F72: 69 | G72: Macedónia, Antiga República jugoslava da | H72: 4601.6794 | I72: 0.0004511168776 | K72: 69 | L72: Macau | M72: 11242.8404 | N72: 0.0006511082512 | O72: 11209.846
A73: 70 | B73: Tailândia | C73: 3088.323 | D73: 0.0004370309557 | F73: 70 | G73: Eslovénia | H73: 4575.887 | I73: 0.0004485883688 | K73: 70 | L73: Nigéria | M73: 11147.6308 | N73: 0.0006455943638 | O73: 10752.392
A74: 71 | B74: Índia | C74: 3014.8648 | D74: 0.0004266358295 | F74: 71 | G74: Tanzânia, República Unida da | H74: 4539.6584 | I74: 0.0004450367669 | K74: 71 | L74: Paquistão | M74: 10570.8542 | N74: 0.0006121914167 | O74: -10037.153
A75: 72 | B75: Singapura | C75: 2956.254 | D75: 0.0004183417702 | F75: 72 | G75: Filipinas | H75: 4493.245 | I75: 0.0004404867176 | K75: 72 | L75: Nova Zelânda | M75: 10271.0628 | N75: 0.0005948295537 | O75: -5490.1836
A76: 73 | B76: Cuba | C76: 2869.5382 | D76: 0.0004060705509 | F76: 73 | G76: Tunísia | H76: 4126.4674 | I76: 0.000404530374 | K76: 73 | L76: Território Palestiniano Ocupado | M76: 9369.8434 | N76: 0.0005426371035 | O76: 9368.873
A77: 74 | B77: Taiwan | C77: 2744.627 | D77: 0.0003883942712 | F77: 74 | G77: Estónia | H77: 4043.5748 | I77: 0.0003964041558 | K77: 74 | L77: Senegal | M77: 9057.0902 | N77: 0.000524524582 | O77: 7930.3738
A78: 75 | B78: Gana | C78: 2742.0304 | D78: 0.0003880268243 | F78: 75 | G78: Reino Unido (Irlanda do Norte) pós-2020 | H78: 4000.7948 | I78: 0.0003922103 | K78: 75 | L78: Equador | M78: 9035.3682 | N78: 0.0005232665926 | O78: -7380.497
A79: 76 | B79: Sérvia | C79: 2534.5112 | D79: 0.0003586606232 | F79: 76 | G79: Mali | H79: 3760.9918 | I79: 0.0003687016695 | K79: 76 | L79: Estónia | M79: 8925.3834 | N79: 0.0005168970269 | O79: 838.2338
A80: 77 | B80: Líbano | C80: 2519.7508 | D80: 0.0003565718677 | F80: 77 | G80: Eslováquia | H80: 3575.896 | I80: 0.0003505561552 | K80: 77 | L80: Malásia | M80: 8903.6532 | N80: 0.0005156385627 | O80: -5901.1684
A81: 78 | B81: Timor-Leste | C81: 2471.9198 | D81: 0.0003498032662 | F81: 78 | G81: Myanmar | H81: 3336.325 | I81: 0.0003270702684 | K81: 78 | L81: Camarões | M81: 8611.8814 | N81: 0.00049874114 | O81: -4049.6218
A82: 79 | B82: Belarus | C82: 2455.9286 | D82: 0.0003475403392 | F82: 79 | G82: Quénia | H82: 3256.0222 | I82: 0.0003191979363 | K82: 79 | L82: Kuwait | M82: 8533.2046 | N82: 0.000494184719 | O82: 6166.2998
A83: 80 | B83: Nova Zelânda | C83: 2390.4396 | D83: 0.0003382729406 | F83: 80 | G83: Malavi | H83: 3254.1762 | I83: 0.0003190169672 | K83: 80 | L83: Líbia, Jamahira Árabe da | M83: 8000.598 | N83: 0.0004633397955 | O83: 7988.698
A84: 81 | B84: Filipinas | C84: 2342.9576 | D84: 0.0003315537264 | F84: 81 | G84: Nicarágua | H84: 3164.5064 | I84: 0.0003102263591 | K84: 81 | L84: Eslovénia | M84: 7900.1008 | N84: 0.0004575196866 | O84: -1251.6732
A85: 82 | B85: Camarões | C85: 2281.1298 | D85: 0.000322804427 | F85: 82 | G85: Chipre | H85: 3134.9022 | I85: 0.0003073241678 | K85: 82 | L85: Gibraltar | M85: 7555.2434 | N85: 0.0004375479098 | O85: 7555.2434
A86: 83 | B86: Guiné | C86: 2270.2954 | D86: 0.0003212712428 | F86: 83 | G86: Sri Lanca | H86: 3073.8124 | I86: 0.0003013353456 | K86: 83 | L86: Chipre | M86: 7222.3478 | N86: 0.0004182688785 | O86: 952.5434
A87: 84 | B87: Irão, República Islâmica do | C87: 2234.7082 | D87: 0.0003162352708 | F87: 84 | G87: Suíça | H87: 2987.087 | I87: 0.0002928333861 | K87: 84 | L87: Maurícias | M87: 7215.0708 | N87: 0.0004178474446 | O87: 4111.5104
A88: 85 | B88: Congo | C88: 2184.5722 | D88: 0.000309140487 | F88: 85 | G88: Taiwan | H88: 2718.5488 | I88: 0.000266507755 | K88: 85 | L88: Mali | M88: 7049.1066 | N88: 0.0004082359357 | O88: -472.877
A89: 86 | B89: Seychelles | C89: 2103.9052 | D89: 0.000297725238 | F89: 86 | G89: Dominicana, República | H89: 2224.7352 | I89: 0.000218097679 | K89: 86 | L89: HongKong | M89: 7034.5032 | N89: 0.0004073902069 | O89: 4627.566
A90: 87 | B90: Gabão | C90: 2079.6516 | D90: 0.0002942930925 | F90: 87 | G90: Serra Leoa | H90: 1997.841 | I90: 0.0001958545382 | K90: 87 | L90: Honduras | M90: 7007.3132 | N90: 0.0004058155485 | O90: -5379.9088
A91: 88 | B91: Venezuela | C91: 2058.7692 | D91: 0.000291338008 | F91: 88 | G91: Benim | H91: 1817.538 | I91: 0.0001781788769 | K91: 88 | L91: Filipinas | M91: 6836.2026 | N91: 0.0003959059954 | O91: -2150.2874
A92: 89 | B92: Vietname | C92: 2034.2138 | D92: 0.0002878631545 | F92: 89 | G92: Croácia | H92: 1813.5626 | I92: 0.0001777891561 | K92: 89 | L92: Etiópia | M92: 6077.0796 | N92: 0.0003519427947 | O92: -4588.262
A93: 90 | B93: Suazilândia | C93: 1990.5782 | D93: 0.0002816882473 | F93: 90 | G93: Burquina Faso | H93: 1725.737 | I93: 0.0001691793407 | K93: 90 | L93: Malta | M93: 5803.922 | N93: 0.0003361233789 | O93: 3661.9736
A94: 91 | B94: Sudão | C94: 1865.0268 | D94: 0.0002639213725 | F94: 91 | G94: Gana | H94: 1658.4144 | I94: 0.0001625794978 | K94: 91 | L94: Taiwan | M94: 5463.1758 | N94: 0.0003163896946 | O94: 26.0782
A95: 92 | B95: Burquina Faso | C95: 1848.8938 | D95: 0.0002616383793 | F95: 92 | G95: Laos, República Democrática Popular do | H95: 1570.3752 | I95: 0.0001539487425 | K95: 92 | L95: Camboja | M95: 5365.8038 | N95: 0.0003107505758 | O95: -4562.9402
A96: 93 | B96: Guiné Equatorial | C96: 1818.2522 | D96: 0.0002573022629 | F96: 93 | G96: Maurícias | H96: 1551.7802 | I96: 0.000152125817 | K96: 93 | L96: Síria, República Árabe da | M96: 5349.1634 | N96: 0.0003097868779 | O96: 3449.4954
A97: 94 | B97: Peru | C97: 1787.1544 | D97: 0.0002529015894 | F97: 94 | G97: Madagáscar | H97: 1535.4896 | I97: 0.0001505287991 | K97: 94 | L97: Reino Unido (Irlanda do Norte) pós-2020 | M97: 5342.7154 | N97: 0.000309413454 | O97: -2658.8742
A98: 95 | B98: Croácia | C98: 1771.985 | D98: 0.000250754956 | F98: 95 | G98: Panamá | H98: 1513.6692 | I98: 0.0001483896777 | K98: 95 | L98: Andorra | M98: 5273.09 | N98: 0.0003053812281 | O98: 5263.6372
A99: 96 | B99: Uruguai | C99: 1751.6408 | D99: 0.0002478760327 | F99: 96 | G99: Congo, República Democrática do | H99: 1226.6902 | I99: 0.0001202562379 | K99: 96 | L99: Belize | M99: 5155.9728 | N99: 0.0002985986026 | O99: -5151.6116
A100: 97 | B100: Dominicana, República | C100: 1708.9932 | D100: 0.0002418409381 | F100: 97 | G100: HongKong | H100: 1203.4686 | I100: 0.0001179797526 | K100: 97 | L100: Guatemala | M100: 5126.7604 | N100: 0.0002969068207 | O100: -4143.0348
A101: 98 | B101: Benim | C101: 1572.4166 | D101: 0.0002225138787 | F101: 98 | G101: Kuwait | H101: 1183.4524 | I101: 0.0001160175025 | K101: 98 | L101: Tanzânia, República Unida da | M101: 4910.6254 | N101: 0.000284389763 | O101: -4168.6914
A102: 99 | B102: Bangladesh | C102: 1558.9346 | D102: 0.0002206060305 | F102: 99 | G102: Togo | H102: 1123.3014 | I102: 0.0001101207138 | K102: 99 | L102: Macedónia, Antiga República jugoslava da | M102: 4874.3908 | N102: 0.0002822913033 | O102: -4328.968
A103: 100 | B103: Egito | C103: 1538.5724 | D103: 0.00021772456 | F103: 100 | G103: Malta | H103: 1070.9742 | I103: 0.0001049909164 | K103: 100 | L103: Tunísia | M103: 4852.0784 | N103: 0.000280999122 | O103: -3400.8564
A104: 101 | B104: Catar | C104: 1515.2294 | D104: 0.0002144212742 | F104: 101 | G104: Singapura | H104: 1064.6932 | I104: 0.0001043751705 | K104: 101 | L104: Zimbabwe | M104: 4772.268 | N104: 0.0002763770507 | O104: -4645.7028
A105: 102 | B105: Malásia | C105: 1501.2424 | D105: 0.0002124419631 | F105: 102 | G105: São Tomé e Príncipe | H105: 1053.4712 | I105: 0.0001032750431 | K105: 102 | L105: Suriname | M105: 4769.9158 | N105: 0.0002762408274 | O105: -4457.7222
A106: 103 | B106: Geórgia | C106: 1344.215 | D106: 0.0001902208953 | F106: 103 | G106: Noruega | H106: 1009.936 | I106: 9.900715266e-05 | K106: 103 | L106: Gana | M106: 4400.4448 | N106: 0.0002548435997 | O106: 1083.616
A107: 104 | B107: Reino Unido (Irlanda do Norte) pós-2020 | C107: 1341.9206 | D107: 0.000189896213 | F107: 104 | G107: Síria, República Árabe da | H107: 949.834 | I107: 9.311516754e-05 | K107: 104 | L107: Omã | M107: 4285.638 | N107: 0.0002481947768 | O107: 3325.7248
A108: 105 | B108: Albânia | C108: 1266.1722 | D108: 0.0001791769988 | F108: 105 | G108: Coreia, República da | H108: 937.599 | I108: 9.191573261e-05 | K108: 105 | L108: Singapura | M108: 4020.9472 | N108: 0.0002328657 | O108: 1891.5608
A109: 106 | B109: Costa Rica | C109: 1199.7232 | D109: 0.0001697737499 | F109: 106 | G109: El Salvador | H109: 727.8254 | I109: 7.135097718e-05 | K109: 106 | L109: Dominicana, República | M109: 3933.7284 | N109: 0.0002278145849 | O109: -515.742
A110: 107 | B110: Indonésia | C110: 1137.3976 | D110: 0.0001609540065 | F110: 107 | G110: Turquemenistão | H110: 720.6558 | I110: 7.06481191e-05 | K110: 107 | L110: Myanmar | M110: 3786.5344 | N110: 0.0002192901174 | O110: -2886.1156
A111: 108 | B111: Islândia | C111: 1133.5366 | D111: 0.0001604076334 | F111: 108 | G111: Chade | H111: 675.9004 | I111: 6.626060868e-05 | K111: 108 | L111: Quénia | M111: 3706.4946 | N111: 0.0002146547608 | O111: -2805.5498
A112: 109 | B112: Congo, República Democrática do | C112: 1102.9464 | D112: 0.0001560787907 | F112: 109 | G112: Timor-Leste | H112: 614.232 | I112: 6.021506451e-05 | K112: 109 | L112: Croácia | M112: 3585.5476 | N112: 0.0002076503396 | O112: -41.5776
A113: 110 | B113: Togo | C113: 886.836 | D113: 0.0001254968423 | F113: 110 | G113: Senegal | H113: 563.3582 | I113: 5.52277484e-05 | K113: 110 | L113: Nicarágua | M113: 3581.558 | N113: 0.0002074192893 | O113: -2747.4548
A114: 111 | B114: Panamá | C114: 853.2114 | D114: 0.0001207385994 | F114: 111 | G114: Argélia | H114: 547.1324 | I114: 5.3637083e-05 | K114: 111 | L114: Burquina Faso | M114: 3574.6308 | N114: 0.0002070181134 | O114: 123.1568
A115: 112 | B115: Equador | C115: 827.4356 | D115: 0.0001170910462 | F115: 112 | G115: Líbano | H115: 532.1362 | I115: 5.216695909e-05 | K115: 112 | L115: Sri Lanca | M115: 3466.8512 | N115: 0.0002007762577 | O115: -2680.7736
A116: 113 | B116: Ruanda | C116: 825.9096 | D116: 0.0001168751008 | F116: 113 | G116: Omã | H116: 479.9566 | I116: 4.705163136e-05 | K116: 113 | L116: Benim | M116: 3389.9546 | N116: 0.0001963229338 | O116: -245.1214
A117: 114 | B117: Honduras | C117: 813.7022 | D117: 0.0001151476222 | F117: 114 | G117: Emirados Árabes Unidos | H117: 455.3414 | I117: 4.46385271e-05 | K117: 114 | L117: Malavi | M117: 3260.7796 | N117: 0.0001888420032 | O117: -3247.5728
A118: 115 | B118: Bermudas | C118: 793.1712 | D118: 0.0001122422647 | F118: 115 | G118: Belarus | H118: 370.9342 | I118: 3.636382797e-05 | K118: 115 | L118: Timor-Leste | M118: 3086.1518 | N118: 0.000178728758 | O118: 1857.6878
A119: 116 | B119: Etiópia | C119: 744.4088 | D119: 0.0001053418601 | F119: 116 | G119: Guiné-Bissau | H119: 361.4462 | I119: 3.543368996e-05 | K119: 116 | L119: Líbano | M119: 3051.887 | N119: 0.0001767443757 | O119: 1987.6146
A120: 117 | B120: Tunísia | C120: 725.611 | D120: 0.000102681769 | F120: 117 | G120: Usbequistão | H120: 308.2694 | I120: 3.022060363e-05 | K120: 117 | L120: Belarus | M120: 2826.8628 | N120: 0.0001637125165 | O120: 2084.9944
A121: 118 | B121: Burundi | C121: 677.0954 | D121: 9.581628921e-05 | F121: 118 | G121: Guiné | H121: 302.1342 | I121: 2.961915098e-05 | K121: 118 | L121: Guiné | M121: 2572.4296 | N121: 0.0001489774895 | O121: 1968.1612
A122: 119 | B122: Iémen | C122: 670.7886 | D122: 9.492380911e-05 | F122: 119 | G122: Geórgia | H122: 294.5626 | I122: 2.887688359e-05 | K122: 119 | L122: Serra Leoa | M122: 2499.2974 | N122: 0.0001447421738 | O122: -1496.3846
A123: 120 | B123: Paraguai | C123: 644.6266 | D123: 9.122160443e-05 | F123: 120 | G123: Bolívia | H123: 281.6492 | I123: 2.761094301e-05 | K123: 120 | L123: Irão, República Islâmica do | M123: 2440.1832 | N123: 0.0001413186845 | O123: 2029.2332
A124: 121 | B124: Namíbia | C124: 633.8792 | D124: 8.970073161e-05 | F124: 121 | G124: Bangladesh | H124: 280.7044 | I124: 2.751832134e-05 | K124: 121 | L124: Congo | M124: 2383.877 | N124: 0.0001380578154 | O124: 1985.2674
A125: 122 | B125: Azerbaijão | C125: 594.9756 | D125: 8.419545335e-05 | F125: 122 | G125: Irão, República Islâmica do | H125: 205.475 | I125: 2.014335036e-05 | K125: 122 | L125: Panamá | M125: 2366.8806 | N125: 0.0001370735004 | O125: -660.4578
A126: 123 | B126: Arménia | C126: 559.6906 | D126: 7.920224594e-05 | F126: 123 | G126: Congo | H126: 199.3048 | I126: 1.953846656e-05 | K126: 123 | L126: Congo, República Democrática do | M126: 2329.6366 | N126: 0.0001349165832 | O126: -123.7438
A127: 124 | B127: Cazaquistão | C127: 531.8816 | D127: 7.526697303e-05 | F127: 124 | G127: Zâmbia | H127: 199.3012 | I127: 1.953811364e-05 | K127: 124 | L127: Venezuela | M127: 2213.7304 | N127: 0.0001282040906 | O127: 1903.808
A128: 125 | B128: Aruba | C128: 522.985 | D128: 7.400800834e-05 | F128: 125 | G128: Nigéria | H128: 197.6194 | I128: 1.937324158e-05 | K128: 125 | L128: Seychelles | M128: 2103.9052 | N128: 0.0001218437678 | O128: 2103.9052
A129: 126 | B129: Serra Leoa | C129: 501.4564 | D129: 7.096147965e-05 | F129: 126 | G129: Islândia | H129: 194.2478 | I129: 1.904271319e-05 | K129: 126 | L129: Gabão | M129: 2079.9016 | N129: 0.0001204536439 | O129: 2079.4016
A130: 127 | B130: Guatemala | C130: 491.8628 | D130: 6.960388196e-05 | F130: 127 | G130: Venezuela | H130: 154.9612 | I130: 1.519132617e-05 | K130: 127 | L130: Togo | M130: 2010.1374 | N130: 0.0001164133796 | O130: -236.4654
A131: 128 | B131: Uganda | C131: 485.556 | D131: 6.871140185e-05 | F131: 128 | G131: Cabo Verde | H131: 126.7382 | I131: 1.242453811e-05 | K131: 128 | L131: Sudão | M131: 1881.5594 | N131: 0.0001089670232 | O131: 1848.4942
A132: 129 | B132: São Bartolomeu | C132: 472.0258 | D132: 6.679673288e-05 | F132: 129 | G132: Azerbaijão | H132: 124.8946 | I132: 1.224380429e-05 | K132: 129 | L132: Bangladesh | M132: 1839.639 | N132: 0.000106539281 | O132: 1278.2302
A133: 130 | B133: Mauritânia | C133: 470.2498 | D133: 6.654540976e-05 | F133: 130 | G133: Albânia | H133: 104.056 | I133: 1.020093182e-05 | K133: 130 | L133: Guiné Equatorial | M133: 1818.2522 | N133: 0.0001053007041 | O133: 1818.2522
A134: 131 | B134: Barém | C134: 469.46 | D134: 6.643364455e-05 | F134: 131 | G134: Namíbia | H134: 69.6464 | I134: 6.827652205e-06 | K134: 131 | L134: Madagáscar | M134: 1665.147 | N134: 9.643390038e-05 | O134: -1405.8322
A135: 132 | B135: Gâmbia | C135: 455.249 | D135: 6.442263505e-05 | F135: 132 | G135: Tajiquistão | H135: 59.4122 | I135: 5.824361896e-06 | K135: 132 | L135: Geórgia | M135: 1638.7776 | N135: 9.490676548e-05 | O135: 1049.6524
A136: 133 | B136: Quénia | C136: 450.4724 | D136: 6.374669472e-05 | F136: 133 | G136: Iémen | H136: 45.76 | I136: 4.485994465e-06 | K136: 133 | L136: Laos, República Democrática Popular do | M136: 1584.7624 | N136: 9.177857535e-05 | O136: -1555.988
A137: 134 | B137: Myanmar | C137: 450.2094 | D137: 6.370947739e-05 | F137: 134 | G137: Libéria | H137: 38.8276 | I137: 3.806389831e-06 | K137: 134 | L137: Catar | M137: 1531.2716 | N137: 8.868075487e-05 | O137: 1499.1872
A138: 135 | B138: Kosovo | C138: 418.4652 | D138: 5.921733131e-05 | F138: 135 | G138: Aruba | H138: 38.029 | I138: 3.728100601e-06 | K138: 135 | L138: Albânia | M138: 1370.2282 | N138: 7.935422503e-05 | O138: 1162.1162
A139: 136 | B139: Nicarágua | C139: 417.0516 | D139: 5.901729169e-05 | F139: 136 | G139: São Marino | H139: 32.7702 | I139: 3.212564157e-06 | K139: 136 | L139: Islândia | M139: 1327.7844 | N139: 7.689617106e-05 | O139: 939.2888
A140: 137 | B140: Camboja | C140: 401.4318 | D140: 5.680692181e-05 | F140: 137 | G140: Botswana | H140: 29.9908 | I140: 2.94009097e-06 | K140: 137 | L140: El Salvador | M140: 1020.3732 | N140: 5.909302153e-05 | O140: -435.2776
A141: 138 | B141: Sri Lanca | C141: 393.0388 | D141: 5.561922195e-05 | F141: 138 | G141: Jordânia | H141: 29.4906 | I141: 2.891054816e-06 | K141: 138 | L141: Ruanda | M141: 826.0866 | N141: 4.784127341e-05 | O141: 825.7326
A142: 139 | B142: Bolívia | C142: 391.1324 | D142: 5.534944582e-05 | F142: 139 | G142: Bósnia-Herzegovina | H142: 27.8982 | I142: 2.734946914e-06 | K142: 139 | L142: Bermudas | M142: 793.8604 | N142: 4.59749528e-05 | O142: 792.482
A143: 140 | B143: Tanzânia, República Unida da | C143: 370.967 | D143: 5.24958246e-05 | F143: 140 | G143: Papuásia-Nova Guiné | H143: 25.837 | I143: 2.532881097e-06 | K143: 140 | L143: Turquemenistão | M143: 732.4956 | N143: 4.242112421e-05 | O143: -708.816
A144: 141 | B144: São Martinho (parte holandesa) | C144: 349.244 | D144: 4.942178622e-05 | F144: 141 | G144: Arábia Saudita | H144: 23.1054 | I144: 2.265093892e-06 | K144: 141 | L144: Azerbaijão | M144: 719.8702 | N144: 4.168994759e-05 | O144: 470.081
A145: 142 | B145: Comores | C145: 311.607 | D145: 4.409574549e-05 | F145: 142 | G145: Quirguizistão | H145: 17.4752 | I145: 1.713147956e-06 | K145: 142 | L145: Iémen | M145: 716.5486 | N145: 4.149758328e-05 | O145: 625.0286
A146: 143 | B146: Libéria | C146: 294.774 | D146: 4.171369475e-05 | F146: 143 | G146: Sudão | H146: 16.5326 | I146: 1.62074196e-06 | K146: 143 | L146: Namíbia | M146: 703.5256 | N146: 4.074338039e-05 | O146: 564.2328
A147: 144 | B147: Somália | C147: 292.8146 | D147: 4.143641856e-05 | F147: 144 | G147: Macau | H147: 16.4972 | I147: 1.617271588e-06 | K147: 144 | L147: Burundi | M147: 677.2094 | N147: 3.921932647e-05 | O147: 676.9814
A148: 145 | B148: El Salvador | C148: 292.5478 | D148: 4.139866349e-05 | F148: 145 | G148: Catar | H148: 16.0422 | I148: 1.57266653e-06 | K148: 145 | L148: Chade | M148: 675.9044 | N148: 3.914374982e-05 | O148: -675.8964
A149: 146 | B149: Jamaica | C149: 276.7996 | D149: 3.917012363e-05 | F149: 146 | G149: Arménia | H149: 15.34 | I149: 1.50382769e-06 | K149: 146 | L149: Bolívia | M149: 672.7816 | N149: 3.896289865e-05 | O149: 109.4832
A150: 147 | B150: Macedónia, Antiga República jugoslava da | C150: 272.7114 | D150: 3.859159931e-05 | F150: 147 | G150: Curaçau | H150: 12.9632 | I150: 1.270822628e-06 | K150: 147 | L150: Arménia | M150: 575.0306 | N150: 3.330183077e-05 | O150: 544.3506
A151: 148 | B151: Paquistão | C151: 266.8506 | D151: 3.776223301e-05 | F151: 148 | G151: Iraque | H151: 12.264 | I151: 1.202277887e-06 | K151: 148 | L151: Aruba | M151: 561.014 | N151: 3.249008537e-05 | O151: 484.956
A152: 149 | B152: Antígua e Barbuda | C152: 264.4064 | D152: 3.741635239e-05 | F152: 149 | G152: Jamaica | H152: 11.1226 | I152: 1.090382912e-06 | K152: 149 | L152: Cazaquistão | M152: 537.7376 | N152: 3.114207583e-05 | O152: 526.0256
A153: 150 | B153: Argentina | C153: 237.3284 | D153: 3.358452385e-05 | F153: 150 | G153: Kosovo | H153: 8.3722 | I153: 8.207526849e-07 | K153: 150 | L153: Barém | M153: 473.8044 | N153: 2.743950312e-05 | O153: 465.1156
A154: 151 | B154: Curaçau | C154: 224.0074 | D154: 3.169945893e-05 | F154: 151 | G154: Líbia, Jamahira Árabe da | H154: 5.95 | I154: 5.832969202e-07 | K154: 151 | L154: São Bartolomeu | M154: 472.3088 | N154: 2.735288822e-05 | O154: 471.7428
A155: 152 | B155: Moldava, República de | C155: 201.388 | D155: 2.849857029e-05 | F155: 152 | G155: Cazaquistão | H155: 5.856 | I155: 5.740818091e-07 | K155: 152 | L155: Mauritânia | M155: 471.8238 | N155: 2.732480035e-05 | O155: 468.6758
A156: 153 | B156: Haiti | C156: 195.7344 | D156: 2.769852502e-05 | F156: 153 | G156: Andorra | H156: 4.7264 | I156: 4.633436241e-07 | K156: 153 | L156: Gâmbia | M156: 455.249 | N156: 2.636490155e-05 | O156: 455.249
A157: 154 | B157: Ceuta e Melilha | C157: 191.5534 | D157: 2.710686851e-05 | F157: 154 | G157: São Cristovão e Nevis | H157: 4.4378 | I157: 4.350512726e-07 | K157: 154 | L157: Kosovo | M157: 426.8374 | N157: 2.471949642e-05 | O157: 410.093
A158: 155 | B158: Suriname | C158: 156.0968 | D158: 2.208937785e-05 | F158: 155 | G158: Afeganistão | H158: 4.3662 | I158: 4.28032103e-07 | K158: 155 | L158: São Martinho (parte holandesa) | M158: 349.244 | N158: 2.022581856e-05 | O158: 349.244
A159: 156 | B159: Trindade e Tobago | C159: 142.2682 | D159: 2.013248206e-05 | F159: 156 | G159: Barém | H159: 4.3444 | I159: 4.258949815e-07 | K159: 156 | L159: Usbequistão | M159: 348.6042 | N159: 2.018876573e-05 | O159: -267.9346
A160: 157 | B160: Nova Caledónia | C160: 140.1192 | D160: 1.982837543e-05 | F160: 157 | G160: Nepal | H160: 2.4222 | I160: 2.374557647e-07 | K160: 157 | L160: Zâmbia | M160: 336.5272 | N160: 1.948934868e-05 | O160: -62.0752
A161: 158 | B161: Zâmbia | C161: 137.226 | D161: 1.941895648e-05 | F161: 158 | G161: Lesoto | H161: 1.7136 | I161: 1.67989513e-07 | K161: 158 | L161: Libéria | M161: 333.6016 | N161: 1.931991798e-05 | O161: 255.9464
A162: 159 | B162: Polinésia Francesa | C162: 133.1554 | D162: 1.884292275e-05 | F162: 159 | G162: Liechtenstein | H162: 1.6922 | I162: 1.658916048e-07 | K162: 159 | L162: Comores | M162: 311.607 | N162: 1.804614151e-05 | O162: 311.607
A163: 160 | B163: Madagáscar | C163: 129.6574 | D163: 1.834791809e-05 | F163: 160 | G163: Mauritânia | H163: 1.574 | I163: 1.543040928e-07 | K163: 160 | L163: Somália | M163: 292.8146 | N163: 1.695781452e-05 | O163: 292.8146
A164: 161 | B164: Maldivas | C164: 127.1794 | D164: 1.799725441e-05 | F164: 161 | G164: Fiji, Ilhas | H164: 1.3646 | I164: 1.337759626e-07 | K164: 161 | L164: Jamaica | M164: 287.9222 | N164: 1.667448024e-05 | O164: 265.677
A165: 162 | B165: Niger | C165: 113.05 | D165: 1.599779218e-05 | F165: 162 | G165: Bermudas | H165: 0.6892 | I165: 6.756440964e-08 | K165: 162 | L165: Antígua e Barbuda | M165: 264.426 | N165: 1.531374139e-05 | O165: 264.3868
A166: 163 | B166: Liechtenstein | C166: 106.2456 | D166: 1.503489632e-05 | F166: 163 | G166: Território Palestiniano Ocupado | H166: 0.4852 | I166: 4.756565809e-08 | K166: 163 | L166: Curaçau | M166: 236.9706 | N166: 1.372371282e-05 | O166: 211.0442
A167: 164 | B167: Centro-Africana, República | C167: 83.0308 | D167: 1.174975217e-05 | F167: 164 | G167: Montenegro | H167: 0.3086 | I167: 3.025301337e-08 | K167: 164 | L167: Haiti | M167: 195.7408 | N167: 1.133596542e-05 | O167: 195.728
A168: 165 | B168: Jibuti | C168: 77.3086 | D168: 1.093999926e-05 | F168: 165 | G168: São Bartolomeu | H168: 0.283 | I168: 2.774336612e-08 | K168: 165 | L168: Ceuta e Melilha | M168: 191.5534 | N168: 1.109345991e-05 | O168: 191.5534
A169: 166 | B169: Nepal | C169: 76.6542 | D169: 1.084739462e-05 | F169: 166 | G169: Gabão | H169: 0.25 | I169: 2.450827396e-08 | K169: 166 | L169: Trindade e Tobago | M169: 142.2786 | N169: 8.239801254e-06 | O169: 142.2578
A170: 167 | B170: Zimbabwe | C170: 63.2826 | D170: 8.955169247e-06 | F170: 167 | G170: Ruanda | H170: 0.177 | I170: 1.735185796e-08 | K170: 167 | L170: Nova Caledónia | M170: 140.1192 | N170: 8.114743608e-06 | O170: 140.1192
A171: 168 | B171: Caimão, Ilhas | C171: 51.4562 | D171: 7.281606315e-06 | F171: 168 | G171: Barbados | H171: 0.1378 | I171: 1.35089606e-08 | K171: 168 | L171: Polinésia Francesa | M171: 133.1554 | N171: 7.711448046e-06 | O171: 133.1554
A172: 169 | B172: Bósnia-Herzegovina | C172: 50.6168 | D172: 7.162822178e-06 | F172: 169 | G172: Niger | H172: 0.1252 | I172: 1.22737436e-08 | K172: 169 | L172: Maldivas | M172: 127.183 | N172: 7.365567576e-06 | O172: 127.1758
A173: 170 | B173: Montenegro | C173: 46.101 | D173: 6.523787857e-06 | F173: 170 | G173: Burundi | H173: 0.114 | I173: 1.117577292e-08 | K173: 170 | L173: Niger | M173: 113.1752 | N173: 6.554331817e-06 | O173: 112.9248
A174: 171 | B174: Bahamas | C174: 42.9652 | D174: 6.080038395e-06 | F174: 171 | G174: Oceano Indico, Território Britânico do | H174: 0.098 | I174: 9.607243391e-09 | K174: 171 | L174: Liechtenstein | M174: 107.9378 | N174: 6.251017509e-06 | O174: 104.5534
A175: 172 | B175: Usbequistão | C175: 40.3348 | D175: 5.707808474e-06 | F175: 172 | G175: São Vicente e Granadinas | H175: 0.0416 | I175: 4.078176786e-09 | K175: 172 | L175: Centro-Africana, República | M175: 83.0308 | N175: 4.808574796e-06 | O175: 83.0308
A176: 173 | B176: Mongólia | C176: 30.8452 | D176: 4.364927902e-06 | F176: 173 | G176: Antígua e Barbuda | H176: 0.0196 | I176: 1.921448678e-09 | K176: 173 | L176: Nepal | M176: 79.0764 | N176: 4.579563054e-06 | O176: 74.232
A177: 174 | B177: Afeganistão | C177: 18.9718 | D177: 2.684713964e-06 | F177: 174 | G177: Santa Sé (Cidade Estado do Vaticano) | H177: 0.018 | I177: 1.764595725e-09 | K177: 174 | L177: Bósnia-Herzegovina | M177: 78.515 | N177: 4.547050614e-06 | O177: 22.7186
A178: 175 | B178: Guiana | C178: 18.2434 | D178: 2.581637522e-06 | F178: 175 | G178: Mongólia | H178: 0.0112 | I178: 1.097970673e-09 | K178: 175 | L178: Jibuti | M178: 77.3086 | N178: 4.477184195e-06 | O178: 77.3086
A179: 176 | B179: Turcas e Caicos, Ilhas | C179: 18.0666 | D179: 2.556618418e-06 | F179: 176 | G179: Trindade e Tobago | H179: 0.0104 | I179: 1.019544197e-09 | K179: 176 | L179: Tajiquistão | M179: 59.4122 | N179: 3.440747379e-06 | O179: -59.4122
A180: 177 | B180: Laos, República Democrática Popular do | C180: 14.3872 | D180: 2.035943703e-06 | F180: 177 | G180: Haiti | H180: 0.0064 | I180: 6.274118133e-10 | K180: 177 | L180: Caimão, Ilhas | M180: 51.4562 | N180: 2.979990394e-06 | O180: 51.4562
A181: 178 | B181: Turquemenistão | C181: 11.8398 | D181: 1.675459176e-06 | F181: 178 | G181: Maldivas | H181: 0.0036 | I181: 3.52919145e-10 | K181: 178 | L181: Montenegro | M181: 46.4096 | N181: 2.687725914e-06 | O181: 45.7924
A182: 179 | B182: Barbados | C182: 11.7888 | D182: 1.668242127e-06 | F182: 179 | G182: Anguila | H182: 0 | I182: 0 | K182: 179 | L182: Bahamas | M182: 42.9652 | N182: 2.488249876e-06 | O182: 42.9652
A183: 180 | B183: Virgens Britânicas, Ilhas | C183: 9.9272 | D183: 1.404805684e-06 | F183: 180 | G183: Antárctica | H183: 0 | I183: 0 | K183: 180 | L183: São Marino | M183: 32.7902 | N183: 1.898983621e-06 | O183: -32.7502
A184: 181 | B184: Fiji, Ilhas | C184: 8.1268 | D184: 1.150029699e-06 | F184: 181 | G184: Antilhas Holandesas | H184: 0 | I184: 0 | K184: 181 | L184: Mongólia | M184: 30.8564 | N184: 1.786991181e-06 | O184: 30.834
A185: 182 | B185: Santa Lúcia | C185: 7.138 | D185: 1.010103853e-06 | F185: 182 | G185: Bahamas | H185: 0 | I185: 0 | K185: 182 | L185: Botswana | M185: 30.0852 | N185: 1.742328563e-06 | O185: -29.8964
A186: 183 | B186: Brunei Darussalam | C186: 6.98 | D186: 9.877451518e-07 | F186: 183 | G186: Bonaire, Santo Eustáquio e Saba | H186: 0 | I186: 0 | K186: 183 | L186: Papuásia-Nova Guiné | M186: 28.7226 | N186: 1.663416111e-06 | O186: -22.9514
A187: 184 | B187: Malavi | C187: 6.6034 | D187: 9.344521971e-07 | F187: 184 | G187: Bouvet, Ilha | H187: 0 | I187: 0 | K187: 184 | L187: Afeganistão | M187: 23.338 | N187: 1.351576988e-06 | O187: 14.6056
A188: 185 | B188: Guam | C188: 6.5774 | D188: 9.307729171e-07 | F188: 185 | G188: Brunei Darussalam | H188: 0 | I188: 0 | K188: 185 | L188: Quirguizistão | M188: 22.1318 | N188: 1.281722152e-06 | O188: -12.8186
A189: 186 | B189: São Vicente e Granadinas | C189: 5.6654 | D189: 8.017150979e-07 | F189: 186 | G189: Butão | H189: 0 | I189: 0 | K189: 186 | L189: Turcas e Caicos, Ilhas | M189: 18.0666 | N189: 1.046293633e-06 | O189: 18.0666
A190: 187 | B190: Quirguizistão | C190: 4.6566 | D190: 6.589590364e-07 | F190: 187 | G190: Caimão, Ilhas | H190: 0 | I190: 0 | K190: 187 | L190: Barbados | M190: 11.9266 | N190: 6.907069203e-07 | O190: 11.651
A191: 188 | B191: Menores distantes dos Estados Unidos, lhas | C191: 4.5542 | D191: 6.444683339e-07 | F191: 188 | G191: Centro-Africana, República | H191: 0 | I191: 0 | K191: 188 | L191: Virgens Britânicas, Ilhas | M191: 9.9272 | N191: 5.749153774e-07 | O191: 9.9272
A192: 189 | B192: Sudão do Sul | C192: 3.771 | D192: 5.336371014e-07 | F192: 189 | G192: Ceuta | H192: 0 | I192: 0 | K192: 189 | L192: Fiji, Ilhas | M192: 9.4914 | N192: 5.496768286e-07 | O192: 6.7622
A193: 190 | B193: Bonaire, Santo Eustáquio e Saba | C193: 3.1276 | D193: 4.425890741e-07 | F193: 190 | G193: Ceuta e Melilha | H193: 0 | I193: 0 | K193: 190 | L193: Santa Lúcia | M193: 7.138 | N193: 4.133840321e-07 | O193: 7.138
A194: 191 | B194: Marianas do Norte, Ilhas | C194: 2.9244 | D194: 4.138340863e-07 | F194: 191 | G194: Christmas, Ilha | H194: 0 | I194: 0 | K194: 191 | L194: Brunei Darussalam | M194: 6.98 | N194: 4.042337551e-07 | O194: 6.98
A195: 192 | B195: Papuásia-Nova Guiné | C195: 2.8856 | D195: 4.083434685e-07 | F195: 192 | G195: Cocos (Keeling), Ilhas | H195: 0 | I195: 0 | K195: 192 | L195: Guam | M195: 6.5774 | N195: 3.809179228e-07 | O195: 6.5774
A196: 193 | B196: Belize | C196: 2.1806 | D196: 3.08578378e-07 | F196: 193 | G196: Comores | H196: 0 | I196: 0 | K196: 193 | L196: São Vicente e Granadinas | M196: 5.707 | N196: 3.30510321e-07 | O196: 5.6238
A197: 194 | B197: Melilha | C197: 1.3464 | D197: 1.905300963e-07 | F197: 194 | G197: Cook, Ilhas | H197: 0 | I197: 0 | K197: 194 | L197: Menores distantes dos Estados Unidos, lhas | M197: 4.5542 | N197: 2.637480469e-07 | O197: 4.5542
A198: 195 | B198: Granada | C198: 0.6866 | D198: 9.716129244e-08 | F198: 195 | G198: Coreia, República Popular Democrática da | H198: 0 | I198: 0 | K198: 195 | L198: São Cristovão e Nevis | M198: 4.4378 | N198: 2.570069568e-07 | O198: -4.4378
A199: 196 | B199: Virgens dos Estados Unidos, Ilhas | C199: 0.295 | D199: 4.174567619e-08 | F199: 196 | G199: Domínica | H199: 0 | I199: 0 | K199: 196 | L199: Sudão do Sul | M199: 3.771 | N199: 2.183904714e-07 | O199: 3.771
A200: 197 | B200: Botswana | C200: 0.0944 | D200: 1.335861638e-08 | F200: 197 | G200: Eritreia | H200: 0 | I200: 0 | K200: 197 | L200: Bonaire, Santo Eustáquio e Saba | M200: 3.1276 | N200: 1.811291537e-07 | O200: 3.1276
... 58 more rows

Sheet 2A
A1: Parceiros comerciais de Portugal - União Europeia vs. Países Terceiros (média 2018-2022 em milhões de euros) produtos agrícolas e agroalimentares, do mar e da floresta
A2: Exportações | F2: Importações | K2: Trocas comerciais (total e saldo)
A3: P | B3: Grupo de Países | C3: média quinquénio | D3: % do Total | F3: P | G3: Grupo de Países | H3: média quinquénio | I3: % do Total | K3: P | L3: Grupo de Países | M3: média quinquénio | N3: % do Total | O3: Saldo (exp-imp)
A4: 1 | B4: União Europeia | C4: 8690.064715 | D4: 0.6705031383 | F4: 1 | G4: União Europeia | H4: 11673.13485 | I4: 0.7803993275 | K4: 1 | L4: União Europeia | M4: 20363.19956 | N4: 0.7293824229 | O4: -2983.070133
A5: 2 | B5: Países Terceiros | C5: 4271.031018 | D5: 0.3295418153 | F5: 2 | G5: Países Terceiros | H5: 3284.764829 | I5: 0.2196006725 | K5: 2 | L5: Países Terceiros | M5: 7555.795847 | N5: 0.2706384458 | O5: 986.2661894
B6: Outros | C6: 0 | D6: -4.495366773e-05 | G6: Outros | H6: 0 | I6: 0 | L6: Outros | M6: 0 | N6: -2.086875799e-05 | O6: 0
B7: Total | C7: 12960.51311 | D7: 1 | G7: Total | H7: 14957.89968 | I7: 1 | L7: Total | M7: 27918.41279 | N7: 1 | O7: -1997.386566
F27: valores em milhões de euros
A28: Nota: Outros = Países não determinados, abastecimentos de bordo, etc.
A29: Fonte: GPP a partir de dados INE/Comércio Internacional (2021 provisórios; 2022 preliminares) | M29: 2023-03-23

Sheet 3
A1: Principais produtos agrícolas e agroalimentares, do mar e da floresta transacionados entre Portugal e Áustria em 2018-2022 (NC a 2 e 4 dígitos) em milhões de euros
AC4: P | AE4: Cód.NC | AF4: Descritivo | AG4: Média export quinquénio | AH4: % do total | AI4: % acumulada | AN4: P | AO4: NC | AP4: Exportações | AQ4: 2018 | AR4: 2019 | AS4: 2020 | AT4: 2021 | AU4: 2022 | AV4: média quinquénio
AC5: 1 | AD5: º | AE5: 45 | AF5: Cortiça e suas obras | AG5: 8.7637276 | AH5: 0.2237700181 | AN5: 1º | AO5: 45 | AP5: Cortiça e suas obras | AQ5: 8.088697 | AR5: 8.018189 | AS5: 7.86367 | AT5: 9.333487 | AU5: 10.514595 | AV5: 8.7637276
AC6: 2 | AD6: º | AE6: 16p | AF6: Preparações e conservas de peixes ou crustáceos (NC 1604-05) (p) | AG6: 6.0324946 | AH6: 0.1540316504 | AN6: 2º | AO6: 16p | AP6: Preparações e conservas de peixes ou crustáceos (NC 1604-05) (p) | AQ6: 4.317262 | AR6: 4.965132 | AS6: 5.206308 | AT6: 6.208306 | AU6: 9.465465 | AV6: 6.0324946
AC7: 3 | AD7: º | AE7: 48 | AF7: Papel e cartão | AG7: 5.0293866 | AH7: 0.1284186344 | AI7: 0.5062203028 | AN7: 3º | AO7: 48 | AP7: Papel e cartão | AQ7: 3.826757 | AR7: 4.826423 | AS7: 4.128109 | AT7: 4.566998 | AU7: 7.798646 | AV7: 5.0293866
AC8: 4 | AD8: º | AE8: 44 | AF8: Madeira e suas obras | AG8: 2.9357966 | AH8: 0.07496162457 | AO8: - | AP8: Outros | AQ8: 18.056089 | AR8: 15.527205 | AS8: 14.849605 | AT8: 19.019228 | AU8: 29.239798 | AV8: 19.338385
AC9: 5 | AD9: º | AE9: 15 | AF9: Gorduras e óleos animais ou vegetais | AG9: 2.6378878 | AH9: 0.06735492334 | AP9: Total | AQ9: 34.288805 | AR9: 33.336949 | AS9: 32.047692 | AT9: 39.128019 | AU9: 57.018504 | AV9: 39.1639938
AC10: 6 | AD10: º | AE10: 22 | AF10: Bebidas, líquidos alcoólicos e vinagres | AG10: 2.576359 | AH10: 0.06578386804
AC11: 7 | AD11: º | AE11: 20 | AF11: Preparações de produtos vegetais | AG11: 2.453385 | AH11: 0.06264389205
AC12: 8 | AD12: º | AE12: 47 | AF12: Pastas de madeira | AG12: 1.402144 | AH12: 0.03580186452
AC13: 9 | AD13: º | AE13: 04 | AF13: Leite e laticínios; ovos; mel, etc. | AG13: 1.3831318 | AH13: 0.03531641352
AC14: 10 | AD14: º | AE14: 19a | AF14: Preparações à base de cereais (exc. NC 19022010) (a) | AG14: 1.2127748 | AH14: 0.03096657624 | AI14: 0.8790494651
AE15: - | AF15: Outros | AG15: 4.736906 | AH15: 0.1209505349
AE16: Total | AG16: 39.1639938 | AH16: 1
AC38: P | AE38: Cód.NC | AF38: Descritivo | AG38: Média import quinquénio | AH38: % do total | AI38: % acumulada | AN38: P | AO38: NC | AP38: Importações | AQ38: 2018 | AR38: 2019 | AS38: 2020 | AT38: 2021 | AU38: 2022 | AV38: média quinquénio
AC39: 1 | AD39: º | AE39: 48 | AF39: Papel e cartão | AG39: 23.8972044 | AH39: 0.3709537591 | AN39: 1º | AO39: 48 | AP39: Papel e cartão | AQ39: 21.375409 | AR39: 20.09184 | AS39: 18.64422 | AT39: 23.744722 | AU39: 35.629831 | AV39: 23.8972044
AC40: 2 | AD40: º | AE40: 44 | AF40: Madeira e suas obras | AG40: 13.836124 | AH40: 0.2147766795 | AN40: 2º | AO40: 44 | AP40: Madeira e suas obras | AQ40: 11.827907 | AR40: 11.606365 | AS40: 11.406691 | AT40: 14.264325 | AU40: 20.075332 | AV40: 13.836124
AC41: 3 | AD41: º | AE41: 22 | AF41: Bebidas, líquidos alcoólicos e vinagres | AG41: 4.5415058 | AH41: 0.07049731091 | AI41: 0.6562277495 | AN41: 3º | AO41: 22 | AP41: Bebidas, líquidos alcoólicos e vinagres | AQ41: 5.060407 | AR41: 4.147187 | AS41: 3.571999 | AT41: 3.550933 | AU41: 6.377003 | AV41: 4.5415058
AC42: 4 | AD42: º | AE42: 18 | AF42: Cacau e suas preparações | AG42: 3.112921 | AH42: 0.04832154119 | AO42: - | AP42: Outros | AQ42: 16.633437 | AR42: 17.719431 | AS42: 19.026073 | AT42: 25.973766 | AU42: 31.378018 | AV42: 22.146145
AC43: 5 | AD43: º | AE43: 47 | AF43: Pastas de madeira | AG43: 2.784052 | AH43: 0.04321654273 | AP43: Total | AQ43: 54.89716 | AR43: 53.564823 | AS43: 52.648983 | AT43: 67.533746 | AU43: 93.460184 | AV43: 64.4209792
AC44: 6 | AD44: º | AE44: 20 | AF44: Preparações de produtos vegetais | AG44: 2.2531934 | AH44: 0.03497608121
AC45: 7 | AD45: º | AE45: 21 | AF45: Preparações alimentícias diversas | AG45: 2.235165 | AH45: 0.03469622827
AC46: 8 | AD46: º | AE46: 19a | AF46: Preparações à base de cereais (exc. NC 19022010) (a) | AG46: 2.165386 | AH46: 0.03361305629
AC47: 9 | AD47: º | AE47: 38a | AF47: Agentes de acabamento, ácidos gordos, sorbitol (a) | AG47: 1.9936114 | AH47: 0.03094661746
AC48: 10 | AD48: º | AE48: 23a | AF48: Resíduos indústrias alimentares; alimentos p/ animais (exc. NC 230120) (a) | AG48: 1.7259826 | AH48: 0.0267922441 | AI48: 0.9087900607
AE49: - | AF49: Outros | AG49: 5.8758336 | AH49: 0.09120993926
AE50: Total | AG50: 64.4209792 | AH50: 1
AC62: DESAGREGAÇÃO A 4 DÍGITOS | AN62: DESAGREGAÇÃO A 4 DÍGITOS
AC64: P | AE64: Cód.NC | AF64: Descritivo | AG64: Média export quinquénio | AH64: % do total | AI64: % acumulada | AN64: P | AO64: NC | AP64: Exportações | AQ64: 2018 | AR64: 2019 | AS64: 2020 | AT64: 2021 | AU64: 2022 | AV64: média quinquénio
AC65: 1 | AD65: º | AE65: 1604 | AF65: Preparações e conservas de peixes, etc. | AG65: 6.0083964 | AH65: 0.1534163352 | AN65: 1º | AO65: 1604 | AP65: Preparações e conservas de peixes, etc. | AQ65: 4.317262 | AR65: 4.941447 | AS65: 5.194098 | AT65: 6.193067 | AU65: 9.396108 | AV65: 6.0083964
AC66: 2 | AD66: º | AE66: 4504 | AF66: Cortiça aglomerada e suas obras | AG66: 4.944183 | AH66: 0.1262430748 | AN66: 2º | AO66: 4504 | AP66: Cortiça aglomerada e suas obras | AQ66: 5.02661 | AR66: 4.483276 | AS66: 4.616723 | AT66: 5.165416 | AU66: 5.42889 | AV66: 4.944183
AC67: 3 | AD67: º | AE67: 4802 | AF67: Papel e cartão p/ escrita, etc. | AG67: 4.4022996 | AH67: 0.1124068097 | AI67: 0.3920662198 | AN67: 3º | AO67: 4802 | AP67: Papel e cartão p/ escrita, etc. | AQ67: 3.523039 | AR67: 4.071967 | AS67: 3.654736 | AT67: 3.649631 | AU67: 7.112125 | AV67: 4.4022996
AC68: 4 | AD68: º | AE68: 4503 | AF68: Obras de cortiça natural | AG68: 3.584289 | AH68: 0.09152000734 | AN68: - | AO68: - | AP68: Outros | AQ68: 21.421894 | AR68: 19.840259 | AS68: 18.582135 | AT68: 24.119905 | AU68: 35.081381 | AV68: 23.8091148
AC69: 5 | AD69: º | AE69: 1517 | AF69: Margarina e preparações de gorduras animais ou vegetais | AG69: 2.4239034 | AH69: 0.06189111898 | AP69: Total | AQ69: 34.288805 | AR69: 33.336949 | AS69: 32.047692 | AT69: 39.128019 | AU69: 57.018504 | AV69: 39.1639938
AC70: 6 | AD70: º | AE70: 2204 | AF70: Vinhos de uvas frescas | AG70: 2.3613588 | AH70: 0.06029412659
AC71: 7 | AD71: º | AE71: 2002 | AF71: Tomates preparados | AG71: 2.090717 | AH71: 0.05338365159
AC72: 8 | AD72: º | AE72: 4703 | AF72: Pastas químicas de madeira, à soda ou ao sulfato | AG72: 1.4021432 | AH72: 0.03580184409
AC73: 9 | AD73: º | AE73: 1905 | AF73: Produtos de padaria, pastelaria, etc. | AG73: 0.9472616 | AH73: 0.02418705316
AC74: 10 | AD74: º | AE74: 0402 | AF74: Leite e nata, concentrados | AG74: 0.8676506 | AH74: 0.02215429316 | AI74: 0.7412983147
AE75: - | AF75: Outros | AG75: 10.1317912 | AH75: 0.2587016853
AE76: Total | AG76: 39.1639938 | AH76: 1
AC89: DESAGREGAÇÃO A 4 DÍGITOS | AN89: DESAGREGAÇÃO A 4 DÍGITOS
G91: média 2018-2022 em milhões de euros | I91: Cód. NC | J91: Descritivo | K91: Export | L91: Import | M91: Saldo | AC91: P | AE91: Cód.NC | AF91: Descritivo | AG91: Média import quinquénio | AH91: % do total | AI91: % acumulada | AN91: P | AO91: NC | AP91: Importações | AQ91: 2018 | AR91: 2019 | AS91: 2020 | AT91: 2021 | AU91: 2022 | AV91: média quinquénio
I92: 1604 | J92: Preparações e conservas de peixes, etc. | K92: 6.0083964 | L92: 0.027475 | M92: 5.9809214 | AC92: 1 | AD92: º | AE92: 4418 | AF92: Obras de marcenaria ou carpintaria | AG92: 6.4895968 | AH92: 0.1007373201 | AN92: 1º | AO92: 4418 | AP92: Obras de marcenaria ou carpintaria | AQ92: 5.123486 | AR92: 5.309903 | AS92: 4.127206 | AT92: 7.049721 | AU92: 10.837668 | AV92: 6.4895968
I93: 4504 | J93: Cortiça aglomerada e suas obras | K93: 4.944183 | L93: 0.000258 | M93: 4.943925 | AC93: 2 | AD93: º | AE93: 4810 | AF93: Papel e cartão revestidos | AG93: 5.8660878 | AH93: 0.09105865625 | AN93: 2º | AO93: 4810 | AP93: Papel e cartão revestidos | AQ93: 5.113654 | AR93: 4.554636 | AS93: 3.846487 | AT93: 5.779493 | AU93: 10.036169 | AV93: 5.8660878
I94: 4503 | J94: Obras de cortiça natural | K94: 3.584289 | L94: 0.0013732 | M94: 3.5829158 | AC94: 3 | AD94: º | AE94: 4813 | AF94: Papel para cigarros | AG94: 5.282614 | AH94: 0.08200145458 | AI94: 0.2737974309 | AN94: 3º | AO94: 4813 | AP94: Papel para cigarros | AQ94: 3.824213 | AR94: 5.531784 | AS94: 5.810464 | AT94: 6.203111 | AU94: 5.043498 | AV94: 5.282614
I95: 4802 | J95: Papel e cartão p/ escrita, etc. | K95: 4.4022996 | L95: 0.883464 | M95: 3.5188356 | AC95: 4 | AD95: º | AE95: 2202 | AF95: Águas com açúcar ou outros produtos; outras bebidas | AG95: 4.1844396 | AH95: 0.06495461031 | AN95: - | AO95: - | AP95: Outros | AQ95: 40.835807 | AR95: 38.1685 | AS95: 38.864826 | AT95: 48.501421 | AU95: 67.542849 | AV95: 46.7826806
I96: 2204 | J96: Vinhos de uvas frescas | K96: 2.3613588 | L96: 0.1577474 | M96: 2.2036114 | AC96: 5 | AD96: º | AE96: 4804 | AF96: Papel e cartão "kraft", não revestidos | AG96: 3.750345 | AH96: 0.05821620606 | AP96: Total | AQ96: 54.89716 | AR96: 53.564823 | AS96: 52.648983 | AT96: 67.533746 | AU96: 93.460184 | AV96: 64.4209792
I97: 2002 | J97: Tomates preparados | K97: 2.090717 | L97: 0.000489 | M97: 2.090228 | AC97: 6 | AD97: º | AE97: 4801 | AF97: Papel de jornal | AG97: 3.4570252 | AH97: 0.05366303404
I98: 1517 | J98: Margarina e preparações de gorduras animais ou vegetais | K98: 2.4239034 | L98: 0.3527916 | M98: 2.0711118 | AC98: 7 | AD98: º | AE98: 1806 | AF98: Chocolate e outras preparações com cacau | AG98: 3.112921 | AH98: 0.04832154119
I99: 4409 | J99: Madeira em tacos e frisos | K99: 0.7678706 | L99: 0.0894788 | M99: 0.6783918 | AC99: 8 | AD99: º | AE99: 4407 | AF99: Madeira serrada, etc. | AG99: 2.8039936 | AH99: 0.04352609406
I100: 0402 | J100: Leite e nata, concentrados | K100: 0.8676506 | L100: 0.2130066 | M100: 0.654644 | AC100: 9 | AD100: º | AE100: 4703 | AF100: Pastas químicas de madeira, à soda ou ao sulfato | AG100: 2.7733828 | AH100: 0.04305092587
I101: 2402 | J101: Charutos, cigarrilhas e cigarros | K101: 0.562369 | L101: 0 | M101: 0.562369 | AC101: 10 | AD101: º | AE101: 3809 | AF101: Agentes de apresto ou de acabamento, etc. (NC 380910) | AG101: 1.989793 | AH101: 0.03088734485 | AI101: 0.6164171873
I102: - | J102: Outros | K102: 10.8151196 | L102: 24.0360788 | M102: -13.2209592 | AE102: - | AF102: Outros | AG102: 24.7107804 | AH102: 0.3835828127
I103: 2309 | J103: Preparações p/ alimentação animal | K103: 0.0033888 | L103: 1.7220008 | M103: -1.718612 | AE103: Total | AG103: 64.4209792 | AH103: 1
I104: 3809 | J104: Agentes de apresto ou de acabamento, etc. (NC 380910) | K104: 0 | L104: 1.989793 | M104: -1.989793
I105: 4407 | J105: Madeira serrada, etc. | K105: 0.0261606 | L105: 2.8039936 | M105: -2.777833
I106: 1806 | J106: Chocolate e outras preparações com cacau | K106: 0.0014142 | L106: 3.112921 | M106: -3.1115068
I107: 4801 | J107: Papel de jornal | K107: 0 | L107: 3.4570252 | M107: -3.4570252
I108: 4804 | J108: Papel e cartão "kraft", não revestidos | K108: 0.0349562 | L108: 3.750345 | M108: -3.7153888
I109: 2202 | J109: Águas com açúcar ou outros produtos; outras bebidas | K109: 0.0183912 | L109: 4.1844396 | M109: -4.1660484
I110: 4813 | J110: Papel para cigarros | K110: 1.4e-05 | L110: 5.282614 | M110: -5.2826
I111: 4810 | J111: Papel e cartão revestidos | K111: 0.0095082 | L111: 5.8660878 | M111: -5.8565796
I112: 4418 | J112: Obras de marcenaria ou carpintaria | K112: 0.2420036 | L112: 6.4895968 | M112: -6.2475932
I113: Total | K113: 39.1639938 | L113: 64.4209792 | M113: -25.2569854
A116: Fonte: GPP a partir de dados INE/Comércio Internacional (2021 provisórios; 2022 preliminares) | Y116: 2023-05-23T16:31:19.070

Sheet 3A
A1: Principais produtos agrícolas e agroalimentares transacionados entre Portugal e Áustria em 2018-2022 (NC a 2 e 4 dígitos) em milhões de euros
AC4: P | AE4: Cód.NC | AF4: Descritivo | AG4: Média export quinquénio | AH4: % do total | AI4: % acumulada | AN4: P | AO4: NC | AP4: Exportações | AQ4: 2018 | AR4: 2019 | AS4: 2020 | AT4: 2021 | AU4: 2022 | AV4: média quinquénio
AC5: 1 | AD5: º | AE5: 15 | AF5: Gorduras e óleos animais ou vegetais | AG5: 2.6378878 | AH5: 0.1846341202 | AN5: 1º | AO5: 15 | AP5: Gorduras e óleos animais ou vegetais | AQ5: 5.314975 | AR5: 5.264871 | AS5: 1.419164 | AT5: 0.426073 | AU5: 0.764356 | AV5: 2.6378878
AC6: 2 | AD6: º | AE6: 22 | AF6: Bebidas, líquidos alcoólicos e vinagres | AG6: 2.576359 | AH6: 0.1803275246 | AN6: 2º | AO6: 22 | AP6: Bebidas, líquidos alcoólicos e vinagres | AQ6: 3.062333 | AR6: 2.071198 | AS6: 2.365962 | AT6: 2.410853 | AU6: 2.971449 | AV6: 2.576359
AC7: 3 | AD7: º | AE7: 20 | AF7: Preparações de produtos vegetais | AG7: 2.453385 | AH7: 0.171720185 | AI7: 0.5366818298 | AN7: 3º | AO7: 20 | AP7: Preparações de produtos vegetais | AQ7: 1.694809 | AR7: 1.536415 | AS7: 2.44832 | AT7: 2.633994 | AU7: 3.953387 | AV7: 2.453385
AC8: 4 | AD8: º | AE8: 04 | AF8: Leite e laticínios; ovos; mel, etc. | AG8: 1.3831318 | AH8: 0.09680977446 | AO8: - | AP8: Outros | AQ8: 5.32215 | AR8: 3.360332 | AS8: 5.858126 | AT8: 6.741349 | AU8: 11.815429 | AV8: 6.6194772
AC9: 5 | AD9: º | AE9: 19a | AF9: Preparações à base de cereais (exc. NC 19022010) (a) | AG9: 1.2127748 | AH9: 0.08488594858 | AP9: Total | AQ9: 15.394267 | AR9: 12.232816 | AS9: 12.091572 | AT9: 12.212269 | AU9: 19.504621 | AV9: 14.287109
AC10: 6 | AD10: º | AE10: 21 | AF10: Preparações alimentícias diversas | AG10: 1.1008356 | AH10: 0.07705096951
AC11: 7 | AD11: º | AE11: 08 | AF11: Frutas | AG11: 0.6582806 | AH11: 0.04607514368
AC12: 8 | AD12: º | AE12: 24 | AF12: Tabaco | AG12: 0.562369 | AH12: 0.03936198709
AC13: 9 | AD13: º | AE13: 07 | AF13: Produtos hortícolas | AG13: 0.5030402 | AH13: 0.03520937651
AC14: 10 | AD14: º | AE14: 05a | AF14: Outros produtos de origem animal (exc. NC 0508, 051191) (a) | AG14: 0.334079 | AH14: 0.02338324709 | AI14: 0.9394582767
AE15: - | AF15: Outros | AG15: 0.8649662 | AH15: 0.06054172331
AE16: Total | AG16: 14.287109 | AH16: 1
AC38: P | AE38: Cód.NC | AF38: Descritivo | AG38: Média import quinquénio | AH38: % do total | AI38: % acumulada | AN38: P | AO38: NC | AP38: Importações | AQ38: 2018 | AR38: 2019 | AS38: 2020 | AT38: 2021 | AU38: 2022 | AV38: média quinquénio
AC39: 1 | AD39: º | AE39: 22 | AF39: Bebidas, líquidos alcoólicos e vinagres | AG39: 4.5415058 | AH39: 0.1910748715 | AN39: 1º | AO39: 22 | AP39: Bebidas, líquidos alcoólicos e vinagres | AQ39: 5.060407 | AR39: 4.147187 | AS39: 3.571999 | AT39: 3.550933 | AU39: 6.377003 | AV39: 4.5415058
AC40: 2 | AD40: º | AE40: 18 | AF40: Cacau e suas preparações | AG40: 3.112921 | AH40: 0.1309699924 | AN40: 2º | AO40: 18 | AP40: Cacau e suas preparações | AQ40: 2.260152 | AR40: 2.16817 | AS40: 2.912288 | AT40: 3.712035 | AU40: 4.51196 | AV40: 3.112921
AC41: 3 | AD41: º | AE41: 20 | AF41: Preparações de produtos vegetais | AG41: 2.2531934 | AH41: 0.09479865455 | AI41: 0.4168435185 | AN41: 3º | AO41: 20 | AP41: Preparações de produtos vegetais | AQ41: 1.60577 | AR41: 1.606551 | AS41: 1.544227 | AT41: 3.070419 | AU41: 3.439 | AV41: 2.2531934
AC42: 4 | AD42: º | AE42: 21 | AF42: Preparações alimentícias diversas | AG42: 2.235165 | AH42: 0.09404014529 | AO42: - | AP42: Outros | AQ42: 9.735954 | AR42: 10.409081 | AS42: 11.377661 | AT42: 16.018825 | AU42: 21.761379 | AV42: 13.86058
AC43: 5 | AD43: º | AE43: 19a | AF43: Preparações à base de cereais (exc. NC 19022010) (a) | AG43: 2.165386 | AH43: 0.09110433191 | AP43: Total | AQ43: 18.662283 | AR43: 18.330989 | AS43: 19.406175 | AT43: 26.352212 | AU43: 36.089342 | AV43: 23.7682002
AC44: 6 | AD44: º | AE44: 38a | AF44: Agentes de acabamento, ácidos gordos, sorbitol (a) | AG44: 1.9936114 | AH44: 0.08387725546
AC45: 7 | AD45: º | AE45: 23a | AF45: Resíduos indústrias alimentares; alimentos p/ animais (exc. NC 230120) (a) | AG45: 1.7259826 | AH45: 0.07261730318
AC46: 8 | AD46: º | AE46: 04 | AF46: Leite e laticínios; ovos; mel, etc. | AG46: 1.2707788 | AH46: 0.05346550388
AC47: 9 | AD47: º | AE47: 16a | AF47: Preparações de carnes (exc. NC 1604-05) (a) | AG47: 1.0596752 | AH47: 0.04458373756
AC48: 10 | AD48: º | AE48: 17 | AF48: Açúcares e produtos de confeitaria | AG48: 0.8417694 | AH48: 0.03541578213 | AI48: 0.8919475779
AE49: - | AF49: Outros | AG49: 2.5682116 | AH49: 0.1080524221
AE50: Total | AG50: 23.7682002 | AH50: 1
AC62: DESAGREGAÇÃO A 4 DÍGITOS | AN62: DESAGREGAÇÃO A 4 DÍGITOS
AC64: P | AE64: Cód.NC | AF64: Descritivo | AG64: Média export quinquénio | AH64: % do total | AI64: % acumulada | AN64: P | AO64: NC | AP64: Exportações | AQ64: 2018 | AR64: 2019 | AS64: 2020 | AT64: 2021 | AU64: 2022 | AV64: média quinquénio
AC65: 1 | AD65: º | AE65: 1517 | AF65: Margarina e preparações de gorduras animais ou vegetais | AG65: 2.4239034 | AH65: 0.1696566744 | AN65: 1º | AO65: 1517 | AP65: Margarina e preparações de gorduras animais ou vegetais | AQ65: 5.252249 | AR65: 5.194014 | AS65: 0.881342 | AT65: 0.266214 | AU65: 0.525698 | AV65: 2.4239034
AC66: 2 | AD66: º | AE66: 2204 | AF66: Vinhos de uvas frescas | AG66: 2.3613588 | AH66: 0.1652789798 | AN66: 2º | AO66: 2204 | AP66: Vinhos de uvas frescas | AQ66: 2.406586 | AR66: 2.017024 | AS66: 2.232337 | AT66: 2.371466 | AU66: 2.779381 | AV66: 2.3613588
AC67: 3 | AD67: º | AE67: 2002 | AF67: Tomates preparados | AG67: 2.090717 | AH67: 0.1463359032 | AI67: 0.4812715575 | AN67: 3º | AO67: 2002 | AP67: Tomates preparados | AQ67: 1.691661 | AR67: 1.340602 | AS67: 2.067496 | AT67: 2.079353 | AU67: 3.274473 | AV67: 2.090717
AC68: 4 | AD68: º | AE68: 1905 | AF68: Produtos de padaria, pastelaria, etc. | AG68: 0.9472616 | AH68: 0.06630183895 | AN68: - | AO68: - | AP68: Outros | AQ68: 6.043771 | AR68: 3.681176 | AS68: 6.910397 | AT68: 7.495236 | AU68: 12.925069 | AV68: 7.4111298
AC69: 5 | AD69: º | AE69: 0402 | AF69: Leite e nata, concentrados | AG69: 0.8676506 | AH69: 0.06072961297 | AP69: Total | AQ69: 15.394267 | AR69: 12.232816 | AS69: 12.091572 | AT69: 12.212269 | AU69: 19.504621 | AV69: 14.287109
AC70: 6 | AD70: º | AE70: 2402 | AF70: Charutos, cigarrilhas e cigarros | AG70: 0.562369 | AH70: 0.03936198709
AC71: 7 | AD71: º | AE71: 2105 | AF71: Sorvetes, mesmo contendo cacau | AG71: 0.5008076 | AH71: 0.03505310976
AC72: 8 | AD72: º | AE72: 0406 | AF72: Queijos e requeijão | AG72: 0.439051 | AH72: 0.03073056977
AC73: 9 | AD73: º | AE73: 0504 | AF73: Tripas de animais (excepto peixes) | AG73: 0.334079 | AH73: 0.02338324709
AC74: 10 | AD74: º | AE74: 2102 | AF74: Leveduras, vivas ou mortas, etc. | AG74: 0.290584 | AH74: 0.02033889431 | AI74: 0.7571708174
AE75: - | AF75: Outros | AG75: 3.469327 | AH75: 0.2428291826
AE76: Total | AG76: 14.287109 | AH76: 1
AC89: DESAGREGAÇÃO A 4 DÍGITOS | AN89: DESAGREGAÇÃO A 4 DÍGITOS
G91: média 2018-2022 em milhões de euros | I91: Cód. NC | J91: Descritivo | K91: Export | L91: Import | M91: Saldo | AC91: P | AE91: Cód.NC | AF91: Descritivo | AG91: Média import quinquénio | AH91: % do total | AI91: % acumulada | AN91: P | AO91: NC | AP91: Importações | AQ91: 2018 | AR91: 2019 | AS91: 2020 | AT91: 2021 | AU91: 2022 | AV91: média quinquénio
I92: 2204 | J92: Vinhos de uvas frescas | K92: 2.3613588 | L92: 0.1577474 | M92: 2.2036114 | AC92: 1 | AD92: º | AE92: 2202 | AF92: Águas com açúcar ou outros produtos; outras bebidas | AG92: 4.1844396 | AH92: 0.1760520176 | AN92: 1º | AO92: 2202 | AP92: Águas com açúcar ou outros produtos; outras bebidas | AQ92: 4.247742 | AR92: 3.791601 | AS92: 3.545579 | AT92: 3.387618 | AU92: 5.949658 | AV92: 4.1844396
I93: 2002 | J93: Tomates preparados | K93: 2.090717 | L93: 0.000489 | M93: 2.090228 | AC93: 2 | AD93: º | AE93: 1806 | AF93: Chocolate e outras preparações com cacau | AG93: 3.112921 | AH93: 0.1309699924 | AN93: 2º | AO93: 1806 | AP93: Chocolate e outras preparações com cacau | AQ93: 2.260152 | AR93: 2.16817 | AS93: 2.912288 | AT93: 3.712035 | AU93: 4.51196 | AV93: 3.112921
I94: 1517 | J94: Margarina e preparações de gorduras animais ou vegetais | K94: 2.4239034 | L94: 0.3527916 | M94: 2.0711118 | AC94: 3 | AD94: º | AE94: 3809 | AF94: Agentes de apresto ou de acabamento, etc. (NC 380910) | AG94: 1.989793 | AH94: 0.08371660383 | AI94: 0.3907386139 | AN94: 3º | AO94: 3809 | AP94: Agentes de apresto ou de acabamento, etc. (NC 380910) | AQ94: 1.508914 | AR94: 1.804187 | AS94: 1.554738 | AT94: 1.972703 | AU94: 3.108423 | AV94: 1.989793
I95: 0402 | J95: Leite e nata, concentrados | K95: 0.8676506 | L95: 0.2130066 | M95: 0.654644 | AC95: 4 | AD95: º | AE95: 2009 | AF95: Sumos de frutas | AG95: 1.7255046 | AH95: 0.07259719228 | AN95: - | AO95: - | AP95: Outros | AQ95: 10.645475 | AR95: 10.567031 | AS95: 11.39357 | AT95: 17.279856 | AU95: 22.519301 | AV95: 14.4810466
I96: 2402 | J96: Charutos, cigarrilhas e cigarros | K96: 0.562369 | L96: 0 | M96: 0.562369 | AC96: 5 | AD96: º | AE96: 2309 | AF96: Preparações p/ alimentação animal | AG96: 1.7220008 | AH96: 0.07244977682 | AP96: Total | AQ96: 18.662283 | AR96: 18.330989 | AS96: 19.406175 | AT96: 26.352212 | AU96: 36.089342 | AV96: 23.7682002
I97: 2105 | J97: Sorvetes, mesmo contendo cacau | K97: 0.5008076 | L97: 0.0001138 | M97: 0.5006938 | AC97: 6 | AD97: º | AE97: 1905 | AF97: Produtos de padaria, pastelaria, etc. | AG97: 1.1671672 | AH97: 0.0491062508
I98: 0504 | J98: Tripas de animais (excepto peixes) | K98: 0.334079 | L98: 0.0022062 | M98: 0.3318728 | AC98: 7 | AD98: º | AE98: 2106 | AF98: Outras preparações alimentícias | AG98: 1.1425252 | AH98: 0.0480694874
I99: 0710 | J99: Produtos hortícolas congelados | K99: 0.2741024 | L99: 0.010808 | M99: 0.2632944 | AC99: 8 | AD99: º | AE99: 2101 | AF99: Extratos e preparados de café, chá ou mate | AG99: 0.8676194 | AH99: 0.03650336974
I100: 2102 | J100: Leveduras, vivas ou mortas, etc. | K100: 0.290584 | L100: 0.0324286 | M100: 0.2581554 | AC100: 9 | AD100: º | AE100: 1902 | AF100: Massas alimentícias (exc. NC 1902 20 10) (a) | AG100: 0.7071488 | AH100: 0.02975188672
I101: 0901 | J101: Café | K101: 0.1907546 | L101: 0.0256866 | M101: 0.165068 | AC101: 10 | AD101: º | AE101: 1602 | AF101: Outras preparações e conservas de carnes, miudezas ou sangue | AG101: 0.6775414 | AH101: 0.02850621395 | AI101: 0.7277227916
I102: - | J102: Outros | K102: 3.9589824 | L102: 6.1783744 | M102: -2.219392 | AE102: - | AF102: Outros | AG102: 6.4715392 | AH102: 0.2722772084
I103: 0403 | J103: Leitelho, leite coalhado, iogurte, etc. | K103: 4.8e-06 | L103: 0.6681066 | M103: -0.6681018 | AE103: Total | AG103: 23.7682002 | AH103: 1
I104: 1702 | J104: Açúcares, incluindo lactose, maltose, glicose e frutose, etc. | K104: 0.0042182 | L104: 0.674489 | M104: -0.6702708
I105: 1902 | J105: Massas alimentícias (exc. NC 1902 20 10) (a) | K105: 6.28e-05 | L105: 0.7071488 | M105: -0.707086
I106: 2101 | J106: Extratos e preparados de café, chá ou mate | K106: 0.0520232 | L106: 0.8676194 | M106: -0.8155962
I107: 2106 | J107: Outras preparações alimentícias | K107: 0.1137466 | L107: 1.1425252 | M107: -1.0287786
I108: 2009 | J108: Sumos de frutas | K108: 0.2385504 | L108: 1.7255046 | M108: -1.4869542
I109: 2309 | J109: Preparações p/ alimentação animal | K109: 0.0033888 | L109: 1.7220008 | M109: -1.718612
I110: 3809 | J110: Agentes de apresto ou de acabamento, etc. (NC 380910) | K110: 0 | L110: 1.989793 | M110: -1.989793
I111: 1806 | J111: Chocolate e outras preparações com cacau | K111: 0.0014142 | L111: 3.112921 | M111: -3.1115068
I112: 2202 | J112: Águas com açúcar ou outros produtos; outras bebidas | K112: 0.0183912 | L112: 4.1844396 | M112: -4.1660484
I113: Total | K113: 14.287109 | L113: 23.7682002 | M113: -9.4810912
A116: Fonte: GPP a partir de dados INE/Comércio Internacional (2021 provisórios; 2022 preliminares) | Y116: 2023-05-23T16:31:19.070

Sheet 4A
A1: Evolução da balança comercial Portugal-Áustria 2018-2022 por produto em euros (NC 2 dígitos)
A3: =+aux!A31 -> Evolução da balança comercial Portugal-Áustria para Gorduras e óleos animais ou vegetais
A5: Selecione o produto:
Q7: Para obter uma maior desagregação deste produto, clique no botão respetivo:
A20: =+aux!A43 -> Evolução da balança comercial Portugal-Áustria para Bebidas, líquidos alcoólicos e vinagres
A22: Selecione o produto:
A38: Fonte: GPP a partir de dados INE/Comércio Internacional (2021 provisórios; 2022 preliminares) | N38: 2023-05-23T16:31:19.070

Sheet 5.2
A1: Trocas comerciais Portugal-Áustria 2018-2022 em milhares de euros (NC 2 dígitos) | C1: Produtos agrícolas e agroalimentares, do mar e da floresta
A2: Cód. NC | B2: Descritivo | C2: Importações | K2: Exportações | S2: Saldo quinquénio (exp-imp) | T2: Evolução das importações | U2: =+"Variação das Importações " & INDEX(K3:N3,1,aux!AL1) & "-"& '5.2'!O3 &"" -> Variação das Importações 2018-2022 | Z2: Evolução das exportações | AA2: ="Variação das Exportações " & INDEX(K3:N3,1,aux!AL1) & "-"& '5.2'!O3 &"" -> Variação das Exportações 2018-2022
C3: 2018 | D3: 2019 | E3: 2020 | F3: 2021 | G3: 2022 | H3: média quinquénio | I3: % Subtot | J3: % Total | K3: 2018 | L3: 2019 | M3: 2020 | N3: 2021 | O3: 2022 | P3: média quinquénio | Q3: % Subtot | R3: % Total | U3: variação total em valor | V3: % no subtotal de variação | W3: % no total de variação | X3: taxa de variação média anual | Y3: taxa de variação total | AA3: variação total em valor | AB3: % no subtotal de variação | AC3: % no total de variação | AD3: taxa de variação média anual | AE3: taxa de variação total
A4: 01 | B4: Animais vivos | C4: 0 | D4: 1.253 | E4: 0 | F4: 0.703 | G4: 0 | H4: 0.3912 | I4: 1.645896604e-05 | J4: 6.072555942e-06 | K4: 0 | L4: 0 | M4: 0 | N4: 1.493 | O4: 55.038 | P4: 11.3062 | Q4: 0.0007913567398 | R4: 0.0002886886373 | S4: 10.915 | U4: =G4-INDEX($C4:$G4,1,aux!$AL$1) -> 0 | V4: =IF($U$37<>0,U4/$U$37, "n.d.") -> 0 | W4: =IF($U$53<>0,U4/$U$53, "n.d.") -> 0 | X4: =+IF(INDEX($C4:$G4,1,aux!$AL$1)>0,(G4/INDEX($C4:$G4,1,aux!$AL$1))^(1/($G$3-INDEX($C$3:$G$3,1,aux!$AL$1)))-1,"n.d.") -> n.d. | Y4: =IF(INDEX($C4:$G4,1,aux!$AL$1)>0,(G4-INDEX($C4:$G4,1,aux!$AL$1))/INDEX($C4:$G4,1,aux!$AL$1),"n.d.") -> n.d. | AA4: =O4-INDEX($K4:$O4,1,aux!$AL$1) -> 55.038 | AB4: =IF($AA$37<>0,AA4/$AA$37, "n.d.") -> 0.01339008757 | AC4: =IF($AA$53<>0,AA4/$AA$53, "n.d.") -> 0.0024214135 | AD4: =+IF(INDEX($K4:$O4,1,aux!$AL$1)>0,(O4/INDEX($K4:$O4,1,aux!$AL$1))^(1/($O$3-INDEX($K$3:$O$3,1,aux!$AL$1)))-1,"n.d.") -> n.d. | AE4: =IF(INDEX($K4:$O4,1,aux!$AL$1)>0,(O4-INDEX($K4:$O4,1,aux!$AL$1))/INDEX($K4:$O4,1,aux!$AL$1),"n.d.") -> n.d.
A5: 02 | B5: Carnes e miudezas | C5: 198.851 | D5: 116.561 | E5: 272.405 | F5: 498.924 | G5: 242.947 | H5: 265.9376 | I5: 0.01118879838 | J5: 0.004128121045 | K5: 357.17 | L5: 132.509 | M5: 37.683 | N5: 77.491 | O5: 23.251 | P5: 125.6208 | Q5: 0.008792597579 | R5: 0.003207558469 | S5: -140.3168 | U5: =G5-INDEX($C5:$G5,1,aux!$AL$1) -> 44.096 | V5: 0.002530317938 | W5: 0.001143478789 | X5: =+IF(INDEX($C5:$G5,1,aux!$AL$1)>0,(G5/INDEX($C5:$G5,1,aux!$AL$1))^(1/($G$3-INDEX($C$3:$G$3,1,aux!$AL$1)))-1,"n.d.") -> 0.05134666236 | Y5: =IF(INDEX($C5:$G5,1,aux!$AL$1)>0,(G5-INDEX($C5:$G5,1,aux!$AL$1))/INDEX($C5:$G5,1,aux!$AL$1),"n.d.") -> 0.2217539766 | AA5: =O5-INDEX($K5:$O5,1,aux!$AL$1) -> -333.919 | AB5: -0.0812385016 | AC5: -0.01469086766 | AD5: =+IF(INDEX($K5:$O5,1,aux!$AL$1)>0,(O5/INDEX($K5:$O5,1,aux!$AL$1))^(1/($O$3-INDEX($K$3:$O$3,1,aux!$AL$1)))-1,"n.d.") -> -0.4948833717 | AE5: =IF(INDEX($K5:$O5,1,aux!$AL$1)>0,(O5-INDEX($K5:$O5,1,aux!$AL$1))/INDEX($K5:$O5,1,aux!$AL$1),"n.d.") -> -0.9349021474
A6: 04 | B6: Leite e laticínios; ovos; mel, etc. | C6: 1741.054 | D6: 1297.922 | E6: 988.302 | F6: 1086.185 | G6: 1240.431 | H6: 1270.7788 | I6: 0.05346550388 | J6: 0.01972616399 | K6: 296.77 | L6: 344.629 | M6: 385.225 | N6: 1404.826 | O6: 4484.209 | P6: 1383.1318 | Q6: 0.09680977446 | R6: 0.03531641352 | S6: 112.353 | U6: =G6-INDEX($C6:$G6,1,aux!$AL$1) -> -500.623 | V6: -0.02872676336 | W6: -0.01298194353 | X6: =+IF(INDEX($C6:$G6,1,aux!$AL$1)>0,(G6/INDEX($C6:$G6,1,aux!$AL$1))^(1/($G$3-INDEX($C$3:$G$3,1,aux!$AL$1)))-1,"n.d.") -> -0.08126535753 | Y6: =IF(INDEX($C6:$G6,1,aux!$AL$1)>0,(G6-INDEX($C6:$G6,1,aux!$AL$1))/INDEX($C6:$G6,1,aux!$AL$1),"n.d.") -> -0.2875401912 | AA6: =O6-INDEX($K6:$O6,1,aux!$AL$1) -> 4187.439 | AB6: 1.018753859 | AC6: 0.1842276486 | AD6: =+IF(INDEX($K6:$O6,1,aux!$AL$1)>0,(O6/INDEX($K6:$O6,1,aux!$AL$1))^(1/($O$3-INDEX($K$3:$O$3,1,aux!$AL$1)))-1,"n.d.") -> 0.9715893444 | AE6: =IF(INDEX($K6:$O6,1,aux!$AL$1)>0,(O6-INDEX($K6:$O6,1,aux!$AL$1))/INDEX($K6:$O6,1,aux!$AL$1),"n.d.") -> 14.11004819
A7: 05a | B7: Outros produtos de origem animal (exc. NC 0508, 051191) (a) | C7: 7.44 | D7: 3.591 | E7: 0 | F7: 0 | G7: 0 | H7: 2.2062 | I7: 9.282150022e-05 | J7: 3.424660766e-05 | K7: 404.832 | L7: 370.007 | M7: 232.71 | N7: 352.266 | O7: 310.58 | P7: 334.079 | Q7: 0.02338324709 | R7: 0.00853025873 | S7: 331.8728 | U7: =G7-INDEX($C7:$G7,1,aux!$AL$1) -> -7.44 | V7: -0.0004269222937 | W7: -0.0001929309278 | X7: =+IF(INDEX($C7:$G7,1,aux!$AL$1)>0,(G7/INDEX($C7:$G7,1,aux!$AL$1))^(1/($G$3-INDEX($C$3:$G$3,1,aux!$AL$1)))-1,"n.d.") -> -1 | Y7: =IF(INDEX($C7:$G7,1,aux!$AL$1)>0,(G7-INDEX($C7:$G7,1,aux!$AL$1))/INDEX($C7:$G7,1,aux!$AL$1),"n.d.") -> -1 | AA7: =O7-INDEX($K7:$O7,1,aux!$AL$1) -> -94.252 | AB7: -0.02293038507 | AC7: -0.004146645321 | AD7: =+IF(INDEX($K7:$O7,1,aux!$AL$1)>0,(O7/INDEX($K7:$O7,1,aux!$AL$1))^(1/($O$3-INDEX($K$3:$O$3,1,aux!$AL$1)))-1,"n.d.") -> -0.06411031024 | AE7: =IF(INDEX($K7:$O7,1,aux!$AL$1)>0,(O7-INDEX($K7:$O7,1,aux!$AL$1))/INDEX($K7:$O7,1,aux!$AL$1),"n.d.") -> -0.2328175638
A8: 06 | B8: Plantas vivas e produtos de floricultura | C8: 4.211 | D8: 1.274 | E8: 6.384 | F8: 0.305 | G8: 0 | H8: 2.4348 | I8: 0.0001024393929 | J8: 3.779514112e-05 | K8: 59.36 | L8: 73.309 | M8: 172.819 | N8: 316.317 | O8: 223.557 | P8: 169.0724 | Q8: 0.01183391266 | R8: 0.004317036737 | S8: 166.6376 | U8: =G8-INDEX($C8:$G8,1,aux!$AL$1) -> -4.211 | V8: -0.0002416357229 | W8: -0.0001091978679 | X8: =+IF(INDEX($C8:$G8,1,aux!$AL$1)>0,(G8/INDEX($C8:$G8,1,aux!$AL$1))^(1/($G$3-INDEX($C$3:$G$3,1,aux!$AL$1)))-1,"n.d.") -> -1 | Y8: =IF(INDEX($C8:$G8,1,aux!$AL$1)>0,(G8-INDEX($C8:$G8,1,aux!$AL$1))/INDEX($C8:$G8,1,aux!$AL$1),"n.d.") -> -1 | AA8: =O8-INDEX($K8:$O8,1,aux!$AL$1) -> 164.197 | AB8: 0.03994716757 | AC8: 0.007223896806 | AD8: =+IF(INDEX($K8:$O8,1,aux!$AL$1)>0,(O8/INDEX($K8:$O8,1,aux!$AL$1))^(1/($O$3-INDEX($K$3:$O$3,1,aux!$AL$1)))-1,"n.d.") -> 0.3930721025 | AE8: =IF(INDEX($K8:$O8,1,aux!$AL$1)>0,(O8-INDEX($K8:$O8,1,aux!$AL$1))/INDEX($K8:$O8,1,aux!$AL$1),"n.d.") -> 2.766121968
A9: 07 | B9: Produtos hortícolas | C9: 40.227 | D9: 59.298 | E9: 39.699 | F9: 106.054 | G9: 157.177 | H9: 80.491 | I9: 0.00338649958 | J9: 0.001249453222 | K9: 299.077 | L9: 292.145 | M9: 310.325 | N9: 874.13 | O9: 739.524 | P9: 503.0402 | Q9: 0.03520937651 | R9: 0.01284445612 | S9: 422.5492 | U9: =G9-INDEX($C9:$G9,1,aux!$AL$1) -> 116.95 | V9: 0.006710828259 | W9: 0.003032697851 | X9: =+IF(INDEX($C9:$G9,1,aux!$AL$1)>0,(G9/INDEX($C9:$G9,1,aux!$AL$1))^(1/($G$3-INDEX($C$3:$G$3,1,aux!$AL$1)))-1,"n.d.") -> 0.4059434003 | Y9: =IF(INDEX($C9:$G9,1,aux!$AL$1)>0,(G9-INDEX($C9:$G9,1,aux!$AL$1))/INDEX($C9:$G9,1,aux!$AL$1),"n.d.") -> 2.907251349 | AA9: =O9-INDEX($K9:$O9,1,aux!$AL$1) -> 440.447 | AB9: 0.1071554907 | AC9: 0.01937759933 | AD9: =+IF(INDEX($K9:$O9,1,aux!$AL$1)>0,(O9/INDEX($K9:$O9,1,aux!$AL$1))^(1/($O$3-INDEX($K$3:$O$3,1,aux!$AL$1)))-1,"n.d.") -> 0.2539849213 | AE9: =IF(INDEX($K9:$O9,1,aux!$AL$1)>0,(O9-INDEX($K9:$O9,1,aux!$AL$1))/INDEX($K9:$O9,1,aux!$AL$1),"n.d.") -> 1.472687636
A10: 08 | B10: Frutas | C10: 417.177 | D10: 453.676 | E10: 196.211 | F10: 494.389 | G10: 685.925 | H10: 449.4756 | I10: 0.01891079662 | J10: 0.006977161875 | K10: 912.422 | L10: 326.788 | M10: 916.174 | N10: 444.757 | O10: 691.262 | P10: 658.2806 | Q10: 0.04607514368 | R10: 0.01680831131 | S10: 208.805 | U10: =G10-INDEX($C10:$G10,1,aux!$AL$1) -> 268.748 | V10: 0.01542130545 | W10: 0.006969059273 | X10: =+IF(INDEX($C10:$G10,1,aux!$AL$1)>0,(G10/INDEX($C10:$G10,1,aux!$AL$1))^(1/($G$3-INDEX($C$3:$G$3,1,aux!$AL$1)))-1,"n.d.") -> 0.1323718611 | Y10: =IF(INDEX($C10:$G10,1,aux!$AL$1)>0,(G10-INDEX($C10:$G10,1,aux!$AL$1))/INDEX($C10:$G10,1,aux!$AL$1),"n.d.") -> 0.6442061763 | AA10: =O10-INDEX($K10:$O10,1,aux!$AL$1) -> -221.16 | AB10: -0.05380558463 | AC10: -0.009730001264 | AD10: =+IF(INDEX($K10:$O10,1,aux!$AL$1)>0,(O10/INDEX($K10:$O10,1,aux!$AL$1))^(1/($O$3-INDEX($K$3:$O$3,1,aux!$AL$1)))-1,"n.d.") -> -0.06704277177 | AE10: =IF(INDEX($K10:$O10,1,aux!$AL$1)>0,(O10-INDEX($K10:$O10,1,aux!$AL$1))/INDEX($K10:$O10,1,aux!$AL$1),"n.d.") -> -0.2423878425
A11: 09 | B11: Café, chá, mate e especiarias | C11: 193.277 | D11: 195.802 | E11: 265.5 | F11: 309.564 | G11: 280.445 | H11: 248.9176 | I11: 0.01047271556 | J11: 0.003863921398 | K11: 24.872 | L11: 64.32 | M11: 164.52 | N11: 349.416 | O11: 365.328 | P11: 193.6912 | Q11: 0.01355706042 | R11: 0.004945644742 | S11: -55.2264 | U11: =G11-INDEX($C11:$G11,1,aux!$AL$1) -> 87.168 | V11: 0.005001876679 | W11: 0.002260403645 | X11: =+IF(INDEX($C11:$G11,1,aux!$AL$1)>0,(G11/INDEX($C11:$G11,1,aux!$AL$1))^(1/($G$3-INDEX($C$3:$G$3,1,aux!$AL$1)))-1,"n.d.") -> 0.09753121618 | Y11: =IF(INDEX($C11:$G11,1,aux!$AL$1)>0,(G11-INDEX($C11:$G11,1,aux!$AL$1))/INDEX($C11:$G11,1,aux!$AL$1),"n.d.") -> 0.4510003777 | AA11: =O11-INDEX($K11:$O11,1,aux!$AL$1) -> 340.456 | AB11: 0.08282887557 | AC11: 0.01497846496 | AD11: =+IF(INDEX($K11:$O11,1,aux!$AL$1)>0,(O11/INDEX($K11:$O11,1,aux!$AL$1))^(1/($O$3-INDEX($K$3:$O$3,1,aux!$AL$1)))-1,"n.d.") -> 0.957686124 | AE11: =IF(INDEX($K11:$O11,1,aux!$AL$1)>0,(O11-INDEX($K11:$O11,1,aux!$AL$1))/INDEX($K11:$O11,1,aux!$AL$1),"n.d.") -> 13.68832422
A12: 10 | B12: Cereais | C12: 75.157 | D12: 3.056 | E12: 0.625 | F12: 28.219 | G12: 358.156 | H12: 93.0426 | I12: 0.003914583318 | J12: 0.001444290372 | K12: 22.579 | L12: 0.134 | M12: 331.89 | N12: 57.559 | O12: 169.072 | P12: 116.2468 | Q12: 0.008136481635 | R12: 0.002968205965 | S12: 23.2042 | U12: =G12-INDEX($C12:$G12,1,aux!$AL$1) -> 282.999 | V12: 0.01623905675 | W12: 0.007338610167 | X12: =+IF(INDEX($C12:$G12,1,aux!$AL$1)>0,(G12/INDEX($C12:$G12,1,aux!$AL$1))^(1/($G$3-INDEX($C$3:$G$3,1,aux!$AL$1)))-1,"n.d.") -> 0.4774939074 | Y12: =IF(INDEX($C12:$G12,1,aux!$AL$1)>0,(G12-INDEX($C12:$G12,1,aux!$AL$1))/INDEX($C12:$G12,1,aux!$AL$1),"n.d.") -> 3.765437684 | AA12: =O12-INDEX($K12:$O12,1,aux!$AL$1) -> 146.493 | AB12: 0.03563999597 | AC12: 0.006445003957 | AD12: =+IF(INDEX($K12:$O12,1,aux!$AL$1)>0,(O12/INDEX($K12:$O12,1,aux!$AL$1))^(1/($O$3-INDEX($K$3:$O$3,1,aux!$AL$1)))-1,"n.d.") -> 0.6542142079 | AE12: =IF(INDEX($K12:$O12,1,aux!$AL$1)>0,(O12-INDEX($K12:$O12,1,aux!$AL$1))/INDEX($K12:$O12,1,aux!$AL$1),"n.d.") -> 6.488019841
A13: 11 | B13: Produtos da indústria de moagem e outros | C13: 17.932 | D13: 82.793 | E13: 27.049 | F13: 104.792 | G13: 64.851 | H13: 59.4834 | I13: 0.002502646372 | J13: 0.0009233544839 | K13: 0.013 | L13: 0.054 | M13: 139.803 | N13: 1.425 | O13: 234.699 | P13: 75.1988 | Q13: 0.005263402134 | R13: 0.001920100396 | S13: 15.7154 | U13: =G13-INDEX($C13:$G13,1,aux!$AL$1) -> 46.919 | V13: 0.002692307405 | W13: 0.001216683629 | X13: =+IF(INDEX($C13:$G13,1,aux!$AL$1)>0,(G13/INDEX($C13:$G13,1,aux!$AL$1))^(1/($G$3-INDEX($C$3:$G$3,1,aux!$AL$1)))-1,"n.d.") -> 0.3790245152 | Y13: =IF(INDEX($C13:$G13,1,aux!$AL$1)>0,(G13-INDEX($C13:$G13,1,aux!$AL$1))/INDEX($C13:$G13,1,aux!$AL$1),"n.d.") -> 2.61649565 | AA13: =O13-INDEX($K13:$O13,1,aux!$AL$1) -> 234.686 | AB13: 0.05709629876 | AC13: 0.01032508174 | AD13: =+IF(INDEX($K13:$O13,1,aux!$AL$1)>0,(O13/INDEX($K13:$O13,1,aux!$AL$1))^(1/($O$3-INDEX($K$3:$O$3,1,aux!$AL$1)))-1,"n.d.") -> 10.59156225 | AE13: =IF(INDEX($K13:$O13,1,aux!$AL$1)>0,(O13-INDEX($K13:$O13,1,aux!$AL$1))/INDEX($K13:$O13,1,aux!$AL$1),"n.d.") -> 18052.76923
A14: 12 | B14: Sementes e frutos oleaginosos | C14: 292.342 | D14: 137.188 | E14: 91.012 | F14: 205.125 | G14: 222.314 | H14: 189.5962 | I14: 0.007976885015 | J14: 0.002943081623 | K14: 45.236 | L14: 27.281 | M14: 23.813 | N14: 14.504 | O14: 192.465 | P14: 60.6598 | Q14: 0.004245771485 | R14: 0.001548866551 | S14: -128.9364 | U14: =G14-INDEX($C14:$G14,1,aux!$AL$1) -> -70.028 | V14: -0.004018348707 | W14: -0.001815936427 | X14: =+IF(INDEX($C14:$G14,1,aux!$AL$1)>0,(G14/INDEX($C14:$G14,1,aux!$AL$1))^(1/($G$3-INDEX($C$3:$G$3,1,aux!$AL$1)))-1,"n.d.") -> -0.06616768227 | Y14: =IF(INDEX($C14:$G14,1,aux!$AL$1)>0,(G14-INDEX($C14:$G14,1,aux!$AL$1))/INDEX($C14:$G14,1,aux!$AL$1),"n.d.") -> -0.2395413591 | AA14: =O14-INDEX($K14:$O14,1,aux!$AL$1) -> 147.229 | AB14: 0.03581905597 | AC14: 0.0064773845 | AD14: =+IF(INDEX($K14:$O14,1,aux!$AL$1)>0,(O14/INDEX($K14:$O14,1,aux!$AL$1))^(1/($O$3-INDEX($K$3:$O$3,1,aux!$AL$1)))-1,"n.d.") -> 0.436206514 | AE14: =IF(INDEX($K14:$O14,1,aux!$AL$1)>0,(O14-INDEX($K14:$O14,1,aux!$AL$1))/INDEX($K14:$O14,1,aux!$AL$1),"n.d.") -> 3.254686533
A15: 13a | B15: Sucos e extratos vegetais (exc. NC 1301) (a) | C15: 0 | D15: 0 | E15: 0 | F15: 0 | G15: 0 | H15: 0 | I15: 0 | J15: 0 | K15: 0 | L15: 0 | M15: 0 | N15: 0 | O15: 0 | P15: 0 | Q15: 0 | R15: 0 | S15: 0 | U15: =G15-INDEX($C15:$G15,1,aux!$AL$1) -> 0 | V15: 0 | W15: 0 | X15: =+IF(INDEX($C15:$G15,1,aux!$AL$1)>0,(G15/INDEX($C15:$G15,1,aux!$AL$1))^(1/($G$3-INDEX($C$3:$G$3,1,aux!$AL$1)))-1,"n.d.") -> n.d. | Y15: =IF(INDEX($C15:$G15,1,aux!$AL$1)>0,(G15-INDEX($C15:$G15,1,aux!$AL$1))/INDEX($C15:$G15,1,aux!$AL$1),"n.d.") -> n.d. | AA15: =O15-INDEX($K15:$O15,1,aux!$AL$1) -> 0 | AB15: 0 | AC15: 0 | AD15: =+IF(INDEX($K15:$O15,1,aux!$AL$1)>0,(O15/INDEX($K15:$O15,1,aux!$AL$1))^(1/($O$3-INDEX($K$3:$O$3,1,aux!$AL$1)))-1,"n.d.") -> n.d. | AE15: =IF(INDEX($K15:$O15,1,aux!$AL$1)>0,(O15-INDEX($K15:$O15,1,aux!$AL$1))/INDEX($K15:$O15,1,aux!$AL$1),"n.d.") -> n.d.
A16: 14 | B16: Matérias para entrançar e outros | C16: 0 | D16: 0 | E16: 4.872 | F16: 0.422 | G16: 1.562 | H16: 1.3712 | I16: 5.769052719e-05 | J16: 2.128499158e-05 | K16: 0.031 | L16: 0.005 | M16: 0.011 | N16: 0.016 | O16: 0.023 | P16: 0.0172 | Q16: 1.203882465e-06 | R16: 4.391789072e-07 | S16: -1.354 | U16: =G16-INDEX($C16:$G16,1,aux!$AL$1) -> 1.562 | V16: 8.963072886e-05 | W16: 4.050512221e-05 | X16: =+IF(INDEX($C16:$G16,1,aux!$AL$1)>0,(G16/INDEX($C16:$G16,1,aux!$AL$1))^(1/($G$3-INDEX($C$3:$G$3,1,aux!$AL$1)))-1,"n.d.") -> n.d. | Y16: =IF(INDEX($C16:$G16,1,aux!$AL$1)>0,(G16-INDEX($C16:$G16,1,aux!$AL$1))/INDEX($C16:$G16,1,aux!$AL$1),"n.d.") -> n.d. | AA16: =O16-INDEX($K16:$O16,1,aux!$AL$1) -> -0.008 | AB16: -1.946304382e-06 | AC16: -3.519624259e-07 | AD16: =+IF(INDEX($K16:$O16,1,aux!$AL$1)>0,(O16/INDEX($K16:$O16,1,aux!$AL$1))^(1/($O$3-INDEX($K$3:$O$3,1,aux!$AL$1)))-1,"n.d.") -> -0.07190691781 | AE16: =IF(INDEX($K16:$O16,1,aux!$AL$1)>0,(O16-INDEX($K16:$O16,1,aux!$AL$1))/INDEX($K16:$O16,1,aux!$AL$1),"n.d.") -> -0.2580645161
A17: 15 | B17: Gorduras e óleos animais ou vegetais | C17: 268.185 | D17: 342.128 | E17: 282.326 | F17: 580.544 | G17: 1534.027 | H17: 601.442 | I17: 0.02530448225 | J17: 0.009336120119 | K17: 5314.975 | L17: 5264.871 | M17: 1419.164 | N17: 426.073 | O17: 764.356 | P17: 2637.8878 | Q17: 0.1846341202 | R17: 0.06735492334 | S17: 2036.4458 | U17: =G17-INDEX($C17:$G17,1,aux!$AL$1) -> 1265.842 | V17: 0.072636582 | W17: 0.03282527843 | X17: =+IF(INDEX($C17:$G17,1,aux!$AL$1)>0,(G17/INDEX($C17:$G17,1,aux!$AL$1))^(1/($G$3-INDEX($C$3:$G$3,1,aux!$AL$1)))-1,"n.d.") -> 0.546498952 | Y17: =IF(INDEX($C17:$G17,1,aux!$AL$1)>0,(G17-INDEX($C17:$G17,1,aux!$AL$1))/INDEX($C17:$G17,1,aux!$AL$1),"n.d.") -> 4.720032813 | AA17: =O17-INDEX($K17:$O17,1,aux!$AL$1) -> -4550.619 | AB17: -1.107111212 | AC17: -0.2002058628 | AD17: =+IF(INDEX($K17:$O17,1,aux!$AL$1)>0,(O17/INDEX($K17:$O17,1,aux!$AL$1))^(1/($O$3-INDEX($K$3:$O$3,1,aux!$AL$1)))-1,"n.d.") -> -0.3841873396 | AE17: =IF(INDEX($K17:$O17,1,aux!$AL$1)>0,(O17-INDEX($K17:$O17,1,aux!$AL$1))/INDEX($K17:$O17,1,aux!$AL$1),"n.d.") -> -0.8561882229
A18: 16a | B18: Preparações de carnes (exc. NC 1604-05) (a) | C18: 24.02 | D18: 12.102 | E18: 441.448 | F18: 825.376 | G18: 3995.43 | H18: 1059.6752 | I18: 0.04458373756 | J18: 0.01644922529 | K18: 20.454 | L18: 56.903 | M18: 17.092 | N18: 101.238 | O18: 42.571 | P18: 47.6516 | Q18: 0.003335286376 | R18: 0.001216719629 | S18: -1012.0236 | U18: =G18-INDEX($C18:$G18,1,aux!$AL$1) -> 3971.41 | V18: 0.2278875627 | W18: 0.1029849215 | X18: =+IF(INDEX($C18:$G18,1,aux!$AL$1)>0,(G18/INDEX($C18:$G18,1,aux!$AL$1))^(1/($G$3-INDEX($C$3:$G$3,1,aux!$AL$1)))-1,"n.d.") -> 2.59126647 | Y18: =IF(INDEX($C18:$G18,1,aux!$AL$1)>0,(G18-INDEX($C18:$G18,1,aux!$AL$1))/INDEX($C18:$G18,1,aux!$AL$1),"n.d.") -> 165.3376353 | AA18: =O18-INDEX($K18:$O18,1,aux!$AL$1) -> 22.117 | AB18: 0.005380801751 | AC18: 0.0009730441217 | AD18: =+IF(INDEX($K18:$O18,1,aux!$AL$1)>0,(O18/INDEX($K18:$O18,1,aux!$AL$1))^(1/($O$3-INDEX($K$3:$O$3,1,aux!$AL$1)))-1,"n.d.") -> 0.2011130901 | AE18: =IF(INDEX($K18:$O18,1,aux!$AL$1)>0,(O18-INDEX($K18:$O18,1,aux!$AL$1))/INDEX($K18:$O18,1,aux!$AL$1),"n.d.") -> 1.08130439
A19: 17 | B19: Açúcares e produtos de confeitaria | C19: 531.675 | D19: 775.583 | E19: 858.862 | F19: 967.485 | G19: 1075.242 | H19: 841.7694 | I19: 0.03541578213 | J19: 0.01306669676 | K19: 0.212 | L19: 0.256 | M19: 0.147 | N19: 0.366 | O19: 21.417 | P19: 4.4796 | Q19: 0.000313541389 | R19: 0.0001143805717 | S19: -837.2898 | U19: =G19-INDEX($C19:$G19,1,aux!$AL$1) -> 543.567 | V19: 0.0311909772 | W19: 0.01409554915 | X19: =+IF(INDEX($C19:$G19,1,aux!$AL$1)>0,(G19/INDEX($C19:$G19,1,aux!$AL$1))^(1/($G$3-INDEX($C$3:$G$3,1,aux!$AL$1)))-1,"n.d.") -> 0.1925181428 | Y19: =IF(INDEX($C19:$G19,1,aux!$AL$1)>0,(G19-INDEX($C19:$G19,1,aux!$AL$1))/INDEX($C19:$G19,1,aux!$AL$1),"n.d.") -> 1.022367048 | AA19: =O19-INDEX($K19:$O19,1,aux!$AL$1) -> 21.205 | AB19: 0.005158923051 | AC19: 0.0009329204051 | AD19: =+IF(INDEX($K19:$O19,1,aux!$AL$1)>0,(O19/INDEX($K19:$O19,1,aux!$AL$1))^(1/($O$3-INDEX($K$3:$O$3,1,aux!$AL$1)))-1,"n.d.") -> 2.170338932 | AE19: =IF(INDEX($K19:$O19,1,aux!$AL$1)>0,(O19-INDEX($K19:$O19,1,aux!$AL$1))/INDEX($K19:$O19,1,aux!$AL$1),"n.d.") -> 100.0235849
A20: 18 | B20: Cacau e suas preparações | C20: 2260.152 | D20: 2168.17 | E20: 2912.288 | F20: 3712.035 | G20: 4511.96 | H20: 3112.921 | I20: 0.1309699924 | J20: 0.04832154119 | K20: 0.065 | L20: 0.063 | M20: 0.227 | N20: 2.698 | O20: 4.032 | P20: 1.417 | Q20: 9.918031703e-05 | R20: 3.618119253e-05 | S20: -3111.504 | U20: =G20-INDEX($C20:$G20,1,aux!$AL$1) -> 2251.808 | V20: 0.1292133113 | W20: 0.05839293101 | X20: =+IF(INDEX($C20:$G20,1,aux!$AL$1)>0,(G20/INDEX($C20:$G20,1,aux!$AL$1))^(1/($G$3-INDEX($C$3:$G$3,1,aux!$AL$1)))-1,"n.d.") -> 0.1886579473 | Y20: =IF(INDEX($C20:$G20,1,aux!$AL$1)>0,(G20-INDEX($C20:$G20,1,aux!$AL$1))/INDEX($C20:$G20,1,aux!$AL$1),"n.d.") -> 0.9963082129 | AA20: =O20-INDEX($K20:$O20,1,aux!$AL$1) -> 3.967 | AB20: 0.0009651236852 | AC20: 0.0001745293679 | AD20: =+IF(INDEX($K20:$O20,1,aux!$AL$1)>0,(O20/INDEX($K20:$O20,1,aux!$AL$1))^(1/($O$3-INDEX($K$3:$O$3,1,aux!$AL$1)))-1,"n.d.") -> 1.806414346 | AE20: =IF(INDEX($K20:$O20,1,aux!$AL$1)>0,(O20-INDEX($K20:$O20,1,aux!$AL$1))/INDEX($K20:$O20,1,aux!$AL$1),"n.d.") -> 61.03076923
A21: 19a | B21: Preparações à base de cereais (exc. NC 19022010) (a) | C21: 1549.814 | D21: 1645.227 | E21: 1915.436 | F21: 2518.105 | G21: 3198.348 | H21: 2165.386 | I21: 0.09110433191 | J21: 0.03361305629 | K21: 1148.306 | L21: 1260.353 | M21: 1205.675 | N21: 1372.744 | O21: 1076.796 | P21: 1212.7748 | Q21: 0.08488594858 | R21: 0.03096657624 | S21: -952.6112 | U21: =G21-INDEX($C21:$G21,1,aux!$AL$1) -> 1648.534 | V21: 0.09459622533 | W21: 0.04274908524 | X21: =+IF(INDEX($C21:$G21,1,aux!$AL$1)>0,(G21/INDEX($C21:$G21,1,aux!$AL$1))^(1/($G$3-INDEX($C$3:$G$3,1,aux!$AL$1)))-1,"n.d.") -> 0.1985648416 | Y21: =IF(INDEX($C21:$G21,1,aux!$AL$1)>0,(G21-INDEX($C21:$G21,1,aux!$AL$1))/INDEX($C21:$G21,1,aux!$AL$1),"n.d.") -> 1.063697966 | AA21: =O21-INDEX($K21:$O21,1,aux!$AL$1) -> -71.51 | AB21: -0.01739752829 | AC21: -0.003146104135 | AD21: =+IF(INDEX($K21:$O21,1,aux!$AL$1)>0,(O21/INDEX($K21:$O21,1,aux!$AL$1))^(1/($O$3-INDEX($K$3:$O$3,1,aux!$AL$1)))-1,"n.d.") -> -0.01594595723 | AE21: =IF(INDEX($K21:$O21,1,aux!$AL$1)>0,(O21-INDEX($K21:$O21,1,aux!$AL$1))/INDEX($K21:$O21,1,aux!$AL$1),"n.d.") -> -0.06227434151
A22: 20 | B22: Preparações de produtos vegetais | C22: 1605.77 | D22: 1606.551 | E22: 1544.227 | F22: 3070.419 | G22: 3439 | H22: 2253.1934 | I22: 0.09479865455 | J22: 0.03497608121 | K22: 1694.809 | L22: 1536.415 | M22: 2448.32 | N22: 2633.994 | O22: 3953.387 | P22: 2453.385 | Q22: 0.171720185 | R22: 0.06264389205 | S22: 200.1916 | U22: =G22-INDEX($C22:$G22,1,aux!$AL$1) -> 1833.23 | V22: 0.1051944565 | W22: 0.04753854366 | X22: =+IF(INDEX($C22:$G22,1,aux!$AL$1)>0,(G22/INDEX($C22:$G22,1,aux!$AL$1))^(1/($G$3-INDEX($C$3:$G$3,1,aux!$AL$1)))-1,"n.d.") -> 0.2097265409 | Y22: =IF(INDEX($C22:$G22,1,aux!$AL$1)>0,(G22-INDEX($C22:$G22,1,aux!$AL$1))/INDEX($C22:$G22,1,aux!$AL$1),"n.d.") -> 1.141651669 | AA22: =O22-INDEX($K22:$O22,1,aux!$AL$1) -> 2258.578 | AB22: 0.5494850322 | AC22: 0.099366824 | AD22: =+IF(INDEX($K22:$O22,1,aux!$AL$1)>0,(O22/INDEX($K22:$O22,1,aux!$AL$1))^(1/($O$3-INDEX($K$3:$O$3,1,aux!$AL$1)))-1,"n.d.") -> 0.2358396992 | AE22: =IF(INDEX($K22:$O22,1,aux!$AL$1)>0,(O22-INDEX($K22:$O22,1,aux!$AL$1))/INDEX($K22:$O22,1,aux!$AL$1),"n.d.") -> 1.332644563
A23: 21 | B23: Preparações alimentícias diversas | C23: 951.498 | D23: 1376.123 | E23: 1723.436 | F23: 3499.497 | G23: 3625.271 | H23: 2235.165 | I23: 0.09404014529 | J23: 0.03469622827 | K23: 437.451 | L23: 395.841 | M23: 1813.666 | N23: 1097.278 | O23: 1759.942 | P23: 1100.8356 | Q23: 0.07705096951 | R23: 0.02810835906 | S23: -1134.3294 | U23: =G23-INDEX($C23:$G23,1,aux!$AL$1) -> 2673.773 | V23: 0.1534265191 | W23: 0.06933514861 | X23: =+IF(INDEX($C23:$G23,1,aux!$AL$1)>0,(G23/INDEX($C23:$G23,1,aux!$AL$1))^(1/($G$3-INDEX($C$3:$G$3,1,aux!$AL$1)))-1,"n.d.") -> 0.3971181972 | Y23: =IF(INDEX($C23:$G23,1,aux!$AL$1)>0,(G23-INDEX($C23:$G23,1,aux!$AL$1))/INDEX($C23:$G23,1,aux!$AL$1),"n.d.") -> 2.810066863 | AA23: =O23-INDEX($K23:$O23,1,aux!$AL$1) -> 1322.491 | AB23: 0.3217462535 | AC23: 0.05818339257 | AD23: =+IF(INDEX($K23:$O23,1,aux!$AL$1)>0,(O23/INDEX($K23:$O23,1,aux!$AL$1))^(1/($O$3-INDEX($K$3:$O$3,1,aux!$AL$1)))-1,"n.d.") -> 0.4162575415 | AE23: =IF(INDEX($K23:$O23,1,aux!$AL$1)>0,(O23-INDEX($K23:$O23,1,aux!$AL$1))/INDEX($K23:$O23,1,aux!$AL$1),"n.d.") -> 3.023175167
A24: 22 | B24: Bebidas, líquidos alcoólicos e vinagres | C24: 5060.407 | D24: 4147.187 | E24: 3571.999 | F24: 3550.933 | G24: 6377.003 | H24: 4541.5058 | I24: 0.1910748715 | J24: 0.07049731091 | K24: 3062.333 | L24: 2071.198 | M24: 2365.962 | N24: 2410.853 | O24: 2971.449 | P24: 2576.359 | Q24: 0.1803275246 | R24: 0.06578386804 | S24: -1965.1468 | U24: =G24-INDEX($C24:$G24,1,aux!$AL$1) -> 1316.596 | V24: 0.07554894948 | W24: 0.03414140966 | X24: =+IF(INDEX($C24:$G24,1,aux!$AL$1)>0,(G24/INDEX($C24:$G24,1,aux!$AL$1))^(1/($G$3-INDEX($C$3:$G$3,1,aux!$AL$1)))-1,"n.d.") -> 0.05951666819 | Y24: =IF(INDEX($C24:$G24,1,aux!$AL$1)>0,(G24-INDEX($C24:$G24,1,aux!$AL$1))/INDEX($C24:$G24,1,aux!$AL$1),"n.d.") -> 0.2601759108 | AA24: =O24-INDEX($K24:$O24,1,aux!$AL$1) -> -90.884 | AB24: -0.02211099093 | AC24: -0.003998469139 | AD24: =+IF(INDEX($K24:$O24,1,aux!$AL$1)>0,(O24/INDEX($K24:$O24,1,aux!$AL$1))^(1/($O$3-INDEX($K$3:$O$3,1,aux!$AL$1)))-1,"n.d.") -> -0.007503539611 | AE24: =IF(INDEX($K24:$O24,1,aux!$AL$1)>0,(O24-INDEX($K24:$O24,1,aux!$AL$1))/INDEX($K24:$O24,1,aux!$AL$1),"n.d.") -> -0.02967802652
A25: 23a | B25: Resíduos indústrias alimentares; alimentos p/ animais (exc. NC 230120) (a) | C25: 1511.94 | D25: 1467.372 | E25: 2127.834 | F25: 2281.698 | G25: 1241.069 | H25: 1725.9826 | I25: 0.07261730318 | J25: 0.0267922441 | K25: 0 | L25: 6.093 | M25: 10.851 | N25: 0.068 | O25: 0 | P25: 3.4024 | Q25: 0.0002381447499 | R25: 8.687571593e-05 | S25: -1722.5802 | U25: =G25-INDEX($C25:$G25,1,aux!$AL$1) -> -270.871 | V25: -0.0155431275 | W25: -0.007024112009 | X25: =+IF(INDEX($C25:$G25,1,aux!$AL$1)>0,(G25/INDEX($C25:$G25,1,aux!$AL$1))^(1/($G$3-INDEX($C$3:$G$3,1,aux!$AL$1)))-1,"n.d.") -> -0.04815695108 | Y25: =IF(INDEX($C25:$G25,1,aux!$AL$1)>0,(G25-INDEX($C25:$G25,1,aux!$AL$1))/INDEX($C25:$G25,1,aux!$AL$1),"n.d.") -> -0.1791545961 | AA25: =O25-INDEX($K25:$O25,1,aux!$AL$1) -> 0 | AB25: 0 | AC25: 0 | AD25: =+IF(INDEX($K25:$O25,1,aux!$AL$1)>0,(O25/INDEX($K25:$O25,1,aux!$AL$1))^(1/($O$3-INDEX($K$3:$O$3,1,aux!$AL$1)))-1,"n.d.") -> n.d. | AE25: =IF(INDEX($K25:$O25,1,aux!$AL$1)>0,(O25-INDEX($K25:$O25,1,aux!$AL$1))/INDEX($K25:$O25,1,aux!$AL$1),"n.d.") -> n.d.
A26: 24 | B26: Tabaco | C26: 0 | D26: 0 | E26: 0 | F26: 0 | G26: 0 | H26: 0 | I26: 0 | J26: 0 | K26: 1293.3 | L26: 0 | M26: 0 | N26: 142.784 | O26: 1375.761 | P26: 562.369 | Q26: 0.03936198709 | R26: 0.01435933738 | S26: 562.369 | U26: =G26-INDEX($C26:$G26,1,aux!$AL$1) -> 0 | V26: 0 | W26: 0 | X26: =+IF(INDEX($C26:$G26,1,aux!$AL$1)>0,(G26/INDEX($C26:$G26,1,aux!$AL$1))^(1/($G$3-INDEX($C$3:$G$3,1,aux!$AL$1)))-1,"n.d.") -> n.d. | Y26: =IF(INDEX($C26:$G26,1,aux!$AL$1)>0,(G26-INDEX($C26:$G26,1,aux!$AL$1))/INDEX($C26:$G26,1,aux!$AL$1),"n.d.") -> n.d. | AA26: =O26-INDEX($K26:$O26,1,aux!$AL$1) -> 82.461 | AB26: 0.0200617757 | AC26: 0.0036278967 | AD26: =+IF(INDEX($K26:$O26,1,aux!$AL$1)>0,(O26/INDEX($K26:$O26,1,aux!$AL$1))^(1/($O$3-INDEX($K$3:$O$3,1,aux!$AL$1)))-1,"n.d.") -> 0.01557249227 | AE26: =IF(INDEX($K26:$O26,1,aux!$AL$1)>0,(O26-INDEX($K26:$O26,1,aux!$AL$1))/INDEX($K26:$O26,1,aux!$AL$1),"n.d.") -> 0.06376014846
A27: 29 | B27: Manitol e sorbitol (NC 290543; 290544) | C27: 0 | D27: 0 | E27: 0 | F27: 0 | G27: 0 | H27: 0 | I27: 0 | J27: 0 | K27: 0 | L27: 0 | M27: 0 | N27: 0 | O27: 0 | P27: 0 | Q27: 0 | R27: 0 | S27: 0 | U27: =G27-INDEX($C27:$G27,1,aux!$AL$1) -> 0 | V27: 0 | W27: 0 | X27: =+IF(INDEX($C27:$G27,1,aux!$AL$1)>0,(G27/INDEX($C27:$G27,1,aux!$AL$1))^(1/($G$3-INDEX($C$3:$G$3,1,aux!$AL$1)))-1,"n.d.") -> n.d. | Y27: =IF(INDEX($C27:$G27,1,aux!$AL$1)>0,(G27-INDEX($C27:$G27,1,aux!$AL$1))/INDEX($C27:$G27,1,aux!$AL$1),"n.d.") -> n.d. | AA27: =O27-INDEX($K27:$O27,1,aux!$AL$1) -> 0 | AB27: 0 | AC27: 0 | AD27: =+IF(INDEX($K27:$O27,1,aux!$AL$1)>0,(O27/INDEX($K27:$O27,1,aux!$AL$1))^(1/($O$3-INDEX($K$3:$O$3,1,aux!$AL$1)))-1,"n.d.") -> n.d. | AE27: =IF(INDEX($K27:$O27,1,aux!$AL$1)>0,(O27-INDEX($K27:$O27,1,aux!$AL$1))/INDEX($K27:$O27,1,aux!$AL$1),"n.d.") -> n.d.
A28: 33 | B28: Óleos essenciais e resinóides (NC 3301) | C28: 4.628 | D28: 50.906 | E28: 25.792 | F28: 16.039 | G28: 26.28 | H28: 24.729 | I28: 0.001040423751 | J28: 0.0003838656336 | K28: 0 | L28: 0 | M28: 0 | N28: 94.287 | O28: 0 | P28: 18.8574 | Q28: 0.001319889139 | R28: 0.000481498391 | S28: -5.8716 | U28: =G28-INDEX($C28:$G28,1,aux!$AL$1) -> 21.652 | V28: 0.001242435686 | W28: 0.0005614704905 | X28: =+IF(INDEX($C28:$G28,1,aux!$AL$1)>0,(G28/INDEX($C28:$G28,1,aux!$AL$1))^(1/($G$3-INDEX($C$3:$G$3,1,aux!$AL$1)))-1,"n.d.") -> 0.5436825777 | Y28: =IF(INDEX($C28:$G28,1,aux!$AL$1)>0,(G28-INDEX($C28:$G28,1,aux!$AL$1))/INDEX($C28:$G28,1,aux!$AL$1),"n.d.") -> 4.678478825 | AA28: =O28-INDEX($K28:$O28,1,aux!$AL$1) -> 0 | AB28: 0 | AC28: 0 | AD28: =+IF(INDEX($K28:$O28,1,aux!$AL$1)>0,(O28/INDEX($K28:$O28,1,aux!$AL$1))^(1/($O$3-INDEX($K$3:$O$3,1,aux!$AL$1)))-1,"n.d.") -> n.d. | AE28: =IF(INDEX($K28:$O28,1,aux!$AL$1)>0,(O28-INDEX($K28:$O28,1,aux!$AL$1))/INDEX($K28:$O28,1,aux!$AL$1),"n.d.") -> n.d.
A29: 35 | B29: Caseínas, albuminas, gelatinas, peptonas, dextrinas (NC 3501 a 3505) | C29: 3.12 | D29: 4.593 | E29: 29.573 | F29: 12.016 | G29: 114.085 | H29: 32.6774 | I29: 0.001374836955 | J29: 0.0005072478004 | K29: 0 | L29: 0 | M29: 1.091 | N29: 0 | O29: 34.631 | P29: 7.1444 | Q29: 0.0005000591792 | R29: 0.0001824226619 | S29: -25.533 | U29: =G29-INDEX($C29:$G29,1,aux!$AL$1) -> 110.965 | V29: 0.006367396817 | W29: 0.002877497366 | X29: =+IF(INDEX($C29:$G29,1,aux!$AL$1)>0,(G29/INDEX($C29:$G29,1,aux!$AL$1))^(1/($G$3-INDEX($C$3:$G$3,1,aux!$AL$1)))-1,"n.d.") -> 1.459056392 | Y29: =IF(INDEX($C29:$G29,1,aux!$AL$1)>0,(G29-INDEX($C29:$G29,1,aux!$AL$1))/INDEX($C29:$G29,1,aux!$AL$1),"n.d.") -> 35.56570513 | AA29: =O29-INDEX($K29:$O29,1,aux!$AL$1) -> 34.631 | AB29: 0.00842530838 | AC29: 0.001523601346 | AD29: =+IF(INDEX($K29:$O29,1,aux!$AL$1)>0,(O29/INDEX($K29:$O29,1,aux!$AL$1))^(1/($O$3-INDEX($K$3:$O$3,1,aux!$AL$1)))-1,"n.d.") -> n.d. | AE29: =IF(INDEX($K29:$O29,1,aux!$AL$1)>0,(O29-INDEX($K29:$O29,1,aux!$AL$1))/INDEX($K29:$O29,1,aux!$AL$1),"n.d.") -> n.d.
A30: 38a | B30: Agentes de acabamento, ácidos gordos, sorbitol (NC 380910, 382311-12-13-19-70, 382460) (a) | C30: 1508.914 | D30: 1812.716 | E30: 1560.282 | F30: 1972.703 | G30: 3113.442 | H30: 1993.6114 | I30: 0.08387725546 | J30: 0.03094661746 | K30: 0 | L30: 0 | M30: 0 | N30: 0 | O30: 0 | P30: 0 | Q30: 0 | R30: 0 | S30: -1993.6114 | U30: =G30-INDEX($C30:$G30,1,aux!$AL$1) -> 1604.528 | V30: 0.09207107177 | W30: 0.04160794029 | X30: =+IF(INDEX($C30:$G30,1,aux!$AL$1)>0,(G30/INDEX($C30:$G30,1,aux!$AL$1))^(1/($G$3-INDEX($C$3:$G$3,1,aux!$AL$1)))-1,"n.d.") -> 0.1985166534 | Y30: =IF(INDEX($C30:$G30,1,aux!$AL$1)>0,(G30-INDEX($C30:$G30,1,aux!$AL$1))/INDEX($C30:$G30,1,aux!$AL$1),"n.d.") -> 1.063366103 | AA30: =O30-INDEX($K30:$O30,1,aux!$AL$1) -> 0 | AB30: 0 | AC30: 0 | AD30: =+IF(INDEX($K30:$O30,1,aux!$AL$1)>0,(O30/INDEX($K30:$O30,1,aux!$AL$1))^(1/($O$3-INDEX($K$3:$O$3,1,aux!$AL$1)))-1,"n.d.") -> n.d. | AE30: =IF(INDEX($K30:$O30,1,aux!$AL$1)>0,(O30-INDEX($K30:$O30,1,aux!$AL$1))/INDEX($K30:$O30,1,aux!$AL$1),"n.d.") -> n.d.
A31: 41 | B31: Couro e peles em bruto (NC 4101 a 4103) | C31: 386.957 | D31: 544.507 | E31: 388.609 | F31: 444.909 | G31: 503.546 | H31: 453.7056 | I31: 0.0190887655 | J31: 0.007042823714 | K31: 0 | L31: 0 | M31: 0 | N31: 0 | O31: 0 | P31: 0 | Q31: 0 | R31: 0 | S31: -453.7056 | U31: =G31-INDEX($C31:$G31,1,aux!$AL$1) -> 116.589 | V31: 0.006690113346 | W31: 0.003023336552 | X31: =+IF(INDEX($C31:$G31,1,aux!$AL$1)>0,(G31/INDEX($C31:$G31,1,aux!$AL$1))^(1/($G$3-INDEX($C$3:$G$3,1,aux!$AL$1)))-1,"n.d.") -> 0.06805621314 | Y31: =IF(INDEX($C31:$G31,1,aux!$AL$1)>0,(G31-INDEX($C31:$G31,1,aux!$AL$1))/INDEX($C31:$G31,1,aux!$AL$1),"n.d.") -> 0.3012970433 | AA31: =O31-INDEX($K31:$O31,1,aux!$AL$1) -> 0 | AB31: 0 | AC31: 0 | AD31: =+IF(INDEX($K31:$O31,1,aux!$AL$1)>0,(O31/INDEX($K31:$O31,1,aux!$AL$1))^(1/($O$3-INDEX($K$3:$O$3,1,aux!$AL$1)))-1,"n.d.") -> n.d. | AE31: =IF(INDEX($K31:$O31,1,aux!$AL$1)>0,(O31-INDEX($K31:$O31,1,aux!$AL$1))/INDEX($K31:$O31,1,aux!$AL$1),"n.d.") -> n.d.
A32: 43 | B32: Peles com pelo em bruto (NC 4301) | C32: 0 | D32: 0 | E32: 0 | F32: 0 | G32: 0 | H32: 0 | I32: 0 | J32: 0 | K32: 0 | L32: 0 | M32: 0 | N32: 0 | O32: 0 | P32: 0 | Q32: 0 | R32: 0 | S32: 0 | U32: =G32-INDEX($C32:$G32,1,aux!$AL$1) -> 0 | V32: 0 | W32: 0 | X32: =+IF(INDEX($C32:$G32,1,aux!$AL$1)>0,(G32/INDEX($C32:$G32,1,aux!$AL$1))^(1/($G$3-INDEX($C$3:$G$3,1,aux!$AL$1)))-1,"n.d.") -> n.d. | Y32: =IF(INDEX($C32:$G32,1,aux!$AL$1)>0,(G32-INDEX($C32:$G32,1,aux!$AL$1))/INDEX($C32:$G32,1,aux!$AL$1),"n.d.") -> n.d. | AA32: =O32-INDEX($K32:$O32,1,aux!$AL$1) -> 0 | AB32: 0 | AC32: 0 | AD32: =+IF(INDEX($K32:$O32,1,aux!$AL$1)>0,(O32/INDEX($K32:$O32,1,aux!$AL$1))^(1/($O$3-INDEX($K$3:$O$3,1,aux!$AL$1)))-1,"n.d.") -> n.d. | AE32: =IF(INDEX($K32:$O32,1,aux!$AL$1)>0,(O32-INDEX($K32:$O32,1,aux!$AL$1))/INDEX($K32:$O32,1,aux!$AL$1),"n.d.") -> n.d.
A33: 50 | B33: Seda crua (NC 5001-5003) | C33: 0 | D33: 18.765 | E33: 27.498 | F33: 20.105 | G33: 0 | H33: 13.2736 | I33: 0.0005584604593 | J33: 0.0002060446793 | K33: 0 | L33: 9.642 | M33: 0 | N33: 0 | O33: 0 | P33: 1.9284 | Q33: 0.0001349748224 | R33: 4.923910492e-05 | S33: -11.3452 | U33: =G33-INDEX($C33:$G33,1,aux!$AL$1) -> 0 | V33: 0 | W33: 0 | X33: =+IF(INDEX($C33:$G33,1,aux!$AL$1)>0,(G33/INDEX($C33:$G33,1,aux!$AL$1))^(1/($G$3-INDEX($C$3:$G$3,1,aux!$AL$1)))-1,"n.d.") -> n.d. | Y33: =IF(INDEX($C33:$G33,1,aux!$AL$1)>0,(G33-INDEX($C33:$G33,1,aux!$AL$1))/INDEX($C33:$G33,1,aux!$AL$1),"n.d.") -> n.d. | AA33: =O33-INDEX($K33:$O33,1,aux!$AL$1) -> 0 | AB33: 0 | AC33: 0 | AD33: =+IF(INDEX($K33:$O33,1,aux!$AL$1)>0,(O33/INDEX($K33:$O33,1,aux!$AL$1))^(1/($O$3-INDEX($K$3:$O$3,1,aux!$AL$1)))-1,"n.d.") -> n.d. | AE33: =IF(INDEX($K33:$O33,1,aux!$AL$1)>0,(O33-INDEX($K33:$O33,1,aux!$AL$1))/INDEX($K33:$O33,1,aux!$AL$1),"n.d.") -> n.d.
A34: 51 | B34: Lã não cardada (NC 5101-5103) | C34: 0 | D34: 0 | E34: 0 | F34: 4.732 | G34: 47.72 | H34: 10.4904 | I34: 0.0004413628256 | J34: 0.0001628413621 | K34: 0 | L34: 0 | M34: 0 | N34: 0 | O34: 0 | P34: 0 | Q34: 0 | R34: 0 | S34: -10.4904 | U34: =G34-INDEX($C34:$G34,1,aux!$AL$1) -> 47.72 | V34: 0.00273827041 | W34: 0.001237454822 | X34: =+IF(INDEX($C34:$G34,1,aux!$AL$1)>0,(G34/INDEX($C34:$G34,1,aux!$AL$1))^(1/($G$3-INDEX($C$3:$G$3,1,aux!$AL$1)))-1,"n.d.") -> n.d. | Y34: =IF(INDEX($C34:$G34,1,aux!$AL$1)>0,(G34-INDEX($C34:$G34,1,aux!$AL$1))/INDEX($C34:$G34,1,aux!$AL$1),"n.d.") -> n.d. | AA34: =O34-INDEX($K34:$O34,1,aux!$AL$1) -> 0 | AB34: 0 | AC34: 0 | AD34: =+IF(INDEX($K34:$O34,1,aux!$AL$1)>0,(O34/INDEX($K34:$O34,1,aux!$AL$1))^(1/($O$3-INDEX($K$3:$O$3,1,aux!$AL$1)))-1,"n.d.") -> n.d. | AE34: =IF(INDEX($K34:$O34,1,aux!$AL$1)>0,(O34-INDEX($K34:$O34,1,aux!$AL$1))/INDEX($K34:$O34,1,aux!$AL$1),"n.d.") -> n.d.
A35: 52 | B35: Algodão (NC 5201-5203) | C35: 7.535 | D35: 6.522 | E35: 104.442 | F35: 38.561 | G35: 29.98 | H35: 37.408 | I35: 0.001573867591 | J35: 0.0005806804005 | K35: 0 | L35: 0 | M35: 94.404 | N35: 35.185 | O35: 11.271 | P35: 28.172 | Q35: 0.001971847489 | R35: 0.0007193341962 | S35: -9.236 | U35: =G35-INDEX($C35:$G35,1,aux!$AL$1) -> 22.445 | V35: 0.001287939635 | W35: 0.0005820342305 | X35: =+IF(INDEX($C35:$G35,1,aux!$AL$1)>0,(G35/INDEX($C35:$G35,1,aux!$AL$1))^(1/($G$3-INDEX($C$3:$G$3,1,aux!$AL$1)))-1,"n.d.") -> 0.4123329551 | Y35: =IF(INDEX($C35:$G35,1,aux!$AL$1)>0,(G35-INDEX($C35:$G35,1,aux!$AL$1))/INDEX($C35:$G35,1,aux!$AL$1),"n.d.") -> 2.97876576 | AA35: =O35-INDEX($K35:$O35,1,aux!$AL$1) -> 11.271 | AB35: 0.002742099586 | AC35: 0.0004958710628 | AD35: =+IF(INDEX($K35:$O35,1,aux!$AL$1)>0,(O35/INDEX($K35:$O35,1,aux!$AL$1))^(1/($O$3-INDEX($K$3:$O$3,1,aux!$AL$1)))-1,"n.d.") -> n.d. | AE35: =IF(INDEX($K35:$O35,1,aux!$AL$1)>0,(O35-INDEX($K35:$O35,1,aux!$AL$1))/INDEX($K35:$O35,1,aux!$AL$1),"n.d.") -> n.d.
A36: 53 | B36: Linho e cânhamo em bruto (NC 5301-5302) | C36: 0 | D36: 0.123 | E36: 0.064 | F36: 2.373 | G36: 3.131 | H36: 1.1382 | I36: 4.788751317e-05 | J36: 1.766815739e-05 | K36: 0 | L36: 0 | M36: 0 | N36: 0.501 | O36: 0 | P36: 0.1002 | Q36: 7.01331529e-06 | R36: 2.558472471e-06 | S36: -1.038 | U36: =G36-INDEX($C36:$G36,1,aux!$AL$1) -> 3.131 | V36: 0.0001796631319 | W36: =IF($U$53<>0,U36/$U$53, "n.d.") -> 8.119176546e-05 | X36: =+IF(INDEX($C36:$G36,1,aux!$AL$1)>0,(G36/INDEX($C36:$G36,1,aux!$AL$1))^(1/($G$3-INDEX($C$3:$G$3,1,aux!$AL$1)))-1,"n.d.") -> n.d. | Y36: =IF(INDEX($C36:$G36,1,aux!$AL$1)>0,(G36-INDEX($C36:$G36,1,aux!$AL$1))/INDEX($C36:$G36,1,aux!$AL$1),"n.d.") -> n.d. | AA36: =O36-INDEX($K36:$O36,1,aux!$AL$1) -> 0 | AB36: 0 | AC36: =IF($AA$53<>0,AA36/$AA$53, "n.d.") -> 0 | AD36: =+IF(INDEX($K36:$O36,1,aux!$AL$1)>0,(O36/INDEX($K36:$O36,1,aux!$AL$1))^(1/($O$3-INDEX($K$3:$O$3,1,aux!$AL$1)))-1,"n.d.") -> n.d. | AE36: =IF(INDEX($K36:$O36,1,aux!$AL$1)>0,(O36-INDEX($K36:$O36,1,aux!$AL$1))/INDEX($K36:$O36,1,aux!$AL$1),"n.d.") -> n.d.
A37: Subtotal Agrícola e Agroalimentar | C37: 18662.283 | D37: 18330.989 | E37: 19406.175 | F37: 26352.212 | G37: 36089.342 | H37: 23768.2002 | I37: 1 | J37: 0.3689512407 | K37: 15394.267 | L37: 12232.816 | M37: 12091.572 | N37: 12212.269 | O37: 19504.621 | P37: 14287.109 | Q37: 1 | R37: 0.3648021464 | S37: -9481.0912 | U37: =G37-INDEX($C37:$G37,1,aux!$AL$1) -> 17427.059 | V37: 1 | W37: 0.4519111105 | X37: =+IF(INDEX($C37:$G37,1,aux!$AL$1)>0,(G37/INDEX($C37:$G37,1,aux!$AL$1))^(1/($G$3-INDEX($C$3:$G$3,1,aux!$AL$1)))-1,"n.d.") -> 0.1792436552 | Y37: =IF(INDEX($C37:$G37,1,aux!$AL$1)>0,(G37-INDEX($C37:$G37,1,aux!$AL$1))/INDEX($C37:$G37,1,aux!$AL$1),"n.d.") -> 0.9338117421 | AA37: =O37-INDEX($K37:$O37,1,aux!$AL$1) -> 4110.354 | AB37: 1 | AC37: 0.1808362706 | AD37: =+IF(INDEX($K37:$O37,1,aux!$AL$1)>0,(O37/INDEX($K37:$O37,1,aux!$AL$1))^(1/($O$3-INDEX($K$3:$O$3,1,aux!$AL$1)))-1,"n.d.") -> 0.06094928699 | AE37: =IF(INDEX($K37:$O37,1,aux!$AL$1)>0,(O37-INDEX($K37:$O37,1,aux!$AL$1))/INDEX($K37:$O37,1,aux!$AL$1),"n.d.") -> 0.2670055028
A38: 03 | B38: Peixes e crustáceos | C38: 6.508 | D38: 212.52 | E38: 153.778 | F38: 32.954 | G38: 0 | H38: 81.152 | I38: 0.6399131979 | J38: 0.001259713854 | K38: 166.854 | L38: 742.533 | M38: 290.944 | N38: 528.158 | O38: 576.07 | P38: 460.9118 | Q38: 0.0703998238 | R38: 0.01176876399 | S38: 379.7598 | U38: =G38-INDEX($C38:$G38,1,aux!$AL$1) -> -6.508 | V38: =IF($U$44<>0,U38/$U$44, "n.d.") -> -0.05458220459 | W38: -0.0001687626987 | X38: =+IF(INDEX($C38:$G38,1,aux!$AL$1)>0,(G38/INDEX($C38:$G38,1,aux!$AL$1))^(1/($G$3-INDEX($C$3:$G$3,1,aux!$AL$1)))-1,"n.d.") -> -1 | Y38: =IF(INDEX($C38:$G38,1,aux!$AL$1)>0,(G38-INDEX($C38:$G38,1,aux!$AL$1))/INDEX($C38:$G38,1,aux!$AL$1),"n.d.") -> -1 | AA38: =O38-INDEX($K38:$O38,1,aux!$AL$1) -> 409.216 | AB38: =IF($AA$44<>0,AA38/$AA$44, "n.d.") -> 0.07472470083 | AC38: 0.01800358201 | AD38: =+IF(INDEX($K38:$O38,1,aux!$AL$1)>0,(O38/INDEX($K38:$O38,1,aux!$AL$1))^(1/($O$3-INDEX($K$3:$O$3,1,aux!$AL$1)))-1,"n.d.") -> 0.3631217867 | AE38: =IF(INDEX($K38:$O38,1,aux!$AL$1)>0,(O38-INDEX($K38:$O38,1,aux!$AL$1))/INDEX($K38:$O38,1,aux!$AL$1),"n.d.") -> 2.452539346
A39: 05p | B39: Outros produtos de pescado (NC 0508, 051191) (p) | C39: 0 | D39: 0 | E39: 0 | F39: 0 | G39: 0 | H39: 0 | I39: 0 | J39: 0 | K39: 0 | L39: 0 | M39: 0.271 | N39: 1.474 | O39: 1.075 | P39: 0.564 | Q39: 8.614555024e-05 | R39: 1.440098277e-05 | S39: 0.564 | U39: =G39-INDEX($C39:$G39,1,aux!$AL$1) -> 0 | V39: 0 | W39: 0 | X39: =+IF(INDEX($C39:$G39,1,aux!$AL$1)>0,(G39/INDEX($C39:$G39,1,aux!$AL$1))^(1/($G$3-INDEX($C$3:$G$3,1,aux!$AL$1)))-1,"n.d.") -> n.d. | Y39: =IF(INDEX($C39:$G39,1,aux!$AL$1)>0,(G39-INDEX($C39:$G39,1,aux!$AL$1))/INDEX($C39:$G39,1,aux!$AL$1),"n.d.") -> n.d. | AA39: =O39-INDEX($K39:$O39,1,aux!$AL$1) -> 1.075 | AB39: 0.0001962998841 | AC39: 4.729495098e-05 | AD39: =+IF(INDEX($K39:$O39,1,aux!$AL$1)>0,(O39/INDEX($K39:$O39,1,aux!$AL$1))^(1/($O$3-INDEX($K$3:$O$3,1,aux!$AL$1)))-1,"n.d.") -> n.d. | AE39: =IF(INDEX($K39:$O39,1,aux!$AL$1)>0,(O39-INDEX($K39:$O39,1,aux!$AL$1))/INDEX($K39:$O39,1,aux!$AL$1),"n.d.") -> n.d.
A40: 16p | B40: Preparações e conservas de peixes ou crustáceos (NC 1604-05) (p) | C40: 0 | D40: 0.03 | E40: 8.53 | F40: 10.306 | G40: 118.509 | H40: 27.475 | I40: 0.2166504228 | J40: 0.0004264914992 | K40: 4317.262 | L40: 4965.132 | M40: 5206.308 | N40: 6208.306 | O40: 9465.465 | P40: 6032.4946 | Q40: 0.92140526 | R40: 0.1540316504 | S40: 6005.0196 | U40: =G40-INDEX($C40:$G40,1,aux!$AL$1) -> 118.509 | V40: 0.9939278555 | W40: 0.003073125178 | X40: =+IF(INDEX($C40:$G40,1,aux!$AL$1)>0,(G40/INDEX($C40:$G40,1,aux!$AL$1))^(1/($G$3-INDEX($C$3:$G$3,1,aux!$AL$1)))-1,"n.d.") -> n.d. | Y40: =IF(INDEX($C40:$G40,1,aux!$AL$1)>0,(G40-INDEX($C40:$G40,1,aux!$AL$1))/INDEX($C40:$G40,1,aux!$AL$1),"n.d.") -> n.d. | AA40: =O40-INDEX($K40:$O40,1,aux!$AL$1) -> 5148.203 | AB40: 0.9400852581 | AC40: 0.2264967521 | AD40: =+IF(INDEX($K40:$O40,1,aux!$AL$1)>0,(O40/INDEX($K40:$O40,1,aux!$AL$1))^(1/($O$3-INDEX($K$3:$O$3,1,aux!$AL$1)))-1,"n.d.") -> 0.2168397471 | AE40: =IF(INDEX($K40:$O40,1,aux!$AL$1)>0,(O40-INDEX($K40:$O40,1,aux!$AL$1))/INDEX($K40:$O40,1,aux!$AL$1),"n.d.") -> 1.19246944
A41: 19p | B41: Massas recheadas com pescado (NC 19022010) (p) | C41: 0 | D41: 0 | E41: 0 | F41: 0 | G41: 0 | H41: 0 | I41: 0 | J41: 0 | K41: 0 | L41: 0 | M41: 0 | N41: 0 | O41: 0 | P41: 0 | Q41: 0 | R41: 0 | S41: 0 | U41: =G41-INDEX($C41:$G41,1,aux!$AL$1) -> 0 | V41: 0 | W41: 0 | X41: =+IF(INDEX($C41:$G41,1,aux!$AL$1)>0,(G41/INDEX($C41:$G41,1,aux!$AL$1))^(1/($G$3-INDEX($C$3:$G$3,1,aux!$AL$1)))-1,"n.d.") -> n.d. | Y41: =IF(INDEX($C41:$G41,1,aux!$AL$1)>0,(G41-INDEX($C41:$G41,1,aux!$AL$1))/INDEX($C41:$G41,1,aux!$AL$1),"n.d.") -> n.d. | AA41: =O41-INDEX($K41:$O41,1,aux!$AL$1) -> 0 | AB41: 0 | AC41: 0 | AD41: =+IF(INDEX($K41:$O41,1,aux!$AL$1)>0,(O41/INDEX($K41:$O41,1,aux!$AL$1))^(1/($O$3-INDEX($K$3:$O$3,1,aux!$AL$1)))-1,"n.d.") -> n.d. | AE41: =IF(INDEX($K41:$O41,1,aux!$AL$1)>0,(O41-INDEX($K41:$O41,1,aux!$AL$1))/INDEX($K41:$O41,1,aux!$AL$1),"n.d.") -> n.d.
A42: 23p | B42: Farinhas de pescado (NC 230120) (p) | C42: 0 | D42: 0 | E42: 0 | F42: 0 | G42: 0 | H42: 0 | I42: 0 | J42: 0 | K42: 0 | L42: 0 | M42: 0 | N42: 0 | O42: 0 | P42: 0 | Q42: 0 | R42: 0 | S42: 0 | U42: =G42-INDEX($C42:$G42,1,aux!$AL$1) -> 0 | V42: 0 | W42: 0 | X42: =+IF(INDEX($C42:$G42,1,aux!$AL$1)>0,(G42/INDEX($C42:$G42,1,aux!$AL$1))^(1/($G$3-INDEX($C$3:$G$3,1,aux!$AL$1)))-1,"n.d.") -> n.d. | Y42: =IF(INDEX($C42:$G42,1,aux!$AL$1)>0,(G42-INDEX($C42:$G42,1,aux!$AL$1))/INDEX($C42:$G42,1,aux!$AL$1),"n.d.") -> n.d. | AA42: =O42-INDEX($K42:$O42,1,aux!$AL$1) -> 0 | AB42: 0 | AC42: 0 | AD42: =+IF(INDEX($K42:$O42,1,aux!$AL$1)>0,(O42/INDEX($K42:$O42,1,aux!$AL$1))^(1/($O$3-INDEX($K$3:$O$3,1,aux!$AL$1)))-1,"n.d.") -> n.d. | AE42: =IF(INDEX($K42:$O42,1,aux!$AL$1)>0,(O42-INDEX($K42:$O42,1,aux!$AL$1))/INDEX($K42:$O42,1,aux!$AL$1),"n.d.") -> n.d.
A43: 25 | B43: Sal e cloreto de sódio puro; água do mar (NC 2501) | C43: 8.294 | D43: 16.505 | E43: 24.017 | F43: 26.609 | G43: 15.526 | H43: 18.1902 | I43: 0.1434363793 | J43: 0.0002823645375 | K43: 101.628 | L43: 48.255 | M43: 54.906 | N43: 41.205 | O43: 19.449 | P43: 53.0886 | Q43: 0.008108770671 | R43: 0.001355546124 | S43: 34.8984 | U43: =G43-INDEX($C43:$G43,1,aux!$AL$1) -> 7.232 | V43: 0.06065434905 | W43: 0.0001875371599 | X43: =+IF(INDEX($C43:$G43,1,aux!$AL$1)>0,(G43/INDEX($C43:$G43,1,aux!$AL$1))^(1/($G$3-INDEX($C$3:$G$3,1,aux!$AL$1)))-1,"n.d.") -> 0.1696983781 | Y43: =IF(INDEX($C43:$G43,1,aux!$AL$1)>0,(G43-INDEX($C43:$G43,1,aux!$AL$1))/INDEX($C43:$G43,1,aux!$AL$1),"n.d.") -> 0.8719556306 | AA43: =O43-INDEX($K43:$O43,1,aux!$AL$1) -> -82.179 | AB43: -0.01500625877 | AC43: -0.003615490025 | AD43: =+IF(INDEX($K43:$O43,1,aux!$AL$1)>0,(O43/INDEX($K43:$O43,1,aux!$AL$1))^(1/($O$3-INDEX($K$3:$O$3,1,aux!$AL$1)))-1,"n.d.") -> -0.3385896687 | AE43: =IF(INDEX($K43:$O43,1,aux!$AL$1)>0,(O43-INDEX($K43:$O43,1,aux!$AL$1))/INDEX($K43:$O43,1,aux!$AL$1),"n.d.") -> -0.8086255756
A44: Subtotal Mar | C44: 14.802 | D44: 229.055 | E44: 186.325 | F44: 69.869 | G44: 134.035 | H44: 126.8172 | I44: 1 | J44: 0.001968569891 | K44: 4585.744 | L44: 5755.92 | M44: 5552.429 | N44: 6779.143 | O44: 10062.059 | P44: 6547.059 | Q44: 1 | R44: 0.1671703615 | S44: 6420.2418 | U44: =G44-INDEX($C44:$G44,1,aux!$AL$1) -> 119.233 | V44: 1 | W44: 0.003091899639 | X44: =+IF(INDEX($C44:$G44,1,aux!$AL$1)>0,(G44/INDEX($C44:$G44,1,aux!$AL$1))^(1/($G$3-INDEX($C$3:$G$3,1,aux!$AL$1)))-1,"n.d.") -> 0.7347003044 | Y44: =IF(INDEX($C44:$G44,1,aux!$AL$1)>0,(G44-INDEX($C44:$G44,1,aux!$AL$1))/INDEX($C44:$G44,1,aux!$AL$1),"n.d.") -> 8.055195244 | AA44: =O44-INDEX($K44:$O44,1,aux!$AL$1) -> 5476.315 | AB44: 1 | AC44: 0.240932139 | AD44: =+IF(INDEX($K44:$O44,1,aux!$AL$1)>0,(O44/INDEX($K44:$O44,1,aux!$AL$1))^(1/($O$3-INDEX($K$3:$O$3,1,aux!$AL$1)))-1,"n.d.") -> 0.2170803852 | AE44: =IF(INDEX($K44:$O44,1,aux!$AL$1)>0,(O44-INDEX($K44:$O44,1,aux!$AL$1))/INDEX($K44:$O44,1,aux!$AL$1),"n.d.") -> 1.194204256
A45: 13f | B45: Gomas e resinas (NC 1301) (f) | C45: 5.88 | D45: 0 | E45: 0 | F45: 0 | G45: 0 | H45: 1.176 | I45: 2.901843529e-05 | J45: 1.825492277e-05 | K45: 8.766 | L45: 0.162 | M45: 0.923 | N45: 2.237 | O45: 0.709 | P45: 2.5594 | Q45: 0.0001396303504 | R45: 6.535084274e-05 | S45: 1.3834 | U45: =G45-INDEX($C45:$G45,1,aux!$AL$1) -> -5.88 | V45: =IF($U$52<>0,U45/$U$52, "n.d.") -> -0.0002797770843 | W45: -0.0001524776688 | X45: =+IF(INDEX($C45:$G45,1,aux!$AL$1)>0,(G45/INDEX($C45:$G45,1,aux!$AL$1))^(1/($G$3-INDEX($C$3:$G$3,1,aux!$AL$1)))-1,"n.d.") -> -1 | Y45: =IF(INDEX($C45:$G45,1,aux!$AL$1)>0,(G45-INDEX($C45:$G45,1,aux!$AL$1))/INDEX($C45:$G45,1,aux!$AL$1),"n.d.") -> -1 | AA45: =O45-INDEX($K45:$O45,1,aux!$AL$1) -> -8.057 | AB45: =IF($AA$52<>0,AA45/$AA$52, "n.d.") -> -0.0006130245461 | AC45: -0.0003544701582 | AD45: =+IF(INDEX($K45:$O45,1,aux!$AL$1)>0,(O45/INDEX($K45:$O45,1,aux!$AL$1))^(1/($O$3-INDEX($K$3:$O$3,1,aux!$AL$1)))-1,"n.d.") -> -0.4667127602 | AE45: =IF(INDEX($K45:$O45,1,aux!$AL$1)>0,(O45-INDEX($K45:$O45,1,aux!$AL$1))/INDEX($K45:$O45,1,aux!$AL$1),"n.d.") -> -0.9191193247
A46: 38f | B46: Tall oil, essências e colofónias (NC 3803,3805,3806) (f) | C46: 26.4 | D46: 0 | E46: 0 | F46: 0 | G46: 0.273 | H46: 5.3346 | I46: 0.0001316341368 | J46: 8.280842772e-05 | K46: 148.526 | L46: 149.367 | M46: 109.172 | N46: 99.569 | O46: 473.751 | P46: 196.077 | Q46: 0.01069715567 | R46: 0.005006562941 | S46: 190.7424 | U46: =G46-INDEX($C46:$G46,1,aux!$AL$1) -> -26.127 | V46: -0.001243152361 | W46: -0.0006775142945 | X46: =+IF(INDEX($C46:$G46,1,aux!$AL$1)>0,(G46/INDEX($C46:$G46,1,aux!$AL$1))^(1/($G$3-INDEX($C$3:$G$3,1,aux!$AL$1)))-1,"n.d.") -> -0.6811108962 | Y46: =IF(INDEX($C46:$G46,1,aux!$AL$1)>0,(G46-INDEX($C46:$G46,1,aux!$AL$1))/INDEX($C46:$G46,1,aux!$AL$1),"n.d.") -> -0.9896590909 | AA46: =O46-INDEX($K46:$O46,1,aux!$AL$1) -> 325.225 | AB46: 0.02474505498 | AC46: 0.0143083725 | AD46: =+IF(INDEX($K46:$O46,1,aux!$AL$1)>0,(O46/INDEX($K46:$O46,1,aux!$AL$1))^(1/($O$3-INDEX($K$3:$O$3,1,aux!$AL$1)))-1,"n.d.") -> 0.3364013745 | AE46: =IF(INDEX($K46:$O46,1,aux!$AL$1)>0,(O46-INDEX($K46:$O46,1,aux!$AL$1))/INDEX($K46:$O46,1,aux!$AL$1),"n.d.") -> 2.189683961
A47: 44 | B47: Madeira e suas obras | C47: 11827.907 | D47: 11606.365 | E47: 11406.691 | F47: 14264.325 | G47: 20075.332 | H47: 13836.124 | I47: 0.3414138341 | J47: 0.2147766795 | K47: 2236.048 | L47: 2354.05 | M47: 2301.809 | N47: 3099.879 | O47: 4687.197 | P47: 2935.7966 | Q47: 0.1601650028 | R47: 0.07496162457 | S47: -10900.3274 | U47: =G47-INDEX($C47:$G47,1,aux!$AL$1) -> 8247.425 | V47: 0.392421857 | W47: 0.2138687308 | X47: =+IF(INDEX($C47:$G47,1,aux!$AL$1)>0,(G47/INDEX($C47:$G47,1,aux!$AL$1))^(1/($G$3-INDEX($C$3:$G$3,1,aux!$AL$1)))-1,"n.d.") -> 0.1414022092 | Y47: =IF(INDEX($C47:$G47,1,aux!$AL$1)>0,(G47-INDEX($C47:$G47,1,aux!$AL$1))/INDEX($C47:$G47,1,aux!$AL$1),"n.d.") -> 0.6972852424 | AA47: =O47-INDEX($K47:$O47,1,aux!$AL$1) -> 2451.149 | AB47: 0.1864980145 | AC47: 0.1078390435 | AD47: =+IF(INDEX($K47:$O47,1,aux!$AL$1)>0,(O47/INDEX($K47:$O47,1,aux!$AL$1))^(1/($O$3-INDEX($K$3:$O$3,1,aux!$AL$1)))-1,"n.d.") -> 0.2032559592 | AE47: =IF(INDEX($K47:$O47,1,aux!$AL$1)>0,(O47-INDEX($K47:$O47,1,aux!$AL$1))/INDEX($K47:$O47,1,aux!$AL$1),"n.d.") -> 1.096196951
A48: 45 | B48: Cortiça e suas obras | C48: 0.064 | D48: 6.866 | E48: 0 | F48: 0.138 | G48: 1.088 | H48: 1.6312 | I48: 4.025074119e-05 | J48: 2.53209439e-05 | K48: 8088.697 | L48: 8018.189 | M48: 7863.67 | N48: 9333.487 | O48: 10514.595 | P48: 8763.7276 | Q48: 0.478112978 | R48: 0.2237700181 | S48: 8762.0964 | U48: =G48-INDEX($C48:$G48,1,aux!$AL$1) -> 1.024 | V48: 4.872308406e-05 | W48: 2.655393415e-05 | X48: =+IF(INDEX($C48:$G48,1,aux!$AL$1)>0,(G48/INDEX($C48:$G48,1,aux!$AL$1))^(1/($G$3-INDEX($C$3:$G$3,1,aux!$AL$1)))-1,"n.d.") -> 1.030543185 | Y48: =IF(INDEX($C48:$G48,1,aux!$AL$1)>0,(G48-INDEX($C48:$G48,1,aux!$AL$1))/INDEX($C48:$G48,1,aux!$AL$1),"n.d.") -> 16 | AA48: =O48-INDEX($K48:$O48,1,aux!$AL$1) -> 2425.898 | AB48: 0.1845767681 | AC48: 0.1067281181 | AD48: =+IF(INDEX($K48:$O48,1,aux!$AL$1)>0,(O48/INDEX($K48:$O48,1,aux!$AL$1))^(1/($O$3-INDEX($K$3:$O$3,1,aux!$AL$1)))-1,"n.d.") -> 0.06777191953 | AE48: =IF(INDEX($K48:$O48,1,aux!$AL$1)>0,(O48-INDEX($K48:$O48,1,aux!$AL$1))/INDEX($K48:$O48,1,aux!$AL$1),"n.d.") -> 0.2999120872
A49: 46 | B49: Obras de espartaria ou de cestaria | C49: 0.31 | D49: 0 | E49: 0 | F49: 1.483 | G49: 0.405 | H49: 0.4396 | I49: 1.084736748e-05 | J49: 6.823863987e-06 | K49: 0 | L49: 0.022 | M49: 0.004 | N49: 0.647 | O49: 0 | P49: 0.1346 | Q49: 7.343223087e-06 | R49: 3.436830286e-06 | S49: -0.305 | U49: =G49-INDEX($C49:$G49,1,aux!$AL$1) -> 0.095 | V49: 4.520207994e-06 | W49: 2.46349975e-06 | X49: =+IF(INDEX($C49:$G49,1,aux!$AL$1)>0,(G49/INDEX($C49:$G49,1,aux!$AL$1))^(1/($G$3-INDEX($C$3:$G$3,1,aux!$AL$1)))-1,"n.d.") -> 0.06911231543 | Y49: =IF(INDEX($C49:$G49,1,aux!$AL$1)>0,(G49-INDEX($C49:$G49,1,aux!$AL$1))/INDEX($C49:$G49,1,aux!$AL$1),"n.d.") -> 0.3064516129 | AA49: =O49-INDEX($K49:$O49,1,aux!$AL$1) -> 0 | AB49: 0 | AC49: 0 | AD49: =+IF(INDEX($K49:$O49,1,aux!$AL$1)>0,(O49/INDEX($K49:$O49,1,aux!$AL$1))^(1/($O$3-INDEX($K$3:$O$3,1,aux!$AL$1)))-1,"n.d.") -> n.d. | AE49: =IF(INDEX($K49:$O49,1,aux!$AL$1)>0,(O49-INDEX($K49:$O49,1,aux!$AL$1))/INDEX($K49:$O49,1,aux!$AL$1),"n.d.") -> n.d.
A50: 47 | B50: Pastas de madeira | C50: 2984.105 | D50: 3299.708 | E50: 3005.572 | F50: 3100.997 | G50: 1529.878 | H50: 2784.052 | I50: 0.06869798708 | J50: 0.04321654273 | K50: 0 | L50: 0 | M50: 0.004 | N50: 3033.79 | O50: 3976.926 | P50: 1402.144 | Q50: 0.07649521688 | R50: 0.03580186452 | S50: -1381.908 | U50: =G50-INDEX($C50:$G50,1,aux!$AL$1) -> -1454.227 | V50: -0.0691937738 | W50: -0.03771039844 | X50: =+IF(INDEX($C50:$G50,1,aux!$AL$1)>0,(G50/INDEX($C50:$G50,1,aux!$AL$1))^(1/($G$3-INDEX($C$3:$G$3,1,aux!$AL$1)))-1,"n.d.") -> -0.1538240556 | Y50: =IF(INDEX($C50:$G50,1,aux!$AL$1)>0,(G50-INDEX($C50:$G50,1,aux!$AL$1))/INDEX($C50:$G50,1,aux!$AL$1),"n.d.") -> -0.4873243401 | AA50: =O50-INDEX($K50:$O50,1,aux!$AL$1) -> 3976.926 | AB50: 0.302588216 | AC50: 0.1749660653 | AD50: =+IF(INDEX($K50:$O50,1,aux!$AL$1)>0,(O50/INDEX($K50:$O50,1,aux!$AL$1))^(1/($O$3-INDEX($K$3:$O$3,1,aux!$AL$1)))-1,"n.d.") -> n.d. | AE50: =IF(INDEX($K50:$O50,1,aux!$AL$1)>0,(O50-INDEX($K50:$O50,1,aux!$AL$1))/INDEX($K50:$O50,1,aux!$AL$1),"n.d.") -> n.d.
A51: 48 | B51: Papel e cartão | C51: 21375.409 | D51: 20091.84 | E51: 18644.22 | F51: 23744.722 | G51: 35629.831 | H51: 23897.2044 | I51: 0.5896764281 | J51: 0.3709537591 | K51: 3826.757 | L51: 4826.423 | M51: 4128.109 | N51: 4566.998 | O51: 7798.646 | P51: 5029.3866 | Q51: 0.2743826731 | R51: 0.1284186344 | S51: -18867.8178 | U51: =G51-INDEX($C51:$G51,1,aux!$AL$1) -> 14254.422 | V51: 0.6782416029 | W51: 0.369639632 | X51: =+IF(INDEX($C51:$G51,1,aux!$AL$1)>0,(G51/INDEX($C51:$G51,1,aux!$AL$1))^(1/($G$3-INDEX($C$3:$G$3,1,aux!$AL$1)))-1,"n.d.") -> 0.136252449 | Y51: =IF(INDEX($C51:$G51,1,aux!$AL$1)>0,(G51-INDEX($C51:$G51,1,aux!$AL$1))/INDEX($C51:$G51,1,aux!$AL$1),"n.d.") -> 0.6668607838 | AA51: =O51-INDEX($K51:$O51,1,aux!$AL$1) -> 3971.889 | AB51: 0.302204971 | AC51: 0.174744461 | AD51: =+IF(INDEX($K51:$O51,1,aux!$AL$1)>0,(O51/INDEX($K51:$O51,1,aux!$AL$1))^(1/($O$3-INDEX($K$3:$O$3,1,aux!$AL$1)))-1,"n.d.") -> 0.194805135 | AE51: =IF(INDEX($K51:$O51,1,aux!$AL$1)>0,(O51-INDEX($K51:$O51,1,aux!$AL$1))/INDEX($K51:$O51,1,aux!$AL$1),"n.d.") -> 1.037925586
A52: Subtotal Florestas | C52: 36220.075 | D52: 35004.779 | E52: 33056.483 | F52: 41111.665 | G52: 57236.807 | H52: 40525.9618 | I52: 1 | J52: 0.6290801895 | K52: 14308.794 | L52: 15348.213 | M52: 14403.691 | N52: 20136.607 | O52: 27451.824 | P52: 18329.8258 | Q52: 1 | R52: 0.4680274921 | S52: -22196.136 | U52: =G52-INDEX($C52:$G52,1,aux!$AL$1) -> 21016.732 | V52: 1 | W52: 0.5449969899 | X52: =+IF(INDEX($C52:$G52,1,aux!$AL$1)>0,(G52/INDEX($C52:$G52,1,aux!$AL$1))^(1/($G$3-INDEX($C$3:$G$3,1,aux!$AL$1)))-1,"n.d.") -> 0.1211959318 | Y52: =IF(INDEX($C52:$G52,1,aux!$AL$1)>0,(G52-INDEX($C52:$G52,1,aux!$AL$1))/INDEX($C52:$G52,1,aux!$AL$1),"n.d.") -> 0.5802509244 | AA52: =O52-INDEX($K52:$O52,1,aux!$AL$1) -> 13143.03 | AB52: 1 | AC52: 0.5782315903 | AD52: =+IF(INDEX($K52:$O52,1,aux!$AL$1)>0,(O52/INDEX($K52:$O52,1,aux!$AL$1))^(1/($O$3-INDEX($K$3:$O$3,1,aux!$AL$1)))-1,"n.d.") -> 0.1769067227 | AE52: =IF(INDEX($K52:$O52,1,aux!$AL$1)>0,(O52-INDEX($K52:$O52,1,aux!$AL$1))/INDEX($K52:$O52,1,aux!$AL$1),"n.d.") -> 0.9185281443
B53: TOTAL | C53: 54897.16 | D53: 53564.823 | E53: 52648.983 | F53: 67533.746 | G53: 93460.184 | H53: 64420.9792 | J53: 1 | K53: 34288.805 | L53: 33336.949 | M53: 32047.692 | N53: 39128.019 | O53: 57018.504 | P53: 39163.9938 | R53: 1 | S53: -25256.9854 | U53: =G53-INDEX($C53:$G53,1,aux!$AL$1) -> 38563.024 | W53: 1 | X53: =+IF(INDEX($C53:$G53,1,aux!$AL$1)>0,(G53/INDEX($C53:$G53,1,aux!$AL$1))^(1/($G$3-INDEX($C$3:$G$3,1,aux!$AL$1)))-1,"n.d.") -> 0.1422710985 | Y53: =IF(INDEX($C53:$G53,1,aux!$AL$1)>0,(G53-INDEX($C53:$G53,1,aux!$AL$1))/INDEX($C53:$G53,1,aux!$AL$1),"n.d.") -> 0.7024593622 | AA53: =O53-INDEX($K53:$O53,1,aux!$AL$1) -> 22729.699 | AC53: 1 | AD53: =+IF(INDEX($K53:$O53,1,aux!$AL$1)>0,(O53/INDEX($K53:$O53,1,aux!$AL$1))^(1/($O$3-INDEX($K$3:$O$3,1,aux!$AL$1)))-1,"n.d.") -> 0.1355751159 | AE53: =IF(INDEX($K53:$O53,1,aux!$AL$1)>0,(O53-INDEX($K53:$O53,1,aux!$AL$1))/INDEX($K53:$O53,1,aux!$AL$1),"n.d.") -> 0.6628897974
B54: a - agrícola e agroalimentar; p - pescas; f - florestas
A55: Fonte: GPP a partir de dados INE/Comércio Internacional (2021 provisórios; 2022 preliminares) | S55: 2023-05-23T16:31:19.070

Sheet 5.2_var
A1: ="Principais contributos por produto para a variação das trocas comerciais PT-Áustria_x000D_ no período " & INDEX('5.2'!K3:N3,1,aux!AL1) & "-2022 (NC 2 dígitos - milhares de euros) Produtos agrícolas e agroalimentares, do mar e da floresta" -> Principais contributos por produto para a variação das trocas comerciais PT-Áustria no período 2018-2022 (NC 2 dígitos - milhares de euros) Produtos agrícolas e agroalimentares, do mar e da floresta
E5: aumento das importações | J5: aumento das exportações
E17: redução das importações | J17: redução das exportações
A28: Fonte: GPP a partir de dados INE/Comércio Internacional (2021 provisórios; 2022 preliminares) | F28: a - agrícola e agroalimentar; p - mar; f - florestas | H28: ='3'!Y116 -> 2023-05-23T16:31:19.070
A29: Cód. NC | B29: Descritivo | C29: ="Variação das Importações " & INDEX('5.2'!K3:N3,1,aux!AL1) & "-"& '5.2'!O3 &"" -> Variação das Importações 2018-2022 | F29: Cód. NC | G29: Descritivo | H29: ="Variação das Exportações " & INDEX('5.2'!K3:N3,1,aux!AL1) & "-"& '5.2'!O3 &"" -> Variação das Exportações 2018-2022
C30: variação total em valor | D30: % do aumento/ redução total | H30: variação total em valor | I30: % do aumento/ redução total
A31: =IF(C31>0,aux!AU6,"") -> 48 | B31: =IF(C31>0,aux!AV6,"") -> Papel e cartão | C31: =IF(aux!AW6>0,aux!AW6,0) -> 14254.422 | D31: =IF(SUM($C$31:$C$41)<>0,C31/SUM($C$31:$C$41),0) -> 0.3484427206 | F31: =IF(H31>0,aux!AZ6,"") -> 16p | G31: =IF(H31>0,aux!BA6,"") -> Preparações e conservas de peixes ou crustáceos (NC 1604-05) (p) | H31: =IF(aux!BB6>0,aux!BB6,0) -> 5148.203 | I31: =IF(SUM($H$31:$H$41)<>0,H31/SUM($H$31:$H$41),0) -> 0.1826751321
A32: =IF(C32>0,aux!AU7,"") -> 44 | B32: =IF(C32>0,aux!AV7,"") -> Madeira e suas obras | C32: =IF(aux!AW7>0,aux!AW7,0) -> 8247.425 | D32: =IF(SUM($C$31:$C$41)<>0,C32/SUM($C$31:$C$41),0) -> 0.2016044708 | F32: =IF(H32>0,aux!AZ7,"") -> 04 | G32: =IF(H32>0,aux!BA7,"") -> Leite e laticínios; ovos; mel, etc. | H32: =IF(aux!BB7>0,aux!BB7,0) -> 4187.439 | I32: =IF(SUM($H$31:$H$41)<>0,H32/SUM($H$31:$H$41),0) -> 0.1485840734
A33: =IF(C33>0,aux!AU8,"") -> 16a | B33: =IF(C33>0,aux!AV8,"") -> Preparações de carnes (exc. NC 1604-05) (a) | C33: =IF(aux!AW8>0,aux!AW8,0) -> 3971.41 | D33: 0.0970792716 | F33: =IF(H33>0,aux!AZ8,"") -> 47 | G33: =IF(H33>0,aux!BA8,"") -> Pastas de madeira | H33: =IF(aux!BB8>0,aux!BB8,0) -> 3976.926 | I33: 0.1411143815
A34: =IF(C34>0,aux!AU9,"") -> 21 | B34: =IF(C34>0,aux!AV9,"") -> Preparações alimentícias diversas | C34: =IF(aux!AW9>0,aux!AW9,0) -> 2673.773 | D34: 0.06535913826 | F34: =IF(H34>0,aux!AZ9,"") -> 48 | G34: =IF(H34>0,aux!BA9,"") -> Papel e cartão | H34: =IF(aux!BB9>0,aux!BB9,0) -> 3971.889 | I34: 0.1409356522
A35: =IF(C35>0,aux!AU10,"") -> 18 | B35: =IF(C35>0,aux!AV10,"") -> Cacau e suas preparações | C35: =IF(aux!AW10>0,aux!AW10,0) -> 2251.808 | D35: 0.05504439995 | F35: =IF(H35>0,aux!AZ10,"") -> 44 | G35: =IF(H35>0,aux!BA10,"") -> Madeira e suas obras | H35: =IF(aux!BB10>0,aux!BB10,0) -> 2451.149 | I35: 0.08697480797
A36: =IF(C36>0,aux!AU11,"") -> 20 | B36: =IF(C36>0,aux!AV11,"") -> Preparações de produtos vegetais | C36: =IF(aux!AW11>0,aux!AW11,0) -> 1833.23 | D36: 0.04481245529 | F36: =IF(H36>0,aux!AZ11,"") -> 45 | G36: =IF(H36>0,aux!BA11,"") -> Cortiça e suas obras | H36: =IF(aux!BB11>0,aux!BB11,0) -> 2425.898 | I36: 0.08607881965
A37: =IF(C37>0,aux!AU12,"") -> 19a | B37: =IF(C37>0,aux!AV12,"") -> Preparações à base de cereais (exc. NC 19022010) (a) | C37: =IF(aux!AW12>0,aux!AW12,0) -> 1648.534 | D37: 0.04029764742 | F37: =IF(H37>0,aux!AZ12,"") -> 20 | G37: =IF(H37>0,aux!BA12,"") -> Preparações de produtos vegetais | H37: =IF(aux!BB12>0,aux!BB12,0) -> 2258.578 | I37: 0.08014175713
A38: =IF(C38>0,aux!AU13,"") -> 38a | B38: =IF(C38>0,aux!AV13,"") -> Agentes de acabamento, ácidos gordos, sorbitol (NC 380910, 382311-12-13-19-70, 382460) (a) | C38: =IF(aux!AW13>0,aux!AW13,0) -> 1604.528 | D38: 0.0392219412 | F38: =IF(H38>0,aux!AZ13,"") -> 21 | G38: =IF(H38>0,aux!BA13,"") -> Preparações alimentícias diversas | H38: =IF(aux!BB13>0,aux!BB13,0) -> 1322.491 | I38: 0.04692631936
A39: =IF(C39>0,aux!AU14,"") -> 22 | B39: =IF(C39>0,aux!AV14,"") -> Bebidas, líquidos alcoólicos e vinagres | C39: =IF(aux!AW14>0,aux!AW14,0) -> 1316.596 | D39: 0.03218357729 | F39: =IF(H39>0,aux!AZ14,"") -> 07 | G39: =IF(H39>0,aux!BA14,"") -> Produtos hortícolas | H39: =IF(aux!BB14>0,aux!BB14,0) -> 440.447 | I39: 0.01562850453
A40: =IF(C40>0,aux!AU15,"") -> 15 | B40: =IF(C40>0,aux!AV15,"") -> Gorduras e óleos animais ou vegetais | C40: =IF(aux!AW15>0,aux!AW15,0) -> 1265.842 | D40: 0.03094291935 | F40: =IF(H40>0,aux!AZ15,"") -> 03 | G40: =IF(H40>0,aux!BA15,"") -> Peixes e crustáceos | H40: =IF(aux!BB15>0,aux!BB15,0) -> 409.216 | I40: 0.01452032619
B41: Outros contributos para o aumento das importações | C41: =SUMIF(aux!AW16:AW51,">0") -> 1841.371 | D41: 0.04501145825 | G41: Outros contributos para o aumento das exportações | H41: =SUMIF(aux!BB16:BB51,">0") -> 1590.051 | I41: 0.05642022594
B42: Outros contributos para a redução das importações | C42: =SUMIF(aux!AW6:AW41,"<0") -> 0 | D42: =IF(SUM($C$42:$C$52)<>0,C42/SUM($C$42:$C$52),0) -> 0 | G42: Outros contributos para a redução das exportações | H42: =SUMIF(aux!BB6:BB41,"<0") -> 0 | I42: =IF(SUM($H$42:$H$52)<>0,H42/SUM($H$42:$H$52),0) -> 0
A43: =IF(C43<>0,aux!AU42,"") ->  | B43: =IF(C43<0,aux!AV42,"") ->  | C43: =IF(aux!AW42<0,aux!AW42,0) -> 0 | D43: =IF(SUM($C$42:$C$52)<>0,C43/SUM($C$42:$C$52),0) -> 0 | F43: =IF(H43<>0,aux!AZ42,"") ->  | G43: =IF(H43<>0,aux!BA42,"") ->  | H43: =IF(aux!BB42<0,aux!BB42,0) -> 0 | I43: =IF(SUM($H$42:$H$52)<>0,H43/SUM($H$42:$H$52),0) -> 0
A44: =IF(C44<>0,aux!AU43,"") -> 06 | B44: =IF(C44<0,aux!AV43,"") -> Plantas vivas e produtos de floricultura | C44: =IF(aux!AW43<0,aux!AW43,0) -> -4.211 | D44: 0.001795035199 | F44: =IF(H44<>0,aux!AZ43,"") -> 14 | G44: =IF(H44<>0,aux!BA43,"") -> Matérias para entrançar e outros | H44: =IF(aux!BB43<0,aux!BB43,0) -> -0.008 | I44: 1.467193193e-06
A45: =IF(C45<>0,aux!AU44,"") -> 13f | B45: =IF(C45<0,aux!AV44,"") -> Gomas e resinas (NC 1301) (f) | C45: =IF(aux!AW44<0,aux!AW44,0) -> -5.88 | D45: 0.002506484677 | F45: =IF(H45<>0,aux!AZ44,"") -> 13f | G45: =IF(H45<>0,aux!BA44,"") -> Gomas e resinas (NC 1301) (f) | H45: =IF(aux!BB44<0,aux!BB44,0) -> -8.057 | I45: 0.001477646945
A46: =IF(C46<>0,aux!AU45,"") -> 03 | B46: =IF(C46<0,aux!AV45,"") -> Peixes e crustáceos | C46: =IF(aux!AW45<0,aux!AW45,0) -> -6.508 | D46: 0.00277418406 | F46: =IF(H46<>0,aux!AZ45,"") -> 19a | G46: =IF(H46<>0,aux!BA45,"") -> Preparações à base de cereais (exc. NC 19022010) (a) | H46: =IF(aux!BB45<0,aux!BB45,0) -> -71.51 | I46: 0.01311487316
A47: =IF(C47<>0,aux!AU46,"") -> 05a | B47: =IF(C47<0,aux!AV46,"") -> Outros produtos de origem animal (exc. NC 0508, 051191) (a) | C47: =IF(aux!AW46<0,aux!AW46,0) -> -7.44 | D47: 0.003171470407 | F47: =IF(H47<>0,aux!AZ46,"") -> 25 | G47: =IF(H47<>0,aux!BA46,"") -> Sal e cloreto de sódio puro; água do mar (NC 2501) | H47: =IF(aux!BB46<0,aux!BB46,0) -> -82.179 | I47: 0.01507155868
A48: =IF(C48<>0,aux!AU47,"") -> 38f | B48: =IF(C48<0,aux!AV47,"") -> Tall oil, essências e colofónias (NC 3803,3805,3806) (f) | C48: =IF(aux!AW47<0,aux!AW47,0) -> -26.127 | D48: 0.01113723217 | F48: =IF(H48<>0,aux!AZ47,"") -> 22 | G48: =IF(H48<>0,aux!BA47,"") -> Bebidas, líquidos alcoólicos e vinagres | H48: =IF(aux!BB47<0,aux!BB47,0) -> -90.884 | I48: 0.01666804827
A49: =IF(C49<>0,aux!AU48,"") -> 12 | B49: =IF(C49<0,aux!AV48,"") -> Sementes e frutos oleaginosos | C49: =IF(aux!AW48<0,aux!AW48,0) -> -70.028 | D49: 0.02985103893 | F49: =IF(H49<>0,aux!AZ48,"") -> 05a | G49: =IF(H49<>0,aux!BA48,"") -> Outros produtos de origem animal (exc. NC 0508, 051191) (a) | H49: =IF(aux!BB48<0,aux!BB48,0) -> -94.252 | I49: 0.01728573661
A50: =IF(C50<>0,aux!AU49,"") -> 23a | B50: =IF(C50<0,aux!AV49,"") -> Resíduos indústrias alimentares; alimentos p/ animais (exc. NC 230120) (a) | C50: =IF(aux!AW49<0,aux!AW49,0) -> -270.871 | D50: 0.1154649678 | F50: =IF(H50<>0,aux!AZ49,"") -> 08 | G50: =IF(H50<>0,aux!BA49,"") -> Frutas | H50: =IF(aux!BB49<0,aux!BB49,0) -> -221.16 | I50: 0.04056055583
A51: =IF(C51<>0,aux!AU50,"") -> 04 | B51: =IF(C51<0,aux!AV50,"") -> Leite e laticínios; ovos; mel, etc. | C51: =IF(aux!AW50<0,aux!AW50,0) -> -500.623 | D51: 0.2134020201 | F51: =IF(H51<>0,aux!AZ50,"") -> 02 | G51: =IF(H51<>0,aux!BA50,"") -> Carnes e miudezas | H51: =IF(aux!BB50<0,aux!BB50,0) -> -333.919 | I51: 0.06124046049
A52: =IF(C52<>0,aux!AU51,"") -> 47 | B52: =IF(C52<0,aux!AV51,"") -> Pastas de madeira | C52: =IF(aux!AW51<0,aux!AW51,0) -> -1454.227 | D52: 0.6198975666 | F52: =IF(H52<>0,aux!AZ51,"") -> 15 | G52: =IF(H52<>0,aux!BA51,"") -> Gorduras e óleos animais ou vegetais | H52: =IF(aux!BB51<0,aux!BB51,0) -> -4550.619 | I52: 0.8345796528
A53: TOTAL | C53: =SUM(C31:C52) -> 38563.024 | F53: TOTAL | H53: =SUM(H31:H52) -> 22729.699

Sheet 5.2A
A1: Trocas comerciais Portugal-Áustria 2018-2022 em milhares de euros (NC 4 dígitos) | G1: Produtos agrícolas e agroalimentares, do mar e da floresta
A2: Cód. NC | B2: Descritivo | C2: Importações | K2: Exportações | S2: Saldo quinquénio (exp-imp) | T2: Evolução das importações | U2: =+"Variação das Importações " & INDEX(K3:N3,1,aux!AL1) & "-"& '5.2'!O3 &"" -> Variação das Importações 2018-2022 | Z2: Evolução das exportações | AA2: ="Variação das Exportações " & INDEX(K3:N3,1,aux!AL1) & "-"& '5.2'!O3 &"" -> Variação das Exportações 2018-2022
C3: 2018 | D3: 2019 | E3: 2020 | F3: 2021 | G3: 2022 | H3: média quinquénio | I3: % Subtot | J3: % Total | K3: 2018 | L3: 2019 | M3: 2020 | N3: 2021 | O3: 2022 | P3: média quinquénio | Q3: % Subtot | R3: % Total | U3: variação total em valor | V3: % no subtotal de variação | W3: % no total de variação | X3: taxa de variação média anual | Y3: taxa de variação total | AA3: variação total em valor | AB3: % no subtotal de variação | AC3: % no total de variação | AD3: taxa de variação média anual | AE3: taxa de variação total | AX3: filtro
A4: 0101 | B4: Equídeos vivos | C4: 0 | D4: 0 | E4: 0 | F4: 0 | G4: 0 | H4: 0 | I4: 0 | J4: 0 | K4: 0 | L4: 0 | M4: 0 | N4: 0 | O4: 0 | P4: 0 | Q4: 0 | R4: 0 | S4: 0 | U4: =G4-INDEX($C4:$G4,1,aux!$AL$1) -> 0 | V4: =IF($U$237<>0,U4/$U$237, "n.d.") -> 0 | W4: =IF($U$322<>0,U4/$U$322, "n.d.") -> 0 | X4: =+IF(INDEX($C4:$G4,1,aux!$AL$1)>0,(G4/INDEX($C4:$G4,1,aux!$AL$1))^(1/($G$3-INDEX($C$3:$G$3,1,aux!$AL$1)))-1,"n.d.") -> n.d. | Y4: =IF(INDEX($C4:$G4,1,aux!$AL$1)>0,(G4-INDEX($C4:$G4,1,aux!$AL$1))/INDEX($C4:$G4,1,aux!$AL$1),"n.d.") -> n.d. | AA4: =O4-INDEX($K4:$O4,1,aux!$AL$1) -> 0 | AB4: =IF($AA$237<>0,AA4/$AA$237, "n.d.") -> 0 | AC4: =IF($AA$322<>0,AA4/$AA$322, "n.d.") -> 0 | AD4: =+IF(INDEX($K4:$O4,1,aux!$AL$1)>0,(O4/INDEX($K4:$O4,1,aux!$AL$1))^(1/($O$3-INDEX($K$3:$O$3,1,aux!$AL$1)))-1,"n.d.") -> n.d. | AE4: =IF(INDEX($K4:$O4,1,aux!$AL$1)>0,(O4-INDEX($K4:$O4,1,aux!$AL$1))/INDEX($K4:$O4,1,aux!$AL$1),"n.d.") -> n.d. | AX4: =+LEFT(A4,2) -> 01
A5: 0102 | B5: Bovinos vivos | C5: 0 | D5: 0 | E5: 0 | F5: 0 | G5: 0 | H5: 0 | I5: 0 | J5: 0 | K5: 0 | L5: 0 | M5: 0 | N5: 0 | O5: 0 | P5: 0 | Q5: 0 | R5: 0 | S5: 0 | U5: =G5-INDEX($C5:$G5,1,aux!$AL$1) -> 0 | V5: 0 | W5: 0 | X5: =+IF(INDEX($C5:$G5,1,aux!$AL$1)>0,(G5/INDEX($C5:$G5,1,aux!$AL$1))^(1/($G$3-INDEX($C$3:$G$3,1,aux!$AL$1)))-1,"n.d.") -> n.d. | Y5: =IF(INDEX($C5:$G5,1,aux!$AL$1)>0,(G5-INDEX($C5:$G5,1,aux!$AL$1))/INDEX($C5:$G5,1,aux!$AL$1),"n.d.") -> n.d. | AA5: =O5-INDEX($K5:$O5,1,aux!$AL$1) -> 0 | AB5: 0 | AC5: 0 | AD5: =+IF(INDEX($K5:$O5,1,aux!$AL$1)>0,(O5/INDEX($K5:$O5,1,aux!$AL$1))^(1/($O$3-INDEX($K$3:$O$3,1,aux!$AL$1)))-1,"n.d.") -> n.d. | AE5: =IF(INDEX($K5:$O5,1,aux!$AL$1)>0,(O5-INDEX($K5:$O5,1,aux!$AL$1))/INDEX($K5:$O5,1,aux!$AL$1),"n.d.") -> n.d. | AX5: 01
A6: 0103 | B6: Suínos vivos | C6: 0 | D6: 0 | E6: 0 | F6: 0 | G6: 0 | H6: 0 | I6: 0 | J6: 0 | K6: 0 | L6: 0 | M6: 0 | N6: 0 | O6: 0 | P6: 0 | Q6: 0 | R6: 0 | S6: 0 | U6: =G6-INDEX($C6:$G6,1,aux!$AL$1) -> 0 | V6: 0 | W6: 0 | X6: =+IF(INDEX($C6:$G6,1,aux!$AL$1)>0,(G6/INDEX($C6:$G6,1,aux!$AL$1))^(1/($G$3-INDEX($C$3:$G$3,1,aux!$AL$1)))-1,"n.d.") -> n.d. | Y6: =IF(INDEX($C6:$G6,1,aux!$AL$1)>0,(G6-INDEX($C6:$G6,1,aux!$AL$1))/INDEX($C6:$G6,1,aux!$AL$1),"n.d.") -> n.d. | AA6: =O6-INDEX($K6:$O6,1,aux!$AL$1) -> 0 | AB6: 0 | AC6: 0 | AD6: =+IF(INDEX($K6:$O6,1,aux!$AL$1)>0,(O6/INDEX($K6:$O6,1,aux!$AL$1))^(1/($O$3-INDEX($K$3:$O$3,1,aux!$AL$1)))-1,"n.d.") -> n.d. | AE6: =IF(INDEX($K6:$O6,1,aux!$AL$1)>0,(O6-INDEX($K6:$O6,1,aux!$AL$1))/INDEX($K6:$O6,1,aux!$AL$1),"n.d.") -> n.d. | AX6: 01
A7: 0104 | B7: Ovinos ou caprinos vivos | C7: 0 | D7: 0 | E7: 0 | F7: 0 | G7: 0 | H7: 0 | I7: 0 | J7: 0 | K7: 0 | L7: 0 | M7: 0 | N7: 0 | O7: 0 | P7: 0 | Q7: 0 | R7: 0 | S7: 0 | U7: =G7-INDEX($C7:$G7,1,aux!$AL$1) -> 0 | V7: 0 | W7: 0 | X7: =+IF(INDEX($C7:$G7,1,aux!$AL$1)>0,(G7/INDEX($C7:$G7,1,aux!$AL$1))^(1/($G$3-INDEX($C$3:$G$3,1,aux!$AL$1)))-1,"n.d.") -> n.d. | Y7: =IF(INDEX($C7:$G7,1,aux!$AL$1)>0,(G7-INDEX($C7:$G7,1,aux!$AL$1))/INDEX($C7:$G7,1,aux!$AL$1),"n.d.") -> n.d. | AA7: =O7-INDEX($K7:$O7,1,aux!$AL$1) -> 0 | AB7: 0 | AC7: 0 | AD7: =+IF(INDEX($K7:$O7,1,aux!$AL$1)>0,(O7/INDEX($K7:$O7,1,aux!$AL$1))^(1/($O$3-INDEX($K$3:$O$3,1,aux!$AL$1)))-1,"n.d.") -> n.d. | AE7: =IF(INDEX($K7:$O7,1,aux!$AL$1)>0,(O7-INDEX($K7:$O7,1,aux!$AL$1))/INDEX($K7:$O7,1,aux!$AL$1),"n.d.") -> n.d. | AX7: 01
A8: 0105 | B8: Aves de capoeira vivas | C8: 0 | D8: 0 | E8: 0 | F8: 0 | G8: 0 | H8: 0 | I8: 0 | J8: 0 | K8: 0 | L8: 0 | M8: 0 | N8: 0 | O8: 0 | P8: 0 | Q8: 0 | R8: 0 | S8: 0 | U8: =G8-INDEX($C8:$G8,1,aux!$AL$1) -> 0 | V8: 0 | W8: 0 | X8: =+IF(INDEX($C8:$G8,1,aux!$AL$1)>0,(G8/INDEX($C8:$G8,1,aux!$AL$1))^(1/($G$3-INDEX($C$3:$G$3,1,aux!$AL$1)))-1,"n.d.") -> n.d. | Y8: =IF(INDEX($C8:$G8,1,aux!$AL$1)>0,(G8-INDEX($C8:$G8,1,aux!$AL$1))/INDEX($C8:$G8,1,aux!$AL$1),"n.d.") -> n.d. | AA8: =O8-INDEX($K8:$O8,1,aux!$AL$1) -> 0 | AB8: 0 | AC8: 0 | AD8: =+IF(INDEX($K8:$O8,1,aux!$AL$1)>0,(O8/INDEX($K8:$O8,1,aux!$AL$1))^(1/($O$3-INDEX($K$3:$O$3,1,aux!$AL$1)))-1,"n.d.") -> n.d. | AE8: =IF(INDEX($K8:$O8,1,aux!$AL$1)>0,(O8-INDEX($K8:$O8,1,aux!$AL$1))/INDEX($K8:$O8,1,aux!$AL$1),"n.d.") -> n.d. | AX8: 01
A9: 0106 | B9: Outros animais vivos | C9: 0 | D9: 1.253 | E9: 0 | F9: 0.703 | G9: 0 | H9: 0.3912 | I9: 1.645896604e-05 | J9: 6.072555942e-06 | K9: 0 | L9: 0 | M9: 0 | N9: 1.493 | O9: 55.038 | P9: 11.3062 | Q9: 0.0007913567398 | R9: 0.0002886886373 | S9: 10.915 | U9: =G9-INDEX($C9:$G9,1,aux!$AL$1) -> 0 | V9: 0 | W9: 0 | X9: =+IF(INDEX($C9:$G9,1,aux!$AL$1)>0,(G9/INDEX($C9:$G9,1,aux!$AL$1))^(1/($G$3-INDEX($C$3:$G$3,1,aux!$AL$1)))-1,"n.d.") -> n.d. | Y9: =IF(INDEX($C9:$G9,1,aux!$AL$1)>0,(G9-INDEX($C9:$G9,1,aux!$AL$1))/INDEX($C9:$G9,1,aux!$AL$1),"n.d.") -> n.d. | AA9: =O9-INDEX($K9:$O9,1,aux!$AL$1) -> 55.038 | AB9: 0.01339008757 | AC9: 0.0024214135 | AD9: =+IF(INDEX($K9:$O9,1,aux!$AL$1)>0,(O9/INDEX($K9:$O9,1,aux!$AL$1))^(1/($O$3-INDEX($K$3:$O$3,1,aux!$AL$1)))-1,"n.d.") -> n.d. | AE9: =IF(INDEX($K9:$O9,1,aux!$AL$1)>0,(O9-INDEX($K9:$O9,1,aux!$AL$1))/INDEX($K9:$O9,1,aux!$AL$1),"n.d.") -> n.d. | AX9: 01
A10: 01SS | B10: Animais vivos | C10: 0 | D10: 0 | E10: 0 | F10: 0 | G10: 0 | H10: 0 | I10: 0 | J10: 0 | K10: 0 | L10: 0 | M10: 0 | N10: 0 | O10: 0 | P10: 0 | Q10: 0 | R10: 0 | S10: 0 | U10: =G10-INDEX($C10:$G10,1,aux!$AL$1) -> 0 | V10: 0 | W10: 0 | X10: =+IF(INDEX($C10:$G10,1,aux!$AL$1)>0,(G10/INDEX($C10:$G10,1,aux!$AL$1))^(1/($G$3-INDEX($C$3:$G$3,1,aux!$AL$1)))-1,"n.d.") -> n.d. | Y10: =IF(INDEX($C10:$G10,1,aux!$AL$1)>0,(G10-INDEX($C10:$G10,1,aux!$AL$1))/INDEX($C10:$G10,1,aux!$AL$1),"n.d.") -> n.d. | AA10: =O10-INDEX($K10:$O10,1,aux!$AL$1) -> 0 | AB10: 0 | AC10: 0 | AD10: =+IF(INDEX($K10:$O10,1,aux!$AL$1)>0,(O10/INDEX($K10:$O10,1,aux!$AL$1))^(1/($O$3-INDEX($K$3:$O$3,1,aux!$AL$1)))-1,"n.d.") -> n.d. | AE10: =IF(INDEX($K10:$O10,1,aux!$AL$1)>0,(O10-INDEX($K10:$O10,1,aux!$AL$1))/INDEX($K10:$O10,1,aux!$AL$1),"n.d.") -> n.d. | AX10: 01
A11: 0201 | B11: Carnes de bovino, frescas ou refrigeradas | C11: 198.851 | D11: 103.354 | E11: 64.471 | F11: 365.968 | G11: 176.389 | H11: 181.8066 | I11: 0.007649153006 | J11: 0.002822164491 | K11: 0 | L11: 0 | M11: 0 | N11: 31.664 | O11: 20.644 | P11: 10.4616 | Q11: 0.0007322405114 | R11: 0.0002671229102 | S11: -171.345 | U11: =G11-INDEX($C11:$G11,1,aux!$AL$1) -> -22.462 | V11: -0.001288915129 | W11: -0.0005824750673 | X11: =+IF(INDEX($C11:$G11,1,aux!$AL$1)>0,(G11/INDEX($C11:$G11,1,aux!$AL$1))^(1/($G$3-INDEX($C$3:$G$3,1,aux!$AL$1)))-1,"n.d.") -> -0.02952147492 | Y11: =IF(INDEX($C11:$G11,1,aux!$AL$1)>0,(G11-INDEX($C11:$G11,1,aux!$AL$1))/INDEX($C11:$G11,1,aux!$AL$1),"n.d.") -> -0.1129589492 | AA11: =O11-INDEX($K11:$O11,1,aux!$AL$1) -> 20.644 | AB11: 0.005022438457 | AC11: 0.00090823904 | AD11: =+IF(INDEX($K11:$O11,1,aux!$AL$1)>0,(O11/INDEX($K11:$O11,1,aux!$AL$1))^(1/($O$3-INDEX($K$3:$O$3,1,aux!$AL$1)))-1,"n.d.") -> n.d. | AE11: =IF(INDEX($K11:$O11,1,aux!$AL$1)>0,(O11-INDEX($K11:$O11,1,aux!$AL$1))/INDEX($K11:$O11,1,aux!$AL$1),"n.d.") -> n.d. | AX11: 02
A12: 0202 | B12: Carnes de bovino, congeladas | C12: 0 | D12: 2.567 | E12: 0 | F12: 15.219 | G12: 54.818 | H12: 14.5208 | I12: 0.0006109339318 | J12: 0.0002254048321 | K12: 0 | L12: 0 | M12: 0 | N12: 0 | O12: 0 | P12: 0 | Q12: 0 | R12: 0 | S12: -14.5208 | U12: =G12-INDEX($C12:$G12,1,aux!$AL$1) -> 54.818 | V12: 0.00314556805 | W12: 0.001421517151 | X12: =+IF(INDEX($C12:$G12,1,aux!$AL$1)>0,(G12/INDEX($C12:$G12,1,aux!$AL$1))^(1/($G$3-INDEX($C$3:$G$3,1,aux!$AL$1)))-1,"n.d.") -> n.d. | Y12: =IF(INDEX($C12:$G12,1,aux!$AL$1)>0,(G12-INDEX($C12:$G12,1,aux!$AL$1))/INDEX($C12:$G12,1,aux!$AL$1),"n.d.") -> n.d. | AA12: =O12-INDEX($K12:$O12,1,aux!$AL$1) -> 0 | AB12: 0 | AC12: 0 | AD12: =+IF(INDEX($K12:$O12,1,aux!$AL$1)>0,(O12/INDEX($K12:$O12,1,aux!$AL$1))^(1/($O$3-INDEX($K$3:$O$3,1,aux!$AL$1)))-1,"n.d.") -> n.d. | AE12: =IF(INDEX($K12:$O12,1,aux!$AL$1)>0,(O12-INDEX($K12:$O12,1,aux!$AL$1))/INDEX($K12:$O12,1,aux!$AL$1),"n.d.") -> n.d. | AX12: 02
A13: 0203 | B13: Carnes de suíno | C13: 0 | D13: 0 | E13: 154.591 | F13: 112.728 | G13: 0 | H13: 53.4638 | I13: 0.002249383611 | J13: 0.0008299128741 | K13: 357.047 | L13: 132.363 | M13: 17.621 | N13: 43.38 | O13: 0 | P13: 110.0822 | Q13: 0.007705001761 | R13: 0.00281080118 | S13: 56.6184 | U13: =G13-INDEX($C13:$G13,1,aux!$AL$1) -> 0 | V13: 0 | W13: 0 | X13: =+IF(INDEX($C13:$G13,1,aux!$AL$1)>0,(G13/INDEX($C13:$G13,1,aux!$AL$1))^(1/($G$3-INDEX($C$3:$G$3,1,aux!$AL$1)))-1,"n.d.") -> n.d. | Y13: =IF(INDEX($C13:$G13,1,aux!$AL$1)>0,(G13-INDEX($C13:$G13,1,aux!$AL$1))/INDEX($C13:$G13,1,aux!$AL$1),"n.d.") -> n.d. | AA13: =O13-INDEX($K13:$O13,1,aux!$AL$1) -> -357.047 | AB13: -0.08686526757 | AC13: -0.01570839104 | AD13: =+IF(INDEX($K13:$O13,1,aux!$AL$1)>0,(O13/INDEX($K13:$O13,1,aux!$AL$1))^(1/($O$3-INDEX($K$3:$O$3,1,aux!$AL$1)))-1,"n.d.") -> -1 | AE13: =IF(INDEX($K13:$O13,1,aux!$AL$1)>0,(O13-INDEX($K13:$O13,1,aux!$AL$1))/INDEX($K13:$O13,1,aux!$AL$1),"n.d.") -> -1 | AX13: 02
A14: 0204 | B14: Carnes de ovino ou caprino | C14: 0 | D14: 0 | E14: 0 | F14: 0 | G14: 0 | H14: 0 | I14: 0 | J14: 0 | K14: 0 | L14: 0 | M14: 0 | N14: 0 | O14: 0 | P14: 0 | Q14: 0 | R14: 0 | S14: 0 | U14: =G14-INDEX($C14:$G14,1,aux!$AL$1) -> 0 | V14: 0 | W14: 0 | X14: =+IF(INDEX($C14:$G14,1,aux!$AL$1)>0,(G14/INDEX($C14:$G14,1,aux!$AL$1))^(1/($G$3-INDEX($C$3:$G$3,1,aux!$AL$1)))-1,"n.d.") -> n.d. | Y14: =IF(INDEX($C14:$G14,1,aux!$AL$1)>0,(G14-INDEX($C14:$G14,1,aux!$AL$1))/INDEX($C14:$G14,1,aux!$AL$1),"n.d.") -> n.d. | AA14: =O14-INDEX($K14:$O14,1,aux!$AL$1) -> 0 | AB14: 0 | AC14: 0 | AD14: =+IF(INDEX($K14:$O14,1,aux!$AL$1)>0,(O14/INDEX($K14:$O14,1,aux!$AL$1))^(1/($O$3-INDEX($K$3:$O$3,1,aux!$AL$1)))-1,"n.d.") -> n.d. | AE14: =IF(INDEX($K14:$O14,1,aux!$AL$1)>0,(O14-INDEX($K14:$O14,1,aux!$AL$1))/INDEX($K14:$O14,1,aux!$AL$1),"n.d.") -> n.d. | AX14: 02
A15: 0205 | B15: Carnes de equídeo | C15: 0 | D15: 0 | E15: 0 | F15: 0 | G15: 0 | H15: 0 | I15: 0 | J15: 0 | K15: 0 | L15: 0 | M15: 0 | N15: 0 | O15: 0 | P15: 0 | Q15: 0 | R15: 0 | S15: 0 | U15: =G15-INDEX($C15:$G15,1,aux!$AL$1) -> 0 | V15: 0 | W15: 0 | X15: =+IF(INDEX($C15:$G15,1,aux!$AL$1)>0,(G15/INDEX($C15:$G15,1,aux!$AL$1))^(1/($G$3-INDEX($C$3:$G$3,1,aux!$AL$1)))-1,"n.d.") -> n.d. | Y15: =IF(INDEX($C15:$G15,1,aux!$AL$1)>0,(G15-INDEX($C15:$G15,1,aux!$AL$1))/INDEX($C15:$G15,1,aux!$AL$1),"n.d.") -> n.d. | AA15: =O15-INDEX($K15:$O15,1,aux!$AL$1) -> 0 | AB15: 0 | AC15: 0 | AD15: =+IF(INDEX($K15:$O15,1,aux!$AL$1)>0,(O15/INDEX($K15:$O15,1,aux!$AL$1))^(1/($O$3-INDEX($K$3:$O$3,1,aux!$AL$1)))-1,"n.d.") -> n.d. | AE15: =IF(INDEX($K15:$O15,1,aux!$AL$1)>0,(O15-INDEX($K15:$O15,1,aux!$AL$1))/INDEX($K15:$O15,1,aux!$AL$1),"n.d.") -> n.d. | AX15: 02
A16: 0206 | B16: Miudezas de bovino, suíno, ovino, caprino,equídeo | C16: 0 | D16: 0 | E16: 0 | F16: 0 | G16: 0 | H16: 0 | I16: 0 | J16: 0 | K16: 0 | L16: 0 | M16: 19.765 | N16: 1.788 | O16: 0 | P16: 4.3106 | Q16: 0.0003017125438 | R16: 0.0001100653836 | S16: 4.3106 | U16: =G16-INDEX($C16:$G16,1,aux!$AL$1) -> 0 | V16: 0 | W16: 0 | X16: =+IF(INDEX($C16:$G16,1,aux!$AL$1)>0,(G16/INDEX($C16:$G16,1,aux!$AL$1))^(1/($G$3-INDEX($C$3:$G$3,1,aux!$AL$1)))-1,"n.d.") -> n.d. | Y16: =IF(INDEX($C16:$G16,1,aux!$AL$1)>0,(G16-INDEX($C16:$G16,1,aux!$AL$1))/INDEX($C16:$G16,1,aux!$AL$1),"n.d.") -> n.d. | AA16: =O16-INDEX($K16:$O16,1,aux!$AL$1) -> 0 | AB16: 0 | AC16: 0 | AD16: =+IF(INDEX($K16:$O16,1,aux!$AL$1)>0,(O16/INDEX($K16:$O16,1,aux!$AL$1))^(1/($O$3-INDEX($K$3:$O$3,1,aux!$AL$1)))-1,"n.d.") -> n.d. | AE16: =IF(INDEX($K16:$O16,1,aux!$AL$1)>0,(O16-INDEX($K16:$O16,1,aux!$AL$1))/INDEX($K16:$O16,1,aux!$AL$1),"n.d.") -> n.d. | AX16: 02
A17: 0207 | B17: Carnes e miudezas de aves de capoeira | C17: 0 | D17: 0 | E17: 33.267 | F17: 0 | G17: 0 | H17: 6.6534 | I17: 0.0002799286418 | J17: 0.0001032800197 | K17: 0 | L17: 0 | M17: 0 | N17: 0 | O17: 0 | P17: 0 | Q17: 0 | R17: 0 | S17: -6.6534 | U17: =G17-INDEX($C17:$G17,1,aux!$AL$1) -> 0 | V17: 0 | W17: 0 | X17: =+IF(INDEX($C17:$G17,1,aux!$AL$1)>0,(G17/INDEX($C17:$G17,1,aux!$AL$1))^(1/($G$3-INDEX($C$3:$G$3,1,aux!$AL$1)))-1,"n.d.") -> n.d. | Y17: =IF(INDEX($C17:$G17,1,aux!$AL$1)>0,(G17-INDEX($C17:$G17,1,aux!$AL$1))/INDEX($C17:$G17,1,aux!$AL$1),"n.d.") -> n.d. | AA17: =O17-INDEX($K17:$O17,1,aux!$AL$1) -> 0 | AB17: 0 | AC17: 0 | AD17: =+IF(INDEX($K17:$O17,1,aux!$AL$1)>0,(O17/INDEX($K17:$O17,1,aux!$AL$1))^(1/($O$3-INDEX($K$3:$O$3,1,aux!$AL$1)))-1,"n.d.") -> n.d. | AE17: =IF(INDEX($K17:$O17,1,aux!$AL$1)>0,(O17-INDEX($K17:$O17,1,aux!$AL$1))/INDEX($K17:$O17,1,aux!$AL$1),"n.d.") -> n.d. | AX17: 02
A18: 0208 | B18: Outras carnes e miudezas | C18: 0 | D18: 0 | E18: 0 | F18: 0 | G18: 0 | H18: 0 | I18: 0 | J18: 0 | K18: 0 | L18: 0 | M18: 0 | N18: 0 | O18: 0 | P18: 0 | Q18: 0 | R18: 0 | S18: 0 | U18: =G18-INDEX($C18:$G18,1,aux!$AL$1) -> 0 | V18: 0 | W18: 0 | X18: =+IF(INDEX($C18:$G18,1,aux!$AL$1)>0,(G18/INDEX($C18:$G18,1,aux!$AL$1))^(1/($G$3-INDEX($C$3:$G$3,1,aux!$AL$1)))-1,"n.d.") -> n.d. | Y18: =IF(INDEX($C18:$G18,1,aux!$AL$1)>0,(G18-INDEX($C18:$G18,1,aux!$AL$1))/INDEX($C18:$G18,1,aux!$AL$1),"n.d.") -> n.d. | AA18: =O18-INDEX($K18:$O18,1,aux!$AL$1) -> 0 | AB18: 0 | AC18: 0 | AD18: =+IF(INDEX($K18:$O18,1,aux!$AL$1)>0,(O18/INDEX($K18:$O18,1,aux!$AL$1))^(1/($O$3-INDEX($K$3:$O$3,1,aux!$AL$1)))-1,"n.d.") -> n.d. | AE18: =IF(INDEX($K18:$O18,1,aux!$AL$1)>0,(O18-INDEX($K18:$O18,1,aux!$AL$1))/INDEX($K18:$O18,1,aux!$AL$1),"n.d.") -> n.d. | AX18: 02
A19: 0209 | B19: Toucinho, gorduras de porco e de aves | C19: 0 | D19: 0 | E19: 0 | F19: 0 | G19: 0 | H19: 0 | I19: 0 | J19: 0 | K19: 0 | L19: 0 | M19: 0 | N19: 0 | O19: 0 | P19: 0 | Q19: 0 | R19: 0 | S19: 0 | U19: =G19-INDEX($C19:$G19,1,aux!$AL$1) -> 0 | V19: 0 | W19: 0 | X19: =+IF(INDEX($C19:$G19,1,aux!$AL$1)>0,(G19/INDEX($C19:$G19,1,aux!$AL$1))^(1/($G$3-INDEX($C$3:$G$3,1,aux!$AL$1)))-1,"n.d.") -> n.d. | Y19: =IF(INDEX($C19:$G19,1,aux!$AL$1)>0,(G19-INDEX($C19:$G19,1,aux!$AL$1))/INDEX($C19:$G19,1,aux!$AL$1),"n.d.") -> n.d. | AA19: =O19-INDEX($K19:$O19,1,aux!$AL$1) -> 0 | AB19: 0 | AC19: 0 | AD19: =+IF(INDEX($K19:$O19,1,aux!$AL$1)>0,(O19/INDEX($K19:$O19,1,aux!$AL$1))^(1/($O$3-INDEX($K$3:$O$3,1,aux!$AL$1)))-1,"n.d.") -> n.d. | AE19: =IF(INDEX($K19:$O19,1,aux!$AL$1)>0,(O19-INDEX($K19:$O19,1,aux!$AL$1))/INDEX($K19:$O19,1,aux!$AL$1),"n.d.") -> n.d. | AX19: 02
A20: 0210 | B20: Carnes e miudezas processadas; farinhas de carnes | C20: 0 | D20: 10.64 | E20: 20.076 | F20: 5.009 | G20: 11.74 | H20: 9.493 | I20: 0.0003993991939 | J20: 0.0001473588281 | K20: 0.123 | L20: 0.146 | M20: 0.297 | N20: 0.659 | O20: 2.607 | P20: 0.7664 | Q20: 5.364276286e-05 | R20: 1.956899503e-05 | S20: -8.7266 | U20: =G20-INDEX($C20:$G20,1,aux!$AL$1) -> 11.74 | V20: 0.0006736650171 | W20: 0.000304436706 | X20: =+IF(INDEX($C20:$G20,1,aux!$AL$1)>0,(G20/INDEX($C20:$G20,1,aux!$AL$1))^(1/($G$3-INDEX($C$3:$G$3,1,aux!$AL$1)))-1,"n.d.") -> n.d. | Y20: =IF(INDEX($C20:$G20,1,aux!$AL$1)>0,(G20-INDEX($C20:$G20,1,aux!$AL$1))/INDEX($C20:$G20,1,aux!$AL$1),"n.d.") -> n.d. | AA20: =O20-INDEX($K20:$O20,1,aux!$AL$1) -> 2.484 | AB20: 0.0006043275105 | AC20: 0.0001092843332 | AD20: =+IF(INDEX($K20:$O20,1,aux!$AL$1)>0,(O20/INDEX($K20:$O20,1,aux!$AL$1))^(1/($O$3-INDEX($K$3:$O$3,1,aux!$AL$1)))-1,"n.d.") -> 1.145650489 | AE20: =IF(INDEX($K20:$O20,1,aux!$AL$1)>0,(O20-INDEX($K20:$O20,1,aux!$AL$1))/INDEX($K20:$O20,1,aux!$AL$1),"n.d.") -> 20.19512195 | AX20: 02
A21: 02SS | B21: Carnes e miudezas, comestíveis | C21: 0 | D21: 0 | E21: 0 | F21: 0 | G21: 0 | H21: 0 | I21: 0 | J21: 0 | K21: 0 | L21: 0 | M21: 0 | N21: 0 | O21: 0 | P21: 0 | Q21: 0 | R21: 0 | S21: 0 | U21: =G21-INDEX($C21:$G21,1,aux!$AL$1) -> 0 | V21: 0 | W21: 0 | X21: =+IF(INDEX($C21:$G21,1,aux!$AL$1)>0,(G21/INDEX($C21:$G21,1,aux!$AL$1))^(1/($G$3-INDEX($C$3:$G$3,1,aux!$AL$1)))-1,"n.d.") -> n.d. | Y21: =IF(INDEX($C21:$G21,1,aux!$AL$1)>0,(G21-INDEX($C21:$G21,1,aux!$AL$1))/INDEX($C21:$G21,1,aux!$AL$1),"n.d.") -> n.d. | AA21: =O21-INDEX($K21:$O21,1,aux!$AL$1) -> 0 | AB21: 0 | AC21: 0 | AD21: =+IF(INDEX($K21:$O21,1,aux!$AL$1)>0,(O21/INDEX($K21:$O21,1,aux!$AL$1))^(1/($O$3-INDEX($K$3:$O$3,1,aux!$AL$1)))-1,"n.d.") -> n.d. | AE21: =IF(INDEX($K21:$O21,1,aux!$AL$1)>0,(O21-INDEX($K21:$O21,1,aux!$AL$1))/INDEX($K21:$O21,1,aux!$AL$1),"n.d.") -> n.d. | AX21: 02
A22: 0401 | B22: Leite e nata, não concentrados | C22: 230.962 | D22: 7.854 | E22: 6.298 | F22: 6.763 | G22: 8.065 | H22: 51.9884 | I22: 0.002187309075 | J22: 0.000807010397 | K22: 0 | L22: 0 | M22: 0 | N22: 0.048 | O22: 0 | P22: 0.0096 | Q22: 6.71934399e-07 | R22: 2.45123111e-07 | S22: -51.9788 | U22: =G22-INDEX($C22:$G22,1,aux!$AL$1) -> -222.897 | V22: -0.01279028206 | W22: -0.005780070567 | X22: =+IF(INDEX($C22:$G22,1,aux!$AL$1)>0,(G22/INDEX($C22:$G22,1,aux!$AL$1))^(1/($G$3-INDEX($C$3:$G$3,1,aux!$AL$1)))-1,"n.d.") -> -0.5677191866 | Y22: =IF(INDEX($C22:$G22,1,aux!$AL$1)>0,(G22-INDEX($C22:$G22,1,aux!$AL$1))/INDEX($C22:$G22,1,aux!$AL$1),"n.d.") -> -0.9650808358 | AA22: =O22-INDEX($K22:$O22,1,aux!$AL$1) -> 0 | AB22: 0 | AC22: 0 | AD22: =+IF(INDEX($K22:$O22,1,aux!$AL$1)>0,(O22/INDEX($K22:$O22,1,aux!$AL$1))^(1/($O$3-INDEX($K$3:$O$3,1,aux!$AL$1)))-1,"n.d.") -> n.d. | AE22: =IF(INDEX($K22:$O22,1,aux!$AL$1)>0,(O22-INDEX($K22:$O22,1,aux!$AL$1))/INDEX($K22:$O22,1,aux!$AL$1),"n.d.") -> n.d. | AX22: 04
A23: 0402 | B23: Leite e nata, concentrados | C23: 90.74 | D23: 272.345 | E23: 78.749 | F23: 271.769 | G23: 351.43 | H23: 213.0066 | I23: 0.008961831279 | J23: 0.003306478769 | K23: 0.141 | L23: 0.321 | M23: 0.525 | N23: 636.941 | O23: 3700.325 | P23: 867.6506 | Q23: 0.06072961297 | R23: 0.02215429316 | S23: 654.644 | U23: =G23-INDEX($C23:$G23,1,aux!$AL$1) -> 260.69 | V23: 0.01495892107 | W23: 0.006760102631 | X23: =+IF(INDEX($C23:$G23,1,aux!$AL$1)>0,(G23/INDEX($C23:$G23,1,aux!$AL$1))^(1/($G$3-INDEX($C$3:$G$3,1,aux!$AL$1)))-1,"n.d.") -> 0.4028460524 | Y23: =IF(INDEX($C23:$G23,1,aux!$AL$1)>0,(G23-INDEX($C23:$G23,1,aux!$AL$1))/INDEX($C23:$G23,1,aux!$AL$1),"n.d.") -> 2.872933657 | AA23: =O23-INDEX($K23:$O23,1,aux!$AL$1) -> 3700.184 | AB23: 0.9002105415 | AC23: 0.1627907171 | AD23: =+IF(INDEX($K23:$O23,1,aux!$AL$1)>0,(O23/INDEX($K23:$O23,1,aux!$AL$1))^(1/($O$3-INDEX($K$3:$O$3,1,aux!$AL$1)))-1,"n.d.") -> 11.72785413 | AE23: =IF(INDEX($K23:$O23,1,aux!$AL$1)>0,(O23-INDEX($K23:$O23,1,aux!$AL$1))/INDEX($K23:$O23,1,aux!$AL$1),"n.d.") -> 26242.43972 | AX23: 04
A24: 0403 | B24: Leitelho, leite coalhado, iogurte, etc. | C24: 1039.198 | D24: 629.272 | E24: 552.004 | F24: 440.46 | G24: 679.599 | H24: 668.1066 | I24: 0.0281092634 | J24: 0.01037094761 | K24: 0 | L24: 0 | M24: 0.024 | N24: 0 | O24: 0 | P24: 0.0048 | Q24: 3.359671995e-07 | R24: 1.225615555e-07 | S24: -668.1018 | U24: =G24-INDEX($C24:$G24,1,aux!$AL$1) -> -359.599 | V24: -0.02063452014 | W24: -0.009324968913 | X24: =+IF(INDEX($C24:$G24,1,aux!$AL$1)>0,(G24/INDEX($C24:$G24,1,aux!$AL$1))^(1/($G$3-INDEX($C$3:$G$3,1,aux!$AL$1)))-1,"n.d.") -> -0.1007331022 | Y24: =IF(INDEX($C24:$G24,1,aux!$AL$1)>0,(G24-INDEX($C24:$G24,1,aux!$AL$1))/INDEX($C24:$G24,1,aux!$AL$1),"n.d.") -> -0.3460351155 | AA24: =O24-INDEX($K24:$O24,1,aux!$AL$1) -> 0 | AB24: 0 | AC24: 0 | AD24: =+IF(INDEX($K24:$O24,1,aux!$AL$1)>0,(O24/INDEX($K24:$O24,1,aux!$AL$1))^(1/($O$3-INDEX($K$3:$O$3,1,aux!$AL$1)))-1,"n.d.") -> n.d. | AE24: =IF(INDEX($K24:$O24,1,aux!$AL$1)>0,(O24-INDEX($K24:$O24,1,aux!$AL$1))/INDEX($K24:$O24,1,aux!$AL$1),"n.d.") -> n.d. | AX24: 04
A25: 0404 | B25: Soro de leite e outros produtos do leite | C25: 55.691 | D25: 28.105 | E25: 0 | F25: 0 | G25: 4.361 | H25: 17.6314 | I25: 0.0007418062727 | J25: 0.0002736903447 | K25: 0.293 | L25: 0 | M25: 0.368 | N25: 0 | O25: 0 | P25: 0.1322 | Q25: 9.25309662e-06 | R25: 3.375549508e-06 | S25: -17.4992 | U25: =G25-INDEX($C25:$G25,1,aux!$AL$1) -> -51.33 | V25: -0.002945419534 | W25: -0.001331067813 | X25: =+IF(INDEX($C25:$G25,1,aux!$AL$1)>0,(G25/INDEX($C25:$G25,1,aux!$AL$1))^(1/($G$3-INDEX($C$3:$G$3,1,aux!$AL$1)))-1,"n.d.") -> -0.4710065829 | Y25: =IF(INDEX($C25:$G25,1,aux!$AL$1)>0,(G25-INDEX($C25:$G25,1,aux!$AL$1))/INDEX($C25:$G25,1,aux!$AL$1),"n.d.") -> -0.9216929127 | AA25: =O25-INDEX($K25:$O25,1,aux!$AL$1) -> -0.293 | AB25: -7.128339797e-05 | AC25: -1.289062385e-05 | AD25: =+IF(INDEX($K25:$O25,1,aux!$AL$1)>0,(O25/INDEX($K25:$O25,1,aux!$AL$1))^(1/($O$3-INDEX($K$3:$O$3,1,aux!$AL$1)))-1,"n.d.") -> -1 | AE25: =IF(INDEX($K25:$O25,1,aux!$AL$1)>0,(O25-INDEX($K25:$O25,1,aux!$AL$1))/INDEX($K25:$O25,1,aux!$AL$1),"n.d.") -> -1 | AX25: 04
A26: 0405 | B26: Manteiga | C26: 14.294 | D26: 17.678 | E26: 16.199 | F26: 19.225 | G26: 23.236 | H26: 18.1264 | I26: 0.0007626324184 | J26: 0.0002813741769 | K26: 0.038 | L26: 0.095 | M26: 0.324 | N26: 28.607 | O26: 122.454 | P26: 30.3036 | Q26: 0.002121044922 | R26: 0.0007737617403 | S26: 12.1772 | U26: =G26-INDEX($C26:$G26,1,aux!$AL$1) -> 8.942 | V26: 0.0005131101008 | W26: 0.0002318801555 | X26: =+IF(INDEX($C26:$G26,1,aux!$AL$1)>0,(G26/INDEX($C26:$G26,1,aux!$AL$1))^(1/($G$3-INDEX($C$3:$G$3,1,aux!$AL$1)))-1,"n.d.") -> 0.1291506725 | Y26: =IF(INDEX($C26:$G26,1,aux!$AL$1)>0,(G26-INDEX($C26:$G26,1,aux!$AL$1))/INDEX($C26:$G26,1,aux!$AL$1),"n.d.") -> 0.6255771652 | AA26: =O26-INDEX($K26:$O26,1,aux!$AL$1) -> 122.416 | AB26: 0.02978234965 | AC26: 0.005385729041 | AD26: =+IF(INDEX($K26:$O26,1,aux!$AL$1)>0,(O26/INDEX($K26:$O26,1,aux!$AL$1))^(1/($O$3-INDEX($K$3:$O$3,1,aux!$AL$1)))-1,"n.d.") -> 6.534376957 | AE26: =IF(INDEX($K26:$O26,1,aux!$AL$1)>0,(O26-INDEX($K26:$O26,1,aux!$AL$1))/INDEX($K26:$O26,1,aux!$AL$1),"n.d.") -> 3221.473684 | AX26: 04
A27: 0406 | B27: Queijos e requeijão | C27: 310.169 | D27: 342.668 | E27: 335.052 | F27: 347.968 | G27: 172.522 | H27: 301.6758 | I27: 0.01269241244 | J27: 0.004682881318 | K27: 296.159 | L27: 344.201 | M27: 241.134 | N27: 653.045 | O27: 660.716 | P27: 439.051 | Q27: 0.03073056977 | R27: 0.01121057781 | S27: 137.3752 | U27: =G27-INDEX($C27:$G27,1,aux!$AL$1) -> -137.647 | V27: -0.007898464107 | W27: -0.003569403686 | X27: =+IF(INDEX($C27:$G27,1,aux!$AL$1)>0,(G27/INDEX($C27:$G27,1,aux!$AL$1))^(1/($G$3-INDEX($C$3:$G$3,1,aux!$AL$1)))-1,"n.d.") -> -0.1364022074 | Y27: =IF(INDEX($C27:$G27,1,aux!$AL$1)>0,(G27-INDEX($C27:$G27,1,aux!$AL$1))/INDEX($C27:$G27,1,aux!$AL$1),"n.d.") -> -0.4437806486 | AA27: =O27-INDEX($K27:$O27,1,aux!$AL$1) -> 364.557 | AB27: 0.0886923608 | AC27: 0.01603879576 | AD27: =+IF(INDEX($K27:$O27,1,aux!$AL$1)>0,(O27/INDEX($K27:$O27,1,aux!$AL$1))^(1/($O$3-INDEX($K$3:$O$3,1,aux!$AL$1)))-1,"n.d.") -> 0.2221442596 | AE27: =IF(INDEX($K27:$O27,1,aux!$AL$1)>0,(O27-INDEX($K27:$O27,1,aux!$AL$1))/INDEX($K27:$O27,1,aux!$AL$1),"n.d.") -> 1.230950267 | AX27: 04
A28: 0407 | B28: Ovos de aves, com cascas | C28: 0 | D28: 0 | E28: 0 | F28: 0 | G28: 0 | H28: 0 | I28: 0 | J28: 0 | K28: 0 | L28: 0 | M28: 142.813 | N28: 15.116 | O28: 0 | P28: 31.5858 | Q28: 0.002210790161 | R28: 0.0008065009958 | S28: 31.5858 | U28: =G28-INDEX($C28:$G28,1,aux!$AL$1) -> 0 | V28: 0 | W28: 0 | X28: =+IF(INDEX($C28:$G28,1,aux!$AL$1)>0,(G28/INDEX($C28:$G28,1,aux!$AL$1))^(1/($G$3-INDEX($C$3:$G$3,1,aux!$AL$1)))-1,"n.d.") -> n.d. | Y28: =IF(INDEX($C28:$G28,1,aux!$AL$1)>0,(G28-INDEX($C28:$G28,1,aux!$AL$1))/INDEX($C28:$G28,1,aux!$AL$1),"n.d.") -> n.d. | AA28: =O28-INDEX($K28:$O28,1,aux!$AL$1) -> 0 | AB28: 0 | AC28: 0 | AD28: =+IF(INDEX($K28:$O28,1,aux!$AL$1)>0,(O28/INDEX($K28:$O28,1,aux!$AL$1))^(1/($O$3-INDEX($K$3:$O$3,1,aux!$AL$1)))-1,"n.d.") -> n.d. | AE28: =IF(INDEX($K28:$O28,1,aux!$AL$1)>0,(O28-INDEX($K28:$O28,1,aux!$AL$1))/INDEX($K28:$O28,1,aux!$AL$1),"n.d.") -> n.d. | AX28: 04
A29: 0408 | B29: Ovos de aves, sem casca | C29: 0 | D29: 0 | E29: 0 | F29: 0 | G29: 0 | H29: 0 | I29: 0 | J29: 0 | K29: 0 | L29: 0 | M29: 0 | N29: 0 | O29: 0 | P29: 0 | Q29: 0 | R29: 0 | S29: 0 | U29: =G29-INDEX($C29:$G29,1,aux!$AL$1) -> 0 | V29: 0 | W29: 0 | X29: =+IF(INDEX($C29:$G29,1,aux!$AL$1)>0,(G29/INDEX($C29:$G29,1,aux!$AL$1))^(1/($G$3-INDEX($C$3:$G$3,1,aux!$AL$1)))-1,"n.d.") -> n.d. | Y29: =IF(INDEX($C29:$G29,1,aux!$AL$1)>0,(G29-INDEX($C29:$G29,1,aux!$AL$1))/INDEX($C29:$G29,1,aux!$AL$1),"n.d.") -> n.d. | AA29: =O29-INDEX($K29:$O29,1,aux!$AL$1) -> 0 | AB29: 0 | AC29: 0 | AD29: =+IF(INDEX($K29:$O29,1,aux!$AL$1)>0,(O29/INDEX($K29:$O29,1,aux!$AL$1))^(1/($O$3-INDEX($K$3:$O$3,1,aux!$AL$1)))-1,"n.d.") -> n.d. | AE29: =IF(INDEX($K29:$O29,1,aux!$AL$1)>0,(O29-INDEX($K29:$O29,1,aux!$AL$1))/INDEX($K29:$O29,1,aux!$AL$1),"n.d.") -> n.d. | AX29: 04
A30: 0409 | B30: Mel natural | C30: 0 | D30: 0 | E30: 0 | F30: 0 | G30: 1.218 | H30: 0.2436 | I30: 1.024898806e-05 | J30: 3.781376859e-06 | K30: 0.139 | L30: 0.012 | M30: 0.037 | N30: 71.069 | O30: 0.714 | P30: 14.3942 | Q30: 0.001007495638 | R30: 0.0003675365713 | S30: 14.1506 | U30: =G30-INDEX($C30:$G30,1,aux!$AL$1) -> 1.218 | V30: 6.989131098e-05 | W30: 3.158465996e-05 | X30: =+IF(INDEX($C30:$G30,1,aux!$AL$1)>0,(G30/INDEX($C30:$G30,1,aux!$AL$1))^(1/($G$3-INDEX($C$3:$G$3,1,aux!$AL$1)))-1,"n.d.") -> n.d. | Y30: =IF(INDEX($C30:$G30,1,aux!$AL$1)>0,(G30-INDEX($C30:$G30,1,aux!$AL$1))/INDEX($C30:$G30,1,aux!$AL$1),"n.d.") -> n.d. | AA30: =O30-INDEX($K30:$O30,1,aux!$AL$1) -> 0.575 | AB30: 0.0001398906274 | AC30: 2.529729936e-05 | AD30: =+IF(INDEX($K30:$O30,1,aux!$AL$1)>0,(O30/INDEX($K30:$O30,1,aux!$AL$1))^(1/($O$3-INDEX($K$3:$O$3,1,aux!$AL$1)))-1,"n.d.") -> 0.5054656575 | AE30: =IF(INDEX($K30:$O30,1,aux!$AL$1)>0,(O30-INDEX($K30:$O30,1,aux!$AL$1))/INDEX($K30:$O30,1,aux!$AL$1),"n.d.") -> 4.136690647 | AX30: 04
A31: 0410 | B31: Outros produtos comestíveis de origem animal | C31: 0 | D31: 0 | E31: 0 | F31: 0 | G31: 0 | H31: 0 | I31: 0 | J31: 0 | K31: 0 | L31: 0 | M31: 0 | N31: 0 | O31: 0 | P31: 0 | Q31: 0 | R31: 0 | S31: 0 | U31: =G31-INDEX($C31:$G31,1,aux!$AL$1) -> 0 | V31: 0 | W31: 0 | X31: =+IF(INDEX($C31:$G31,1,aux!$AL$1)>0,(G31/INDEX($C31:$G31,1,aux!$AL$1))^(1/($G$3-INDEX($C$3:$G$3,1,aux!$AL$1)))-1,"n.d.") -> n.d. | Y31: =IF(INDEX($C31:$G31,1,aux!$AL$1)>0,(G31-INDEX($C31:$G31,1,aux!$AL$1))/INDEX($C31:$G31,1,aux!$AL$1),"n.d.") -> n.d. | AA31: =O31-INDEX($K31:$O31,1,aux!$AL$1) -> 0 | AB31: 0 | AC31: 0 | AD31: =+IF(INDEX($K31:$O31,1,aux!$AL$1)>0,(O31/INDEX($K31:$O31,1,aux!$AL$1))^(1/($O$3-INDEX($K$3:$O$3,1,aux!$AL$1)))-1,"n.d.") -> n.d. | AE31: =IF(INDEX($K31:$O31,1,aux!$AL$1)>0,(O31-INDEX($K31:$O31,1,aux!$AL$1))/INDEX($K31:$O31,1,aux!$AL$1),"n.d.") -> n.d. | AX31: 04
A32: 04SS | B32: Leite e lacticínios; ovos de aves; mel natural; etc. | C32: 0 | D32: 0 | E32: 0 | F32: 0 | G32: 0 | H32: 0 | I32: 0 | J32: 0 | K32: 0 | L32: 0 | M32: 0 | N32: 0 | O32: 0 | P32: 0 | Q32: 0 | R32: 0 | S32: 0 | U32: =G32-INDEX($C32:$G32,1,aux!$AL$1) -> 0 | V32: 0 | W32: 0 | X32: =+IF(INDEX($C32:$G32,1,aux!$AL$1)>0,(G32/INDEX($C32:$G32,1,aux!$AL$1))^(1/($G$3-INDEX($C$3:$G$3,1,aux!$AL$1)))-1,"n.d.") -> n.d. | Y32: =IF(INDEX($C32:$G32,1,aux!$AL$1)>0,(G32-INDEX($C32:$G32,1,aux!$AL$1))/INDEX($C32:$G32,1,aux!$AL$1),"n.d.") -> n.d. | AA32: =O32-INDEX($K32:$O32,1,aux!$AL$1) -> 0 | AB32: 0 | AC32: 0 | AD32: =+IF(INDEX($K32:$O32,1,aux!$AL$1)>0,(O32/INDEX($K32:$O32,1,aux!$AL$1))^(1/($O$3-INDEX($K$3:$O$3,1,aux!$AL$1)))-1,"n.d.") -> n.d. | AE32: =IF(INDEX($K32:$O32,1,aux!$AL$1)>0,(O32-INDEX($K32:$O32,1,aux!$AL$1))/INDEX($K32:$O32,1,aux!$AL$1),"n.d.") -> n.d. | AX32: 04
A33: 0501 | B33: Cabelos em bruto | C33: 0 | D33: 0 | E33: 0 | F33: 0 | G33: 0 | H33: 0 | I33: 0 | J33: 0 | K33: 0 | L33: 0 | M33: 0 | N33: 0 | O33: 0 | P33: 0 | Q33: 0 | R33: 0 | S33: 0 | U33: =G33-INDEX($C33:$G33,1,aux!$AL$1) -> 0 | V33: 0 | W33: 0 | X33: =+IF(INDEX($C33:$G33,1,aux!$AL$1)>0,(G33/INDEX($C33:$G33,1,aux!$AL$1))^(1/($G$3-INDEX($C$3:$G$3,1,aux!$AL$1)))-1,"n.d.") -> n.d. | Y33: =IF(INDEX($C33:$G33,1,aux!$AL$1)>0,(G33-INDEX($C33:$G33,1,aux!$AL$1))/INDEX($C33:$G33,1,aux!$AL$1),"n.d.") -> n.d. | AA33: =O33-INDEX($K33:$O33,1,aux!$AL$1) -> 0 | AB33: 0 | AC33: 0 | AD33: =+IF(INDEX($K33:$O33,1,aux!$AL$1)>0,(O33/INDEX($K33:$O33,1,aux!$AL$1))^(1/($O$3-INDEX($K$3:$O$3,1,aux!$AL$1)))-1,"n.d.") -> n.d. | AE33: =IF(INDEX($K33:$O33,1,aux!$AL$1)>0,(O33-INDEX($K33:$O33,1,aux!$AL$1))/INDEX($K33:$O33,1,aux!$AL$1),"n.d.") -> n.d. | AX33: 05
A34: 0502 | B34: Cerdas de porco ou de javali, etc. | C34: 0 | D34: 0 | E34: 0 | F34: 0 | G34: 0 | H34: 0 | I34: 0 | J34: 0 | K34: 0 | L34: 0 | M34: 0 | N34: 0 | O34: 0 | P34: 0 | Q34: 0 | R34: 0 | S34: 0 | U34: =G34-INDEX($C34:$G34,1,aux!$AL$1) -> 0 | V34: 0 | W34: 0 | X34: =+IF(INDEX($C34:$G34,1,aux!$AL$1)>0,(G34/INDEX($C34:$G34,1,aux!$AL$1))^(1/($G$3-INDEX($C$3:$G$3,1,aux!$AL$1)))-1,"n.d.") -> n.d. | Y34: =IF(INDEX($C34:$G34,1,aux!$AL$1)>0,(G34-INDEX($C34:$G34,1,aux!$AL$1))/INDEX($C34:$G34,1,aux!$AL$1),"n.d.") -> n.d. | AA34: =O34-INDEX($K34:$O34,1,aux!$AL$1) -> 0 | AB34: 0 | AC34: 0 | AD34: =+IF(INDEX($K34:$O34,1,aux!$AL$1)>0,(O34/INDEX($K34:$O34,1,aux!$AL$1))^(1/($O$3-INDEX($K$3:$O$3,1,aux!$AL$1)))-1,"n.d.") -> n.d. | AE34: =IF(INDEX($K34:$O34,1,aux!$AL$1)>0,(O34-INDEX($K34:$O34,1,aux!$AL$1))/INDEX($K34:$O34,1,aux!$AL$1),"n.d.") -> n.d. | AX34: 05
A35: 0504 | B35: Tripas de animais (excepto peixes) | C35: 7.44 | D35: 3.591 | E35: 0 | F35: 0 | G35: 0 | H35: 2.2062 | I35: 9.282150022e-05 | J35: 3.424660766e-05 | K35: 404.832 | L35: 370.007 | M35: 232.71 | N35: 352.266 | O35: 310.58 | P35: 334.079 | Q35: 0.02338324709 | R35: 0.00853025873 | S35: 331.8728 | U35: =G35-INDEX($C35:$G35,1,aux!$AL$1) -> -7.44 | V35: -0.0004269222937 | W35: -0.0001929309278 | X35: =+IF(INDEX($C35:$G35,1,aux!$AL$1)>0,(G35/INDEX($C35:$G35,1,aux!$AL$1))^(1/($G$3-INDEX($C$3:$G$3,1,aux!$AL$1)))-1,"n.d.") -> -1 | Y35: =IF(INDEX($C35:$G35,1,aux!$AL$1)>0,(G35-INDEX($C35:$G35,1,aux!$AL$1))/INDEX($C35:$G35,1,aux!$AL$1),"n.d.") -> -1 | AA35: =O35-INDEX($K35:$O35,1,aux!$AL$1) -> -94.252 | AB35: -0.02293038507 | AC35: -0.004146645321 | AD35: =+IF(INDEX($K35:$O35,1,aux!$AL$1)>0,(O35/INDEX($K35:$O35,1,aux!$AL$1))^(1/($O$3-INDEX($K$3:$O$3,1,aux!$AL$1)))-1,"n.d.") -> -0.06411031024 | AE35: =IF(INDEX($K35:$O35,1,aux!$AL$1)>0,(O35-INDEX($K35:$O35,1,aux!$AL$1))/INDEX($K35:$O35,1,aux!$AL$1),"n.d.") -> -0.2328175638 | AX35: 05
A36: 0505 | B36: Peles e outras partes de aves | C36: 0 | D36: 0 | E36: 0 | F36: 0 | G36: 0 | H36: 0 | I36: 0 | J36: 0 | K36: 0 | L36: 0 | M36: 0 | N36: 0 | O36: 0 | P36: 0 | Q36: 0 | R36: 0 | S36: 0 | U36: =G36-INDEX($C36:$G36,1,aux!$AL$1) -> 0 | V36: 0 | W36: 0 | X36: =+IF(INDEX($C36:$G36,1,aux!$AL$1)>0,(G36/INDEX($C36:$G36,1,aux!$AL$1))^(1/($G$3-INDEX($C$3:$G$3,1,aux!$AL$1)))-1,"n.d.") -> n.d. | Y36: =IF(INDEX($C36:$G36,1,aux!$AL$1)>0,(G36-INDEX($C36:$G36,1,aux!$AL$1))/INDEX($C36:$G36,1,aux!$AL$1),"n.d.") -> n.d. | AA36: =O36-INDEX($K36:$O36,1,aux!$AL$1) -> 0 | AB36: 0 | AC36: 0 | AD36: =+IF(INDEX($K36:$O36,1,aux!$AL$1)>0,(O36/INDEX($K36:$O36,1,aux!$AL$1))^(1/($O$3-INDEX($K$3:$O$3,1,aux!$AL$1)))-1,"n.d.") -> n.d. | AE36: =IF(INDEX($K36:$O36,1,aux!$AL$1)>0,(O36-INDEX($K36:$O36,1,aux!$AL$1))/INDEX($K36:$O36,1,aux!$AL$1),"n.d.") -> n.d. | AX36: 05
A37: 0506 | B37: Ossos e núcleos córneos, em bruto | C37: 0 | D37: 0 | E37: 0 | F37: 0 | G37: 0 | H37: 0 | I37: 0 | J37: 0 | K37: 0 | L37: 0 | M37: 0 | N37: 0 | O37: 0 | P37: 0 | Q37: 0 | R37: 0 | S37: 0 | U37: =G37-INDEX($C37:$G37,1,aux!$AL$1) -> 0 | V37: 0 | W37: 0 | X37: =+IF(INDEX($C37:$G37,1,aux!$AL$1)>0,(G37/INDEX($C37:$G37,1,aux!$AL$1))^(1/($G$3-INDEX($C$3:$G$3,1,aux!$AL$1)))-1,"n.d.") -> n.d. | Y37: =IF(INDEX($C37:$G37,1,aux!$AL$1)>0,(G37-INDEX($C37:$G37,1,aux!$AL$1))/INDEX($C37:$G37,1,aux!$AL$1),"n.d.") -> n.d. | AA37: =O37-INDEX($K37:$O37,1,aux!$AL$1) -> 0 | AB37: 0 | AC37: 0 | AD37: =+IF(INDEX($K37:$O37,1,aux!$AL$1)>0,(O37/INDEX($K37:$O37,1,aux!$AL$1))^(1/($O$3-INDEX($K$3:$O$3,1,aux!$AL$1)))-1,"n.d.") -> n.d. | AE37: =IF(INDEX($K37:$O37,1,aux!$AL$1)>0,(O37-INDEX($K37:$O37,1,aux!$AL$1))/INDEX($K37:$O37,1,aux!$AL$1),"n.d.") -> n.d. | AX37: 05
A38: 0507 | B38: Marfim, carapaças de tartaruga, etc. | C38: 0 | D38: 0 | E38: 0 | F38: 0 | G38: 0 | H38: 0 | I38: 0 | J38: 0 | K38: 0 | L38: 0 | M38: 0 | N38: 0 | O38: 0 | P38: 0 | Q38: 0 | R38: 0 | S38: 0 | U38: =G38-INDEX($C38:$G38,1,aux!$AL$1) -> 0 | V38: 0 | W38: 0 | X38: =+IF(INDEX($C38:$G38,1,aux!$AL$1)>0,(G38/INDEX($C38:$G38,1,aux!$AL$1))^(1/($G$3-INDEX($C$3:$G$3,1,aux!$AL$1)))-1,"n.d.") -> n.d. | Y38: =IF(INDEX($C38:$G38,1,aux!$AL$1)>0,(G38-INDEX($C38:$G38,1,aux!$AL$1))/INDEX($C38:$G38,1,aux!$AL$1),"n.d.") -> n.d. | AA38: =O38-INDEX($K38:$O38,1,aux!$AL$1) -> 0 | AB38: 0 | AC38: 0 | AD38: =+IF(INDEX($K38:$O38,1,aux!$AL$1)>0,(O38/INDEX($K38:$O38,1,aux!$AL$1))^(1/($O$3-INDEX($K$3:$O$3,1,aux!$AL$1)))-1,"n.d.") -> n.d. | AE38: =IF(INDEX($K38:$O38,1,aux!$AL$1)>0,(O38-INDEX($K38:$O38,1,aux!$AL$1))/INDEX($K38:$O38,1,aux!$AL$1),"n.d.") -> n.d. | AX38: 05
A39: 0510 | B39: Âmbar-cinzento, castóreo, algália e almíscar, etc. | C39: 0 | D39: 0 | E39: 0 | F39: 0 | G39: 0 | H39: 0 | I39: 0 | J39: 0 | K39: 0 | L39: 0 | M39: 0 | N39: 0 | O39: 0 | P39: 0 | Q39: 0 | R39: 0 | S39: 0 | U39: =G39-INDEX($C39:$G39,1,aux!$AL$1) -> 0 | V39: 0 | W39: 0 | X39: =+IF(INDEX($C39:$G39,1,aux!$AL$1)>0,(G39/INDEX($C39:$G39,1,aux!$AL$1))^(1/($G$3-INDEX($C$3:$G$3,1,aux!$AL$1)))-1,"n.d.") -> n.d. | Y39: =IF(INDEX($C39:$G39,1,aux!$AL$1)>0,(G39-INDEX($C39:$G39,1,aux!$AL$1))/INDEX($C39:$G39,1,aux!$AL$1),"n.d.") -> n.d. | AA39: =O39-INDEX($K39:$O39,1,aux!$AL$1) -> 0 | AB39: 0 | AC39: 0 | AD39: =+IF(INDEX($K39:$O39,1,aux!$AL$1)>0,(O39/INDEX($K39:$O39,1,aux!$AL$1))^(1/($O$3-INDEX($K$3:$O$3,1,aux!$AL$1)))-1,"n.d.") -> n.d. | AE39: =IF(INDEX($K39:$O39,1,aux!$AL$1)>0,(O39-INDEX($K39:$O39,1,aux!$AL$1))/INDEX($K39:$O39,1,aux!$AL$1),"n.d.") -> n.d. | AX39: 05
A40: 0511 | B40: Outros produtos de origem animal (exc. NC 0511 91) (a) | C40: 0 | D40: 0 | E40: 0 | F40: 0 | G40: 0 | H40: 0 | I40: 0 | J40: 0 | K40: 0 | L40: 0 | M40: 0 | N40: 0 | O40: 0 | P40: 0 | Q40: 0 | R40: 0 | S40: 0 | U40: =G40-INDEX($C40:$G40,1,aux!$AL$1) -> 0 | V40: 0 | W40: 0 | X40: =+IF(INDEX($C40:$G40,1,aux!$AL$1)>0,(G40/INDEX($C40:$G40,1,aux!$AL$1))^(1/($G$3-INDEX($C$3:$G$3,1,aux!$AL$1)))-1,"n.d.") -> n.d. | Y40: =IF(INDEX($C40:$G40,1,aux!$AL$1)>0,(G40-INDEX($C40:$G40,1,aux!$AL$1))/INDEX($C40:$G40,1,aux!$AL$1),"n.d.") -> n.d. | AA40: =O40-INDEX($K40:$O40,1,aux!$AL$1) -> 0 | AB40: 0 | AC40: 0 | AD40: =+IF(INDEX($K40:$O40,1,aux!$AL$1)>0,(O40/INDEX($K40:$O40,1,aux!$AL$1))^(1/($O$3-INDEX($K$3:$O$3,1,aux!$AL$1)))-1,"n.d.") -> n.d. | AE40: =IF(INDEX($K40:$O40,1,aux!$AL$1)>0,(O40-INDEX($K40:$O40,1,aux!$AL$1))/INDEX($K40:$O40,1,aux!$AL$1),"n.d.") -> n.d. | AX40: 05
A41: 05SS | B41: Outros produtos de origem animal | C41: 0 | D41: 0 | E41: 0 | F41: 0 | G41: 0 | H41: 0 | I41: 0 | J41: 0 | K41: 0 | L41: 0 | M41: 0 | N41: 0 | O41: 0 | P41: 0 | Q41: 0 | R41: 0 | S41: 0 | U41: =G41-INDEX($C41:$G41,1,aux!$AL$1) -> 0 | V41: 0 | W41: 0 | X41: =+IF(INDEX($C41:$G41,1,aux!$AL$1)>0,(G41/INDEX($C41:$G41,1,aux!$AL$1))^(1/($G$3-INDEX($C$3:$G$3,1,aux!$AL$1)))-1,"n.d.") -> n.d. | Y41: =IF(INDEX($C41:$G41,1,aux!$AL$1)>0,(G41-INDEX($C41:$G41,1,aux!$AL$1))/INDEX($C41:$G41,1,aux!$AL$1),"n.d.") -> n.d. | AA41: =O41-INDEX($K41:$O41,1,aux!$AL$1) -> 0 | AB41: 0 | AC41: 0 | AD41: =+IF(INDEX($K41:$O41,1,aux!$AL$1)>0,(O41/INDEX($K41:$O41,1,aux!$AL$1))^(1/($O$3-INDEX($K$3:$O$3,1,aux!$AL$1)))-1,"n.d.") -> n.d. | AE41: =IF(INDEX($K41:$O41,1,aux!$AL$1)>0,(O41-INDEX($K41:$O41,1,aux!$AL$1))/INDEX($K41:$O41,1,aux!$AL$1),"n.d.") -> n.d. | AX41: 05
A42: 0601 | B42: Bolbos, tubérculos, raízes, etc. | C42: 2.936 | D42: 0 | E42: 5.987 | F42: 0 | G42: 0 | H42: 1.7846 | I42: 7.508351432e-05 | J42: 2.770215576e-05 | K42: 8.955 | L42: 29.572 | M42: 79.7 | N42: 48.013 | O42: 14.357 | P42: 36.1194 | Q42: 0.002528111181 | R42: 0.000922260385 | S42: 34.3348 | U42: =G42-INDEX($C42:$G42,1,aux!$AL$1) -> -2.936 | V42: -0.0001684736363 | W42: -7.613510808e-05 | X42: =+IF(INDEX($C42:$G42,1,aux!$AL$1)>0,(G42/INDEX($C42:$G42,1,aux!$AL$1))^(1/($G$3-INDEX($C$3:$G$3,1,aux!$AL$1)))-1,"n.d.") -> -1 | Y42: =IF(INDEX($C42:$G42,1,aux!$AL$1)>0,(G42-INDEX($C42:$G42,1,aux!$AL$1))/INDEX($C42:$G42,1,aux!$AL$1),"n.d.") -> -1 | AA42: =O42-INDEX($K42:$O42,1,aux!$AL$1) -> 5.402 | AB42: 0.001314242034 | AC42: 0.0002376626281 | AD42: =+IF(INDEX($K42:$O42,1,aux!$AL$1)>0,(O42/INDEX($K42:$O42,1,aux!$AL$1))^(1/($O$3-INDEX($K$3:$O$3,1,aux!$AL$1)))-1,"n.d.") -> 0.1252513109 | AE42: =IF(INDEX($K42:$O42,1,aux!$AL$1)>0,(O42-INDEX($K42:$O42,1,aux!$AL$1))/INDEX($K42:$O42,1,aux!$AL$1),"n.d.") -> 0.6032384143 | AX42: 06
A43: 0602 | B43: Plantas vivas | C43: 0 | D43: 0 | E43: 0 | F43: 0 | G43: 0 | H43: 0 | I43: 0 | J43: 0 | K43: 50.405 | L43: 43.737 | M43: 93.119 | N43: 71.426 | O43: 78.824 | P43: 67.5022 | Q43: 0.004724692728 | R43: 0.001723578048 | S43: 67.5022 | U43: =G43-INDEX($C43:$G43,1,aux!$AL$1) -> 0 | V43: 0 | W43: 0 | X43: =+IF(INDEX($C43:$G43,1,aux!$AL$1)>0,(G43/INDEX($C43:$G43,1,aux!$AL$1))^(1/($G$3-INDEX($C$3:$G$3,1,aux!$AL$1)))-1,"n.d.") -> n.d. | Y43: =IF(INDEX($C43:$G43,1,aux!$AL$1)>0,(G43-INDEX($C43:$G43,1,aux!$AL$1))/INDEX($C43:$G43,1,aux!$AL$1),"n.d.") -> n.d. | AA43: =O43-INDEX($K43:$O43,1,aux!$AL$1) -> 28.419 | AB43: 0.006914003027 | AC43: 0.001250302523 | AD43: =+IF(INDEX($K43:$O43,1,aux!$AL$1)>0,(O43/INDEX($K43:$O43,1,aux!$AL$1))^(1/($O$3-INDEX($K$3:$O$3,1,aux!$AL$1)))-1,"n.d.") -> 0.1182688117 | AE43: =IF(INDEX($K43:$O43,1,aux!$AL$1)>0,(O43-INDEX($K43:$O43,1,aux!$AL$1))/INDEX($K43:$O43,1,aux!$AL$1),"n.d.") -> 0.5638131138 | AX43: 06
A44: 0603 | B44: Flores e seus botões | C44: 1.275 | D44: 1.274 | E44: 0.397 | F44: 0.305 | G44: 0 | H44: 0.6502 | I44: 2.735587863e-05 | J44: 1.009298536e-05 | K44: 0 | L44: 0 | M44: 0 | N44: 0 | O44: 0 | P44: 0 | Q44: 0 | R44: 0 | S44: -0.6502 | U44: =G44-INDEX($C44:$G44,1,aux!$AL$1) -> -1.275 | V44: -7.316208661e-05 | W44: -3.306275981e-05 | X44: =+IF(INDEX($C44:$G44,1,aux!$AL$1)>0,(G44/INDEX($C44:$G44,1,aux!$AL$1))^(1/($G$3-INDEX($C$3:$G$3,1,aux!$AL$1)))-1,"n.d.") -> -1 | Y44: =IF(INDEX($C44:$G44,1,aux!$AL$1)>0,(G44-INDEX($C44:$G44,1,aux!$AL$1))/INDEX($C44:$G44,1,aux!$AL$1),"n.d.") -> -1 | AA44: =O44-INDEX($K44:$O44,1,aux!$AL$1) -> 0 | AB44: 0 | AC44: 0 | AD44: =+IF(INDEX($K44:$O44,1,aux!$AL$1)>0,(O44/INDEX($K44:$O44,1,aux!$AL$1))^(1/($O$3-INDEX($K$3:$O$3,1,aux!$AL$1)))-1,"n.d.") -> n.d. | AE44: =IF(INDEX($K44:$O44,1,aux!$AL$1)>0,(O44-INDEX($K44:$O44,1,aux!$AL$1))/INDEX($K44:$O44,1,aux!$AL$1),"n.d.") -> n.d. | AX44: 06
A45: 0604 | B45: Folhagem, folhas, ramos e outras partes de plantas | C45: 0 | D45: 0 | E45: 0 | F45: 0 | G45: 0 | H45: 0 | I45: 0 | J45: 0 | K45: 0 | L45: 0 | M45: 0 | N45: 196.878 | O45: 130.376 | P45: 65.4508 | Q45: 0.004581108746 | R45: 0.001671198304 | S45: 65.4508 | U45: =G45-INDEX($C45:$G45,1,aux!$AL$1) -> 0 | V45: 0 | W45: 0 | X45: =+IF(INDEX($C45:$G45,1,aux!$AL$1)>0,(G45/INDEX($C45:$G45,1,aux!$AL$1))^(1/($G$3-INDEX($C$3:$G$3,1,aux!$AL$1)))-1,"n.d.") -> n.d. | Y45: =IF(INDEX($C45:$G45,1,aux!$AL$1)>0,(G45-INDEX($C45:$G45,1,aux!$AL$1))/INDEX($C45:$G45,1,aux!$AL$1),"n.d.") -> n.d. | AA45: =O45-INDEX($K45:$O45,1,aux!$AL$1) -> 130.376 | AB45: 0.03171892251 | AC45: 0.005735931655 | AD45: =+IF(INDEX($K45:$O45,1,aux!$AL$1)>0,(O45/INDEX($K45:$O45,1,aux!$AL$1))^(1/($O$3-INDEX($K$3:$O$3,1,aux!$AL$1)))-1,"n.d.") -> n.d. | AE45: =IF(INDEX($K45:$O45,1,aux!$AL$1)>0,(O45-INDEX($K45:$O45,1,aux!$AL$1))/INDEX($K45:$O45,1,aux!$AL$1),"n.d.") -> n.d. | AX45: 06
A46: 06SS | B46: Plantas vivas e produtos de floricultura | C46: 0 | D46: 0 | E46: 0 | F46: 0 | G46: 0 | H46: 0 | I46: 0 | J46: 0 | K46: 0 | L46: 0 | M46: 0 | N46: 0 | O46: 0 | P46: 0 | Q46: 0 | R46: 0 | S46: 0 | U46: =G46-INDEX($C46:$G46,1,aux!$AL$1) -> 0 | V46: 0 | W46: 0 | X46: =+IF(INDEX($C46:$G46,1,aux!$AL$1)>0,(G46/INDEX($C46:$G46,1,aux!$AL$1))^(1/($G$3-INDEX($C$3:$G$3,1,aux!$AL$1)))-1,"n.d.") -> n.d. | Y46: =IF(INDEX($C46:$G46,1,aux!$AL$1)>0,(G46-INDEX($C46:$G46,1,aux!$AL$1))/INDEX($C46:$G46,1,aux!$AL$1),"n.d.") -> n.d. | AA46: =O46-INDEX($K46:$O46,1,aux!$AL$1) -> 0 | AB46: 0 | AC46: 0 | AD46: =+IF(INDEX($K46:$O46,1,aux!$AL$1)>0,(O46/INDEX($K46:$O46,1,aux!$AL$1))^(1/($O$3-INDEX($K$3:$O$3,1,aux!$AL$1)))-1,"n.d.") -> n.d. | AE46: =IF(INDEX($K46:$O46,1,aux!$AL$1)>0,(O46-INDEX($K46:$O46,1,aux!$AL$1))/INDEX($K46:$O46,1,aux!$AL$1),"n.d.") -> n.d. | AX46: 06
A47: 0701 | B47: Batatas, frescas ou refrigeradas | C47: 0 | D47: 0 | E47: 0 | F47: 0 | G47: 17.573 | H47: 3.5146 | I47: 0.0001478698417 | J47: 5.455676153e-05 | K47: 0 | L47: 16.305 | M47: 21.03 | N47: 0 | O47: 57.643 | P47: 18.9956 | Q47: 0.001329562195 | R47: 0.0004850271425 | S47: 15.481 | U47: =G47-INDEX($C47:$G47,1,aux!$AL$1) -> 17.573 | V47: 0.001008374391 | W47: 0.0004556955907 | X47: =+IF(INDEX($C47:$G47,1,aux!$AL$1)>0,(G47/INDEX($C47:$G47,1,aux!$AL$1))^(1/($G$3-INDEX($C$3:$G$3,1,aux!$AL$1)))-1,"n.d.") -> n.d. | Y47: =IF(INDEX($C47:$G47,1,aux!$AL$1)>0,(G47-INDEX($C47:$G47,1,aux!$AL$1))/INDEX($C47:$G47,1,aux!$AL$1),"n.d.") -> n.d. | AA47: =O47-INDEX($K47:$O47,1,aux!$AL$1) -> 57.643 | AB47: 0.01402385293 | AC47: 0.002536021265 | AD47: =+IF(INDEX($K47:$O47,1,aux!$AL$1)>0,(O47/INDEX($K47:$O47,1,aux!$AL$1))^(1/($O$3-INDEX($K$3:$O$3,1,aux!$AL$1)))-1,"n.d.") -> n.d. | AE47: =IF(INDEX($K47:$O47,1,aux!$AL$1)>0,(O47-INDEX($K47:$O47,1,aux!$AL$1))/INDEX($K47:$O47,1,aux!$AL$1),"n.d.") -> n.d. | AX47: 07
A48: 0702 | B48: Tomates, frescos ou refrigerados | C48: 0 | D48: 0 | E48: 0 | F48: 0 | G48: 0 | H48: 0 | I48: 0 | J48: 0 | K48: 0 | L48: 63.937 | M48: 161.864 | N48: 113.33 | O48: 8.692 | P48: 69.5646 | Q48: 0.004869046635 | R48: 0.001776238663 | S48: 69.5646 | U48: =G48-INDEX($C48:$G48,1,aux!$AL$1) -> 0 | V48: 0 | W48: 0 | X48: =+IF(INDEX($C48:$G48,1,aux!$AL$1)>0,(G48/INDEX($C48:$G48,1,aux!$AL$1))^(1/($G$3-INDEX($C$3:$G$3,1,aux!$AL$1)))-1,"n.d.") -> n.d. | Y48: =IF(INDEX($C48:$G48,1,aux!$AL$1)>0,(G48-INDEX($C48:$G48,1,aux!$AL$1))/INDEX($C48:$G48,1,aux!$AL$1),"n.d.") -> n.d. | AA48: =O48-INDEX($K48:$O48,1,aux!$AL$1) -> 8.692 | AB48: 0.002114659711 | AC48: 0.0003824071757 | AD48: =+IF(INDEX($K48:$O48,1,aux!$AL$1)>0,(O48/INDEX($K48:$O48,1,aux!$AL$1))^(1/($O$3-INDEX($K$3:$O$3,1,aux!$AL$1)))-1,"n.d.") -> n.d. | AE48: =IF(INDEX($K48:$O48,1,aux!$AL$1)>0,(O48-INDEX($K48:$O48,1,aux!$AL$1))/INDEX($K48:$O48,1,aux!$AL$1),"n.d.") -> n.d. | AX48: 07
A49: 0703 | B49: Cebolas, alhos, etc., frescos ou refrigerados | C49: 0 | D49: 0 | E49: 0 | F49: 0 | G49: 0 | H49: 0 | I49: 0 | J49: 0 | K49: 0 | L49: 0 | M49: 0 | N49: 87.162 | O49: 0 | P49: 17.4324 | Q49: 0.001220148877 | R49: 0.0004451129292 | S49: 17.4324 | U49: =G49-INDEX($C49:$G49,1,aux!$AL$1) -> 0 | V49: 0 | W49: 0 | X49: =+IF(INDEX($C49:$G49,1,aux!$AL$1)>0,(G49/INDEX($C49:$G49,1,aux!$AL$1))^(1/($G$3-INDEX($C$3:$G$3,1,aux!$AL$1)))-1,"n.d.") -> n.d. | Y49: =IF(INDEX($C49:$G49,1,aux!$AL$1)>0,(G49-INDEX($C49:$G49,1,aux!$AL$1))/INDEX($C49:$G49,1,aux!$AL$1),"n.d.") -> n.d. | AA49: =O49-INDEX($K49:$O49,1,aux!$AL$1) -> 0 | AB49: 0 | AC49: 0 | AD49: =+IF(INDEX($K49:$O49,1,aux!$AL$1)>0,(O49/INDEX($K49:$O49,1,aux!$AL$1))^(1/($O$3-INDEX($K$3:$O$3,1,aux!$AL$1)))-1,"n.d.") -> n.d. | AE49: =IF(INDEX($K49:$O49,1,aux!$AL$1)>0,(O49-INDEX($K49:$O49,1,aux!$AL$1))/INDEX($K49:$O49,1,aux!$AL$1),"n.d.") -> n.d. | AX49: 07
A50: 0704 | B50: Couves, frescas ou refrigeradas | C50: 0 | D50: 0 | E50: 0.013 | F50: 0 | G50: 0 | H50: 0.0026 | I50: 1.093898561e-07 | J50: 4.035952313e-08 | K50: 0 | L50: 0 | M50: 0 | N50: 0 | O50: 0 | P50: 0 | Q50: 0 | R50: 0 | S50: -0.0026 | U50: =G50-INDEX($C50:$G50,1,aux!$AL$1) -> 0 | V50: 0 | W50: 0 | X50: =+IF(INDEX($C50:$G50,1,aux!$AL$1)>0,(G50/INDEX($C50:$G50,1,aux!$AL$1))^(1/($G$3-INDEX($C$3:$G$3,1,aux!$AL$1)))-1,"n.d.") -> n.d. | Y50: =IF(INDEX($C50:$G50,1,aux!$AL$1)>0,(G50-INDEX($C50:$G50,1,aux!$AL$1))/INDEX($C50:$G50,1,aux!$AL$1),"n.d.") -> n.d. | AA50: =O50-INDEX($K50:$O50,1,aux!$AL$1) -> 0 | AB50: 0 | AC50: 0 | AD50: =+IF(INDEX($K50:$O50,1,aux!$AL$1)>0,(O50/INDEX($K50:$O50,1,aux!$AL$1))^(1/($O$3-INDEX($K$3:$O$3,1,aux!$AL$1)))-1,"n.d.") -> n.d. | AE50: =IF(INDEX($K50:$O50,1,aux!$AL$1)>0,(O50-INDEX($K50:$O50,1,aux!$AL$1))/INDEX($K50:$O50,1,aux!$AL$1),"n.d.") -> n.d. | AX50: 07
A51: 0705 | B51: Alfaces, frescas ou refrigeradas | C51: 0 | D51: 0 | E51: 0 | F51: 0 | G51: 0 | H51: 0 | I51: 0 | J51: 0 | K51: 0 | L51: 0 | M51: 0 | N51: 0.289 | O51: 0 | P51: 0.0578 | Q51: 4.045605028e-06 | R51: 1.475845398e-06 | S51: 0.0578 | U51: =G51-INDEX($C51:$G51,1,aux!$AL$1) -> 0 | V51: 0 | W51: 0 | X51: =+IF(INDEX($C51:$G51,1,aux!$AL$1)>0,(G51/INDEX($C51:$G51,1,aux!$AL$1))^(1/($G$3-INDEX($C$3:$G$3,1,aux!$AL$1)))-1,"n.d.") -> n.d. | Y51: =IF(INDEX($C51:$G51,1,aux!$AL$1)>0,(G51-INDEX($C51:$G51,1,aux!$AL$1))/INDEX($C51:$G51,1,aux!$AL$1),"n.d.") -> n.d. | AA51: =O51-INDEX($K51:$O51,1,aux!$AL$1) -> 0 | AB51: 0 | AC51: 0 | AD51: =+IF(INDEX($K51:$O51,1,aux!$AL$1)>0,(O51/INDEX($K51:$O51,1,aux!$AL$1))^(1/($O$3-INDEX($K$3:$O$3,1,aux!$AL$1)))-1,"n.d.") -> n.d. | AE51: =IF(INDEX($K51:$O51,1,aux!$AL$1)>0,(O51-INDEX($K51:$O51,1,aux!$AL$1))/INDEX($K51:$O51,1,aux!$AL$1),"n.d.") -> n.d. | AX51: 07
A52: 0706 | B52: Cenouras, nabos, beterrabas, etc., frescos ou refrigerados | C52: 3.344 | D52: 0.946 | E52: 1.372 | F52: 0 | G52: 0 | H52: 1.1324 | I52: 4.764348964e-05 | J52: 1.757812461e-05 | K52: 0 | L52: 0 | M52: 0 | N52: 0 | O52: 0 | P52: 0 | Q52: 0 | R52: 0 | S52: -1.1324 | U52: =G52-INDEX($C52:$G52,1,aux!$AL$1) -> -3.344 | V52: -0.000191885504 | W52: -8.671519122e-05 | X52: =+IF(INDEX($C52:$G52,1,aux!$AL$1)>0,(G52/INDEX($C52:$G52,1,aux!$AL$1))^(1/($G$3-INDEX($C$3:$G$3,1,aux!$AL$1)))-1,"n.d.") -> -1 | Y52: =IF(INDEX($C52:$G52,1,aux!$AL$1)>0,(G52-INDEX($C52:$G52,1,aux!$AL$1))/INDEX($C52:$G52,1,aux!$AL$1),"n.d.") -> -1 | AA52: =O52-INDEX($K52:$O52,1,aux!$AL$1) -> 0 | AB52: 0 | AC52: 0 | AD52: =+IF(INDEX($K52:$O52,1,aux!$AL$1)>0,(O52/INDEX($K52:$O52,1,aux!$AL$1))^(1/($O$3-INDEX($K$3:$O$3,1,aux!$AL$1)))-1,"n.d.") -> n.d. | AE52: =IF(INDEX($K52:$O52,1,aux!$AL$1)>0,(O52-INDEX($K52:$O52,1,aux!$AL$1))/INDEX($K52:$O52,1,aux!$AL$1),"n.d.") -> n.d. | AX52: 07
A53: 0707 | B53: Pepinos e pepininhos, frescos ou refrigerados | C53: 0 | D53: 0 | E53: 0 | F53: 0 | G53: 0 | H53: 0 | I53: 0 | J53: 0 | K53: 0 | L53: 0 | M53: 0 | N53: 0 | O53: 0 | P53: 0 | Q53: 0 | R53: 0 | S53: 0 | U53: =G53-INDEX($C53:$G53,1,aux!$AL$1) -> 0 | V53: 0 | W53: 0 | X53: =+IF(INDEX($C53:$G53,1,aux!$AL$1)>0,(G53/INDEX($C53:$G53,1,aux!$AL$1))^(1/($G$3-INDEX($C$3:$G$3,1,aux!$AL$1)))-1,"n.d.") -> n.d. | Y53: =IF(INDEX($C53:$G53,1,aux!$AL$1)>0,(G53-INDEX($C53:$G53,1,aux!$AL$1))/INDEX($C53:$G53,1,aux!$AL$1),"n.d.") -> n.d. | AA53: =O53-INDEX($K53:$O53,1,aux!$AL$1) -> 0 | AB53: 0 | AC53: 0 | AD53: =+IF(INDEX($K53:$O53,1,aux!$AL$1)>0,(O53/INDEX($K53:$O53,1,aux!$AL$1))^(1/($O$3-INDEX($K$3:$O$3,1,aux!$AL$1)))-1,"n.d.") -> n.d. | AE53: =IF(INDEX($K53:$O53,1,aux!$AL$1)>0,(O53-INDEX($K53:$O53,1,aux!$AL$1))/INDEX($K53:$O53,1,aux!$AL$1),"n.d.") -> n.d. | AX53: 07
A54: 0708 | B54: Tomates preparados ou conservados | C54: 0 | D54: 0 | E54: 0 | F54: 0 | G54: 0 | H54: 0 | I54: 0 | J54: 0 | K54: 0 | L54: 0 | M54: 0 | N54: 0 | O54: 2.694 | P54: 0.5388 | Q54: 3.771231815e-05 | R54: 1.375753461e-05 | S54: 0.5388 | U54: =G54-INDEX($C54:$G54,1,aux!$AL$1) -> 0 | V54: 0 | W54: 0 | X54: =+IF(INDEX($C54:$G54,1,aux!$AL$1)>0,(G54/INDEX($C54:$G54,1,aux!$AL$1))^(1/($G$3-INDEX($C$3:$G$3,1,aux!$AL$1)))-1,"n.d.") -> n.d. | Y54: =IF(INDEX($C54:$G54,1,aux!$AL$1)>0,(G54-INDEX($C54:$G54,1,aux!$AL$1))/INDEX($C54:$G54,1,aux!$AL$1),"n.d.") -> n.d. | AA54: =O54-INDEX($K54:$O54,1,aux!$AL$1) -> 2.694 | AB54: 0.0006554180005 | AC54: 0.0001185233469 | AD54: =+IF(INDEX($K54:$O54,1,aux!$AL$1)>0,(O54/INDEX($K54:$O54,1,aux!$AL$1))^(1/($O$3-INDEX($K$3:$O$3,1,aux!$AL$1)))-1,"n.d.") -> n.d. | AE54: =IF(INDEX($K54:$O54,1,aux!$AL$1)>0,(O54-INDEX($K54:$O54,1,aux!$AL$1))/INDEX($K54:$O54,1,aux!$AL$1),"n.d.") -> n.d. | AX54: 07
A55: 0709 | B55: Outros produtos hortícolas, frescos ou refrigerados | C55: 30.591 | D55: 1.169 | E55: 34.655 | F55: 103.617 | G55: 137.661 | H55: 61.5386 | I55: 0.002589114846 | J55: 0.0009552571346 | K55: 0.006 | L55: 0.07 | M55: 0.231 | N55: 0.168 | O55: 0.166 | P55: 0.1282 | Q55: 8.973123954e-06 | R55: 3.273414878e-06 | S55: -61.4104 | U55: =G55-INDEX($C55:$G55,1,aux!$AL$1) -> 107.07 | V55: 0.006143893815 | W55: 0.002776493877 | X55: =+IF(INDEX($C55:$G55,1,aux!$AL$1)>0,(G55/INDEX($C55:$G55,1,aux!$AL$1))^(1/($G$3-INDEX($C$3:$G$3,1,aux!$AL$1)))-1,"n.d.") -> 0.4564792827 | Y55: =IF(INDEX($C55:$G55,1,aux!$AL$1)>0,(G55-INDEX($C55:$G55,1,aux!$AL$1))/INDEX($C55:$G55,1,aux!$AL$1),"n.d.") -> 3.500049034 | AA55: =O55-INDEX($K55:$O55,1,aux!$AL$1) -> 0.16 | AB55: 3.892608763e-05 | AC55: 7.039248518e-06 | AD55: =+IF(INDEX($K55:$O55,1,aux!$AL$1)>0,(O55/INDEX($K55:$O55,1,aux!$AL$1))^(1/($O$3-INDEX($K$3:$O$3,1,aux!$AL$1)))-1,"n.d.") -> 1.293449646 | AE55: =IF(INDEX($K55:$O55,1,aux!$AL$1)>0,(O55-INDEX($K55:$O55,1,aux!$AL$1))/INDEX($K55:$O55,1,aux!$AL$1),"n.d.") -> 26.66666667 | AX55: 07
A56: 0710 | B56: Produtos hortícolas congelados | C56: 0 | D56: 53.999 | E56: 0.041 | F56: 0 | G56: 0 | H56: 10.808 | I56: 0.0004547252173 | J56: 0.0001677714331 | K56: 265.528 | L56: 168.746 | M56: 126.996 | N56: 434.277 | O56: 374.965 | P56: 274.1024 | Q56: 0.01918529494 | R56: 0.006998836773 | S56: 263.2944 | U56: =G56-INDEX($C56:$G56,1,aux!$AL$1) -> 0 | V56: 0 | W56: 0 | X56: =+IF(INDEX($C56:$G56,1,aux!$AL$1)>0,(G56/INDEX($C56:$G56,1,aux!$AL$1))^(1/($G$3-INDEX($C$3:$G$3,1,aux!$AL$1)))-1,"n.d.") -> n.d. | Y56: =IF(INDEX($C56:$G56,1,aux!$AL$1)>0,(G56-INDEX($C56:$G56,1,aux!$AL$1))/INDEX($C56:$G56,1,aux!$AL$1),"n.d.") -> n.d. | AA56: =O56-INDEX($K56:$O56,1,aux!$AL$1) -> 109.437 | AB56: 0.02662471408 | AC56: 0.004814714 | AD56: =+IF(INDEX($K56:$O56,1,aux!$AL$1)>0,(O56/INDEX($K56:$O56,1,aux!$AL$1))^(1/($O$3-INDEX($K$3:$O$3,1,aux!$AL$1)))-1,"n.d.") -> 0.09010944335 | AE56: =IF(INDEX($K56:$O56,1,aux!$AL$1)>0,(O56-INDEX($K56:$O56,1,aux!$AL$1))/INDEX($K56:$O56,1,aux!$AL$1),"n.d.") -> 0.4121486246 | AX56: 07
A57: 0711 | B57: Produtos hortícolas conservados transitoriamente | C57: 0 | D57: 0 | E57: 0 | F57: 0 | G57: 0 | H57: 0 | I57: 0 | J57: 0 | K57: 0 | L57: 0 | M57: 0 | N57: 0.032 | O57: 0.022 | P57: 0.0108 | Q57: 7.559261989e-07 | R57: 2.757634999e-07 | S57: 0.0108 | U57: =G57-INDEX($C57:$G57,1,aux!$AL$1) -> 0 | V57: 0 | W57: 0 | X57: =+IF(INDEX($C57:$G57,1,aux!$AL$1)>0,(G57/INDEX($C57:$G57,1,aux!$AL$1))^(1/($G$3-INDEX($C$3:$G$3,1,aux!$AL$1)))-1,"n.d.") -> n.d. | Y57: =IF(INDEX($C57:$G57,1,aux!$AL$1)>0,(G57-INDEX($C57:$G57,1,aux!$AL$1))/INDEX($C57:$G57,1,aux!$AL$1),"n.d.") -> n.d. | AA57: =O57-INDEX($K57:$O57,1,aux!$AL$1) -> 0.022 | AB57: 5.352337049e-06 | AC57: 9.678966712e-07 | AD57: =+IF(INDEX($K57:$O57,1,aux!$AL$1)>0,(O57/INDEX($K57:$O57,1,aux!$AL$1))^(1/($O$3-INDEX($K$3:$O$3,1,aux!$AL$1)))-1,"n.d.") -> n.d. | AE57: =IF(INDEX($K57:$O57,1,aux!$AL$1)>0,(O57-INDEX($K57:$O57,1,aux!$AL$1))/INDEX($K57:$O57,1,aux!$AL$1),"n.d.") -> n.d. | AX57: 07
A58: 0712 | B58: Produtos hortícolas secos | C58: 6.292 | D58: 3.184 | E58: 3.618 | F58: 2.437 | G58: 1.943 | H58: 3.4948 | I58: 0.0001470367958 | J58: 5.424940824e-05 | K58: 0 | L58: 0 | M58: 0 | N58: 238.167 | O58: 294.956 | P58: 106.6246 | Q58: 0.007462993388 | R58: 0.002722516007 | S58: 103.1298 | U58: =G58-INDEX($C58:$G58,1,aux!$AL$1) -> -4.349 | V58: -0.0002495544429 | W58: -0.0001127764254 | X58: =+IF(INDEX($C58:$G58,1,aux!$AL$1)>0,(G58/INDEX($C58:$G58,1,aux!$AL$1))^(1/($G$3-INDEX($C$3:$G$3,1,aux!$AL$1)))-1,"n.d.") -> -0.2545457044 | Y58: =IF(INDEX($C58:$G58,1,aux!$AL$1)>0,(G58-INDEX($C58:$G58,1,aux!$AL$1))/INDEX($C58:$G58,1,aux!$AL$1),"n.d.") -> -0.6911951685 | AA58: =O58-INDEX($K58:$O58,1,aux!$AL$1) -> 294.956 | AB58: 0.0717592694 | AC58: 0.01297667866 | AD58: =+IF(INDEX($K58:$O58,1,aux!$AL$1)>0,(O58/INDEX($K58:$O58,1,aux!$AL$1))^(1/($O$3-INDEX($K$3:$O$3,1,aux!$AL$1)))-1,"n.d.") -> n.d. | AE58: =IF(INDEX($K58:$O58,1,aux!$AL$1)>0,(O58-INDEX($K58:$O58,1,aux!$AL$1))/INDEX($K58:$O58,1,aux!$AL$1),"n.d.") -> n.d. | AX58: 07
A59: 0713 | B59: Legumes de vagem, secos, em grão | C59: 0 | D59: 0 | E59: 0 | F59: 0 | G59: 0 | H59: 0 | I59: 0 | J59: 0 | K59: 33.543 | L59: 43.087 | M59: 0.204 | N59: 0.557 | O59: 0.386 | P59: 15.5554 | Q59: 0.001088771703 | R59: 0.0003971862543 | S59: 15.5554 | U59: =G59-INDEX($C59:$G59,1,aux!$AL$1) -> 0 | V59: 0 | W59: 0 | X59: =+IF(INDEX($C59:$G59,1,aux!$AL$1)>0,(G59/INDEX($C59:$G59,1,aux!$AL$1))^(1/($G$3-INDEX($C$3:$G$3,1,aux!$AL$1)))-1,"n.d.") -> n.d. | Y59: =IF(INDEX($C59:$G59,1,aux!$AL$1)>0,(G59-INDEX($C59:$G59,1,aux!$AL$1))/INDEX($C59:$G59,1,aux!$AL$1),"n.d.") -> n.d. | AA59: =O59-INDEX($K59:$O59,1,aux!$AL$1) -> -33.157 | AB59: -0.008066701797 | AC59: -0.001458752269 | AD59: =+IF(INDEX($K59:$O59,1,aux!$AL$1)>0,(O59/INDEX($K59:$O59,1,aux!$AL$1))^(1/($O$3-INDEX($K$3:$O$3,1,aux!$AL$1)))-1,"n.d.") -> -0.6724735706 | AE59: =IF(INDEX($K59:$O59,1,aux!$AL$1)>0,(O59-INDEX($K59:$O59,1,aux!$AL$1))/INDEX($K59:$O59,1,aux!$AL$1),"n.d.") -> -0.9884923829 | AX59: 07
A60: 0714 | B60: Raízes de mandioca, de araruta, batata-doce, etc. | C60: 0 | D60: 0 | E60: 0 | F60: 0 | G60: 0 | H60: 0 | I60: 0 | J60: 0 | K60: 0 | L60: 0 | M60: 0 | N60: 0.148 | O60: 0 | P60: 0.0296 | Q60: 2.07179773e-06 | R60: 7.55796259e-07 | S60: 0.0296 | U60: =G60-INDEX($C60:$G60,1,aux!$AL$1) -> 0 | V60: 0 | W60: 0 | X60: =+IF(INDEX($C60:$G60,1,aux!$AL$1)>0,(G60/INDEX($C60:$G60,1,aux!$AL$1))^(1/($G$3-INDEX($C$3:$G$3,1,aux!$AL$1)))-1,"n.d.") -> n.d. | Y60: =IF(INDEX($C60:$G60,1,aux!$AL$1)>0,(G60-INDEX($C60:$G60,1,aux!$AL$1))/INDEX($C60:$G60,1,aux!$AL$1),"n.d.") -> n.d. | AA60: =O60-INDEX($K60:$O60,1,aux!$AL$1) -> 0 | AB60: 0 | AC60: 0 | AD60: =+IF(INDEX($K60:$O60,1,aux!$AL$1)>0,(O60/INDEX($K60:$O60,1,aux!$AL$1))^(1/($O$3-INDEX($K$3:$O$3,1,aux!$AL$1)))-1,"n.d.") -> n.d. | AE60: =IF(INDEX($K60:$O60,1,aux!$AL$1)>0,(O60-INDEX($K60:$O60,1,aux!$AL$1))/INDEX($K60:$O60,1,aux!$AL$1),"n.d.") -> n.d. | AX60: 07
A61: 07SS | B61: Produtos hortícolas, plantas, raízes e tubérculos, comestíveis | C61: 0 | D61: 0 | E61: 0 | F61: 0 | G61: 0 | H61: 0 | I61: 0 | J61: 0 | K61: 0 | L61: 0 | M61: 0 | N61: 0 | O61: 0 | P61: 0 | Q61: 0 | R61: 0 | S61: 0 | U61: =G61-INDEX($C61:$G61,1,aux!$AL$1) -> 0 | V61: 0 | W61: 0 | X61: =+IF(INDEX($C61:$G61,1,aux!$AL$1)>0,(G61/INDEX($C61:$G61,1,aux!$AL$1))^(1/($G$3-INDEX($C$3:$G$3,1,aux!$AL$1)))-1,"n.d.") -> n.d. | Y61: =IF(INDEX($C61:$G61,1,aux!$AL$1)>0,(G61-INDEX($C61:$G61,1,aux!$AL$1))/INDEX($C61:$G61,1,aux!$AL$1),"n.d.") -> n.d. | AA61: =O61-INDEX($K61:$O61,1,aux!$AL$1) -> 0 | AB61: 0 | AC61: 0 | AD61: =+IF(INDEX($K61:$O61,1,aux!$AL$1)>0,(O61/INDEX($K61:$O61,1,aux!$AL$1))^(1/($O$3-INDEX($K$3:$O$3,1,aux!$AL$1)))-1,"n.d.") -> n.d. | AE61: =IF(INDEX($K61:$O61,1,aux!$AL$1)>0,(O61-INDEX($K61:$O61,1,aux!$AL$1))/INDEX($K61:$O61,1,aux!$AL$1),"n.d.") -> n.d. | AX61: 07
A62: 0801 | B62: Cocos, castanhas do brasil e castanha de cajú | C62: 91.244 | D62: 0 | E62: 0.067 | F62: 0.098 | G62: 0.553 | H62: 18.3924 | I62: 0.0007738238422 | J62: 0.0002855032666 | K62: 0 | L62: 0 | M62: 0 | N62: 0.056 | O62: 0 | P62: 0.0112 | Q62: 7.839234656e-07 | R62: 2.859769628e-07 | S62: -18.3812 | U62: =G62-INDEX($C62:$G62,1,aux!$AL$1) -> -90.691 | V62: -0.005204033566 | W62: -0.002351760588 | X62: =+IF(INDEX($C62:$G62,1,aux!$AL$1)>0,(G62/INDEX($C62:$G62,1,aux!$AL$1))^(1/($G$3-INDEX($C$3:$G$3,1,aux!$AL$1)))-1,"n.d.") -> -0.7209832962 | Y62: =IF(INDEX($C62:$G62,1,aux!$AL$1)>0,(G62-INDEX($C62:$G62,1,aux!$AL$1))/INDEX($C62:$G62,1,aux!$AL$1),"n.d.") -> -0.9939393275 | AA62: =O62-INDEX($K62:$O62,1,aux!$AL$1) -> 0 | AB62: 0 | AC62: 0 | AD62: =+IF(INDEX($K62:$O62,1,aux!$AL$1)>0,(O62/INDEX($K62:$O62,1,aux!$AL$1))^(1/($O$3-INDEX($K$3:$O$3,1,aux!$AL$1)))-1,"n.d.") -> n.d. | AE62: =IF(INDEX($K62:$O62,1,aux!$AL$1)>0,(O62-INDEX($K62:$O62,1,aux!$AL$1))/INDEX($K62:$O62,1,aux!$AL$1),"n.d.") -> n.d. | AX62: 08
A63: 0802 | B63: Frutas de casca rija | C63: 13.479 | D63: 0 | E63: 0 | F63: 0 | G63: 49.923 | H63: 12.6804 | I63: 0.0005335027429 | J63: 0.0001968364989 | K63: 0 | L63: 0 | M63: 177.469 | N63: 164.495 | O63: 197.742 | P63: 107.9412 | Q63: 0.007555146391 | R63: 0.00275613362 | S63: 95.2608 | U63: =G63-INDEX($C63:$G63,1,aux!$AL$1) -> 36.444 | V63: 0.002091230655 | W63: 0.0009450503674 | X63: =+IF(INDEX($C63:$G63,1,aux!$AL$1)>0,(G63/INDEX($C63:$G63,1,aux!$AL$1))^(1/($G$3-INDEX($C$3:$G$3,1,aux!$AL$1)))-1,"n.d.") -> 0.3872692201 | Y63: =IF(INDEX($C63:$G63,1,aux!$AL$1)>0,(G63-INDEX($C63:$G63,1,aux!$AL$1))/INDEX($C63:$G63,1,aux!$AL$1),"n.d.") -> 2.703761407 | AA63: =O63-INDEX($K63:$O63,1,aux!$AL$1) -> 197.742 | AB63: 0.04810826513 | AC63: 0.008699719253 | AD63: =+IF(INDEX($K63:$O63,1,aux!$AL$1)>0,(O63/INDEX($K63:$O63,1,aux!$AL$1))^(1/($O$3-INDEX($K$3:$O$3,1,aux!$AL$1)))-1,"n.d.") -> n.d. | AE63: =IF(INDEX($K63:$O63,1,aux!$AL$1)>0,(O63-INDEX($K63:$O63,1,aux!$AL$1))/INDEX($K63:$O63,1,aux!$AL$1),"n.d.") -> n.d. | AX63: 08
A64: 0803 | B64: Bananas, frescas ou secas | C64: 0 | D64: 0 | E64: 0 | F64: 0 | G64: 0 | H64: 0 | I64: 0 | J64: 0 | K64: 0 | L64: 0 | M64: 1.044 | N64: 2.389 | O64: 12.783 | P64: 3.2432 | Q64: 0.0002270018378 | R64: 8.281075767e-05 | S64: 3.2432 | U64: =G64-INDEX($C64:$G64,1,aux!$AL$1) -> 0 | V64: 0 | W64: 0 | X64: =+IF(INDEX($C64:$G64,1,aux!$AL$1)>0,(G64/INDEX($C64:$G64,1,aux!$AL$1))^(1/($G$3-INDEX($C$3:$G$3,1,aux!$AL$1)))-1,"n.d.") -> n.d. | Y64: =IF(INDEX($C64:$G64,1,aux!$AL$1)>0,(G64-INDEX($C64:$G64,1,aux!$AL$1))/INDEX($C64:$G64,1,aux!$AL$1),"n.d.") -> n.d. | AA64: =O64-INDEX($K64:$O64,1,aux!$AL$1) -> 12.783 | AB64: 0.003109951114 | AC64: 0.0005623919613 | AD64: =+IF(INDEX($K64:$O64,1,aux!$AL$1)>0,(O64/INDEX($K64:$O64,1,aux!$AL$1))^(1/($O$3-INDEX($K$3:$O$3,1,aux!$AL$1)))-1,"n.d.") -> n.d. | AE64: =IF(INDEX($K64:$O64,1,aux!$AL$1)>0,(O64-INDEX($K64:$O64,1,aux!$AL$1))/INDEX($K64:$O64,1,aux!$AL$1),"n.d.") -> n.d. | AX64: 08
A65: 0804 | B65: Tâmaras, figos, ananases, abacates, goiabas, mangas | C65: 33.784 | D65: 0 | E65: 0 | F65: 0 | G65: 0 | H65: 6.7568 | I65: 0.0002842789922 | J65: 0.0001048850869 | K65: 24.16 | L65: 4 | M65: 31.65 | N65: 66.143 | O65: 48.281 | P65: 34.8468 | Q65: 0.002439037877 | R65: 0.0008897662526 | S65: 28.09 | U65: =G65-INDEX($C65:$G65,1,aux!$AL$1) -> -33.784 | V65: -0.001938594458 | W65: -0.0008760723744 | X65: =+IF(INDEX($C65:$G65,1,aux!$AL$1)>0,(G65/INDEX($C65:$G65,1,aux!$AL$1))^(1/($G$3-INDEX($C$3:$G$3,1,aux!$AL$1)))-1,"n.d.") -> -1 | Y65: =IF(INDEX($C65:$G65,1,aux!$AL$1)>0,(G65-INDEX($C65:$G65,1,aux!$AL$1))/INDEX($C65:$G65,1,aux!$AL$1),"n.d.") -> -1 | AA65: =O65-INDEX($K65:$O65,1,aux!$AL$1) -> 24.121 | AB65: 0.005868350998 | AC65: 0.001061210709 | AD65: =+IF(INDEX($K65:$O65,1,aux!$AL$1)>0,(O65/INDEX($K65:$O65,1,aux!$AL$1))^(1/($O$3-INDEX($K$3:$O$3,1,aux!$AL$1)))-1,"n.d.") -> 0.1889670844 | AE65: =IF(INDEX($K65:$O65,1,aux!$AL$1)>0,(O65-INDEX($K65:$O65,1,aux!$AL$1))/INDEX($K65:$O65,1,aux!$AL$1),"n.d.") -> 0.9983857616 | AX65: 08
A66: 0805 | B66: Citrinos, frescos ou secos | C66: 0 | D66: 0.045 | E66: 0.015 | F66: 0 | G66: 12.973 | H66: 2.6066 | I66: 0.0001096675381 | J66: 4.046197423e-05 | K66: 10.428 | L66: 3.417 | M66: 350.92 | N66: 11.279 | O66: 10.155 | P66: 77.2398 | Q66: 0.005406258187 | R66: 0.001972214591 | S66: 74.6332 | U66: =G66-INDEX($C66:$G66,1,aux!$AL$1) -> 12.973 | V66: 0.0007444170586 | W66: 0.0003364103396 | X66: =+IF(INDEX($C66:$G66,1,aux!$AL$1)>0,(G66/INDEX($C66:$G66,1,aux!$AL$1))^(1/($G$3-INDEX($C$3:$G$3,1,aux!$AL$1)))-1,"n.d.") -> n.d. | Y66: =IF(INDEX($C66:$G66,1,aux!$AL$1)>0,(G66-INDEX($C66:$G66,1,aux!$AL$1))/INDEX($C66:$G66,1,aux!$AL$1),"n.d.") -> n.d. | AA66: =O66-INDEX($K66:$O66,1,aux!$AL$1) -> -0.273 | AB66: -6.641763702e-05 | AC66: -1.201071778e-05 | AD66: =+IF(INDEX($K66:$O66,1,aux!$AL$1)>0,(O66/INDEX($K66:$O66,1,aux!$AL$1))^(1/($O$3-INDEX($K$3:$O$3,1,aux!$AL$1)))-1,"n.d.") -> -0.006610131586 | AE66: =IF(INDEX($K66:$O66,1,aux!$AL$1)>0,(O66-INDEX($K66:$O66,1,aux!$AL$1))/INDEX($K66:$O66,1,aux!$AL$1),"n.d.") -> -0.02617951669 | AX66: 08
A67: 0806 | B67: Uvas, frescas ou secas | C67: 0 | D67: 0 | E67: 0 | F67: 0 | G67: 0 | H67: 0 | I67: 0 | J67: 0 | K67: 0 | L67: 0 | M67: 0 | N67: 0 | O67: 0 | P67: 0 | Q67: 0 | R67: 0 | S67: 0 | U67: =G67-INDEX($C67:$G67,1,aux!$AL$1) -> 0 | V67: 0 | W67: 0 | X67: =+IF(INDEX($C67:$G67,1,aux!$AL$1)>0,(G67/INDEX($C67:$G67,1,aux!$AL$1))^(1/($G$3-INDEX($C$3:$G$3,1,aux!$AL$1)))-1,"n.d.") -> n.d. | Y67: =IF(INDEX($C67:$G67,1,aux!$AL$1)>0,(G67-INDEX($C67:$G67,1,aux!$AL$1))/INDEX($C67:$G67,1,aux!$AL$1),"n.d.") -> n.d. | AA67: =O67-INDEX($K67:$O67,1,aux!$AL$1) -> 0 | AB67: 0 | AC67: 0 | AD67: =+IF(INDEX($K67:$O67,1,aux!$AL$1)>0,(O67/INDEX($K67:$O67,1,aux!$AL$1))^(1/($O$3-INDEX($K$3:$O$3,1,aux!$AL$1)))-1,"n.d.") -> n.d. | AE67: =IF(INDEX($K67:$O67,1,aux!$AL$1)>0,(O67-INDEX($K67:$O67,1,aux!$AL$1))/INDEX($K67:$O67,1,aux!$AL$1),"n.d.") -> n.d. | AX67: 08
A68: 0807 | B68: Melões, melancias e papaia, frescos | C68: 0 | D68: 0 | E68: 0 | F68: 15.167 | G68: 0 | H68: 3.0334 | I68: 0.0001276243037 | J68: 4.708714518e-05 | K68: 0 | L68: 0 | M68: 0 | N68: 0.055 | O68: 0 | P68: 0.011 | Q68: 7.699248322e-07 | R68: 2.808702314e-07 | S68: -3.0224 | U68: =G68-INDEX($C68:$G68,1,aux!$AL$1) -> 0 | V68: =IF($U$237<>0,U68/$U$237, "n.d.") -> 0 | W68: =IF($U$322<>0,U68/$U$322, "n.d.") -> 0 | X68: =+IF(INDEX($C68:$G68,1,aux!$AL$1)>0,(G68/INDEX($C68:$G68,1,aux!$AL$1))^(1/($G$3-INDEX($C$3:$G$3,1,aux!$AL$1)))-1,"n.d.") -> n.d. | Y68: =IF(INDEX($C68:$G68,1,aux!$AL$1)>0,(G68-INDEX($C68:$G68,1,aux!$AL$1))/INDEX($C68:$G68,1,aux!$AL$1),"n.d.") -> n.d. | AA68: =O68-INDEX($K68:$O68,1,aux!$AL$1) -> 0 | AB68: =IF($AA$237<>0,AA68/$AA$237, "n.d.") -> 0 | AC68: =IF($AA$322<>0,AA68/$AA$322, "n.d.") -> 0 | AD68: =+IF(INDEX($K68:$O68,1,aux!$AL$1)>0,(O68/INDEX($K68:$O68,1,aux!$AL$1))^(1/($O$3-INDEX($K$3:$O$3,1,aux!$AL$1)))-1,"n.d.") -> n.d. | AE68: =IF(INDEX($K68:$O68,1,aux!$AL$1)>0,(O68-INDEX($K68:$O68,1,aux!$AL$1))/INDEX($K68:$O68,1,aux!$AL$1),"n.d.") -> n.d. | AX68: 08
A69: 0808 | B69: Maçãs, peras e marmelos, frescos | C69: 0 | D69: 0 | E69: 0 | F69: 17.219 | G69: 0 | H69: 3.4438 | I69: 0.0001448910717 | J69: 5.345774067e-05 | K69: 0 | L69: 0 | M69: 0 | N69: 0 | O69: 0 | P69: 0 | Q69: 0 | R69: 0 | S69: -3.4438 | U69: =G69-INDEX($C69:$G69,1,aux!$AL$1) -> 0 | V69: 0 | W69: 0 | X69: =+IF(INDEX($C69:$G69,1,aux!$AL$1)>0,(G69/INDEX($C69:$G69,1,aux!$AL$1))^(1/($G$3-INDEX($C$3:$G$3,1,aux!$AL$1)))-1,"n.d.") -> n.d. | Y69: =IF(INDEX($C69:$G69,1,aux!$AL$1)>0,(G69-INDEX($C69:$G69,1,aux!$AL$1))/INDEX($C69:$G69,1,aux!$AL$1),"n.d.") -> n.d. | AA69: =O69-INDEX($K69:$O69,1,aux!$AL$1) -> 0 | AB69: 0 | AC69: 0 | AD69: =+IF(INDEX($K69:$O69,1,aux!$AL$1)>0,(O69/INDEX($K69:$O69,1,aux!$AL$1))^(1/($O$3-INDEX($K$3:$O$3,1,aux!$AL$1)))-1,"n.d.") -> n.d. | AE69: =IF(INDEX($K69:$O69,1,aux!$AL$1)>0,(O69-INDEX($K69:$O69,1,aux!$AL$1))/INDEX($K69:$O69,1,aux!$AL$1),"n.d.") -> n.d. | AX69: 08
A70: 0809 | B70: Damascos, cerejas, pêssegos, etc., frescos | C70: 0 | D70: 0 | E70: 0 | F70: 21.939 | G70: 17.767 | H70: 7.9412 | I70: 0.000334110279 | J70: 0.000123270402 | K70: 8.145 | L70: 0 | M70: 83.08 | N70: 0 | O70: 209.307 | P70: 60.1064 | Q70: 0.004207037267 | R70: 0.001534736225 | S70: 52.1652 | U70: =G70-INDEX($C70:$G70,1,aux!$AL$1) -> 17.767 | V70: 0.001019506504 | W70: 0.0004607263165 | X70: =+IF(INDEX($C70:$G70,1,aux!$AL$1)>0,(G70/INDEX($C70:$G70,1,aux!$AL$1))^(1/($G$3-INDEX($C$3:$G$3,1,aux!$AL$1)))-1,"n.d.") -> n.d. | Y70: =IF(INDEX($C70:$G70,1,aux!$AL$1)>0,(G70-INDEX($C70:$G70,1,aux!$AL$1))/INDEX($C70:$G70,1,aux!$AL$1),"n.d.") -> n.d. | AA70: =O70-INDEX($K70:$O70,1,aux!$AL$1) -> 201.162 | AB70: 0.04894031025 | AC70: 0.00885018319 | AD70: =+IF(INDEX($K70:$O70,1,aux!$AL$1)>0,(O70/INDEX($K70:$O70,1,aux!$AL$1))^(1/($O$3-INDEX($K$3:$O$3,1,aux!$AL$1)))-1,"n.d.") -> 1.251506298 | AE70: =IF(INDEX($K70:$O70,1,aux!$AL$1)>0,(O70-INDEX($K70:$O70,1,aux!$AL$1))/INDEX($K70:$O70,1,aux!$AL$1),"n.d.") -> 24.69760589 | AX70: 08
A71: 0810 | B71: Outras frutas frescas | C71: 27.569 | D71: 4.877 | E71: 9.754 | F71: 93.363 | G71: 14.82 | H71: 30.0766 | I71: 0.001265413441 | J71: 0.000466875859 | K71: 628.759 | L71: 0.993 | M71: 23.812 | N71: 38.227 | O71: 22.753 | P71: 142.9088 | Q71: 0.01000263944 | R71: 0.003648984338 | S71: 112.8322 | U71: =G71-INDEX($C71:$G71,1,aux!$AL$1) -> -12.749 | V71: -0.0007315634841 | W71: -0.0003306016665 | X71: =+IF(INDEX($C71:$G71,1,aux!$AL$1)>0,(G71/INDEX($C71:$G71,1,aux!$AL$1))^(1/($G$3-INDEX($C$3:$G$3,1,aux!$AL$1)))-1,"n.d.") -> -0.1437377503 | Y71: =IF(INDEX($C71:$G71,1,aux!$AL$1)>0,(G71-INDEX($C71:$G71,1,aux!$AL$1))/INDEX($C71:$G71,1,aux!$AL$1),"n.d.") -> -0.4624396968 | AA71: =O71-INDEX($K71:$O71,1,aux!$AL$1) -> -606.006 | AB71: -0.1474340166 | AC71: -0.02666141773 | AD71: =+IF(INDEX($K71:$O71,1,aux!$AL$1)>0,(O71/INDEX($K71:$O71,1,aux!$AL$1))^(1/($O$3-INDEX($K$3:$O$3,1,aux!$AL$1)))-1,"n.d.") -> -0.563847252 | AE71: =IF(INDEX($K71:$O71,1,aux!$AL$1)>0,(O71-INDEX($K71:$O71,1,aux!$AL$1))/INDEX($K71:$O71,1,aux!$AL$1),"n.d.") -> -0.963812844 | AX71: 08
A72: 0811 | B72: Frutas não cozidas ou cozidas em água ou vapor, congeladas | C72: 106.247 | D72: 402.549 | E72: 170.624 | F72: 332.816 | G72: 589.858 | H72: 320.4188 | I72: 0.01348098709 | J72: 0.004973826911 | K72: 240.93 | L72: 318.378 | M72: 248.199 | N72: 162.113 | O72: 190.241 | P72: 231.9722 | Q72: 0.01623646883 | R72: 0.005923098681 | S72: -88.4466 | U72: =G72-INDEX($C72:$G72,1,aux!$AL$1) -> 483.611 | V72: 0.02775058029 | W72: 0.01254079556 | X72: =+IF(INDEX($C72:$G72,1,aux!$AL$1)>0,(G72/INDEX($C72:$G72,1,aux!$AL$1))^(1/($G$3-INDEX($C$3:$G$3,1,aux!$AL$1)))-1,"n.d.") -> 0.5349975953 | Y72: =IF(INDEX($C72:$G72,1,aux!$AL$1)>0,(G72-INDEX($C72:$G72,1,aux!$AL$1))/INDEX($C72:$G72,1,aux!$AL$1),"n.d.") -> 4.551761462 | AA72: =O72-INDEX($K72:$O72,1,aux!$AL$1) -> -50.689 | AB72: -0.01233202785 | AC72: -0.002230077926 | AD72: =+IF(INDEX($K72:$O72,1,aux!$AL$1)>0,(O72/INDEX($K72:$O72,1,aux!$AL$1))^(1/($O$3-INDEX($K$3:$O$3,1,aux!$AL$1)))-1,"n.d.") -> -0.05734383998 | AE72: =IF(INDEX($K72:$O72,1,aux!$AL$1)>0,(O72-INDEX($K72:$O72,1,aux!$AL$1))/INDEX($K72:$O72,1,aux!$AL$1),"n.d.") -> -0.2103889096 | AX72: 08
A73: 0812 | B73: Frutas conservadas transitoriamente | C73: 2.035 | D73: 0 | E73: 0 | F73: 0 | G73: 0 | H73: 0.407 | I73: 1.712371978e-05 | J73: 6.317817659e-06 | K73: 0 | L73: 0 | M73: 0 | N73: 0 | O73: 0 | P73: 0 | Q73: 0 | R73: 0 | S73: -0.407 | U73: =G73-INDEX($C73:$G73,1,aux!$AL$1) -> -2.035 | V73: -0.0001167724284 | W73: -5.277075781e-05 | X73: =+IF(INDEX($C73:$G73,1,aux!$AL$1)>0,(G73/INDEX($C73:$G73,1,aux!$AL$1))^(1/($G$3-INDEX($C$3:$G$3,1,aux!$AL$1)))-1,"n.d.") -> -1 | Y73: =IF(INDEX($C73:$G73,1,aux!$AL$1)>0,(G73-INDEX($C73:$G73,1,aux!$AL$1))/INDEX($C73:$G73,1,aux!$AL$1),"n.d.") -> -1 | AA73: =O73-INDEX($K73:$O73,1,aux!$AL$1) -> 0 | AB73: 0 | AC73: 0 | AD73: =+IF(INDEX($K73:$O73,1,aux!$AL$1)>0,(O73/INDEX($K73:$O73,1,aux!$AL$1))^(1/($O$3-INDEX($K$3:$O$3,1,aux!$AL$1)))-1,"n.d.") -> n.d. | AE73: =IF(INDEX($K73:$O73,1,aux!$AL$1)>0,(O73-INDEX($K73:$O73,1,aux!$AL$1))/INDEX($K73:$O73,1,aux!$AL$1),"n.d.") -> n.d. | AX73: 08
A74: 0813 | B74: Outras frutas secas | C74: 142.819 | D74: 46.205 | E74: 15.751 | F74: 13.787 | G74: 0.031 | H74: 43.7186 | I74: 0.001839373601 | J74: 0.0006786391723 | K74: 0 | L74: 0 | M74: 0 | N74: 0 | O74: 0 | P74: 0 | Q74: 0 | R74: 0 | S74: -43.7186 | U74: =G74-INDEX($C74:$G74,1,aux!$AL$1) -> -142.788 | V74: -0.008193465117 | W74: -0.00370271792 | X74: =+IF(INDEX($C74:$G74,1,aux!$AL$1)>0,(G74/INDEX($C74:$G74,1,aux!$AL$1))^(1/($G$3-INDEX($C$3:$G$3,1,aux!$AL$1)))-1,"n.d.") -> -0.8786208962 | Y74: =IF(INDEX($C74:$G74,1,aux!$AL$1)>0,(G74-INDEX($C74:$G74,1,aux!$AL$1))/INDEX($C74:$G74,1,aux!$AL$1),"n.d.") -> -0.999782942 | AA74: =O74-INDEX($K74:$O74,1,aux!$AL$1) -> 0 | AB74: 0 | AC74: 0 | AD74: =+IF(INDEX($K74:$O74,1,aux!$AL$1)>0,(O74/INDEX($K74:$O74,1,aux!$AL$1))^(1/($O$3-INDEX($K$3:$O$3,1,aux!$AL$1)))-1,"n.d.") -> n.d. | AE74: =IF(INDEX($K74:$O74,1,aux!$AL$1)>0,(O74-INDEX($K74:$O74,1,aux!$AL$1))/INDEX($K74:$O74,1,aux!$AL$1),"n.d.") -> n.d. | AX74: 08
A75: 0814 | B75: Cascas de citrinos, melões ou melancias | C75: 0 | D75: 0 | E75: 0 | F75: 0 | G75: 0 | H75: 0 | I75: 0 | J75: 0 | K75: 0 | L75: 0 | M75: 0 | N75: 0 | O75: 0 | P75: 0 | Q75: 0 | R75: 0 | S75: 0 | U75: =G75-INDEX($C75:$G75,1,aux!$AL$1) -> 0 | V75: 0 | W75: 0 | X75: =+IF(INDEX($C75:$G75,1,aux!$AL$1)>0,(G75/INDEX($C75:$G75,1,aux!$AL$1))^(1/($G$3-INDEX($C$3:$G$3,1,aux!$AL$1)))-1,"n.d.") -> n.d. | Y75: =IF(INDEX($C75:$G75,1,aux!$AL$1)>0,(G75-INDEX($C75:$G75,1,aux!$AL$1))/INDEX($C75:$G75,1,aux!$AL$1),"n.d.") -> n.d. | AA75: =O75-INDEX($K75:$O75,1,aux!$AL$1) -> 0 | AB75: 0 | AC75: 0 | AD75: =+IF(INDEX($K75:$O75,1,aux!$AL$1)>0,(O75/INDEX($K75:$O75,1,aux!$AL$1))^(1/($O$3-INDEX($K$3:$O$3,1,aux!$AL$1)))-1,"n.d.") -> n.d. | AE75: =IF(INDEX($K75:$O75,1,aux!$AL$1)>0,(O75-INDEX($K75:$O75,1,aux!$AL$1))/INDEX($K75:$O75,1,aux!$AL$1),"n.d.") -> n.d. | AX75: =+LEFT(A75,2) -> 08
A76: 08SS | B76: Frutas; cascas de citrinos e de melões | C76: 0 | D76: 0 | E76: 0 | F76: 0 | G76: 0 | H76: 0 | I76: 0 | J76: 0 | K76: 0 | L76: 0 | M76: 0 | N76: 0 | O76: 0 | P76: 0 | Q76: 0 | R76: 0 | S76: 0 | U76: =G76-INDEX($C76:$G76,1,aux!$AL$1) -> 0 | V76: 0 | W76: 0 | X76: =+IF(INDEX($C76:$G76,1,aux!$AL$1)>0,(G76/INDEX($C76:$G76,1,aux!$AL$1))^(1/($G$3-INDEX($C$3:$G$3,1,aux!$AL$1)))-1,"n.d.") -> n.d. | Y76: =IF(INDEX($C76:$G76,1,aux!$AL$1)>0,(G76-INDEX($C76:$G76,1,aux!$AL$1))/INDEX($C76:$G76,1,aux!$AL$1),"n.d.") -> n.d. | AA76: =O76-INDEX($K76:$O76,1,aux!$AL$1) -> 0 | AB76: 0 | AC76: 0 | AD76: =+IF(INDEX($K76:$O76,1,aux!$AL$1)>0,(O76/INDEX($K76:$O76,1,aux!$AL$1))^(1/($O$3-INDEX($K$3:$O$3,1,aux!$AL$1)))-1,"n.d.") -> n.d. | AE76: =IF(INDEX($K76:$O76,1,aux!$AL$1)>0,(O76-INDEX($K76:$O76,1,aux!$AL$1))/INDEX($K76:$O76,1,aux!$AL$1),"n.d.") -> n.d. | AX76: 08
A77: 0901 | B77: Café | C77: 0.941 | D77: 2.425 | E77: 0.788 | F77: 96.589 | G77: 27.69 | H77: 25.6866 | I77: 0.001080712876 | J77: 0.0003987303565 | K77: 24.785 | L77: 64.266 | M77: 164.372 | N77: 349.059 | O77: 351.291 | P77: 190.7546 | Q77: 0.01335151849 | R77: 0.004870662603 | S77: 165.068 | U77: =G77-INDEX($C77:$G77,1,aux!$AL$1) -> 26.749 | V77: 0.001534911886 | W77: 0.000693643735 | X77: =+IF(INDEX($C77:$G77,1,aux!$AL$1)>0,(G77/INDEX($C77:$G77,1,aux!$AL$1))^(1/($G$3-INDEX($C$3:$G$3,1,aux!$AL$1)))-1,"n.d.") -> 1.329074246 | Y77: =IF(INDEX($C77:$G77,1,aux!$AL$1)>0,(G77-INDEX($C77:$G77,1,aux!$AL$1))/INDEX($C77:$G77,1,aux!$AL$1),"n.d.") -> 28.4261424 | AA77: =O77-INDEX($K77:$O77,1,aux!$AL$1) -> 326.506 | AB77: 0.0794350073 | AC77: 0.01436473048 | AD77: =+IF(INDEX($K77:$O77,1,aux!$AL$1)>0,(O77/INDEX($K77:$O77,1,aux!$AL$1))^(1/($O$3-INDEX($K$3:$O$3,1,aux!$AL$1)))-1,"n.d.") -> 0.9403028654 | AE77: =IF(INDEX($K77:$O77,1,aux!$AL$1)>0,(O77-INDEX($K77:$O77,1,aux!$AL$1))/INDEX($K77:$O77,1,aux!$AL$1),"n.d.") -> 13.17353238 | AX77: 09
A78: 0902 | B78: Chá | C78: 11.652 | D78: 6.745 | E78: 7.615 | F78: 9.706 | G78: 9.429 | H78: 9.0294 | I78: 0.0003798941411 | J78: 0.0001401624147 | K78: 0.087 | L78: 0.038 | M78: 0.046 | N78: 0.022 | O78: 0.031 | P78: 0.0448 | Q78: 3.135693862e-06 | R78: 1.143907851e-06 | S78: -8.9846 | U78: =G78-INDEX($C78:$G78,1,aux!$AL$1) -> -2.223 | V78: -0.0001275602498 | W78: -5.764589416e-05 | X78: =+IF(INDEX($C78:$G78,1,aux!$AL$1)>0,(G78/INDEX($C78:$G78,1,aux!$AL$1))^(1/($G$3-INDEX($C$3:$G$3,1,aux!$AL$1)))-1,"n.d.") -> -0.05154596182 | Y78: =IF(INDEX($C78:$G78,1,aux!$AL$1)>0,(G78-INDEX($C78:$G78,1,aux!$AL$1))/INDEX($C78:$G78,1,aux!$AL$1),"n.d.") -> -0.1907826982 | AA78: =O78-INDEX($K78:$O78,1,aux!$AL$1) -> -0.056 | AB78: -1.362413067e-05 | AC78: -2.463736981e-06 | AD78: =+IF(INDEX($K78:$O78,1,aux!$AL$1)>0,(O78/INDEX($K78:$O78,1,aux!$AL$1))^(1/($O$3-INDEX($K$3:$O$3,1,aux!$AL$1)))-1,"n.d.") -> -0.2273894924 | AE78: =IF(INDEX($K78:$O78,1,aux!$AL$1)>0,(O78-INDEX($K78:$O78,1,aux!$AL$1))/INDEX($K78:$O78,1,aux!$AL$1),"n.d.") -> -0.6436781609 | AX78: 09
A79: 0903 | B79: Mate | C79: 0 | D79: 0 | E79: 0 | F79: 0 | G79: 0 | H79: 0 | I79: 0 | J79: 0 | K79: 0 | L79: 0 | M79: 0 | N79: 0.208 | O79: 13.959 | P79: 2.8334 | Q79: 0.0001983186382 | R79: 7.234706487e-05 | S79: 2.8334 | U79: =G79-INDEX($C79:$G79,1,aux!$AL$1) -> 0 | V79: 0 | W79: 0 | X79: =+IF(INDEX($C79:$G79,1,aux!$AL$1)>0,(G79/INDEX($C79:$G79,1,aux!$AL$1))^(1/($G$3-INDEX($C$3:$G$3,1,aux!$AL$1)))-1,"n.d.") -> n.d. | Y79: =IF(INDEX($C79:$G79,1,aux!$AL$1)>0,(G79-INDEX($C79:$G79,1,aux!$AL$1))/INDEX($C79:$G79,1,aux!$AL$1),"n.d.") -> n.d. | AA79: =O79-INDEX($K79:$O79,1,aux!$AL$1) -> 13.959 | AB79: 0.003396057858 | AC79: 0.0006141304379 | AD79: =+IF(INDEX($K79:$O79,1,aux!$AL$1)>0,(O79/INDEX($K79:$O79,1,aux!$AL$1))^(1/($O$3-INDEX($K$3:$O$3,1,aux!$AL$1)))-1,"n.d.") -> n.d. | AE79: =IF(INDEX($K79:$O79,1,aux!$AL$1)>0,(O79-INDEX($K79:$O79,1,aux!$AL$1))/INDEX($K79:$O79,1,aux!$AL$1),"n.d.") -> n.d. | AX79: 09
A80: 0904 | B80: Pimenta | C80: 32.167 | D80: 9.523 | E80: 65.192 | F80: 38.859 | G80: 28.612 | H80: 34.8706 | I80: 0.001467111506 | J80: 0.0005412926105 | K80: 0 | L80: 0 | M80: 0 | N80: 0.068 | O80: 0.013 | P80: 0.0162 | Q80: 1.133889298e-06 | R80: 4.136452498e-07 | S80: -34.8544 | U80: =G80-INDEX($C80:$G80,1,aux!$AL$1) -> -3.555 | V80: -0.0002039931121 | W80: -9.218675382e-05 | X80: =+IF(INDEX($C80:$G80,1,aux!$AL$1)>0,(G80/INDEX($C80:$G80,1,aux!$AL$1))^(1/($G$3-INDEX($C$3:$G$3,1,aux!$AL$1)))-1,"n.d.") -> -0.02885424908 | Y80: =IF(INDEX($C80:$G80,1,aux!$AL$1)>0,(G80-INDEX($C80:$G80,1,aux!$AL$1))/INDEX($C80:$G80,1,aux!$AL$1),"n.d.") -> -0.1105169895 | AA80: =O80-INDEX($K80:$O80,1,aux!$AL$1) -> 0.013 | AB80: 3.16274462e-06 | AC80: 5.719389421e-07 | AD80: =+IF(INDEX($K80:$O80,1,aux!$AL$1)>0,(O80/INDEX($K80:$O80,1,aux!$AL$1))^(1/($O$3-INDEX($K$3:$O$3,1,aux!$AL$1)))-1,"n.d.") -> n.d. | AE80: =IF(INDEX($K80:$O80,1,aux!$AL$1)>0,(O80-INDEX($K80:$O80,1,aux!$AL$1))/INDEX($K80:$O80,1,aux!$AL$1),"n.d.") -> n.d. | AX80: 09
A81: 0905 | B81: Baunilha | C81: 11.624 | D81: 19.97 | E81: 7.978 | F81: 10.037 | G81: 8.624 | H81: 11.6466 | I81: 0.0004900076532 | J81: 0.0001807889316 | K81: 0 | L81: 0 | M81: 0 | N81: 0 | O81: 0 | P81: 0 | Q81: 0 | R81: 0 | S81: -11.6466 | U81: =G81-INDEX($C81:$G81,1,aux!$AL$1) -> -3 | V81: -0.0001721460862 | W81: -7.779472896e-05 | X81: =+IF(INDEX($C81:$G81,1,aux!$AL$1)>0,(G81/INDEX($C81:$G81,1,aux!$AL$1))^(1/($G$3-INDEX($C$3:$G$3,1,aux!$AL$1)))-1,"n.d.") -> -0.07191386074 | Y81: =IF(INDEX($C81:$G81,1,aux!$AL$1)>0,(G81-INDEX($C81:$G81,1,aux!$AL$1))/INDEX($C81:$G81,1,aux!$AL$1),"n.d.") -> -0.2580867171 | AA81: =O81-INDEX($K81:$O81,1,aux!$AL$1) -> 0 | AB81: 0 | AC81: 0 | AD81: =+IF(INDEX($K81:$O81,1,aux!$AL$1)>0,(O81/INDEX($K81:$O81,1,aux!$AL$1))^(1/($O$3-INDEX($K$3:$O$3,1,aux!$AL$1)))-1,"n.d.") -> n.d. | AE81: =IF(INDEX($K81:$O81,1,aux!$AL$1)>0,(O81-INDEX($K81:$O81,1,aux!$AL$1))/INDEX($K81:$O81,1,aux!$AL$1),"n.d.") -> n.d. | AX81: 09
A82: 0906 | B82: Canela | C82: 30.463 | D82: 31.652 | E82: 43.675 | F82: 37.998 | G82: 30.849 | H82: 34.9274 | I82: 0.001469501254 | J82: 0.0005421743108 | K82: 0 | L82: 0.016 | M82: 0.033 | N82: 0.012 | O82: 0.034 | P82: 0.019 | Q82: 1.329870165e-06 | R82: 4.851394905e-07 | S82: -34.9084 | U82: =G82-INDEX($C82:$G82,1,aux!$AL$1) -> 0.386 | V82: 2.214946308e-05 | W82: 1.000958846e-05 | X82: =+IF(INDEX($C82:$G82,1,aux!$AL$1)>0,(G82/INDEX($C82:$G82,1,aux!$AL$1))^(1/($G$3-INDEX($C$3:$G$3,1,aux!$AL$1)))-1,"n.d.") -> 0.003152835382 | Y82: =IF(INDEX($C82:$G82,1,aux!$AL$1)>0,(G82-INDEX($C82:$G82,1,aux!$AL$1))/INDEX($C82:$G82,1,aux!$AL$1),"n.d.") -> 0.01267110921 | AA82: =O82-INDEX($K82:$O82,1,aux!$AL$1) -> 0.034 | AB82: 8.271793622e-06 | AC82: 1.49584031e-06 | AD82: =+IF(INDEX($K82:$O82,1,aux!$AL$1)>0,(O82/INDEX($K82:$O82,1,aux!$AL$1))^(1/($O$3-INDEX($K$3:$O$3,1,aux!$AL$1)))-1,"n.d.") -> n.d. | AE82: =IF(INDEX($K82:$O82,1,aux!$AL$1)>0,(O82-INDEX($K82:$O82,1,aux!$AL$1))/INDEX($K82:$O82,1,aux!$AL$1),"n.d.") -> n.d. | AX82: 09
A83: 0907 | B83: Cravo-da-índia | C83: 2.689 | D83: 2.755 | E83: 5.01 | F83: 4.955 | G83: 4.555 | H83: 3.9928 | I83: 0.0001679891606 | J83: 6.197980921e-05 | K83: 0 | L83: 0 | M83: 0 | N83: 0 | O83: 0 | P83: 0 | Q83: 0 | R83: 0 | S83: -3.9928 | U83: =G83-INDEX($C83:$G83,1,aux!$AL$1) -> 1.866 | V83: 0.0001070748656 | W83: 4.838832141e-05 | X83: =+IF(INDEX($C83:$G83,1,aux!$AL$1)>0,(G83/INDEX($C83:$G83,1,aux!$AL$1))^(1/($G$3-INDEX($C$3:$G$3,1,aux!$AL$1)))-1,"n.d.") -> 0.1408390932 | Y83: =IF(INDEX($C83:$G83,1,aux!$AL$1)>0,(G83-INDEX($C83:$G83,1,aux!$AL$1))/INDEX($C83:$G83,1,aux!$AL$1),"n.d.") -> 0.693938267 | AA83: =O83-INDEX($K83:$O83,1,aux!$AL$1) -> 0 | AB83: 0 | AC83: 0 | AD83: =+IF(INDEX($K83:$O83,1,aux!$AL$1)>0,(O83/INDEX($K83:$O83,1,aux!$AL$1))^(1/($O$3-INDEX($K$3:$O$3,1,aux!$AL$1)))-1,"n.d.") -> n.d. | AE83: =IF(INDEX($K83:$O83,1,aux!$AL$1)>0,(O83-INDEX($K83:$O83,1,aux!$AL$1))/INDEX($K83:$O83,1,aux!$AL$1),"n.d.") -> n.d. | AX83: 09
A84: 0908 | B84: Noz-moscada, etc. | C84: 12.045 | D84: 12.05 | E84: 21.812 | F84: 16.846 | G84: 17.802 | H84: 16.111 | I84: 0.0006778384507 | J84: 0.0002500893374 | K84: 0 | L84: 0 | M84: 0 | N84: 0 | O84: 0 | P84: 0 | Q84: 0 | R84: 0 | S84: -16.111 | U84: =G84-INDEX($C84:$G84,1,aux!$AL$1) -> 5.757 | V84: 0.0003303483393 | W84: 0.0001492880849 | X84: =+IF(INDEX($C84:$G84,1,aux!$AL$1)>0,(G84/INDEX($C84:$G84,1,aux!$AL$1))^(1/($G$3-INDEX($C$3:$G$3,1,aux!$AL$1)))-1,"n.d.") -> 0.1025936782 | Y84: =IF(INDEX($C84:$G84,1,aux!$AL$1)>0,(G84-INDEX($C84:$G84,1,aux!$AL$1))/INDEX($C84:$G84,1,aux!$AL$1),"n.d.") -> 0.4779576588 | AA84: =O84-INDEX($K84:$O84,1,aux!$AL$1) -> 0 | AB84: 0 | AC84: 0 | AD84: =+IF(INDEX($K84:$O84,1,aux!$AL$1)>0,(O84/INDEX($K84:$O84,1,aux!$AL$1))^(1/($O$3-INDEX($K$3:$O$3,1,aux!$AL$1)))-1,"n.d.") -> n.d. | AE84: =IF(INDEX($K84:$O84,1,aux!$AL$1)>0,(O84-INDEX($K84:$O84,1,aux!$AL$1))/INDEX($K84:$O84,1,aux!$AL$1),"n.d.") -> n.d. | AX84: 09
A85: 0909 | B85: Sementes de anis, funcho, etc. | C85: 7.157 | D85: 8.185 | E85: 8.056 | F85: 8.012 | G85: 9.201 | H85: 8.1222 | I85: 0.0003417254959 | J85: 0.0001260800457 | K85: 0 | L85: 0 | M85: 0 | N85: 0 | O85: 0 | P85: 0 | Q85: 0 | R85: 0 | S85: -8.1222 | U85: =G85-INDEX($C85:$G85,1,aux!$AL$1) -> 2.044 | V85: 0.0001172888667 | W85: 5.3004142e-05 | X85: =+IF(INDEX($C85:$G85,1,aux!$AL$1)>0,(G85/INDEX($C85:$G85,1,aux!$AL$1))^(1/($G$3-INDEX($C$3:$G$3,1,aux!$AL$1)))-1,"n.d.") -> 0.06481951867 | Y85: =IF(INDEX($C85:$G85,1,aux!$AL$1)>0,(G85-INDEX($C85:$G85,1,aux!$AL$1))/INDEX($C85:$G85,1,aux!$AL$1),"n.d.") -> 0.2855945228 | AA85: =O85-INDEX($K85:$O85,1,aux!$AL$1) -> 0 | AB85: 0 | AC85: 0 | AD85: =+IF(INDEX($K85:$O85,1,aux!$AL$1)>0,(O85/INDEX($K85:$O85,1,aux!$AL$1))^(1/($O$3-INDEX($K$3:$O$3,1,aux!$AL$1)))-1,"n.d.") -> n.d. | AE85: =IF(INDEX($K85:$O85,1,aux!$AL$1)>0,(O85-INDEX($K85:$O85,1,aux!$AL$1))/INDEX($K85:$O85,1,aux!$AL$1),"n.d.") -> n.d. | AX85: 09
A86: 0910 | B86: Gengibre, açafrão, tomilho, louro, etc. | C86: 84.539 | D86: 102.497 | E86: 105.374 | F86: 86.562 | G86: 143.683 | H86: 104.531 | I86: 0.004397935019 | J86: 0.001622623582 | K86: 0 | L86: 0 | M86: 0.069 | N86: 0.047 | O86: 0 | P86: 0.0232 | Q86: 1.623841464e-06 | R86: 5.923808516e-07 | S86: -104.5078 | U86: =G86-INDEX($C86:$G86,1,aux!$AL$1) -> 59.144 | V86: 0.003393802706 | W86: 0.00153369715 | X86: =+IF(INDEX($C86:$G86,1,aux!$AL$1)>0,(G86/INDEX($C86:$G86,1,aux!$AL$1))^(1/($G$3-INDEX($C$3:$G$3,1,aux!$AL$1)))-1,"n.d.") -> 0.1417921957 | Y86: =IF(INDEX($C86:$G86,1,aux!$AL$1)>0,(G86-INDEX($C86:$G86,1,aux!$AL$1))/INDEX($C86:$G86,1,aux!$AL$1),"n.d.") -> 0.699606099 | AA86: =O86-INDEX($K86:$O86,1,aux!$AL$1) -> 0 | AB86: 0 | AC86: 0 | AD86: =+IF(INDEX($K86:$O86,1,aux!$AL$1)>0,(O86/INDEX($K86:$O86,1,aux!$AL$1))^(1/($O$3-INDEX($K$3:$O$3,1,aux!$AL$1)))-1,"n.d.") -> n.d. | AE86: =IF(INDEX($K86:$O86,1,aux!$AL$1)>0,(O86-INDEX($K86:$O86,1,aux!$AL$1))/INDEX($K86:$O86,1,aux!$AL$1),"n.d.") -> n.d. | AX86: 09
A87: 09SS | B87: Café, chá, mate e especiarias | C87: 0 | D87: 0 | E87: 0 | F87: 0 | G87: 0 | H87: 0 | I87: 0 | J87: 0 | K87: 0 | L87: 0 | M87: 0 | N87: 0 | O87: 0 | P87: 0 | Q87: 0 | R87: 0 | S87: 0 | U87: =G87-INDEX($C87:$G87,1,aux!$AL$1) -> 0 | V87: 0 | W87: 0 | X87: =+IF(INDEX($C87:$G87,1,aux!$AL$1)>0,(G87/INDEX($C87:$G87,1,aux!$AL$1))^(1/($G$3-INDEX($C$3:$G$3,1,aux!$AL$1)))-1,"n.d.") -> n.d. | Y87: =IF(INDEX($C87:$G87,1,aux!$AL$1)>0,(G87-INDEX($C87:$G87,1,aux!$AL$1))/INDEX($C87:$G87,1,aux!$AL$1),"n.d.") -> n.d. | AA87: =O87-INDEX($K87:$O87,1,aux!$AL$1) -> 0 | AB87: 0 | AC87: 0 | AD87: =+IF(INDEX($K87:$O87,1,aux!$AL$1)>0,(O87/INDEX($K87:$O87,1,aux!$AL$1))^(1/($O$3-INDEX($K$3:$O$3,1,aux!$AL$1)))-1,"n.d.") -> n.d. | AE87: =IF(INDEX($K87:$O87,1,aux!$AL$1)>0,(O87-INDEX($K87:$O87,1,aux!$AL$1))/INDEX($K87:$O87,1,aux!$AL$1),"n.d.") -> n.d. | AX87: 09
A88: 1001 | B88: Trigo e mistura trigo/centeio | C88: 0 | D88: 0 | E88: 0 | F88: 0 | G88: 0 | H88: 0 | I88: 0 | J88: 0 | K88: 0 | L88: 0 | M88: 0 | N88: 0 | O88: 0 | P88: 0 | Q88: 0 | R88: 0 | S88: 0 | U88: =G88-INDEX($C88:$G88,1,aux!$AL$1) -> 0 | V88: 0 | W88: 0 | X88: =+IF(INDEX($C88:$G88,1,aux!$AL$1)>0,(G88/INDEX($C88:$G88,1,aux!$AL$1))^(1/($G$3-INDEX($C$3:$G$3,1,aux!$AL$1)))-1,"n.d.") -> n.d. | Y88: =IF(INDEX($C88:$G88,1,aux!$AL$1)>0,(G88-INDEX($C88:$G88,1,aux!$AL$1))/INDEX($C88:$G88,1,aux!$AL$1),"n.d.") -> n.d. | AA88: =O88-INDEX($K88:$O88,1,aux!$AL$1) -> 0 | AB88: 0 | AC88: 0 | AD88: =+IF(INDEX($K88:$O88,1,aux!$AL$1)>0,(O88/INDEX($K88:$O88,1,aux!$AL$1))^(1/($O$3-INDEX($K$3:$O$3,1,aux!$AL$1)))-1,"n.d.") -> n.d. | AE88: =IF(INDEX($K88:$O88,1,aux!$AL$1)>0,(O88-INDEX($K88:$O88,1,aux!$AL$1))/INDEX($K88:$O88,1,aux!$AL$1),"n.d.") -> n.d. | AX88: 10
A89: 1002 | B89: Centeio | C89: 0 | D89: 0 | E89: 0 | F89: 0 | G89: 0 | H89: 0 | I89: 0 | J89: 0 | K89: 0 | L89: 0 | M89: 0 | N89: 0 | O89: 0 | P89: 0 | Q89: 0 | R89: 0 | S89: 0 | U89: =G89-INDEX($C89:$G89,1,aux!$AL$1) -> 0 | V89: 0 | W89: 0 | X89: =+IF(INDEX($C89:$G89,1,aux!$AL$1)>0,(G89/INDEX($C89:$G89,1,aux!$AL$1))^(1/($G$3-INDEX($C$3:$G$3,1,aux!$AL$1)))-1,"n.d.") -> n.d. | Y89: =IF(INDEX($C89:$G89,1,aux!$AL$1)>0,(G89-INDEX($C89:$G89,1,aux!$AL$1))/INDEX($C89:$G89,1,aux!$AL$1),"n.d.") -> n.d. | AA89: =O89-INDEX($K89:$O89,1,aux!$AL$1) -> 0 | AB89: 0 | AC89: 0 | AD89: =+IF(INDEX($K89:$O89,1,aux!$AL$1)>0,(O89/INDEX($K89:$O89,1,aux!$AL$1))^(1/($O$3-INDEX($K$3:$O$3,1,aux!$AL$1)))-1,"n.d.") -> n.d. | AE89: =IF(INDEX($K89:$O89,1,aux!$AL$1)>0,(O89-INDEX($K89:$O89,1,aux!$AL$1))/INDEX($K89:$O89,1,aux!$AL$1),"n.d.") -> n.d. | AX89: 10
A90: 1003 | B90: Cevada | C90: 0 | D90: 0 | E90: 0 | F90: 0 | G90: 0 | H90: 0 | I90: 0 | J90: 0 | K90: 0 | L90: 0 | M90: 0 | N90: 0 | O90: 0 | P90: 0 | Q90: 0 | R90: 0 | S90: 0 | U90: =G90-INDEX($C90:$G90,1,aux!$AL$1) -> 0 | V90: 0 | W90: 0 | X90: =+IF(INDEX($C90:$G90,1,aux!$AL$1)>0,(G90/INDEX($C90:$G90,1,aux!$AL$1))^(1/($G$3-INDEX($C$3:$G$3,1,aux!$AL$1)))-1,"n.d.") -> n.d. | Y90: =IF(INDEX($C90:$G90,1,aux!$AL$1)>0,(G90-INDEX($C90:$G90,1,aux!$AL$1))/INDEX($C90:$G90,1,aux!$AL$1),"n.d.") -> n.d. | AA90: =O90-INDEX($K90:$O90,1,aux!$AL$1) -> 0 | AB90: 0 | AC90: 0 | AD90: =+IF(INDEX($K90:$O90,1,aux!$AL$1)>0,(O90/INDEX($K90:$O90,1,aux!$AL$1))^(1/($O$3-INDEX($K$3:$O$3,1,aux!$AL$1)))-1,"n.d.") -> n.d. | AE90: =IF(INDEX($K90:$O90,1,aux!$AL$1)>0,(O90-INDEX($K90:$O90,1,aux!$AL$1))/INDEX($K90:$O90,1,aux!$AL$1),"n.d.") -> n.d. | AX90: 10
A91: 1004 | B91: Aveia | C91: 0 | D91: 0 | E91: 0 | F91: 0 | G91: 0 | H91: 0 | I91: 0 | J91: 0 | K91: 0 | L91: 0 | M91: 0 | N91: 0 | O91: 0 | P91: 0 | Q91: 0 | R91: 0 | S91: 0 | U91: =G91-INDEX($C91:$G91,1,aux!$AL$1) -> 0 | V91: 0 | W91: 0 | X91: =+IF(INDEX($C91:$G91,1,aux!$AL$1)>0,(G91/INDEX($C91:$G91,1,aux!$AL$1))^(1/($G$3-INDEX($C$3:$G$3,1,aux!$AL$1)))-1,"n.d.") -> n.d. | Y91: =IF(INDEX($C91:$G91,1,aux!$AL$1)>0,(G91-INDEX($C91:$G91,1,aux!$AL$1))/INDEX($C91:$G91,1,aux!$AL$1),"n.d.") -> n.d. | AA91: =O91-INDEX($K91:$O91,1,aux!$AL$1) -> 0 | AB91: 0 | AC91: 0 | AD91: =+IF(INDEX($K91:$O91,1,aux!$AL$1)>0,(O91/INDEX($K91:$O91,1,aux!$AL$1))^(1/($O$3-INDEX($K$3:$O$3,1,aux!$AL$1)))-1,"n.d.") -> n.d. | AE91: =IF(INDEX($K91:$O91,1,aux!$AL$1)>0,(O91-INDEX($K91:$O91,1,aux!$AL$1))/INDEX($K91:$O91,1,aux!$AL$1),"n.d.") -> n.d. | AX91: 10
A92: 1005 | B92: Milho | C92: 75.157 | D92: 0 | E92: 0.625 | F92: 10.681 | G92: 324.476 | H92: 82.1878 | I92: 0.003457889083 | J92: 0.001275792467 | K92: 0 | L92: 0 | M92: 0 | N92: 0.018 | O92: 0 | P92: 0.0036 | Q92: 2.519753996e-07 | R92: 9.192116663e-08 | S92: -82.1842 | U92: =G92-INDEX($C92:$G92,1,aux!$AL$1) -> 249.319 | V92: 0.01430643002 | W92: 0.006465234677 | X92: =+IF(INDEX($C92:$G92,1,aux!$AL$1)>0,(G92/INDEX($C92:$G92,1,aux!$AL$1))^(1/($G$3-INDEX($C$3:$G$3,1,aux!$AL$1)))-1,"n.d.") -> 0.4414622916 | Y92: =IF(INDEX($C92:$G92,1,aux!$AL$1)>0,(G92-INDEX($C92:$G92,1,aux!$AL$1))/INDEX($C92:$G92,1,aux!$AL$1),"n.d.") -> 3.3173091 | AA92: =O92-INDEX($K92:$O92,1,aux!$AL$1) -> 0 | AB92: 0 | AC92: 0 | AD92: =+IF(INDEX($K92:$O92,1,aux!$AL$1)>0,(O92/INDEX($K92:$O92,1,aux!$AL$1))^(1/($O$3-INDEX($K$3:$O$3,1,aux!$AL$1)))-1,"n.d.") -> n.d. | AE92: =IF(INDEX($K92:$O92,1,aux!$AL$1)>0,(O92-INDEX($K92:$O92,1,aux!$AL$1))/INDEX($K92:$O92,1,aux!$AL$1),"n.d.") -> n.d. | AX92: 10
A93: 1006 | B93: Arroz | C93: 0 | D93: 0 | E93: 0 | F93: 4.801 | G93: 0 | H93: 0.9602 | I93: 4.039851532e-05 | J93: 1.490508235e-05 | K93: 22.579 | L93: 0.134 | M93: 331.89 | N93: 57.541 | O93: 169.072 | P93: 116.2432 | Q93: 0.00813622966 | R93: 0.002968114044 | S93: 115.283 | U93: =G93-INDEX($C93:$G93,1,aux!$AL$1) -> 0 | V93: 0 | W93: 0 | X93: =+IF(INDEX($C93:$G93,1,aux!$AL$1)>0,(G93/INDEX($C93:$G93,1,aux!$AL$1))^(1/($G$3-INDEX($C$3:$G$3,1,aux!$AL$1)))-1,"n.d.") -> n.d. | Y93: =IF(INDEX($C93:$G93,1,aux!$AL$1)>0,(G93-INDEX($C93:$G93,1,aux!$AL$1))/INDEX($C93:$G93,1,aux!$AL$1),"n.d.") -> n.d. | AA93: =O93-INDEX($K93:$O93,1,aux!$AL$1) -> 146.493 | AB93: 0.03563999597 | AC93: 0.006445003957 | AD93: =+IF(INDEX($K93:$O93,1,aux!$AL$1)>0,(O93/INDEX($K93:$O93,1,aux!$AL$1))^(1/($O$3-INDEX($K$3:$O$3,1,aux!$AL$1)))-1,"n.d.") -> 0.6542142079 | AE93: =IF(INDEX($K93:$O93,1,aux!$AL$1)>0,(O93-INDEX($K93:$O93,1,aux!$AL$1))/INDEX($K93:$O93,1,aux!$AL$1),"n.d.") -> 6.488019841 | AX93: 10
A94: 1007 | B94: Sorgo de grão | C94: 0 | D94: 0 | E94: 0 | F94: 0 | G94: 31.511 | H94: 6.3022 | I94: 0.0002651525966 | J94: 9.782837949e-05 | K94: 0 | L94: 0 | M94: 0 | N94: 0 | O94: 0 | P94: 0 | Q94: 0 | R94: 0 | S94: -6.3022 | U94: =G94-INDEX($C94:$G94,1,aux!$AL$1) -> 31.511 | V94: 0.001808165107 | W94: 0.0008171299014 | X94: =+IF(INDEX($C94:$G94,1,aux!$AL$1)>0,(G94/INDEX($C94:$G94,1,aux!$AL$1))^(1/($G$3-INDEX($C$3:$G$3,1,aux!$AL$1)))-1,"n.d.") -> n.d. | Y94: =IF(INDEX($C94:$G94,1,aux!$AL$1)>0,(G94-INDEX($C94:$G94,1,aux!$AL$1))/INDEX($C94:$G94,1,aux!$AL$1),"n.d.") -> n.d. | AA94: =O94-INDEX($K94:$O94,1,aux!$AL$1) -> 0 | AB94: 0 | AC94: 0 | AD94: =+IF(INDEX($K94:$O94,1,aux!$AL$1)>0,(O94/INDEX($K94:$O94,1,aux!$AL$1))^(1/($O$3-INDEX($K$3:$O$3,1,aux!$AL$1)))-1,"n.d.") -> n.d. | AE94: =IF(INDEX($K94:$O94,1,aux!$AL$1)>0,(O94-INDEX($K94:$O94,1,aux!$AL$1))/INDEX($K94:$O94,1,aux!$AL$1),"n.d.") -> n.d. | AX94: 10
A95: 1008 | B95: Trigo mourisco, painço e outros cereais | C95: 0 | D95: 3.056 | E95: 0 | F95: 12.737 | G95: 2.169 | H95: 3.5924 | I95: 0.0001511431227 | J95: 5.576444265e-05 | K95: 0 | L95: 0 | M95: 0 | N95: 0 | O95: 0 | P95: 0 | Q95: 0 | R95: 0 | S95: -3.5924 | U95: =G95-INDEX($C95:$G95,1,aux!$AL$1) -> 2.169 | V95: 0.0001244616203 | W95: 5.624558904e-05 | X95: =+IF(INDEX($C95:$G95,1,aux!$AL$1)>0,(G95/INDEX($C95:$G95,1,aux!$AL$1))^(1/($G$3-INDEX($C$3:$G$3,1,aux!$AL$1)))-1,"n.d.") -> n.d. | Y95: =IF(INDEX($C95:$G95,1,aux!$AL$1)>0,(G95-INDEX($C95:$G95,1,aux!$AL$1))/INDEX($C95:$G95,1,aux!$AL$1),"n.d.") -> n.d. | AA95: =O95-INDEX($K95:$O95,1,aux!$AL$1) -> 0 | AB95: 0 | AC95: 0 | AD95: =+IF(INDEX($K95:$O95,1,aux!$AL$1)>0,(O95/INDEX($K95:$O95,1,aux!$AL$1))^(1/($O$3-INDEX($K$3:$O$3,1,aux!$AL$1)))-1,"n.d.") -> n.d. | AE95: =IF(INDEX($K95:$O95,1,aux!$AL$1)>0,(O95-INDEX($K95:$O95,1,aux!$AL$1))/INDEX($K95:$O95,1,aux!$AL$1),"n.d.") -> n.d. | AX95: 10
A96: 10SS | B96: Cereais | C96: 0 | D96: 0 | E96: 0 | F96: 0 | G96: 0 | H96: 0 | I96: 0 | J96: 0 | K96: 0 | L96: 0 | M96: 0 | N96: 0 | O96: 0 | P96: 0 | Q96: 0 | R96: 0 | S96: 0 | U96: =G96-INDEX($C96:$G96,1,aux!$AL$1) -> 0 | V96: 0 | W96: 0 | X96: =+IF(INDEX($C96:$G96,1,aux!$AL$1)>0,(G96/INDEX($C96:$G96,1,aux!$AL$1))^(1/($G$3-INDEX($C$3:$G$3,1,aux!$AL$1)))-1,"n.d.") -> n.d. | Y96: =IF(INDEX($C96:$G96,1,aux!$AL$1)>0,(G96-INDEX($C96:$G96,1,aux!$AL$1))/INDEX($C96:$G96,1,aux!$AL$1),"n.d.") -> n.d. | AA96: =O96-INDEX($K96:$O96,1,aux!$AL$1) -> 0 | AB96: 0 | AC96: 0 | AD96: =+IF(INDEX($K96:$O96,1,aux!$AL$1)>0,(O96/INDEX($K96:$O96,1,aux!$AL$1))^(1/($O$3-INDEX($K$3:$O$3,1,aux!$AL$1)))-1,"n.d.") -> n.d. | AE96: =IF(INDEX($K96:$O96,1,aux!$AL$1)>0,(O96-INDEX($K96:$O96,1,aux!$AL$1))/INDEX($K96:$O96,1,aux!$AL$1),"n.d.") -> n.d. | AX96: 10
A97: 1101 | B97: Farinhas de trigo ou trigo/centeio | C97: 0 | D97: 0 | E97: 0 | F97: 0 | G97: 0 | H97: 0 | I97: 0 | J97: 0 | K97: 0 | L97: 0.02 | M97: 139.393 | N97: 0.03 | O97: 234.136 | P97: 74.7158 | Q97: 0.005229595435 | R97: 0.001907767639 | S97: 74.7158 | U97: =G97-INDEX($C97:$G97,1,aux!$AL$1) -> 0 | V97: 0 | W97: 0 | X97: =+IF(INDEX($C97:$G97,1,aux!$AL$1)>0,(G97/INDEX($C97:$G97,1,aux!$AL$1))^(1/($G$3-INDEX($C$3:$G$3,1,aux!$AL$1)))-1,"n.d.") -> n.d. | Y97: =IF(INDEX($C97:$G97,1,aux!$AL$1)>0,(G97-INDEX($C97:$G97,1,aux!$AL$1))/INDEX($C97:$G97,1,aux!$AL$1),"n.d.") -> n.d. | AA97: =O97-INDEX($K97:$O97,1,aux!$AL$1) -> 234.136 | AB97: 0.05696249034 | AC97: 0.01030088432 | AD97: =+IF(INDEX($K97:$O97,1,aux!$AL$1)>0,(O97/INDEX($K97:$O97,1,aux!$AL$1))^(1/($O$3-INDEX($K$3:$O$3,1,aux!$AL$1)))-1,"n.d.") -> n.d. | AE97: =IF(INDEX($K97:$O97,1,aux!$AL$1)>0,(O97-INDEX($K97:$O97,1,aux!$AL$1))/INDEX($K97:$O97,1,aux!$AL$1),"n.d.") -> n.d. | AX97: 11
A98: 1102 | B98: Outras farinhas de cereais | C98: 7.479 | D98: 3.399 | E98: 1.236 | F98: 2.148 | G98: 4.093 | H98: 3.671 | I98: 0.0001544500622 | J98: 5.698454208e-05 | K98: 0.013 | L98: 0.004 | M98: 0.024 | N98: 0.081 | O98: 0.057 | P98: 0.0358 | Q98: 2.505755363e-06 | R98: 9.141049348e-07 | S98: -3.6352 | U98: =G98-INDEX($C98:$G98,1,aux!$AL$1) -> -3.386 | V98: -0.0001942955492 | W98: -8.780431742e-05 | X98: =+IF(INDEX($C98:$G98,1,aux!$AL$1)>0,(G98/INDEX($C98:$G98,1,aux!$AL$1))^(1/($G$3-INDEX($C$3:$G$3,1,aux!$AL$1)))-1,"n.d.") -> -0.1398988014 | Y98: =IF(INDEX($C98:$G98,1,aux!$AL$1)>0,(G98-INDEX($C98:$G98,1,aux!$AL$1))/INDEX($C98:$G98,1,aux!$AL$1),"n.d.") -> -0.4527343228 | AA98: =O98-INDEX($K98:$O98,1,aux!$AL$1) -> 0.044 | AB98: 1.07046741e-05 | AC98: 1.935793342e-06 | AD98: =+IF(INDEX($K98:$O98,1,aux!$AL$1)>0,(O98/INDEX($K98:$O98,1,aux!$AL$1))^(1/($O$3-INDEX($K$3:$O$3,1,aux!$AL$1)))-1,"n.d.") -> 0.4470477951 | AE98: =IF(INDEX($K98:$O98,1,aux!$AL$1)>0,(O98-INDEX($K98:$O98,1,aux!$AL$1))/INDEX($K98:$O98,1,aux!$AL$1),"n.d.") -> 3.384615385 | AX98: 11
A99: 1103 | B99: Grumos, sêmolas, etc. de cereais | C99: 0 | D99: 1.999 | E99: 0 | F99: 0 | G99: 0 | H99: 0.3998 | I99: 1.682079403e-05 | J99: 6.206052826e-06 | K99: 0 | L99: 0 | M99: 0 | N99: 0 | O99: 0 | P99: 0 | Q99: 0 | R99: 0 | S99: -0.3998 | U99: =G99-INDEX($C99:$G99,1,aux!$AL$1) -> 0 | V99: 0 | W99: 0 | X99: =+IF(INDEX($C99:$G99,1,aux!$AL$1)>0,(G99/INDEX($C99:$G99,1,aux!$AL$1))^(1/($G$3-INDEX($C$3:$G$3,1,aux!$AL$1)))-1,"n.d.") -> n.d. | Y99: =IF(INDEX($C99:$G99,1,aux!$AL$1)>0,(G99-INDEX($C99:$G99,1,aux!$AL$1))/INDEX($C99:$G99,1,aux!$AL$1),"n.d.") -> n.d. | AA99: =O99-INDEX($K99:$O99,1,aux!$AL$1) -> 0 | AB99: 0 | AC99: 0 | AD99: =+IF(INDEX($K99:$O99,1,aux!$AL$1)>0,(O99/INDEX($K99:$O99,1,aux!$AL$1))^(1/($O$3-INDEX($K$3:$O$3,1,aux!$AL$1)))-1,"n.d.") -> n.d. | AE99: =IF(INDEX($K99:$O99,1,aux!$AL$1)>0,(O99-INDEX($K99:$O99,1,aux!$AL$1))/INDEX($K99:$O99,1,aux!$AL$1),"n.d.") -> n.d. | AX99: 11
A100: 1104 | B100: Grãos de cereais processados | C100: 2.502 | D100: 1.923 | E100: 3.846 | F100: 9.138 | G100: 12.436 | H100: 5.969 | I100: 0.0002511338658 | J100: 9.265615137e-05 | K100: 0 | L100: 0 | M100: 0 | N100: 0.428 | O100: 0.121 | P100: 0.1098 | Q100: 7.685249689e-06 | R100: 2.803595582e-06 | S100: -5.8592 | U100: =G100-INDEX($C100:$G100,1,aux!$AL$1) -> 9.934 | V100: 0.0005700330733 | W100: 0.0002576042792 | X100: =+IF(INDEX($C100:$G100,1,aux!$AL$1)>0,(G100/INDEX($C100:$G100,1,aux!$AL$1))^(1/($G$3-INDEX($C$3:$G$3,1,aux!$AL$1)))-1,"n.d.") -> 0.4931325118 | Y100: =IF(INDEX($C100:$G100,1,aux!$AL$1)>0,(G100-INDEX($C100:$G100,1,aux!$AL$1))/INDEX($C100:$G100,1,aux!$AL$1),"n.d.") -> 3.970423661 | AA100: =O100-INDEX($K100:$O100,1,aux!$AL$1) -> 0.121 | AB100: 2.943785377e-05 | AC100: 5.323431692e-06 | AD100: =+IF(INDEX($K100:$O100,1,aux!$AL$1)>0,(O100/INDEX($K100:$O100,1,aux!$AL$1))^(1/($O$3-INDEX($K$3:$O$3,1,aux!$AL$1)))-1,"n.d.") -> n.d. | AE100: =IF(INDEX($K100:$O100,1,aux!$AL$1)>0,(O100-INDEX($K100:$O100,1,aux!$AL$1))/INDEX($K100:$O100,1,aux!$AL$1),"n.d.") -> n.d. | AX100: 11
A101: 1105 | B101: Farinha, sêmola, etc. de batata | C101: 0 | D101: 0 | E101: 0 | F101: 0 | G101: 0 | H101: 0 | I101: 0 | J101: 0 | K101: 0 | L101: 0 | M101: 0 | N101: 0 | O101: 0 | P101: 0 | Q101: 0 | R101: 0 | S101: 0 | U101: =G101-INDEX($C101:$G101,1,aux!$AL$1) -> 0 | V101: 0 | W101: 0 | X101: =+IF(INDEX($C101:$G101,1,aux!$AL$1)>0,(G101/INDEX($C101:$G101,1,aux!$AL$1))^(1/($G$3-INDEX($C$3:$G$3,1,aux!$AL$1)))-1,"n.d.") -> n.d. | Y101: =IF(INDEX($C101:$G101,1,aux!$AL$1)>0,(G101-INDEX($C101:$G101,1,aux!$AL$1))/INDEX($C101:$G101,1,aux!$AL$1),"n.d.") -> n.d. | AA101: =O101-INDEX($K101:$O101,1,aux!$AL$1) -> 0 | AB101: 0 | AC101: 0 | AD101: =+IF(INDEX($K101:$O101,1,aux!$AL$1)>0,(O101/INDEX($K101:$O101,1,aux!$AL$1))^(1/($O$3-INDEX($K$3:$O$3,1,aux!$AL$1)))-1,"n.d.") -> n.d. | AE101: =IF(INDEX($K101:$O101,1,aux!$AL$1)>0,(O101-INDEX($K101:$O101,1,aux!$AL$1))/INDEX($K101:$O101,1,aux!$AL$1),"n.d.") -> n.d. | AX101: 11
A102: 1106 | B102: Farinhas, etc. de leguminosas e outros tubérculos | C102: 6.018 | D102: 7.08 | E102: 0 | F102: 16.695 | G102: 7.464 | H102: 7.4514 | I102: 0.000313502913 | J102: 0.0001156672887 | K102: 0 | L102: 0.03 | M102: 0.386 | N102: 0.022 | O102: 0.073 | P102: 0.1022 | Q102: 7.153301623e-06 | R102: 2.609539786e-06 | S102: -7.3492 | U102: =G102-INDEX($C102:$G102,1,aux!$AL$1) -> 1.446 | V102: 8.297441353e-05 | W102: 3.749705936e-05 | X102: =+IF(INDEX($C102:$G102,1,aux!$AL$1)>0,(G102/INDEX($C102:$G102,1,aux!$AL$1))^(1/($G$3-INDEX($C$3:$G$3,1,aux!$AL$1)))-1,"n.d.") -> 0.0553095343 | Y102: =IF(INDEX($C102:$G102,1,aux!$AL$1)>0,(G102-INDEX($C102:$G102,1,aux!$AL$1))/INDEX($C102:$G102,1,aux!$AL$1),"n.d.") -> 0.2402791625 | AA102: =O102-INDEX($K102:$O102,1,aux!$AL$1) -> 0.073 | AB102: 1.776002748e-05 | AC102: 3.211657136e-06 | AD102: =+IF(INDEX($K102:$O102,1,aux!$AL$1)>0,(O102/INDEX($K102:$O102,1,aux!$AL$1))^(1/($O$3-INDEX($K$3:$O$3,1,aux!$AL$1)))-1,"n.d.") -> n.d. | AE102: =IF(INDEX($K102:$O102,1,aux!$AL$1)>0,(O102-INDEX($K102:$O102,1,aux!$AL$1))/INDEX($K102:$O102,1,aux!$AL$1),"n.d.") -> n.d. | AX102: 11
A103: 1107 | B103: Malte, mesmo torrado | C103: 1.933 | D103: 2.02 | E103: 1.22 | F103: 1.968 | G103: 1.252 | H103: 1.6786 | I103: 7.062377403e-05 | J103: 2.605672905e-05 | K103: 0 | L103: 0 | M103: 0 | N103: 0 | O103: 0 | P103: 0 | Q103: 0 | R103: 0 | S103: -1.6786 | U103: =G103-INDEX($C103:$G103,1,aux!$AL$1) -> -0.681 | V103: -3.907716156e-05 | W103: -1.765940347e-05 | X103: =+IF(INDEX($C103:$G103,1,aux!$AL$1)>0,(G103/INDEX($C103:$G103,1,aux!$AL$1))^(1/($G$3-INDEX($C$3:$G$3,1,aux!$AL$1)))-1,"n.d.") -> -0.1028953274 | Y103: =IF(INDEX($C103:$G103,1,aux!$AL$1)>0,(G103-INDEX($C103:$G103,1,aux!$AL$1))/INDEX($C103:$G103,1,aux!$AL$1),"n.d.") -> -0.3523021211 | AA103: =O103-INDEX($K103:$O103,1,aux!$AL$1) -> 0 | AB103: 0 | AC103: 0 | AD103: =+IF(INDEX($K103:$O103,1,aux!$AL$1)>0,(O103/INDEX($K103:$O103,1,aux!$AL$1))^(1/($O$3-INDEX($K$3:$O$3,1,aux!$AL$1)))-1,"n.d.") -> n.d. | AE103: =IF(INDEX($K103:$O103,1,aux!$AL$1)>0,(O103-INDEX($K103:$O103,1,aux!$AL$1))/INDEX($K103:$O103,1,aux!$AL$1),"n.d.") -> n.d. | AX103: 11
A104: 1108 | B104: Amidos e féculas; inulina | C104: 0 | D104: 66.372 | E104: 20.747 | F104: 74.843 | G104: 39.606 | H104: 40.3136 | I104: 0.001696114963 | J104: 0.0006257837198 | K104: 0 | L104: 0 | M104: 0 | N104: 0.864 | O104: 0.312 | P104: 0.2352 | Q104: 1.646239278e-05 | R104: 6.00551622e-06 | S104: -40.0784 | U104: =G104-INDEX($C104:$G104,1,aux!$AL$1) -> 39.606 | V104: 0.002272672629 | W104: 0.001027046012 | X104: =+IF(INDEX($C104:$G104,1,aux!$AL$1)>0,(G104/INDEX($C104:$G104,1,aux!$AL$1))^(1/($G$3-INDEX($C$3:$G$3,1,aux!$AL$1)))-1,"n.d.") -> n.d. | Y104: =IF(INDEX($C104:$G104,1,aux!$AL$1)>0,(G104-INDEX($C104:$G104,1,aux!$AL$1))/INDEX($C104:$G104,1,aux!$AL$1),"n.d.") -> n.d. | AA104: =O104-INDEX($K104:$O104,1,aux!$AL$1) -> 0.312 | AB104: 7.590587088e-05 | AC104: 1.372653461e-05 | AD104: =+IF(INDEX($K104:$O104,1,aux!$AL$1)>0,(O104/INDEX($K104:$O104,1,aux!$AL$1))^(1/($O$3-INDEX($K$3:$O$3,1,aux!$AL$1)))-1,"n.d.") -> n.d. | AE104: =IF(INDEX($K104:$O104,1,aux!$AL$1)>0,(O104-INDEX($K104:$O104,1,aux!$AL$1))/INDEX($K104:$O104,1,aux!$AL$1),"n.d.") -> n.d. | AX104: 11
A105: 1109 | B105: Glúten de trigo, mesmo seco | C105: 0 | D105: 0 | E105: 0 | F105: 0 | G105: 0 | H105: 0 | I105: 0 | J105: 0 | K105: 0 | L105: 0 | M105: 0 | N105: 0 | O105: 0 | P105: 0 | Q105: 0 | R105: 0 | S105: 0 | U105: =G105-INDEX($C105:$G105,1,aux!$AL$1) -> 0 | V105: 0 | W105: 0 | X105: =+IF(INDEX($C105:$G105,1,aux!$AL$1)>0,(G105/INDEX($C105:$G105,1,aux!$AL$1))^(1/($G$3-INDEX($C$3:$G$3,1,aux!$AL$1)))-1,"n.d.") -> n.d. | Y105: =IF(INDEX($C105:$G105,1,aux!$AL$1)>0,(G105-INDEX($C105:$G105,1,aux!$AL$1))/INDEX($C105:$G105,1,aux!$AL$1),"n.d.") -> n.d. | AA105: =O105-INDEX($K105:$O105,1,aux!$AL$1) -> 0 | AB105: 0 | AC105: 0 | AD105: =+IF(INDEX($K105:$O105,1,aux!$AL$1)>0,(O105/INDEX($K105:$O105,1,aux!$AL$1))^(1/($O$3-INDEX($K$3:$O$3,1,aux!$AL$1)))-1,"n.d.") -> n.d. | AE105: =IF(INDEX($K105:$O105,1,aux!$AL$1)>0,(O105-INDEX($K105:$O105,1,aux!$AL$1))/INDEX($K105:$O105,1,aux!$AL$1),"n.d.") -> n.d. | AX105: 11
A106: 11SS | B106: Produtos da indústria de moagem e outros | C106: 0 | D106: 0 | E106: 0 | F106: 0 | G106: 0 | H106: 0 | I106: 0 | J106: 0 | K106: 0 | L106: 0 | M106: 0 | N106: 0 | O106: 0 | P106: 0 | Q106: 0 | R106: 0 | S106: 0 | U106: =G106-INDEX($C106:$G106,1,aux!$AL$1) -> 0 | V106: 0 | W106: 0 | X106: =+IF(INDEX($C106:$G106,1,aux!$AL$1)>0,(G106/INDEX($C106:$G106,1,aux!$AL$1))^(1/($G$3-INDEX($C$3:$G$3,1,aux!$AL$1)))-1,"n.d.") -> n.d. | Y106: =IF(INDEX($C106:$G106,1,aux!$AL$1)>0,(G106-INDEX($C106:$G106,1,aux!$AL$1))/INDEX($C106:$G106,1,aux!$AL$1),"n.d.") -> n.d. | AA106: =O106-INDEX($K106:$O106,1,aux!$AL$1) -> 0 | AB106: 0 | AC106: 0 | AD106: =+IF(INDEX($K106:$O106,1,aux!$AL$1)>0,(O106/INDEX($K106:$O106,1,aux!$AL$1))^(1/($O$3-INDEX($K$3:$O$3,1,aux!$AL$1)))-1,"n.d.") -> n.d. | AE106: =IF(INDEX($K106:$O106,1,aux!$AL$1)>0,(O106-INDEX($K106:$O106,1,aux!$AL$1))/INDEX($K106:$O106,1,aux!$AL$1),"n.d.") -> n.d. | AX106: 11
A107: 1201 | B107: Soja, mesmo triturada | C107: 32.779 | D107: 16.245 | E107: 21.019 | F107: 0.421 | G107: 0 | H107: 14.0928 | I107: 0.0005929266786 | J107: 0.0002187610337 | K107: 0 | L107: 0 | M107: 0 | N107: 0 | O107: 0 | P107: 0 | Q107: 0 | R107: 0 | S107: -14.0928 | U107: =G107-INDEX($C107:$G107,1,aux!$AL$1) -> -32.779 | V107: -0.001880925519 | W107: -0.0008500111402 | X107: =+IF(INDEX($C107:$G107,1,aux!$AL$1)>0,(G107/INDEX($C107:$G107,1,aux!$AL$1))^(1/($G$3-INDEX($C$3:$G$3,1,aux!$AL$1)))-1,"n.d.") -> -1 | Y107: =IF(INDEX($C107:$G107,1,aux!$AL$1)>0,(G107-INDEX($C107:$G107,1,aux!$AL$1))/INDEX($C107:$G107,1,aux!$AL$1),"n.d.") -> -1 | AA107: =O107-INDEX($K107:$O107,1,aux!$AL$1) -> 0 | AB107: 0 | AC107: 0 | AD107: =+IF(INDEX($K107:$O107,1,aux!$AL$1)>0,(O107/INDEX($K107:$O107,1,aux!$AL$1))^(1/($O$3-INDEX($K$3:$O$3,1,aux!$AL$1)))-1,"n.d.") -> n.d. | AE107: =IF(INDEX($K107:$O107,1,aux!$AL$1)>0,(O107-INDEX($K107:$O107,1,aux!$AL$1))/INDEX($K107:$O107,1,aux!$AL$1),"n.d.") -> n.d. | AX107: 12
A108: 1202 | B108: Amendoins não torrados | C108: 0.06 | D108: 0 | E108: 0 | F108: 0 | G108: 0.492 | H108: 0.1104 | I108: 4.644861583e-06 | J108: 1.713727444e-06 | K108: 0 | L108: 0 | M108: 0 | N108: 0 | O108: 0.022 | P108: 0.0044 | Q108: 3.079699329e-07 | R108: 1.123480925e-07 | S108: -0.106 | U108: =G108-INDEX($C108:$G108,1,aux!$AL$1) -> 0.432 | V108: 2.478903641e-05 | W108: 1.120244097e-05 | X108: =+IF(INDEX($C108:$G108,1,aux!$AL$1)>0,(G108/INDEX($C108:$G108,1,aux!$AL$1))^(1/($G$3-INDEX($C$3:$G$3,1,aux!$AL$1)))-1,"n.d.") -> 0.692206906 | Y108: =IF(INDEX($C108:$G108,1,aux!$AL$1)>0,(G108-INDEX($C108:$G108,1,aux!$AL$1))/INDEX($C108:$G108,1,aux!$AL$1),"n.d.") -> 7.2 | AA108: =O108-INDEX($K108:$O108,1,aux!$AL$1) -> 0.022 | AB108: 5.352337049e-06 | AC108: 9.678966712e-07 | AD108: =+IF(INDEX($K108:$O108,1,aux!$AL$1)>0,(O108/INDEX($K108:$O108,1,aux!$AL$1))^(1/($O$3-INDEX($K$3:$O$3,1,aux!$AL$1)))-1,"n.d.") -> n.d. | AE108: =IF(INDEX($K108:$O108,1,aux!$AL$1)>0,(O108-INDEX($K108:$O108,1,aux!$AL$1))/INDEX($K108:$O108,1,aux!$AL$1),"n.d.") -> n.d. | AX108: 12
A109: 1203 | B109: Copra | C109: 0 | D109: 0 | E109: 0 | F109: 0 | G109: 0 | H109: 0 | I109: 0 | J109: 0 | K109: 0 | L109: 0 | M109: 0 | N109: 0 | O109: 0 | P109: 0 | Q109: 0 | R109: 0 | S109: 0 | U109: =G109-INDEX($C109:$G109,1,aux!$AL$1) -> 0 | V109: 0 | W109: 0 | X109: =+IF(INDEX($C109:$G109,1,aux!$AL$1)>0,(G109/INDEX($C109:$G109,1,aux!$AL$1))^(1/($G$3-INDEX($C$3:$G$3,1,aux!$AL$1)))-1,"n.d.") -> n.d. | Y109: =IF(INDEX($C109:$G109,1,aux!$AL$1)>0,(G109-INDEX($C109:$G109,1,aux!$AL$1))/INDEX($C109:$G109,1,aux!$AL$1),"n.d.") -> n.d. | AA109: =O109-INDEX($K109:$O109,1,aux!$AL$1) -> 0 | AB109: 0 | AC109: 0 | AD109: =+IF(INDEX($K109:$O109,1,aux!$AL$1)>0,(O109/INDEX($K109:$O109,1,aux!$AL$1))^(1/($O$3-INDEX($K$3:$O$3,1,aux!$AL$1)))-1,"n.d.") -> n.d. | AE109: =IF(INDEX($K109:$O109,1,aux!$AL$1)>0,(O109-INDEX($K109:$O109,1,aux!$AL$1))/INDEX($K109:$O109,1,aux!$AL$1),"n.d.") -> n.d. | AX109: 12
A110: 1204 | B110: Sementes de linho (linhaça) | C110: 0 | D110: 0 | E110: 0 | F110: 11.26 | G110: 0 | H110: 2.252 | I110: 9.47484446e-05 | J110: 3.495755619e-05 | K110: 0 | L110: 0 | M110: 0 | N110: 0 | O110: 0 | P110: 0 | Q110: 0 | R110: 0 | S110: -2.252 | U110: =G110-INDEX($C110:$G110,1,aux!$AL$1) -> 0 | V110: 0 | W110: 0 | X110: =+IF(INDEX($C110:$G110,1,aux!$AL$1)>0,(G110/INDEX($C110:$G110,1,aux!$AL$1))^(1/($G$3-INDEX($C$3:$G$3,1,aux!$AL$1)))-1,"n.d.") -> n.d. | Y110: =IF(INDEX($C110:$G110,1,aux!$AL$1)>0,(G110-INDEX($C110:$G110,1,aux!$AL$1))/INDEX($C110:$G110,1,aux!$AL$1),"n.d.") -> n.d. | AA110: =O110-INDEX($K110:$O110,1,aux!$AL$1) -> 0 | AB110: 0 | AC110: 0 | AD110: =+IF(INDEX($K110:$O110,1,aux!$AL$1)>0,(O110/INDEX($K110:$O110,1,aux!$AL$1))^(1/($O$3-INDEX($K$3:$O$3,1,aux!$AL$1)))-1,"n.d.") -> n.d. | AE110: =IF(INDEX($K110:$O110,1,aux!$AL$1)>0,(O110-INDEX($K110:$O110,1,aux!$AL$1))/INDEX($K110:$O110,1,aux!$AL$1),"n.d.") -> n.d. | AX110: 12
A111: 1205 | B111: Sementes de nabo silvestre ou de colza | C111: 0 | D111: 0 | E111: 0 | F111: 0 | G111: 0 | H111: 0 | I111: 0 | J111: 0 | K111: 0 | L111: 0 | M111: 0.074 | N111: 0 | O111: 0 | P111: 0.0148 | Q111: 1.035898865e-06 | R111: 3.778981295e-07 | S111: 0.0148 | U111: =G111-INDEX($C111:$G111,1,aux!$AL$1) -> 0 | V111: 0 | W111: 0 | X111: =+IF(INDEX($C111:$G111,1,aux!$AL$1)>0,(G111/INDEX($C111:$G111,1,aux!$AL$1))^(1/($G$3-INDEX($C$3:$G$3,1,aux!$AL$1)))-1,"n.d.") -> n.d. | Y111: =IF(INDEX($C111:$G111,1,aux!$AL$1)>0,(G111-INDEX($C111:$G111,1,aux!$AL$1))/INDEX($C111:$G111,1,aux!$AL$1),"n.d.") -> n.d. | AA111: =O111-INDEX($K111:$O111,1,aux!$AL$1) -> 0 | AB111: 0 | AC111: 0 | AD111: =+IF(INDEX($K111:$O111,1,aux!$AL$1)>0,(O111/INDEX($K111:$O111,1,aux!$AL$1))^(1/($O$3-INDEX($K$3:$O$3,1,aux!$AL$1)))-1,"n.d.") -> n.d. | AE111: =IF(INDEX($K111:$O111,1,aux!$AL$1)>0,(O111-INDEX($K111:$O111,1,aux!$AL$1))/INDEX($K111:$O111,1,aux!$AL$1),"n.d.") -> n.d. | AX111: 12
A112: 1206 | B112: Sementes de girassol | C112: 126.652 | D112: 0 | E112: 0 | F112: 49.331 | G112: 32.114 | H112: 41.6194 | I112: 0.001751053914 | J112: 0.0006460535142 | K112: 0 | L112: 0 | M112: 0 | N112: 0 | O112: 0 | P112: 0 | Q112: 0 | R112: 0 | S112: -41.6194 | U112: =G112-INDEX($C112:$G112,1,aux!$AL$1) -> -94.538 | V112: -0.005424782231 | W112: -0.002451519362 | X112: =+IF(INDEX($C112:$G112,1,aux!$AL$1)>0,(G112/INDEX($C112:$G112,1,aux!$AL$1))^(1/($G$3-INDEX($C$3:$G$3,1,aux!$AL$1)))-1,"n.d.") -> -0.2903885938 | Y112: =IF(INDEX($C112:$G112,1,aux!$AL$1)>0,(G112-INDEX($C112:$G112,1,aux!$AL$1))/INDEX($C112:$G112,1,aux!$AL$1),"n.d.") -> -0.7464390614 | AA112: =O112-INDEX($K112:$O112,1,aux!$AL$1) -> 0 | AB112: 0 | AC112: 0 | AD112: =+IF(INDEX($K112:$O112,1,aux!$AL$1)>0,(O112/INDEX($K112:$O112,1,aux!$AL$1))^(1/($O$3-INDEX($K$3:$O$3,1,aux!$AL$1)))-1,"n.d.") -> n.d. | AE112: =IF(INDEX($K112:$O112,1,aux!$AL$1)>0,(O112-INDEX($K112:$O112,1,aux!$AL$1))/INDEX($K112:$O112,1,aux!$AL$1),"n.d.") -> n.d. | AX112: 12
A113: 1207 | B113: Sementes e frutos oleaginosos | C113: 0.726 | D113: 1.163 | E113: 0.092 | F113: 2.368 | G113: 9.072 | H113: 2.6842 | I113: 0.0001129324045 | J113: 4.166655076e-05 | K113: 0 | L113: 0 | M113: 0 | N113: 0 | O113: 0.002 | P113: 0.0004 | Q113: 2.799726663e-08 | R113: 1.021346296e-08 | S113: -2.6838 | U113: =G113-INDEX($C113:$G113,1,aux!$AL$1) -> 8.346 | V113: 0.0004789104117 | W113: 0.000216424936 | X113: =+IF(INDEX($C113:$G113,1,aux!$AL$1)>0,(G113/INDEX($C113:$G113,1,aux!$AL$1))^(1/($G$3-INDEX($C$3:$G$3,1,aux!$AL$1)))-1,"n.d.") -> 0.8801461305 | Y113: =IF(INDEX($C113:$G113,1,aux!$AL$1)>0,(G113-INDEX($C113:$G113,1,aux!$AL$1))/INDEX($C113:$G113,1,aux!$AL$1),"n.d.") -> 11.49586777 | AA113: =O113-INDEX($K113:$O113,1,aux!$AL$1) -> 0.002 | AB113: 4.865760954e-07 | AC113: 8.799060647e-08 | AD113: =+IF(INDEX($K113:$O113,1,aux!$AL$1)>0,(O113/INDEX($K113:$O113,1,aux!$AL$1))^(1/($O$3-INDEX($K$3:$O$3,1,aux!$AL$1)))-1,"n.d.") -> n.d. | AE113: =IF(INDEX($K113:$O113,1,aux!$AL$1)>0,(O113-INDEX($K113:$O113,1,aux!$AL$1))/INDEX($K113:$O113,1,aux!$AL$1),"n.d.") -> n.d. | AX113: 12
A114: 1208 | B114: Farinhas de sementes oleaginosas | C114: 117.262 | D114: 104.265 | E114: 69.671 | F114: 70.278 | G114: 44.745 | H114: 81.2442 | I114: 0.00341818898 | J114: 0.001261145065 | K114: 0 | L114: 0 | M114: 0 | N114: 0 | O114: 13.168 | P114: 2.6336 | Q114: 0.0001843340035 | R114: 6.724544012e-05 | S114: -78.6106 | U114: =G114-INDEX($C114:$G114,1,aux!$AL$1) -> -72.517 | V114: -0.004161172577 | W114: -0.00188048012 | X114: =+IF(INDEX($C114:$G114,1,aux!$AL$1)>0,(G114/INDEX($C114:$G114,1,aux!$AL$1))^(1/($G$3-INDEX($C$3:$G$3,1,aux!$AL$1)))-1,"n.d.") -> -0.2140465877 | Y114: =IF(INDEX($C114:$G114,1,aux!$AL$1)>0,(G114-INDEX($C114:$G114,1,aux!$AL$1))/INDEX($C114:$G114,1,aux!$AL$1),"n.d.") -> -0.618418584 | AA114: =O114-INDEX($K114:$O114,1,aux!$AL$1) -> 13.168 | AB114: 0.003203617012 | AC114: 0.000579330153 | AD114: =+IF(INDEX($K114:$O114,1,aux!$AL$1)>0,(O114/INDEX($K114:$O114,1,aux!$AL$1))^(1/($O$3-INDEX($K$3:$O$3,1,aux!$AL$1)))-1,"n.d.") -> n.d. | AE114: =IF(INDEX($K114:$O114,1,aux!$AL$1)>0,(O114-INDEX($K114:$O114,1,aux!$AL$1))/INDEX($K114:$O114,1,aux!$AL$1),"n.d.") -> n.d. | AX114: 12
A115: 1209 | B115: Sementes, frutos e esporos para sementeira | C115: 14.863 | D115: 15.515 | E115: 0.23 | F115: 71.467 | G115: 135.891 | H115: 47.5932 | I115: 0.002002389731 | J115: 0.0007387841755 | K115: 0 | L115: 0 | M115: 0 | N115: 9.115 | O115: 10.624 | P115: 3.9478 | Q115: 0.000276319023 | R115: 0.0001008017727 | S115: -43.6454 | U115: =G115-INDEX($C115:$G115,1,aux!$AL$1) -> 121.028 | V115: 0.006944832172 | W115: 0.003138446819 | X115: =+IF(INDEX($C115:$G115,1,aux!$AL$1)>0,(G115/INDEX($C115:$G115,1,aux!$AL$1))^(1/($G$3-INDEX($C$3:$G$3,1,aux!$AL$1)))-1,"n.d.") -> 0.7388857728 | Y115: =IF(INDEX($C115:$G115,1,aux!$AL$1)>0,(G115-INDEX($C115:$G115,1,aux!$AL$1))/INDEX($C115:$G115,1,aux!$AL$1),"n.d.") -> 8.142905201 | AA115: =O115-INDEX($K115:$O115,1,aux!$AL$1) -> 10.624 | AB115: 0.002584692219 | AC115: 0.0004674061016 | AD115: =+IF(INDEX($K115:$O115,1,aux!$AL$1)>0,(O115/INDEX($K115:$O115,1,aux!$AL$1))^(1/($O$3-INDEX($K$3:$O$3,1,aux!$AL$1)))-1,"n.d.") -> n.d. | AE115: =IF(INDEX($K115:$O115,1,aux!$AL$1)>0,(O115-INDEX($K115:$O115,1,aux!$AL$1))/INDEX($K115:$O115,1,aux!$AL$1),"n.d.") -> n.d. | AX115: 12
